{"text_format":"1","workbook":"xlsx","n_sheets":12,"sheets":["①企業健診について","②協会けんぽ健康診断申込書","ID","③注意事項","④受診者リスト","⑤申込みスケジュール","⑥営業時間","⑦診療日カレンダー","⑧オプション一覧","取り込み用","契約コース内容","運用について"],"not_rendered":{"charts":0,"images":6,"macros":1,"external_links":1,"defined_names":10,"comments":0,"pivot_tables":0},"unopened":[],"bounds":{"document_bytes":16777216,"sheet_cells":100000,"rows_first":2000,"rows_last":500,"rows_between":2000,"halvings":0,"cell_chars":16384,"cell_head_chars":4096},"cells_cut":0,"cells_raw":0,"read":"whole","date_system":"1900"}

{"sheet":"①企業健診について","index":0,"n_rows":27,"n_cols":4,"rows_kept":27,"cut":false,"hidden":false,"merged":[[21,2,21,27],[25,1,25,31],[24,1,24,31],[26,1,26,31],[1,1,1,31],[9,1,10,31],[3,1,3,31],[7,3,7,21],[6,3,6,21],[13,1,13,31],[16,2,16,27],[17,2,17,27],[18,2,18,27],[19,2,19,27],[20,2,20,27],[12,1,12,8]]}
[]
[null,"2025年度 協会けんぽ 企業健診申込について"]
[]
[null,"協会けんぽ企業健診の申込みにつきまして、下記の必要書類をご用意の上ご予約いただきますようお願い申し上げます。"]
[]
[null,null,null,"【企業健診申込みに必要な書類】"]
[null,null,null,"　1.健康診断申込書"]
[null,null,null,"　2.受診者リスト　添付書類/協会けんぽ健診対象者一覧※"]
[]
[null,"【※】協会けんぽより年度初めに企業様宛へ送付される書類となります。\n　　　紛失の場合は協会けんぽにて再発行や情報提供サービスからダウンロード可能です。\n　　　情報提供サービスの利用方法は『全国健康保険協会のホームページ』をご覧下さい。"]
[]
[]
[null,"【注意事項】"]
[null,"◎ご予約について\n　３名様以上のご予約は、申込書類をご入力の上、メールまたはFAXにてお申し込みください。\n　２名様までのご予約はお電話・メール・FAXにてお申し込み可能です。\n\n◎請求書発行について\n　請求書発行は10名様以上のご予約を取り纏めて頂ける企業様のみとさせて頂きます。\n　（9名様以下の企業様及び個人でのお申込みは当日窓口支払いとなります）\n\n◎企業様健診結果の送付について\n　『労働安全衛生規則』に定められた検査結果の提供となります。\n\n　ご理解ご協力の程よろしくお願い申し上げます。"]
[]
[]
[null,null,"■お申込み方法お問合せ"]
[null,null,"医療法人 福岡桜十字 桜十字福岡病院 <人間ドック・健診センター>"]
[null,null,"TEL : 092-791-1120  　　FAX ： 092-791-5650"]
[null,null,"メール : f.web.yoyaku@sakurajyuji.jp  "]
[null,null,"受付時間 平日 8:30～16:30 ／ 第 １・３土曜 8:30～12:00"]
[null,null,"（但し、祝日及び４月第１土曜日は休診日となります。）"]
[]
[]
[null,"書類確認後、当院より健診日程のご連絡をさせて頂きます。"]
[null,"年度初めは健診のお申込を多く頂く為、予約の日程調整にお時間をいただく場合がございます。"]
[null,"順番に対応致しますので、ご了承の程よろしくお願い申し上げます。"]

{"sheet":"②協会けんぽ健康診断申込書","index":1,"n_rows":43,"n_cols":27,"rows_kept":43,"cut":false,"hidden":false,"merged":[[37,2,37,17],[38,2,38,17],[42,2,42,17],[41,2,41,17],[39,2,39,8],[39,10,39,17],[40,2,40,17],[34,18,34,22],[34,23,34,25],[19,1,19,7],[19,8,19,15],[35,2,35,6],[35,7,35,9],[35,10,35,14],[35,15,35,17],[34,2,34,6],[34,7,34,9],[34,10,34,14],[34,15,34,17],[27,5,27,26],[28,5,28,26],[27,1,28,3],[29,1,31,1],[29,2,29,22],[29,23,29,26],[30,2,30,22],[30,23,30,26],[31,2,31,22],[31,23,31,26],[14,5,14,13],[14,14,14,17],[14,18,14,26],[16,1,17,4],[16,5,17,13],[16,14,17,17],[16,18,16,19],[16,20,16,26],[17,18,17,26],[15,1,15,4],[15,5,15,26],[14,1,14,4],[1,19,1,21],[3,1,3,26],[8,1,10,4],[8,5,8,7],[11,1,13,4],[11,6,11,7],[11,9,11,11],[11,12,11,26],[12,5,13,26],[8,8,8,26],[9,5,10,26],[5,1,5,26],[7,1,7,26],[6,1,6,26],[1,15,1,18],[24,1,25,26],[20,1,20,4],[20,5,20,7],[21,1,21,4],[21,5,21,7],[20,9,22,26],[23,1,23,7]]}
[]
[null,null,null,null,null,null,null,null,null,null,null,null,null,null,null,"お 申 込 日",null,null,null,null,null,null,"年",null,"月",null,"日"]
[]
[null,"２０２5 年 度 協 会 け ん ぽ 健 康 診 断 申 込 書 "]
[]
[null,"1.健康診断申込書（本用紙）2.受診者リスト（添付書類/協会けんぽ健診対象者一覧）と共にメールまたはFAXにて\n　お申込み下さい。"]
[null,"◎事業所様情報"]
[null,"　下記事業所様住所へ送付物（事前ご案内書類・健診結果・対象事業所様は請求書）の手配をいたします。\n　尚、ご本人様向け書類（問診票 / 健診結果報告書）の送付先はご自宅へも変更可能です。\n　ご希望の場合は日程確定後にご相談下さい。"]
[null,"事  業  所  名",null,null,null,"フ リ ガ ナ"]
[]
[]
[null,"事業所所在地",null,null,null,"〒",null,null,"-"]
[]
[]
[null,"電  話  番  号",null,null,null,null,null,null,null,null,null,null,null,null,"Ｆ Ａ Ｘ 番 号"]
[null,"メールアドレス"]
[null,"担  当  部  署",null,null,null,null,null,null,null,null,null,null,null,null,"担当者様名",null,null,null,"フリガナ"]
[]
[]
[null,"◎報告書控え発行について",null,null,null,null,null,null,"（希望項目に〇をつけてください）"]
[null,"控え要",null,null,null,null,null,null,null,"＊企業様控えは『労働安全衛生規則』に定められた検査結果の提供となります。（ご本人様用と書式が異なります）\n請求書発行が可能な企業様の場合、請求書送付時に企業控えを同封させていただきます。"]
[null,"控え不要"]
[]
[null,"◎請求書発行について"]
[null,"・請求書発行は10名様以上のご予約を取り纏めてお申込みの企業様のみとさせていただきます。\n　→下記より請求内容をご選択ください\n・9名様以下の企業様及び個人でのお申込みは当日窓口支払いとなります。\n　→下記請求内容は空欄でご提出ください。"]
[]
[]
[null,"請求内容",null,null,null,"10名様以上お申込みの場合、下記3パターンより請求内容を１つお選び下さい。"]
[null,null,null,null,null,"（希望内容に〇をつけてください）"]
[null,"請　求 内 容","　主コース (一般健診 / 定期健診B）のみ"]
[null,null,"　主コース (一般健診 / 定期健診B） + 胃カメラ差額"]
[null,null,"　主コース (一般健診 / 定期健診B） + 胃カメラ差額 + 付加健診 + 乳がん検診 + 子宮頚がん検診"]
[]
[null,null,"請求発行可の項目（協会けんぽ補助利用時の負担額　※税込み金額で表示）"]
[null,null,"一般健診",null,null,null,null,"(5,282円)",null,null,"付加健診",null,null,null,null,"(2,689円)",null,null,"子宮頸がん検診",null,null,null,null,"(970円)"]
[null,null,"乳がん検診（40歳～48歳）",null,null,null,null,"(1,574円)",null,null,"乳がん検診（50歳以上）",null,null,null,null,"(1,013円)",null,null,"*当院オプションは当日支払いとなります\n"]
[]
[null,null,"■お申込み方法(メール・FAXにて受付）・お問合せ"]
[null,null,"医療法人福岡桜十字 桜十字福岡病院 <人間ドック・健診センター>"]
[null,null,"TEL : 092-791-1120",null,null,null,null,null,null,null,"FAX : 092-791-5650"]
[null,null,"メール : f.web.yoyaku@sakurajyuji.jp"]
[null,null,"受付時間 平日 8:30～16:30／第1・3土曜日 8:30～12:00"]
[null,null,"（但し、祝日及び４月第１土曜日は休診日となります。）"]

{"sheet":"ID","index":2,"n_rows":1,"n_cols":11,"rows_kept":1,"cut":false,"hidden":true,"merged":[]}
["ID","カナ氏名","氏名","性別","生年月日","団体1・団体番号","本人家族区分","任継区分","被保険者証等記号","被保険者証等番号","保険者番号"]

{"sheet":"③注意事項","index":3,"n_rows":33,"n_cols":19,"rows_kept":33,"cut":false,"hidden":false,"merged":[[6,2,6,14],[9,3,9,7],[9,9,9,13],[4,1,4,15],[10,4,10,5],[10,6,10,7],[10,10,10,11],[10,12,10,13],[11,4,11,5],[11,6,11,7],[11,10,11,11],[11,12,11,13],[12,4,12,5],[12,6,12,7],[12,10,12,11],[12,12,12,13],[13,4,13,5],[13,6,13,7],[13,10,13,11],[13,12,13,13],[14,4,14,5],[14,6,14,7],[14,10,14,11],[14,12,14,13],[15,4,15,5],[15,6,15,7],[15,10,15,11],[15,12,15,13],[16,4,16,5],[16,6,16,7],[16,10,16,11],[16,12,16,13],[17,4,17,5],[17,6,17,7],[17,10,17,11],[17,12,17,13],[21,4,21,5],[21,6,21,7],[21,10,21,11],[21,12,21,13],[18,4,18,5],[18,6,18,7],[18,10,18,11],[18,12,18,13],[19,4,19,5],[19,6,19,7],[19,10,19,11],[19,12,19,13],[26,2,26,14],[28,2,28,14],[30,2,30,14],[32,2,32,14],[2,1,2,15],[7,3,7,13],[22,4,22,5],[22,6,22,7],[22,10,22,11],[22,12,22,13],[24,2,24,14],[25,2,25,14],[20,4,20,5],[20,6,20,7],[20,10,20,11],[20,12,20,13]]}
[]
[]
[null,"協会けんぽ用"]
[]
[null,"ご予約受付時に不備が多い項目"]
[]
[null,null,"◇　【胃部検査項目】欄の記入に関して\n　　 補助内での検査をご希望の場合は「胃透視検査（バリウム）」をご選択/ご記入ください。\n　　 「胃カメラ（胃部内視鏡）」をご希望の場合、差額は実費負担となりますのでご了承ください。\n　　 \n　　 ※ 胃カメラ選択時は、①経鼻（鎮静剤なし）　②経口（鎮静剤なし）　③経口（鎮静剤あり）から\n　　　　 お選びください。\n　　　　 ご希望の内容によってご予約可能なお時間が異なりますので下記表をご参照下さい。\n　　　　 なお、「✕鎮静剤なし」の時間帯でご予約いただいた方につきましては、健診日当日に\n　　　　「●鎮静剤あり」の時間帯への変更はできませんので予めご了承ください。",null,null,null,null,null,null,null,null,null,null,null,null,null,null,null,"　"]
[null,null,null,"● 鎮静剤あり　　　　　× 鎮静剤なし　　　　　△ 選択可能"]
[]
[null,null,null,"天神",null,null,null,null,null,"博多"]
[null,null,null,null,"平日",null,"土曜日",null,null,null,"平日",null,"土曜日"]
[null,null,null,"07:45:00","△",null,null,null,null,"07:45:00"]
[null,null,null,"08:00:00","△",null,"△",null,null,"08:00:00","●",null,"●"]
[null,null,null,"08:15:00","△",null,"△",null,null,"08:15:00","●",null,"●"]
[null,null,null,"08:30:00","△",null,"△",null,null,"08:30:00","×"]
[null,null,null,"08:45:00","×",null,"△",null,null,"08:45:00","×"]
[null,null,null,"09:00:00","●",null,"×",null,null,"09:00:00","●",null,"●"]
[null,null,null,"09:15:00","●",null,"×",null,null,"09:15:00","●",null,"●"]
[null,null,null,"09:30:00","×",null,null,null,null,"09:30:00","×"]
[null,null,null,"09:45:00",null,null,null,null,null,"09:45:00","×"]
[null,null,null,"10:00:00",null,null,null,null,null,"10:00:00","●",null,"●"]
[null,null,null,"10:15:00",null,null,null,null,null,"10:15:00","●"]
[null,null,null,"10:30:00",null,null,null,null,null,"10:30:00","×"]
[]
[null,null,"◇　【子宮頸がん検診】・【乳がん検診】欄の記入に関して\n　　 補助対象年齢の方で補助内での検査をご希望の方は「子宮頸部細胞診」・「マンモグラフィ」を\n　　 ご選択/ご記入ください。\n　　 補助対象年齢ではない方や、「乳腺超音波（エコー）」をご希望の方は実費負担となりますので\n　　 ご了承ください。\n\n　　 ※ 補助対象年齢ではない場合で、「子宮頸部細胞診」・「マンモグラフィー」をご希望の場合は\n　　　　 追加オプション欄にご記入をお願いします。\n\n　　 ※ マンモグラフィーをご希望の場合は必ず「1方向」か「2方向」のどちらをご希望されるか\n　　　　 ご選択/ご記入ください。"]
[null,null,"◇　【個人情報】の記入に関して\n　　 現在お持ちの健康保険証と同じ情報をご記入ください。\n　　 相違がある場合、補助がでない場合もございますのでご注意ください。"]
[null,null,"◇　【健診コース】の記入に関して\n　　 「定期健診」や「一般健診」など、ご希望のコースをご選択/ご記入の際に、コースに誤りがないか\n　　 ご注意ください。\n　　 例） 34歳以下の方が「一般健診」で記入されている。（正しくは「定期健診」をご選択/ご記入）"]
[]
[null,null,"●　上記正確に記載されたものから受付とさせていただきますので、お申込み依頼の前に必ずご確認ください。"]
[]
[null,null,"●　原則受付後2週間以内に回答をさせていただきますが、年度初めはお申込みが混み合いますため、予約の日程調整にお時間をいただく場合がございますので予めご了承ください。"]
[]
[null,null,"●　ご回答のスケジュールとしては「申込みスケジュール（別紙参照）」の期間を予定しておりますが、お申込み状況によってはそれ以上お待ちいただく可能性もございますので予めご了承ください。"]

{"sheet":"④受診者リスト","index":4,"n_rows":6450,"n_cols":56,"rows_kept":1125,"cut":true,"hidden":false,"merged":[[516,15,516,16],[516,17,516,18],[516,19,516,20],[517,15,517,16],[517,17,517,18],[517,19,517,20],[514,15,514,16],[514,17,514,18],[514,19,514,20],[515,15,515,16],[515,17,515,18],[515,19,515,20],[512,15,512,16],[512,17,512,18],[512,19,512,20],[513,15,513,16],[513,17,513,18],[513,19,513,20],[510,15,510,16],[510,17,510,18],[510,19,510,20],[511,15,511,16],[511,17,511,18],[511,19,511,20],[508,15,508,16],[508,17,508,18],[508,19,508,20],[509,15,509,16],[509,17,509,18],[509,19,509,20],[506,15,506,16],[506,17,506,18],[506,19,506,20],[507,15,507,16],[507,17,507,18],[507,19,507,20],[504,15,504,16],[504,17,504,18],[504,19,504,20],[505,15,505,16],[505,17,505,18],[505,19,505,20],[502,15,502,16],[502,17,502,18],[502,19,502,20],[503,15,503,16],[503,17,503,18],[503,19,503,20],[500,15,500,16],[500,17,500,18],[500,19,500,20],[501,15,501,16],[501,17,501,18],[501,19,501,20],[498,15,498,16],[498,17,498,18],[498,19,498,20],[499,15,499,16],[499,17,499,18],[499,19,499,20],[496,15,496,16],[496,17,496,18],[496,19,496,20],[497,15,497,16],[497,17,497,18],[497,19,497,20],[494,15,494,16],[494,17,494,18],[494,19,494,20],[495,15,495,16],[495,17,495,18],[495,19,495,20],[492,15,492,16],[492,17,492,18],[492,19,492,20],[493,15,493,16],[493,17,493,18],[493,19,493,20],[490,15,490,16],[490,17,490,18],[490,19,490,20],[491,15,491,16],[491,17,491,18],[491,19,491,20],[488,15,488,16],[488,17,488,18],[488,19,488,20],[489,15,489,16],[489,17,489,18],[489,19,489,20],[486,15,486,16],[486,17,486,18],[486,19,486,20],[487,15,487,16],[487,17,487,18],[487,19,487,20],[484,15,484,16],[484,17,484,18],[484,19,484,20],[485,15,485,16],[485,17,485,18],[485,19,485,20],[482,15,482,16],[482,17,482,18],[482,19,482,20],[483,15,483,16],[483,17,483,18],[483,19,483,20],[480,15,480,16],[480,17,480,18],[480,19,480,20],[481,15,481,16],[481,17,481,18],[481,19,481,20],[478,15,478,16],[478,17,478,18],[478,19,478,20],[479,15,479,16],[479,17,479,18],[479,19,479,20],[476,15,476,16],[476,17,476,18],[476,19,476,20],[477,15,477,16],[477,17,477,18],[477,19,477,20],[474,15,474,16],[474,17,474,18],[474,19,474,20],[475,15,475,16],[475,17,475,18],[475,19,475,20],[472,15,472,16],[472,17,472,18],[472,19,472,20],[473,15,473,16],[473,17,473,18],[473,19,473,20],[470,15,470,16],[470,17,470,18],[470,19,470,20],[471,15,471,16],[471,17,471,18],[471,19,471,20],[468,15,468,16],[468,17,468,18],[468,19,468,20],[469,15,469,16],[469,17,469,18],[469,19,469,20],[466,15,466,16],[466,17,466,18],[466,19,466,20],[467,15,467,16],[467,17,467,18],[467,19,467,20],[464,15,464,16],[464,17,464,18],[464,19,464,20],[465,15,465,16],[465,17,465,18],[465,19,465,20],[462,15,462,16],[462,17,462,18],[462,19,462,20],[463,15,463,16],[463,17,463,18],[463,19,463,20],[460,15,460,16],[460,17,460,18],[460,19,460,20],[461,15,461,16],[461,17,461,18],[461,19,461,20],[458,15,458,16],[458,17,458,18],[458,19,458,20],[459,15,459,16],[459,17,459,18],[459,19,459,20],[456,15,456,16],[456,17,456,18],[456,19,456,20],[457,15,457,16],[457,17,457,18],[457,19,457,20],[454,15,454,16],[454,17,454,18],[454,19,454,20],[455,15,455,16],[455,17,455,18],[455,19,455,20],[452,15,452,16],[452,17,452,18],[452,19,452,20],[453,15,453,16],[453,17,453,18],[453,19,453,20],[450,15,450,16],[450,17,450,18],[450,19,450,20],[451,15,451,16],[451,17,451,18],[451,19,451,20],[448,15,448,16],[448,17,448,18],[448,19,448,20],[449,15,449,16],[449,17,449,18],[449,19,449,20],[446,15,446,16],[446,17,446,18],[446,19,446,20],[447,15,447,16],[447,17,447,18],[447,19,447,20],[444,15,444,16],[444,17,444,18],[444,19,444,20],[445,15,445,16],[445,17,445,18],[445,19,445,20],[442,15,442,16],[442,17,442,18],[442,19,442,20],[443,15,443,16],[443,17,443,18],[443,19,443,20],[440,15,440,16],[440,17,440,18],[440,19,440,20],[441,15,441,16],[441,17,441,18],[441,19,441,20],[438,15,438,16],[438,17,438,18],[438,19,438,20],[439,15,439,16],[439,17,439,18],[439,19,439,20],[436,15,436,16],[436,17,436,18],[436,19,436,20],[437,15,437,16],[437,17,437,18],[437,19,437,20],[434,15,434,16],[434,17,434,18],[434,19,434,20],[435,15,435,16],[435,17,435,18],[435,19,435,20],[432,15,432,16],[432,17,432,18],[432,19,432,20],[433,15,433,16],[433,17,433,18],[433,19,433,20],[430,15,430,16],[430,17,430,18],[430,19,430,20],[431,15,431,16],[431,17,431,18],[431,19,431,20],[428,15,428,16],[428,17,428,18],[428,19,428,20],[429,15,429,16],[429,17,429,18],[429,19,429,20],[426,15,426,16],[426,17,426,18],[426,19,426,20],[427,15,427,16],[427,17,427,18],[427,19,427,20],[424,15,424,16],[424,17,424,18],[424,19,424,20],[425,15,425,16],[425,17,425,18],[425,19,425,20],[422,15,422,16],[422,17,422,18],[422,19,422,20],[423,15,423,16],[423,17,423,18],[423,19,423,20],[420,15,420,16],[420,17,420,18],[420,19,420,20],[421,15,421,16],[421,17,421,18],[421,19,421,20],[418,15,418,16],[418,17,418,18],[418,19,418,20],[419,15,419,16],[419,17,419,18],[419,19,419,20],[416,15,416,16],[416,17,416,18],[416,19,416,20],[417,15,417,16],[417,17,417,18],[417,19,417,20],[414,15,414,16],[414,17,414,18],[414,19,414,20],[415,15,415,16],[415,17,415,18],[415,19,415,20],[412,15,412,16],[412,17,412,18],[412,19,412,20],[413,15,413,16],[413,17,413,18],[413,19,413,20],[410,15,410,16],[410,17,410,18],[410,19,410,20],[411,15,411,16],[411,17,411,18],[411,19,411,20],[408,15,408,16],[408,17,408,18],[408,19,408,20],[409,15,409,16],[409,17,409,18],[409,19,409,20],[406,15,406,16],[406,17,406,18],[406,19,406,20],[407,15,407,16],[407,17,407,18],[407,19,407,20],[404,15,404,16],[404,17,404,18],[404,19,404,20],[405,15,405,16],[405,17,405,18],[405,19,405,20],[402,15,402,16],[402,17,402,18],[402,19,402,20],[403,15,403,16],[403,17,403,18],[403,19,403,20],[400,15,400,16],[400,17,400,18],[400,19,400,20],[401,15,401,16],[401,17,401,18],[401,19,401,20],[398,15,398,16],[398,17,398,18],[398,19,398,20],[399,15,399,16],[399,17,399,18],[399,19,399,20],[396,15,396,16],[396,17,396,18],[396,19,396,20],[397,15,397,16],[397,17,397,18],[397,19,397,20],[394,15,394,16],[394,17,394,18],[394,19,394,20],[395,15,395,16],[395,17,395,18],[395,19,395,20],[392,15,392,16],[392,17,392,18],[392,19,392,20],[393,15,393,16],[393,17,393,18],[393,19,393,20],[390,15,390,16],[390,17,390,18],[390,19,390,20],[391,15,391,16],[391,17,391,18],[391,19,391,20],[388,15,388,16],[388,17,388,18],[388,19,388,20],[389,15,389,16],[389,17,389,18],[389,19,389,20],[386,15,386,16],[386,17,386,18],[386,19,386,20],[387,15,387,16],[387,17,387,18],[387,19,387,20],[384,15,384,16],[384,17,384,18],[384,19,384,20],[385,15,385,16],[385,17,385,18],[385,19,385,20],[382,15,382,16],[382,17,382,18],[382,19,382,20],[383,15,383,16],[383,17,383,18],[383,19,383,20],[380,15,380,16],[380,17,380,18],[380,19,380,20],[381,15,381,16],[381,17,381,18],[381,19,381,20],[378,15,378,16],[378,17,378,18],[378,19,378,20],[379,15,379,16],[379,17,379,18],[379,19,379,20],[376,15,376,16],[376,17,376,18],[376,19,376,20],[377,15,377,16],[377,17,377,18],[377,19,377,20],[374,15,374,16],[374,17,374,18],[374,19,374,20],[375,15,375,16],[375,17,375,18],[375,19,375,20],[372,15,372,16],[372,17,372,18],[372,19,372,20],[373,15,373,16],[373,17,373,18],[373,19,373,20],[370,15,370,16],[370,17,370,18],[370,19,370,20],[371,15,371,16],[371,17,371,18],[371,19,371,20],[368,15,368,16],[368,17,368,18],[368,19,368,20],[369,15,369,16],[369,17,369,18],[369,19,369,20],[366,15,366,16],[366,17,366,18],[366,19,366,20],[367,15,367,16],[367,17,367,18],[367,19,367,20],[364,15,364,16],[364,17,364,18],[364,19,364,20],[365,15,365,16],[365,17,365,18],[365,19,365,20],[362,15,362,16],[362,17,362,18],[362,19,362,20],[363,15,363,16],[363,17,363,18],[363,19,363,20],[360,15,360,16],[360,17,360,18],[360,19,360,20],[361,15,361,16],[361,17,361,18],[361,19,361,20],[358,15,358,16],[358,17,358,18],[358,19,358,20],[359,15,359,16],[359,17,359,18],[359,19,359,20],[356,15,356,16],[356,17,356,18],[356,19,356,20],[357,15,357,16],[357,17,357,18],[357,19,357,20],[354,15,354,16],[354,17,354,18],[354,19,354,20],[355,15,355,16],[355,17,355,18],[355,19,355,20],[352,15,352,16],[352,17,352,18],[352,19,352,20],[353,15,353,16],[353,17,353,18],[353,19,353,20],[350,15,350,16],[350,17,350,18],[350,19,350,20],[351,15,351,16],[351,17,351,18],[351,19,351,20],[348,15,348,16],[348,17,348,18],[348,19,348,20],[349,15,349,16],[349,17,349,18],[349,19,349,20],[346,15,346,16],[346,17,346,18],[346,19,346,20],[347,15,347,16],[347,17,347,18],[347,19,347,20],[344,15,344,16],[344,17,344,18],[344,19,344,20],[345,15,345,16],[345,17,345,18],[345,19,345,20],[342,15,342,16],[342,17,342,18],[342,19,342,20],[343,15,343,16],[343,17,343,18],[343,19,343,20],[340,15,340,16],[340,17,340,18],[340,19,340,20],[341,15,341,16],[341,17,341,18],[341,19,341,20],[338,15,338,16],[338,17,338,18],[338,19,338,20],[339,15,339,16],[339,17,339,18],[339,19,339,20],[336,15,336,16],[336,17,336,18],[336,19,336,20],[337,15,337,16],[337,17,337,18],[337,19,337,20],[334,15,334,16],[334,17,334,18],[334,19,334,20],[335,15,335,16],[335,17,335,18],[335,19,335,20],[332,15,332,16],[332,17,332,18],[332,19,332,20],[333,15,333,16],[333,17,333,18],[333,19,333,20],[330,15,330,16],[330,17,330,18],[330,19,330,20],[331,15,331,16],[331,17,331,18],[331,19,331,20],[328,15,328,16],[328,17,328,18],[328,19,328,20],[329,15,329,16],[329,17,329,18],[329,19,329,20],[326,15,326,16],[326,17,326,18],[326,19,326,20],[327,15,327,16],[327,17,327,18],[327,19,327,20],[324,15,324,16],[324,17,324,18],[324,19,324,20],[325,15,325,16],[325,17,325,18],[325,19,325,20],[322,15,322,16],[322,17,322,18],[322,19,322,20],[323,15,323,16],[323,17,323,18],[323,19,323,20],[320,15,320,16],[320,17,320,18],[320,19,320,20],[321,15,321,16],[321,17,321,18],[321,19,321,20],[318,15,318,16],[318,17,318,18],[318,19,318,20],[319,15,319,16],[319,17,319,18],[319,19,319,20],[316,15,316,16],[316,17,316,18],[316,19,316,20],[317,15,317,16],[317,17,317,18],[317,19,317,20],[314,15,314,16],[314,17,314,18],[314,19,314,20],[315,15,315,16],[315,17,315,18],[315,19,315,20],[312,15,312,16],[312,17,312,18],[312,19,312,20],[313,15,313,16],[313,17,313,18],[313,19,313,20],[310,15,310,16],[310,17,310,18],[310,19,310,20],[311,15,311,16],[311,17,311,18],[311,19,311,20],[308,15,308,16],[308,17,308,18],[308,19,308,20],[309,15,309,16],[309,17,309,18],[309,19,309,20],[306,15,306,16],[306,17,306,18],[306,19,306,20],[307,15,307,16],[307,17,307,18],[307,19,307,20],[304,15,304,16],[304,17,304,18],[304,19,304,20],[305,15,305,16],[305,17,305,18],[305,19,305,20],[302,15,302,16],[302,17,302,18],[302,19,302,20],[303,15,303,16],[303,17,303,18],[303,19,303,20],[300,15,300,16],[300,17,300,18],[300,19,300,20],[301,15,301,16],[301,17,301,18],[301,19,301,20],[298,15,298,16],[298,17,298,18],[298,19,298,20],[299,15,299,16],[299,17,299,18],[299,19,299,20],[296,15,296,16],[296,17,296,18],[296,19,296,20],[297,15,297,16],[297,17,297,18],[297,19,297,20],[294,15,294,16],[294,17,294,18],[294,19,294,20],[295,15,295,16],[295,17,295,18],[295,19,295,20],[292,15,292,16],[292,17,292,18],[292,19,292,20],[293,15,293,16],[293,17,293,18],[293,19,293,20],[290,15,290,16],[290,17,290,18],[290,19,290,20],[291,15,291,16],[291,17,291,18],[291,19,291,20],[288,15,288,16],[288,17,288,18],[288,19,288,20],[289,15,289,16],[289,17,289,18],[289,19,289,20],[286,15,286,16],[286,17,286,18],[286,19,286,20],[287,15,287,16],[287,17,287,18],[287,19,287,20],[284,15,284,16],[284,17,284,18],[284,19,284,20],[285,15,285,16],[285,17,285,18],[285,19,285,20],[282,15,282,16],[282,17,282,18],[282,19,282,20],[283,15,283,16],[283,17,283,18],[283,19,283,20],[280,15,280,16],[280,17,280,18],[280,19,280,20],[281,15,281,16],[281,17,281,18],[281,19,281,20],[278,15,278,16],[278,17,278,18],[278,19,278,20],[279,15,279,16],[279,17,279,18],[279,19,279,20],[276,15,276,16],[276,17,276,18],[276,19,276,20],[277,15,277,16],[277,17,277,18],[277,19,277,20],[274,15,274,16],[274,17,274,18],[274,19,274,20],[275,15,275,16],[275,17,275,18],[275,19,275,20],[272,15,272,16],[272,17,272,18],[272,19,272,20],[273,15,273,16],[273,17,273,18],[273,19,273,20],[270,15,270,16],[270,17,270,18],[270,19,270,20],[271,15,271,16],[271,17,271,18],[271,19,271,20],[268,15,268,16],[268,17,268,18],[268,19,268,20],[269,15,269,16],[269,17,269,18],[269,19,269,20],[266,15,266,16],[266,17,266,18],[266,19,266,20],[267,15,267,16],[267,17,267,18],[267,19,267,20],[264,15,264,16],[264,17,264,18],[264,19,264,20],[265,15,265,16],[265,17,265,18],[265,19,265,20],[262,15,262,16],[262,17,262,18],[262,19,262,20],[263,15,263,16],[263,17,263,18],[263,19,263,20],[260,15,260,16],[260,17,260,18],[260,19,260,20],[261,15,261,16],[261,17,261,18],[261,19,261,20],[258,15,258,16],[258,17,258,18],[258,19,258,20],[259,15,259,16],[259,17,259,18],[259,19,259,20],[256,15,256,16],[256,17,256,18],[256,19,256,20],[257,15,257,16],[257,17,257,18],[257,19,257,20],[254,15,254,16],[254,17,254,18],[254,19,254,20],[255,15,255,16],[255,17,255,18],[255,19,255,20],[252,15,252,16],[252,17,252,18],[252,19,252,20],[253,15,253,16],[253,17,253,18],[253,19,253,20],[250,15,250,16],[250,17,250,18],[250,19,250,20],[251,15,251,16],[251,17,251,18],[251,19,251,20],[248,15,248,16],[248,17,248,18],[248,19,248,20],[249,15,249,16],[249,17,249,18],[249,19,249,20],[246,15,246,16],[246,17,246,18],[246,19,246,20],[247,15,247,16],[247,17,247,18],[247,19,247,20],[244,15,244,16],[244,17,244,18],[244,19,244,20],[245,15,245,16],[245,17,245,18],[245,19,245,20],[242,15,242,16],[242,17,242,18],[242,19,242,20],[243,15,243,16],[243,17,243,18],[243,19,243,20],[240,15,240,16],[240,17,240,18],[240,19,240,20],[241,15,241,16],[241,17,241,18],[241,19,241,20],[238,15,238,16],[238,17,238,18],[238,19,238,20],[239,15,239,16],[239,17,239,18],[239,19,239,20],[236,15,236,16],[236,17,236,18],[236,19,236,20],[237,15,237,16],[237,17,237,18],[237,19,237,20],[234,15,234,16],[234,17,234,18],[234,19,234,20],[235,15,235,16],[235,17,235,18],[235,19,235,20],[232,15,232,16],[232,17,232,18],[232,19,232,20],[233,15,233,16],[233,17,233,18],[233,19,233,20],[230,15,230,16],[230,17,230,18],[230,19,230,20],[231,15,231,16],[231,17,231,18],[231,19,231,20],[228,15,228,16],[228,17,228,18],[228,19,228,20],[229,15,229,16],[229,17,229,18],[229,19,229,20],[226,15,226,16],[226,17,226,18],[226,19,226,20],[227,15,227,16],[227,17,227,18],[227,19,227,20],[224,15,224,16],[224,17,224,18],[224,19,224,20],[225,15,225,16],[225,17,225,18],[225,19,225,20],[222,15,222,16],[222,17,222,18],[222,19,222,20],[223,15,223,16],[223,17,223,18],[223,19,223,20],[220,15,220,16],[220,17,220,18],[220,19,220,20],[221,15,221,16],[221,17,221,18],[221,19,221,20],[218,15,218,16],[218,17,218,18],[218,19,218,20],[219,15,219,16],[219,17,219,18],[219,19,219,20],[216,15,216,16],[216,17,216,18],[216,19,216,20],[217,15,217,16],[217,17,217,18],[217,19,217,20],[214,15,214,16],[214,17,214,18],[214,19,214,20],[215,15,215,16],[215,17,215,18],[215,19,215,20],[212,15,212,16],[212,17,212,18],[212,19,212,20],[213,15,213,16],[213,17,213,18],[213,19,213,20],[210,15,210,16],[210,17,210,18],[210,19,210,20],[211,15,211,16],[211,17,211,18],[211,19,211,20],[208,15,208,16],[208,17,208,18],[208,19,208,20],[209,15,209,16],[209,17,209,18],[209,19,209,20],[206,15,206,16],[206,17,206,18],[206,19,206,20],[207,15,207,16],[207,17,207,18],[207,19,207,20],[204,15,204,16],[204,17,204,18],[204,19,204,20],[205,15,205,16],[205,17,205,18],[205,19,205,20],[202,15,202,16],[202,17,202,18],[202,19,202,20],[203,15,203,16],[203,17,203,18],[203,19,203,20],[200,15,200,16],[200,17,200,18],[200,19,200,20],[201,15,201,16],[201,17,201,18],[201,19,201,20],[198,15,198,16],[198,17,198,18],[198,19,198,20],[199,15,199,16],[199,17,199,18],[199,19,199,20],[196,15,196,16],[196,17,196,18],[196,19,196,20],[197,15,197,16],[197,17,197,18],[197,19,197,20],[194,15,194,16],[194,17,194,18],[194,19,194,20],[195,15,195,16],[195,17,195,18],[195,19,195,20],[192,15,192,16],[192,17,192,18],[192,19,192,20],[193,15,193,16],[193,17,193,18],[193,19,193,20],[190,15,190,16],[190,17,190,18],[190,19,190,20],[191,15,191,16],[191,17,191,18],[191,19,191,20],[188,15,188,16],[188,17,188,18],[188,19,188,20],[189,15,189,16],[189,17,189,18],[189,19,189,20],[186,15,186,16],[186,17,186,18],[186,19,186,20],[187,15,187,16],[187,17,187,18],[187,19,187,20],[184,15,184,16],[184,17,184,18],[184,19,184,20],[185,15,185,16]],"bounds":{"rows_first":500,"rows_last":125,"rows_between":500,"halvings":2},"merged_total":1531,"flags":["merged_cut"]}
["出力日時",{"$f":"NOW()","v":"2025-04-01T17:43:54.730"}]
["2025年度　健康診断予約表（協会けんぽ加入企業・団体用）"]
["団体番号",null,"（当院入力箇所）"]
[null,null,"※以下お客様にてすべてご入力ください"]
["企業名"]
["ご担当者名"]
["電話番号"]
["保険者番号",null,null,null,null,null,null,null,null,null,null,null,null,null,null,null,null,null,null,null,null,null,null,null,null,null,null,null,null,null,null,null,null,null,null,null,null,null,null,null,null,null,null,null,null,null,null,null,"定期B",{"$f":"COUNTIF(J19:J518,\"定期B\")","v":0},"MDL",{"$f":"COUNTIF(K19:K518,\"バリウム\")","v":0}]
["保険者記号",null,null,null,null,null,null,null,null,null,null,null,null,null,null,null,null,null,null,null,null,null,null,null,null,null,null,null,null,null,null,null,null,null,null,null,null,null,null,null,null,null,null,null,null,null,null,null,"一般健診",{"$f":"COUNTIF(J19:J518,\"一般健診\")","v":0},"GF鎮静有",{"$f":"COUNTIF(K19:K518,\"胃カメラ(口/鎮静剤あり)\")","v":0}]
["希望受診時期",null,null,null,"例）4月～5月、特になし等",null,null,null,null,null,null,null,null,null,null,null,null,null,null,null,null,null,null,null,null,null,null,null,null,null,null,null,null,null,null,null,null,null,null,null,null,null,null,null,null,null,null,null,"差額ドック",{"$f":"COUNTIF(J19:J518,\"差額人間ドック\")","v":0},"GF鎮静無",{"$f":"COUNTIF(K19:K518,\"胃カメラ(口/鎮静剤なし)\")+COUNTIF(K19:K518,\"胃カメラ(鼻/鎮静剤なし)\")","v":0}]
["受診NG曜日",null,null,null,"例）土曜、特になし等",null,null,null,null,null,null,null,null,null,null,null,null,null,null,null,null,null,null,null,null,null,null,null,null,null,null,null,null,null,null,null,null,null,null,null,null,null,null,null,null,null,null,null,"雇用時",{"$f":"COUNTIF(J19:J518,\"雇用時健診\")","v":0},"子宮",{"$f":"COUNTIF(L19:L518,\"○\")","v":0}]
["希望受付開始時間",null,null,null,"例）8：00、特になし等",null,null,null,null,null,null,null,null,null,null,null,null,null,null,null,null,null,null,null,null,null,null,null,null,null,null,null,null,null,null,null,null,null,null,null,null,null,null,null,null,null,null,null,"その他",{"$f":"COUNTIFS(J19:J518,\"<>定期B\",J19:J518,\"<>一般健診\",J19:J518,\"<>差額人間ドック\",J19:J518,\"<>雇用時健診\",J19:J518,\"<>\"&\"\")","v":0},"マンモ",{"$f":"COUNTIF(M19:M518,\"○\")","v":0}]
["受診可能人数(1日あたり)",null,null,null,"例）5名、制限なし等",null,null,null,"年齢起算",null,null,null,null,null,null,null,null,null,null,null,null,null,null,null,null,null,null,null,null,null,null,null,null,null,null,null,null,null,null,null,null,null,null,null,null,null,null,null,"合計",{"$f":"SUM(AX8:AX12)","v":0},"付加",{"$f":"COUNTIF(N19:N518,\"○\")","v":0}]
[null,null,null,null,null,null,null,null,"2026-04-01",null,null,"※協会けんぽ補助対象年齢の方はセルに色が付きます"]
["自動","自動",null,null,null,null,null,null,"自動",null,null,null,null,null,null,null,null,null,null,null,null,null,"※当院入力欄"]
["NO.","当院ID","施設","保険証番号","保険証氏名\n氏名間全角スペース","フリガナ（全角）\n氏名間全角スペース","性別","生年月日","年齢","健診コース","胃部検査","子宮がん\n(子宮細胞診)","マンモグラフィ","付加健診","追加オプション　　　　　　　　　　　　　　　　　　　　　","第1希望",null,"第2希望",null,"第3希望",null,"備考欄【当院へお伝えしたいこと】\n例）転籍により保険証番号変更あり、苗字変更あり、FCF会員の場合は会員番号","決定受診日","曜日","時間","当院からのご連絡事項",null,null,null,null,null,null,null,null,null,null,null,null,null,null,null,null,null,null,null,null,null,null,null,null,null,null,null,null,"システムで使ってます\n消さないでください\n※最大3000人","システムで使ってます\n消さないでください\n※最大3000人"]
[null,null,"桜十字福岡病院",1,"桜十字　太郎","サクラジュウジ　タロウ","男","1989-08-25",{"$f":"DATEDIF(H17,$I$14,\"y\")","v":36},"定期B",null,null,null,null,"内臓脂肪CT,ヘリコバクターピロリIgG","2025-04-05",null,"2025-04-15",null,"2025-04-22",null,null,"／",{"$f":"TEXT(W17,\"(aaa)\")","v":"／"},"／",null,null,null,null,null,null,null,null,null,null,null,null,null,null,null,null,null,null,null,null,null,null,null,{"$f":"SUBSTITUTE(SUBSTITUTE(#REF!,\"　\",\"\"),\" \",\"\")","v":{"$error":"#REF!"}},{"$f":"AW17&H17","v":{"$error":"#REF!"}}]
[null,null,"桜十字博多駅健診CL",12,"桜十字　花子","サクラジュウジ　ハナコ","女","1980-05-15",45,"一般健診","胃カメラ(口/鎮静剤あり)","✕","2方向","○","骨密度検査","2025-05-10",null,"2025-05-30",null,"2025-06-15",null,null,"／",{"$f":"TEXT(W18,\"(aaa)\")","v":"／"},"／",null,null,null,null,null,null,null,null,null,null,null,null,null,null,null,null,null,null,null,null,null,null,null,{"$f":"SUBSTITUTE(SUBSTITUTE(#REF!,\"　\",\"\"),\" \",\"\")","v":{"$error":"#REF!"}},{"$f":"AW18&H18","v":{"$error":"#REF!"}}]
[{"$f":"ROW()-18","v":1},{"$f":"IFERROR(VLOOKUP(BD19,'[1]ID(当院入力シート)'!E:F,2,FALSE)&\"\",\"\")","v":""},null,null,null,null,null,null,126,null,null,null,null,null,null,"／",null,"／",null,"／",null,null,"／","／",null,null,null,null,null,null,null,null,null,null,null,null,null,null,null,null,null,null,null,null,null,null,null,null,null,null,null,null,null,null,{"$f":"SUBSTITUTE(SUBSTITUTE(E19,\"　\",\"\"),\" \",\"\")","v":""},{"$f":"BC19&H19","v":""}]
[{"$f":"ROW()-18","v":2},{"$f":"IFERROR(VLOOKUP(BD20,'[1]ID(当院入力シート)'!E:F,2,FALSE)&\"\",\"\")","v":""},null,null,null,null,null,null,126,null,null,null,null,null,null,"／",null,"／",null,"／",null,null,"／","／",null,null,null,null,null,null,null,null,null,null,null,null,null,null,null,null,null,null,null,null,null,null,null,null,null,null,null,null,null,null,"",""]
[{"$f":"ROW()-18","v":3},{"$f":"IFERROR(VLOOKUP(BD21,'[1]ID(当院入力シート)'!E:F,2,FALSE)&\"\",\"\")","v":""},null,null,null,null,null,null,126,null,null,null,null,null,null,"／",null,"／",null,"／",null,null,"／","／",null,null,null,null,null,null,null,null,null,null,null,null,null,null,null,null,null,null,null,null,null,null,null,null,null,null,null,null,null,null,"",""]
[4,{"$f":"IFERROR(VLOOKUP(BD22,'[1]ID(当院入力シート)'!E:F,2,FALSE)&\"\",\"\")","v":""},null,null,null,null,null,null,126,null,null,null,null,null,null,"／",null,"／",null,"／",null,null,"／","／",null,null,null,null,null,null,null,null,null,null,null,null,null,null,null,null,null,null,null,null,null,null,null,null,null,null,null,null,null,null,"",""]
[5,{"$f":"IFERROR(VLOOKUP(BD23,'[1]ID(当院入力シート)'!E:F,2,FALSE)&\"\",\"\")","v":""},null,null,null,null,null,null,126,null,null,null,null,null,null,"／",null,"／",null,"／",null,null,"／","／",null,null,null,null,null,null,null,null,null,null,null,null,null,null,null,null,null,null,null,null,null,null,null,null,null,null,null,null,null,null,"",""]
[6,{"$f":"IFERROR(VLOOKUP(BD24,'[1]ID(当院入力シート)'!E:F,2,FALSE)&\"\",\"\")","v":""},null,null,null,null,null,null,126,null,null,null,null,null,null,"／",null,"／",null,"／",null,null,"／","／",null,null,null,null,null,null,null,null,null,null,null,null,null,null,null,null,null,null,null,null,null,null,null,null,null,null,null,null,null,null,"",""]
[7,{"$f":"IFERROR(VLOOKUP(BD25,'[1]ID(当院入力シート)'!E:F,2,FALSE)&\"\",\"\")","v":""},null,null,null,null,null,null,126,null,null,null,null,null,null,"／",null,"／",null,"／",null,null,"／","／",null,null,null,null,null,null,null,null,null,null,null,null,null,null,null,null,null,null,null,null,null,null,null,null,null,null,null,null,null,null,"",""]
[8,{"$f":"IFERROR(VLOOKUP(BD26,'[1]ID(当院入力シート)'!E:F,2,FALSE)&\"\",\"\")","v":""},null,null,null,null,null,null,126,null,null,null,null,null,null,"／",null,"／",null,"／",null,null,"／","／",null,null,null,null,null,null,null,null,null,null,null,null,null,null,null,null,null,null,null,null,null,null,null,null,null,null,null,null,null,null,"",""]
[9,{"$f":"IFERROR(VLOOKUP(BD27,'[1]ID(当院入力シート)'!E:F,2,FALSE)&\"\",\"\")","v":""},null,null,null,null,null,null,126,null,null,null,null,null,null,"／",null,"／",null,"／",null,null,"／","／",null,null,null,null,null,null,null,null,null,null,null,null,null,null,null,null,null,null,null,null,null,null,null,null,null,null,null,null,null,null,"",""]
[10,{"$f":"IFERROR(VLOOKUP(BD28,'[1]ID(当院入力シート)'!E:F,2,FALSE)&\"\",\"\")","v":""},null,null,null,null,null,null,126,null,null,null,null,null,null,"／",null,"／",null,"／",null,null,"／","／",null,null,null,null,null,null,null,null,null,null,null,null,null,null,null,null,null,null,null,null,null,null,null,null,null,null,null,null,null,null,"",""]
[11,{"$f":"IFERROR(VLOOKUP(BD29,'[1]ID(当院入力シート)'!E:F,2,FALSE)&\"\",\"\")","v":""},null,null,null,null,null,null,126,null,null,null,null,null,null,"／",null,"／",null,"／",null,null,"／","／",null,null,null,null,null,null,null,null,null,null,null,null,null,null,null,null,null,null,null,null,null,null,null,null,null,null,null,null,null,null,"",""]
[12,{"$f":"IFERROR(VLOOKUP(BD30,'[1]ID(当院入力シート)'!E:F,2,FALSE)&\"\",\"\")","v":""},null,null,null,null,null,null,126,null,null,null,null,null,null,"／",null,"／",null,"／",null,null,"／","／",null,null,null,null,null,null,null,null,null,null,null,null,null,null,null,null,null,null,null,null,null,null,null,null,null,null,null,null,null,null,"",""]
[13,{"$f":"IFERROR(VLOOKUP(BD31,'[1]ID(当院入力シート)'!E:F,2,FALSE)&\"\",\"\")","v":""},null,null,null,null,null,null,126,null,null,null,null,null,null,"／",null,"／",null,"／",null,null,"／","／",null,null,null,null,null,null,null,null,null,null,null,null,null,null,null,null,null,null,null,null,null,null,null,null,null,null,null,null,null,null,"",""]
[14,{"$f":"IFERROR(VLOOKUP(BD32,'[1]ID(当院入力シート)'!E:F,2,FALSE)&\"\",\"\")","v":""},null,null,null,null,null,null,126,null,null,null,null,null,null,"／",null,"／",null,"／",null,null,"／","／",null,null,null,null,null,null,null,null,null,null,null,null,null,null,null,null,null,null,null,null,null,null,null,null,null,null,null,null,null,null,"",""]
[15,{"$f":"IFERROR(VLOOKUP(BD33,'[1]ID(当院入力シート)'!E:F,2,FALSE)&\"\",\"\")","v":""},null,null,null,null,null,null,126,null,null,null,null,null,null,"／",null,"／",null,"／",null,null,"／","／",null,null,null,null,null,null,null,null,null,null,null,null,null,null,null,null,null,null,null,null,null,null,null,null,null,null,null,null,null,null,"",""]
[16,{"$f":"IFERROR(VLOOKUP(BD34,'[1]ID(当院入力シート)'!E:F,2,FALSE)&\"\",\"\")","v":""},null,null,null,null,null,null,126,null,null,null,null,null,null,"／",null,"／",null,"／",null,null,"／","／",null,null,null,null,null,null,null,null,null,null,null,null,null,null,null,null,null,null,null,null,null,null,null,null,null,null,null,null,null,null,"",""]
[17,{"$f":"IFERROR(VLOOKUP(BD35,'[1]ID(当院入力シート)'!E:F,2,FALSE)&\"\",\"\")","v":""},null,null,null,null,null,null,126,null,null,null,null,null,null,"／",null,"／",null,"／",null,null,"／","／",null,null,null,null,null,null,null,null,null,null,null,null,null,null,null,null,null,null,null,null,null,null,null,null,null,null,null,null,null,null,"",""]
[18,{"$f":"IFERROR(VLOOKUP(BD36,'[1]ID(当院入力シート)'!E:F,2,FALSE)&\"\",\"\")","v":""},null,null,null,null,null,null,126,null,null,null,null,null,null,"／",null,"／",null,"／",null,null,"／","／",null,null,null,null,null,null,null,null,null,null,null,null,null,null,null,null,null,null,null,null,null,null,null,null,null,null,null,null,null,null,"",""]
[19,{"$f":"IFERROR(VLOOKUP(BD37,'[1]ID(当院入力シート)'!E:F,2,FALSE)&\"\",\"\")","v":""},null,null,null,null,null,null,126,null,null,null,null,null,null,"／",null,"／",null,"／",null,null,"／","／",null,null,null,null,null,null,null,null,null,null,null,null,null,null,null,null,null,null,null,null,null,null,null,null,null,null,null,null,null,null,"",""]
[20,{"$f":"IFERROR(VLOOKUP(BD38,'[1]ID(当院入力シート)'!E:F,2,FALSE)&\"\",\"\")","v":""},null,null,null,null,null,null,126,null,null,null,null,null,null,"／",null,"／",null,"／",null,null,"／","／",null,null,null,null,null,null,null,null,null,null,null,null,null,null,null,null,null,null,null,null,null,null,null,null,null,null,null,null,null,null,"",""]
[21,{"$f":"IFERROR(VLOOKUP(BD39,'[1]ID(当院入力シート)'!E:F,2,FALSE)&\"\",\"\")","v":""},null,null,null,null,null,null,126,null,null,null,null,null,null,"／",null,"／",null,"／",null,null,"／","／",null,null,null,null,null,null,null,null,null,null,null,null,null,null,null,null,null,null,null,null,null,null,null,null,null,null,null,null,null,null,"",""]
[22,{"$f":"IFERROR(VLOOKUP(BD40,'[1]ID(当院入力シート)'!E:F,2,FALSE)&\"\",\"\")","v":""},null,null,null,null,null,null,126,null,null,null,null,null,null,"／",null,"／",null,"／",null,null,"／","／",null,null,null,null,null,null,null,null,null,null,null,null,null,null,null,null,null,null,null,null,null,null,null,null,null,null,null,null,null,null,"",""]
[23,{"$f":"IFERROR(VLOOKUP(BD41,'[1]ID(当院入力シート)'!E:F,2,FALSE)&\"\",\"\")","v":""},null,null,null,null,null,null,126,null,null,null,null,null,null,"／",null,"／",null,"／",null,null,"／","／",null,null,null,null,null,null,null,null,null,null,null,null,null,null,null,null,null,null,null,null,null,null,null,null,null,null,null,null,null,null,"",""]
[24,{"$f":"IFERROR(VLOOKUP(BD42,'[1]ID(当院入力シート)'!E:F,2,FALSE)&\"\",\"\")","v":""},null,null,null,null,null,null,126,null,null,null,null,null,null,"／",null,"／",null,"／",null,null,"／","／",null,null,null,null,null,null,null,null,null,null,null,null,null,null,null,null,null,null,null,null,null,null,null,null,null,null,null,null,null,null,"",""]
[25,{"$f":"IFERROR(VLOOKUP(BD43,'[1]ID(当院入力シート)'!E:F,2,FALSE)&\"\",\"\")","v":""},null,null,null,null,null,null,126,null,null,null,null,null,null,"／",null,"／",null,"／",null,null,"／","／",null,null,null,null,null,null,null,null,null,null,null,null,null,null,null,null,null,null,null,null,null,null,null,null,null,null,null,null,null,null,"",""]
[26,{"$f":"IFERROR(VLOOKUP(BD44,'[1]ID(当院入力シート)'!E:F,2,FALSE)&\"\",\"\")","v":""},null,null,null,null,null,null,126,null,null,null,null,null,null,"／",null,"／",null,"／",null,null,"／","／",null,null,null,null,null,null,null,null,null,null,null,null,null,null,null,null,null,null,null,null,null,null,null,null,null,null,null,null,null,null,"",""]
[27,{"$f":"IFERROR(VLOOKUP(BD45,'[1]ID(当院入力シート)'!E:F,2,FALSE)&\"\",\"\")","v":""},null,null,null,null,null,null,126,null,null,null,null,null,null,"／",null,"／",null,"／",null,null,"／","／",null,null,null,null,null,null,null,null,null,null,null,null,null,null,null,null,null,null,null,null,null,null,null,null,null,null,null,null,null,null,"",""]
[28,{"$f":"IFERROR(VLOOKUP(BD46,'[1]ID(当院入力シート)'!E:F,2,FALSE)&\"\",\"\")","v":""},null,null,null,null,null,null,126,null,null,null,null,null,null,"／",null,"／",null,"／",null,null,"／","／",null,null,null,null,null,null,null,null,null,null,null,null,null,null,null,null,null,null,null,null,null,null,null,null,null,null,null,null,null,null,"",""]
[29,{"$f":"IFERROR(VLOOKUP(BD47,'[1]ID(当院入力シート)'!E:F,2,FALSE)&\"\",\"\")","v":""},null,null,null,null,null,null,126,null,null,null,null,null,null,"／",null,"／",null,"／",null,null,"／","／",null,null,null,null,null,null,null,null,null,null,null,null,null,null,null,null,null,null,null,null,null,null,null,null,null,null,null,null,null,null,"",""]
[30,{"$f":"IFERROR(VLOOKUP(BD48,'[1]ID(当院入力シート)'!E:F,2,FALSE)&\"\",\"\")","v":""},null,null,null,null,null,null,126,null,null,null,null,null,null,"／",null,"／",null,"／",null,null,"／","／",null,null,null,null,null,null,null,null,null,null,null,null,null,null,null,null,null,null,null,null,null,null,null,null,null,null,null,null,null,null,"",""]
[31,{"$f":"IFERROR(VLOOKUP(BD49,'[1]ID(当院入力シート)'!E:F,2,FALSE)&\"\",\"\")","v":""},null,null,null,null,null,null,126,null,null,null,null,null,null,"／",null,"／",null,"／",null,null,"／","／",null,null,null,null,null,null,null,null,null,null,null,null,null,null,null,null,null,null,null,null,null,null,null,null,null,null,null,null,null,null,"",""]
[32,{"$f":"IFERROR(VLOOKUP(BD50,'[1]ID(当院入力シート)'!E:F,2,FALSE)&\"\",\"\")","v":""},null,null,null,null,null,null,126,null,null,null,null,null,null,"／",null,"／",null,"／",null,null,"／","／",null,null,null,null,null,null,null,null,null,null,null,null,null,null,null,null,null,null,null,null,null,null,null,null,null,null,null,null,null,null,"",""]
[33,{"$f":"IFERROR(VLOOKUP(BD51,'[1]ID(当院入力シート)'!E:F,2,FALSE)&\"\",\"\")","v":""},null,null,null,null,null,null,126,null,null,null,null,null,null,"／",null,"／",null,"／",null,null,"／","／",null,null,null,null,null,null,null,null,null,null,null,null,null,null,null,null,null,null,null,null,null,null,null,null,null,null,null,null,null,null,"",""]
[34,{"$f":"IFERROR(VLOOKUP(BD52,'[1]ID(当院入力シート)'!E:F,2,FALSE)&\"\",\"\")","v":""},null,null,null,null,null,null,126,null,null,null,null,null,null,"／",null,"／",null,"／",null,null,"／","／",null,null,null,null,null,null,null,null,null,null,null,null,null,null,null,null,null,null,null,null,null,null,null,null,null,null,null,null,null,null,"",""]
[35,{"$f":"IFERROR(VLOOKUP(BD53,'[1]ID(当院入力シート)'!E:F,2,FALSE)&\"\",\"\")","v":""},null,null,null,null,null,null,126,null,null,null,null,null,null,"／",null,"／",null,"／",null,null,"／","／",null,null,null,null,null,null,null,null,null,null,null,null,null,null,null,null,null,null,null,null,null,null,null,null,null,null,null,null,null,null,"",""]
[36,{"$f":"IFERROR(VLOOKUP(BD54,'[1]ID(当院入力シート)'!E:F,2,FALSE)&\"\",\"\")","v":""},null,null,null,null,null,null,126,null,null,null,null,null,null,"／",null,"／",null,"／",null,null,"／","／",null,null,null,null,null,null,null,null,null,null,null,null,null,null,null,null,null,null,null,null,null,null,null,null,null,null,null,null,null,null,"",""]
[37,{"$f":"IFERROR(VLOOKUP(BD55,'[1]ID(当院入力シート)'!E:F,2,FALSE)&\"\",\"\")","v":""},null,null,null,null,null,null,126,null,null,null,null,null,null,"／",null,"／",null,"／",null,null,"／","／",null,null,null,null,null,null,null,null,null,null,null,null,null,null,null,null,null,null,null,null,null,null,null,null,null,null,null,null,null,null,"",""]
[38,{"$f":"IFERROR(VLOOKUP(BD56,'[1]ID(当院入力シート)'!E:F,2,FALSE)&\"\",\"\")","v":""},null,null,null,null,null,null,126,null,null,null,null,null,null,"／",null,"／",null,"／",null,null,"／","／",null,null,null,null,null,null,null,null,null,null,null,null,null,null,null,null,null,null,null,null,null,null,null,null,null,null,null,null,null,null,"",""]
[39,{"$f":"IFERROR(VLOOKUP(BD57,'[1]ID(当院入力シート)'!E:F,2,FALSE)&\"\",\"\")","v":""},null,null,null,null,null,null,126,null,null,null,null,null,null,"／",null,"／",null,"／",null,null,"／","／",null,null,null,null,null,null,null,null,null,null,null,null,null,null,null,null,null,null,null,null,null,null,null,null,null,null,null,null,null,null,"",""]
[40,{"$f":"IFERROR(VLOOKUP(BD58,'[1]ID(当院入力シート)'!E:F,2,FALSE)&\"\",\"\")","v":""},null,null,null,null,null,null,126,null,null,null,null,null,null,"／",null,"／",null,"／",null,null,"／","／",null,null,null,null,null,null,null,null,null,null,null,null,null,null,null,null,null,null,null,null,null,null,null,null,null,null,null,null,null,null,"",""]
[41,{"$f":"IFERROR(VLOOKUP(BD59,'[1]ID(当院入力シート)'!E:F,2,FALSE)&\"\",\"\")","v":""},null,null,null,null,null,null,126,null,null,null,null,null,null,"／",null,"／",null,"／",null,null,"／","／",null,null,null,null,null,null,null,null,null,null,null,null,null,null,null,null,null,null,null,null,null,null,null,null,null,null,null,null,null,null,"",""]
[42,{"$f":"IFERROR(VLOOKUP(BD60,'[1]ID(当院入力シート)'!E:F,2,FALSE)&\"\",\"\")","v":""},null,null,null,null,null,null,126,null,null,null,null,null,null,"／",null,"／",null,"／",null,null,"／","／",null,null,null,null,null,null,null,null,null,null,null,null,null,null,null,null,null,null,null,null,null,null,null,null,null,null,null,null,null,null,"",""]
[43,{"$f":"IFERROR(VLOOKUP(BD61,'[1]ID(当院入力シート)'!E:F,2,FALSE)&\"\",\"\")","v":""},null,null,null,null,null,null,126,null,null,null,null,null,null,"／",null,"／",null,"／",null,null,"／","／",null,null,null,null,null,null,null,null,null,null,null,null,null,null,null,null,null,null,null,null,null,null,null,null,null,null,null,null,null,null,"",""]
[44,{"$f":"IFERROR(VLOOKUP(BD62,'[1]ID(当院入力シート)'!E:F,2,FALSE)&\"\",\"\")","v":""},null,null,null,null,null,null,126,null,null,null,null,null,null,"／",null,"／",null,"／",null,null,"／","／",null,null,null,null,null,null,null,null,null,null,null,null,null,null,null,null,null,null,null,null,null,null,null,null,null,null,null,null,null,null,"",""]
[45,{"$f":"IFERROR(VLOOKUP(BD63,'[1]ID(当院入力シート)'!E:F,2,FALSE)&\"\",\"\")","v":""},null,null,null,null,null,null,126,null,null,null,null,null,null,"／",null,"／",null,"／",null,null,"／","／",null,null,null,null,null,null,null,null,null,null,null,null,null,null,null,null,null,null,null,null,null,null,null,null,null,null,null,null,null,null,"",""]
[46,{"$f":"IFERROR(VLOOKUP(BD64,'[1]ID(当院入力シート)'!E:F,2,FALSE)&\"\",\"\")","v":""},null,null,null,null,null,null,126,null,null,null,null,null,null,"／",null,"／",null,"／",null,null,"／","／",null,null,null,null,null,null,null,null,null,null,null,null,null,null,null,null,null,null,null,null,null,null,null,null,null,null,null,null,null,null,"",""]
[47,{"$f":"IFERROR(VLOOKUP(BD65,'[1]ID(当院入力シート)'!E:F,2,FALSE)&\"\",\"\")","v":""},null,null,null,null,null,null,126,null,null,null,null,null,null,"／",null,"／",null,"／",null,null,"／","／",null,null,null,null,null,null,null,null,null,null,null,null,null,null,null,null,null,null,null,null,null,null,null,null,null,null,null,null,null,null,"",""]
[48,{"$f":"IFERROR(VLOOKUP(BD66,'[1]ID(当院入力シート)'!E:F,2,FALSE)&\"\",\"\")","v":""},null,null,null,null,null,null,126,null,null,null,null,null,null,"／",null,"／",null,"／",null,null,"／","／",null,null,null,null,null,null,null,null,null,null,null,null,null,null,null,null,null,null,null,null,null,null,null,null,null,null,null,null,null,null,"",""]
[49,{"$f":"IFERROR(VLOOKUP(BD67,'[1]ID(当院入力シート)'!E:F,2,FALSE)&\"\",\"\")","v":""},null,null,null,null,null,null,126,null,null,null,null,null,null,"／",null,"／",null,"／",null,null,"／","／",null,null,null,null,null,null,null,null,null,null,null,null,null,null,null,null,null,null,null,null,null,null,null,null,null,null,null,null,null,null,"",""]
[50,{"$f":"IFERROR(VLOOKUP(BD68,'[1]ID(当院入力シート)'!E:F,2,FALSE)&\"\",\"\")","v":""},null,null,null,null,null,null,126,null,null,null,null,null,null,"／",null,"／",null,"／",null,null,"／","／",null,null,null,null,null,null,null,null,null,null,null,null,null,null,null,null,null,null,null,null,null,null,null,null,null,null,null,null,null,null,"",""]
[51,{"$f":"IFERROR(VLOOKUP(BD69,'[1]ID(当院入力シート)'!E:F,2,FALSE)&\"\",\"\")","v":""},null,null,null,null,null,null,126,null,null,null,null,null,null,"／",null,"／",null,"／",null,null,"／","／",null,null,null,null,null,null,null,null,null,null,null,null,null,null,null,null,null,null,null,null,null,null,null,null,null,null,null,null,null,null,"",""]
[52,{"$f":"IFERROR(VLOOKUP(BD70,'[1]ID(当院入力シート)'!E:F,2,FALSE)&\"\",\"\")","v":""},null,null,null,null,null,null,126,null,null,null,null,null,null,"／",null,"／",null,"／",null,null,"／","／",null,null,null,null,null,null,null,null,null,null,null,null,null,null,null,null,null,null,null,null,null,null,null,null,null,null,null,null,null,null,"",""]
[53,{"$f":"IFERROR(VLOOKUP(BD71,'[1]ID(当院入力シート)'!E:F,2,FALSE)&\"\",\"\")","v":""},null,null,null,null,null,null,126,null,null,null,null,null,null,"／",null,"／",null,"／",null,null,"／","／",null,null,null,null,null,null,null,null,null,null,null,null,null,null,null,null,null,null,null,null,null,null,null,null,null,null,null,null,null,null,"",""]
[54,{"$f":"IFERROR(VLOOKUP(BD72,'[1]ID(当院入力シート)'!E:F,2,FALSE)&\"\",\"\")","v":""},null,null,null,null,null,null,126,null,null,null,null,null,null,"／",null,"／",null,"／",null,null,"／","／",null,null,null,null,null,null,null,null,null,null,null,null,null,null,null,null,null,null,null,null,null,null,null,null,null,null,null,null,null,null,"",""]
[55,{"$f":"IFERROR(VLOOKUP(BD73,'[1]ID(当院入力シート)'!E:F,2,FALSE)&\"\",\"\")","v":""},null,null,null,null,null,null,126,null,null,null,null,null,null,"／",null,"／",null,"／",null,null,"／","／",null,null,null,null,null,null,null,null,null,null,null,null,null,null,null,null,null,null,null,null,null,null,null,null,null,null,null,null,null,null,"",""]
[56,{"$f":"IFERROR(VLOOKUP(BD74,'[1]ID(当院入力シート)'!E:F,2,FALSE)&\"\",\"\")","v":""},null,null,null,null,null,null,126,null,null,null,null,null,null,"／",null,"／",null,"／",null,null,"／","／",null,null,null,null,null,null,null,null,null,null,null,null,null,null,null,null,null,null,null,null,null,null,null,null,null,null,null,null,null,null,"",""]
[57,{"$f":"IFERROR(VLOOKUP(BD75,'[1]ID(当院入力シート)'!E:F,2,FALSE)&\"\",\"\")","v":""},null,null,null,null,null,null,126,null,null,null,null,null,null,"／",null,"／",null,"／",null,null,"／","／",null,null,null,null,null,null,null,null,null,null,null,null,null,null,null,null,null,null,null,null,null,null,null,null,null,null,null,null,null,null,"",""]
[58,{"$f":"IFERROR(VLOOKUP(BD76,'[1]ID(当院入力シート)'!E:F,2,FALSE)&\"\",\"\")","v":""},null,null,null,null,null,null,126,null,null,null,null,null,null,"／",null,"／",null,"／",null,null,"／","／",null,null,null,null,null,null,null,null,null,null,null,null,null,null,null,null,null,null,null,null,null,null,null,null,null,null,null,null,null,null,"",""]
[59,{"$f":"IFERROR(VLOOKUP(BD77,'[1]ID(当院入力シート)'!E:F,2,FALSE)&\"\",\"\")","v":""},null,null,null,null,null,null,126,null,null,null,null,null,null,"／",null,"／",null,"／",null,null,"／","／",null,null,null,null,null,null,null,null,null,null,null,null,null,null,null,null,null,null,null,null,null,null,null,null,null,null,null,null,null,null,"",""]
[60,{"$f":"IFERROR(VLOOKUP(BD78,'[1]ID(当院入力シート)'!E:F,2,FALSE)&\"\",\"\")","v":""},null,null,null,null,null,null,126,null,null,null,null,null,null,"／",null,"／",null,"／",null,null,"／","／",null,null,null,null,null,null,null,null,null,null,null,null,null,null,null,null,null,null,null,null,null,null,null,null,null,null,null,null,null,null,"",""]
[61,{"$f":"IFERROR(VLOOKUP(BD79,'[1]ID(当院入力シート)'!E:F,2,FALSE)&\"\",\"\")","v":""},null,null,null,null,null,null,126,null,null,null,null,null,null,"／",null,"／",null,"／",null,null,"／","／",null,null,null,null,null,null,null,null,null,null,null,null,null,null,null,null,null,null,null,null,null,null,null,null,null,null,null,null,null,null,"",""]
[62,{"$f":"IFERROR(VLOOKUP(BD80,'[1]ID(当院入力シート)'!E:F,2,FALSE)&\"\",\"\")","v":""},null,null,null,null,null,null,126,null,null,null,null,null,null,"／",null,"／",null,"／",null,null,"／","／",null,null,null,null,null,null,null,null,null,null,null,null,null,null,null,null,null,null,null,null,null,null,null,null,null,null,null,null,null,null,"",""]
[63,{"$f":"IFERROR(VLOOKUP(BD81,'[1]ID(当院入力シート)'!E:F,2,FALSE)&\"\",\"\")","v":""},null,null,null,null,null,null,{"$f":"DATEDIF(H81,$I$14,\"y\")","v":126},null,null,null,null,null,null,"／",null,"／",null,"／",null,null,"／","／",null,null,null,null,null,null,null,null,null,null,null,null,null,null,null,null,null,null,null,null,null,null,null,null,null,null,null,null,null,null,"",""]
[64,{"$f":"IFERROR(VLOOKUP(BD82,'[1]ID(当院入力シート)'!E:F,2,FALSE)&\"\",\"\")","v":""},null,null,null,null,null,null,126,null,null,null,null,null,null,"／",null,"／",null,"／",null,null,"／",{"$f":"TEXT(W82,\"(aaa)\")","v":"／"},null,null,null,null,null,null,null,null,null,null,null,null,null,null,null,null,null,null,null,null,null,null,null,null,null,null,null,null,null,null,"",""]
[65,{"$f":"IFERROR(VLOOKUP(BD83,'[1]ID(当院入力シート)'!E:F,2,FALSE)&\"\",\"\")","v":""},null,null,null,null,null,null,126,null,null,null,null,null,null,"／",null,"／",null,"／",null,null,"／","／",null,null,null,null,null,null,null,null,null,null,null,null,null,null,null,null,null,null,null,null,null,null,null,null,null,null,null,null,null,null,{"$f":"SUBSTITUTE(SUBSTITUTE(E83,\"　\",\"\"),\" \",\"\")","v":""},{"$f":"BC83&H83","v":""}]
[66,{"$f":"IFERROR(VLOOKUP(BD84,'[1]ID(当院入力シート)'!E:F,2,FALSE)&\"\",\"\")","v":""},null,null,null,null,null,null,126,null,null,null,null,null,null,"／",null,"／",null,"／",null,null,"／","／",null,null,null,null,null,null,null,null,null,null,null,null,null,null,null,null,null,null,null,null,null,null,null,null,null,null,null,null,null,null,"",""]
[{"$f":"ROW()-18","v":67},{"$f":"IFERROR(VLOOKUP(BD85,'[1]ID(当院入力シート)'!E:F,2,FALSE)&\"\",\"\")","v":""},null,null,null,null,null,null,126,null,null,null,null,null,null,"／",null,"／",null,"／",null,null,"／","／",null,null,null,null,null,null,null,null,null,null,null,null,null,null,null,null,null,null,null,null,null,null,null,null,null,null,null,null,null,null,"",""]
[68,{"$f":"IFERROR(VLOOKUP(BD86,'[1]ID(当院入力シート)'!E:F,2,FALSE)&\"\",\"\")","v":""},null,null,null,null,null,null,126,null,null,null,null,null,null,"／",null,"／",null,"／",null,null,"／","／",null,null,null,null,null,null,null,null,null,null,null,null,null,null,null,null,null,null,null,null,null,null,null,null,null,null,null,null,null,null,"",""]
[69,{"$f":"IFERROR(VLOOKUP(BD87,'[1]ID(当院入力シート)'!E:F,2,FALSE)&\"\",\"\")","v":""},null,null,null,null,null,null,126,null,null,null,null,null,null,"／",null,"／",null,"／",null,null,"／","／",null,null,null,null,null,null,null,null,null,null,null,null,null,null,null,null,null,null,null,null,null,null,null,null,null,null,null,null,null,null,"",""]
[70,{"$f":"IFERROR(VLOOKUP(BD88,'[1]ID(当院入力シート)'!E:F,2,FALSE)&\"\",\"\")","v":""},null,null,null,null,null,null,126,null,null,null,null,null,null,"／",null,"／",null,"／",null,null,"／","／",null,null,null,null,null,null,null,null,null,null,null,null,null,null,null,null,null,null,null,null,null,null,null,null,null,null,null,null,null,null,"",""]
[71,{"$f":"IFERROR(VLOOKUP(BD89,'[1]ID(当院入力シート)'!E:F,2,FALSE)&\"\",\"\")","v":""},null,null,null,null,null,null,126,null,null,null,null,null,null,"／",null,"／",null,"／",null,null,"／","／",null,null,null,null,null,null,null,null,null,null,null,null,null,null,null,null,null,null,null,null,null,null,null,null,null,null,null,null,null,null,"",""]
[72,{"$f":"IFERROR(VLOOKUP(BD90,'[1]ID(当院入力シート)'!E:F,2,FALSE)&\"\",\"\")","v":""},null,null,null,null,null,null,126,null,null,null,null,null,null,"／",null,"／",null,"／",null,null,"／","／",null,null,null,null,null,null,null,null,null,null,null,null,null,null,null,null,null,null,null,null,null,null,null,null,null,null,null,null,null,null,"",""]
[73,{"$f":"IFERROR(VLOOKUP(BD91,'[1]ID(当院入力シート)'!E:F,2,FALSE)&\"\",\"\")","v":""},null,null,null,null,null,null,126,null,null,null,null,null,null,"／",null,"／",null,"／",null,null,"／","／",null,null,null,null,null,null,null,null,null,null,null,null,null,null,null,null,null,null,null,null,null,null,null,null,null,null,null,null,null,null,"",""]
[74,{"$f":"IFERROR(VLOOKUP(BD92,'[1]ID(当院入力シート)'!E:F,2,FALSE)&\"\",\"\")","v":""},null,null,null,null,null,null,126,null,null,null,null,null,null,"／",null,"／",null,"／",null,null,"／","／",null,null,null,null,null,null,null,null,null,null,null,null,null,null,null,null,null,null,null,null,null,null,null,null,null,null,null,null,null,null,"",""]
[75,{"$f":"IFERROR(VLOOKUP(BD93,'[1]ID(当院入力シート)'!E:F,2,FALSE)&\"\",\"\")","v":""},null,null,null,null,null,null,126,null,null,null,null,null,null,"／",null,"／",null,"／",null,null,"／","／",null,null,null,null,null,null,null,null,null,null,null,null,null,null,null,null,null,null,null,null,null,null,null,null,null,null,null,null,null,null,"",""]
[76,{"$f":"IFERROR(VLOOKUP(BD94,'[1]ID(当院入力シート)'!E:F,2,FALSE)&\"\",\"\")","v":""},null,null,null,null,null,null,126,null,null,null,null,null,null,"／",null,"／",null,"／",null,null,"／","／",null,null,null,null,null,null,null,null,null,null,null,null,null,null,null,null,null,null,null,null,null,null,null,null,null,null,null,null,null,null,"",""]
[77,{"$f":"IFERROR(VLOOKUP(BD95,'[1]ID(当院入力シート)'!E:F,2,FALSE)&\"\",\"\")","v":""},null,null,null,null,null,null,126,null,null,null,null,null,null,"／",null,"／",null,"／",null,null,"／","／",null,null,null,null,null,null,null,null,null,null,null,null,null,null,null,null,null,null,null,null,null,null,null,null,null,null,null,null,null,null,"",""]
[78,{"$f":"IFERROR(VLOOKUP(BD96,'[1]ID(当院入力シート)'!E:F,2,FALSE)&\"\",\"\")","v":""},null,null,null,null,null,null,126,null,null,null,null,null,null,"／",null,"／",null,"／",null,null,"／","／",null,null,null,null,null,null,null,null,null,null,null,null,null,null,null,null,null,null,null,null,null,null,null,null,null,null,null,null,null,null,"",""]
[79,{"$f":"IFERROR(VLOOKUP(BD97,'[1]ID(当院入力シート)'!E:F,2,FALSE)&\"\",\"\")","v":""},null,null,null,null,null,null,126,null,null,null,null,null,null,"／",null,"／",null,"／",null,null,"／","／",null,null,null,null,null,null,null,null,null,null,null,null,null,null,null,null,null,null,null,null,null,null,null,null,null,null,null,null,null,null,"",""]
[80,{"$f":"IFERROR(VLOOKUP(BD98,'[1]ID(当院入力シート)'!E:F,2,FALSE)&\"\",\"\")","v":""},null,null,null,null,null,null,126,null,null,null,null,null,null,"／",null,"／",null,"／",null,null,"／","／",null,null,null,null,null,null,null,null,null,null,null,null,null,null,null,null,null,null,null,null,null,null,null,null,null,null,null,null,null,null,"",""]
[81,{"$f":"IFERROR(VLOOKUP(BD99,'[1]ID(当院入力シート)'!E:F,2,FALSE)&\"\",\"\")","v":""},null,null,null,null,null,null,126,null,null,null,null,null,null,"／",null,"／",null,"／",null,null,"／","／",null,null,null,null,null,null,null,null,null,null,null,null,null,null,null,null,null,null,null,null,null,null,null,null,null,null,null,null,null,null,"",""]
[82,{"$f":"IFERROR(VLOOKUP(BD100,'[1]ID(当院入力シート)'!E:F,2,FALSE)&\"\",\"\")","v":""},null,null,null,null,null,null,126,null,null,null,null,null,null,"／",null,"／",null,"／",null,null,"／","／",null,null,null,null,null,null,null,null,null,null,null,null,null,null,null,null,null,null,null,null,null,null,null,null,null,null,null,null,null,null,"",""]
[83,{"$f":"IFERROR(VLOOKUP(BD101,'[1]ID(当院入力シート)'!E:F,2,FALSE)&\"\",\"\")","v":""},null,null,null,null,null,null,126,null,null,null,null,null,null,"／",null,"／",null,"／",null,null,"／","／",null,null,null,null,null,null,null,null,null,null,null,null,null,null,null,null,null,null,null,null,null,null,null,null,null,null,null,null,null,null,"",""]
[84,{"$f":"IFERROR(VLOOKUP(BD102,'[1]ID(当院入力シート)'!E:F,2,FALSE)&\"\",\"\")","v":""},null,null,null,null,null,null,126,null,null,null,null,null,null,"／",null,"／",null,"／",null,null,"／","／",null,null,null,null,null,null,null,null,null,null,null,null,null,null,null,null,null,null,null,null,null,null,null,null,null,null,null,null,null,null,"",""]
[85,{"$f":"IFERROR(VLOOKUP(BD103,'[1]ID(当院入力シート)'!E:F,2,FALSE)&\"\",\"\")","v":""},null,null,null,null,null,null,126,null,null,null,null,null,null,"／",null,"／",null,"／",null,null,"／","／",null,null,null,null,null,null,null,null,null,null,null,null,null,null,null,null,null,null,null,null,null,null,null,null,null,null,null,null,null,null,"",""]
[86,{"$f":"IFERROR(VLOOKUP(BD104,'[1]ID(当院入力シート)'!E:F,2,FALSE)&\"\",\"\")","v":""},null,null,null,null,null,null,126,null,null,null,null,null,null,"／",null,"／",null,"／",null,null,"／","／",null,null,null,null,null,null,null,null,null,null,null,null,null,null,null,null,null,null,null,null,null,null,null,null,null,null,null,null,null,null,"",""]
[87,{"$f":"IFERROR(VLOOKUP(BD105,'[1]ID(当院入力シート)'!E:F,2,FALSE)&\"\",\"\")","v":""},null,null,null,null,null,null,126,null,null,null,null,null,null,"／",null,"／",null,"／",null,null,"／","／",null,null,null,null,null,null,null,null,null,null,null,null,null,null,null,null,null,null,null,null,null,null,null,null,null,null,null,null,null,null,"",""]
[88,{"$f":"IFERROR(VLOOKUP(BD106,'[1]ID(当院入力シート)'!E:F,2,FALSE)&\"\",\"\")","v":""},null,null,null,null,null,null,126,null,null,null,null,null,null,"／",null,"／",null,"／",null,null,"／","／",null,null,null,null,null,null,null,null,null,null,null,null,null,null,null,null,null,null,null,null,null,null,null,null,null,null,null,null,null,null,"",""]
[89,{"$f":"IFERROR(VLOOKUP(BD107,'[1]ID(当院入力シート)'!E:F,2,FALSE)&\"\",\"\")","v":""},null,null,null,null,null,null,126,null,null,null,null,null,null,"／",null,"／",null,"／",null,null,"／","／",null,null,null,null,null,null,null,null,null,null,null,null,null,null,null,null,null,null,null,null,null,null,null,null,null,null,null,null,null,null,"",""]
[90,{"$f":"IFERROR(VLOOKUP(BD108,'[1]ID(当院入力シート)'!E:F,2,FALSE)&\"\",\"\")","v":""},null,null,null,null,null,null,126,null,null,null,null,null,null,"／",null,"／",null,"／",null,null,"／","／",null,null,null,null,null,null,null,null,null,null,null,null,null,null,null,null,null,null,null,null,null,null,null,null,null,null,null,null,null,null,"",""]
[91,{"$f":"IFERROR(VLOOKUP(BD109,'[1]ID(当院入力シート)'!E:F,2,FALSE)&\"\",\"\")","v":""},null,null,null,null,null,null,126,null,null,null,null,null,null,"／",null,"／",null,"／",null,null,"／","／",null,null,null,null,null,null,null,null,null,null,null,null,null,null,null,null,null,null,null,null,null,null,null,null,null,null,null,null,null,null,"",""]
[92,{"$f":"IFERROR(VLOOKUP(BD110,'[1]ID(当院入力シート)'!E:F,2,FALSE)&\"\",\"\")","v":""},null,null,null,null,null,null,126,null,null,null,null,null,null,"／",null,"／",null,"／",null,null,"／","／",null,null,null,null,null,null,null,null,null,null,null,null,null,null,null,null,null,null,null,null,null,null,null,null,null,null,null,null,null,null,"",""]
[93,{"$f":"IFERROR(VLOOKUP(BD111,'[1]ID(当院入力シート)'!E:F,2,FALSE)&\"\",\"\")","v":""},null,null,null,null,null,null,126,null,null,null,null,null,null,"／",null,"／",null,"／",null,null,"／","／",null,null,null,null,null,null,null,null,null,null,null,null,null,null,null,null,null,null,null,null,null,null,null,null,null,null,null,null,null,null,"",""]
[94,{"$f":"IFERROR(VLOOKUP(BD112,'[1]ID(当院入力シート)'!E:F,2,FALSE)&\"\",\"\")","v":""},null,null,null,null,null,null,126,null,null,null,null,null,null,"／",null,"／",null,"／",null,null,"／","／",null,null,null,null,null,null,null,null,null,null,null,null,null,null,null,null,null,null,null,null,null,null,null,null,null,null,null,null,null,null,"",""]
[95,{"$f":"IFERROR(VLOOKUP(BD113,'[1]ID(当院入力シート)'!E:F,2,FALSE)&\"\",\"\")","v":""},null,null,null,null,null,null,126,null,null,null,null,null,null,"／",null,"／",null,"／",null,null,"／","／",null,null,null,null,null,null,null,null,null,null,null,null,null,null,null,null,null,null,null,null,null,null,null,null,null,null,null,null,null,null,"",""]
[96,{"$f":"IFERROR(VLOOKUP(BD114,'[1]ID(当院入力シート)'!E:F,2,FALSE)&\"\",\"\")","v":""},null,null,null,null,null,null,126,null,null,null,null,null,null,"／",null,"／",null,"／",null,null,"／","／",null,null,null,null,null,null,null,null,null,null,null,null,null,null,null,null,null,null,null,null,null,null,null,null,null,null,null,null,null,null,"",""]
[97,{"$f":"IFERROR(VLOOKUP(BD115,'[1]ID(当院入力シート)'!E:F,2,FALSE)&\"\",\"\")","v":""},null,null,null,null,null,null,126,null,null,null,null,null,null,"／",null,"／",null,"／",null,null,"／","／",null,null,null,null,null,null,null,null,null,null,null,null,null,null,null,null,null,null,null,null,null,null,null,null,null,null,null,null,null,null,"",""]
[98,{"$f":"IFERROR(VLOOKUP(BD116,'[1]ID(当院入力シート)'!E:F,2,FALSE)&\"\",\"\")","v":""},null,null,null,null,null,null,126,null,null,null,null,null,null,"／",null,"／",null,"／",null,null,"／","／",null,null,null,null,null,null,null,null,null,null,null,null,null,null,null,null,null,null,null,null,null,null,null,null,null,null,null,null,null,null,"",""]
[99,{"$f":"IFERROR(VLOOKUP(BD117,'[1]ID(当院入力シート)'!E:F,2,FALSE)&\"\",\"\")","v":""},null,null,null,null,null,null,126,null,null,null,null,null,null,"／",null,"／",null,"／",null,null,"／","／",null,null,null,null,null,null,null,null,null,null,null,null,null,null,null,null,null,null,null,null,null,null,null,null,null,null,null,null,null,null,"",""]
[100,{"$f":"IFERROR(VLOOKUP(BD118,'[1]ID(当院入力シート)'!E:F,2,FALSE)&\"\",\"\")","v":""},null,null,null,null,null,null,126,null,null,null,null,null,null,"／",null,"／",null,"／",null,null,"／","／",null,null,null,null,null,null,null,null,null,null,null,null,null,null,null,null,null,null,null,null,null,null,null,null,null,null,null,null,null,null,"",""]
[101,{"$f":"IFERROR(VLOOKUP(BD119,'[1]ID(当院入力シート)'!E:F,2,FALSE)&\"\",\"\")","v":""},null,null,null,null,null,null,126,null,null,null,null,null,null,"／",null,"／",null,"／",null,null,"／","／",null,null,null,null,null,null,null,null,null,null,null,null,null,null,null,null,null,null,null,null,null,null,null,null,null,null,null,null,null,null,"",""]
[102,{"$f":"IFERROR(VLOOKUP(BD120,'[1]ID(当院入力シート)'!E:F,2,FALSE)&\"\",\"\")","v":""},null,null,null,null,null,null,126,null,null,null,null,null,null,"／",null,"／",null,"／",null,null,"／","／",null,null,null,null,null,null,null,null,null,null,null,null,null,null,null,null,null,null,null,null,null,null,null,null,null,null,null,null,null,null,"",""]
[103,{"$f":"IFERROR(VLOOKUP(BD121,'[1]ID(当院入力シート)'!E:F,2,FALSE)&\"\",\"\")","v":""},null,null,null,null,null,null,126,null,null,null,null,null,null,"／",null,"／",null,"／",null,null,"／","／",null,null,null,null,null,null,null,null,null,null,null,null,null,null,null,null,null,null,null,null,null,null,null,null,null,null,null,null,null,null,"",""]
[104,{"$f":"IFERROR(VLOOKUP(BD122,'[1]ID(当院入力シート)'!E:F,2,FALSE)&\"\",\"\")","v":""},null,null,null,null,null,null,126,null,null,null,null,null,null,"／",null,"／",null,"／",null,null,"／","／",null,null,null,null,null,null,null,null,null,null,null,null,null,null,null,null,null,null,null,null,null,null,null,null,null,null,null,null,null,null,"",""]
[105,{"$f":"IFERROR(VLOOKUP(BD123,'[1]ID(当院入力シート)'!E:F,2,FALSE)&\"\",\"\")","v":""},null,null,null,null,null,null,126,null,null,null,null,null,null,"／",null,"／",null,"／",null,null,"／","／",null,null,null,null,null,null,null,null,null,null,null,null,null,null,null,null,null,null,null,null,null,null,null,null,null,null,null,null,null,null,"",""]
[106,{"$f":"IFERROR(VLOOKUP(BD124,'[1]ID(当院入力シート)'!E:F,2,FALSE)&\"\",\"\")","v":""},null,null,null,null,null,null,126,null,null,null,null,null,null,"／",null,"／",null,"／",null,null,"／","／",null,null,null,null,null,null,null,null,null,null,null,null,null,null,null,null,null,null,null,null,null,null,null,null,null,null,null,null,null,null,"",""]
[107,{"$f":"IFERROR(VLOOKUP(BD125,'[1]ID(当院入力シート)'!E:F,2,FALSE)&\"\",\"\")","v":""},null,null,null,null,null,null,126,null,null,null,null,null,null,"／",null,"／",null,"／",null,null,"／","／",null,null,null,null,null,null,null,null,null,null,null,null,null,null,null,null,null,null,null,null,null,null,null,null,null,null,null,null,null,null,"",""]
[108,{"$f":"IFERROR(VLOOKUP(BD126,'[1]ID(当院入力シート)'!E:F,2,FALSE)&\"\",\"\")","v":""},null,null,null,null,null,null,126,null,null,null,null,null,null,"／",null,"／",null,"／",null,null,"／","／",null,null,null,null,null,null,null,null,null,null,null,null,null,null,null,null,null,null,null,null,null,null,null,null,null,null,null,null,null,null,"",""]
[109,{"$f":"IFERROR(VLOOKUP(BD127,'[1]ID(当院入力シート)'!E:F,2,FALSE)&\"\",\"\")","v":""},null,null,null,null,null,null,126,null,null,null,null,null,null,"／",null,"／",null,"／",null,null,"／","／",null,null,null,null,null,null,null,null,null,null,null,null,null,null,null,null,null,null,null,null,null,null,null,null,null,null,null,null,null,null,"",""]
[110,{"$f":"IFERROR(VLOOKUP(BD128,'[1]ID(当院入力シート)'!E:F,2,FALSE)&\"\",\"\")","v":""},null,null,null,null,null,null,126,null,null,null,null,null,null,"／",null,"／",null,"／",null,null,"／","／",null,null,null,null,null,null,null,null,null,null,null,null,null,null,null,null,null,null,null,null,null,null,null,null,null,null,null,null,null,null,"",""]
[111,{"$f":"IFERROR(VLOOKUP(BD129,'[1]ID(当院入力シート)'!E:F,2,FALSE)&\"\",\"\")","v":""},null,null,null,null,null,null,126,null,null,null,null,null,null,"／",null,"／",null,"／",null,null,"／","／",null,null,null,null,null,null,null,null,null,null,null,null,null,null,null,null,null,null,null,null,null,null,null,null,null,null,null,null,null,null,"",""]
[112,{"$f":"IFERROR(VLOOKUP(BD130,'[1]ID(当院入力シート)'!E:F,2,FALSE)&\"\",\"\")","v":""},null,null,null,null,null,null,126,null,null,null,null,null,null,"／",null,"／",null,"／",null,null,"／","／",null,null,null,null,null,null,null,null,null,null,null,null,null,null,null,null,null,null,null,null,null,null,null,null,null,null,null,null,null,null,"",""]
[113,{"$f":"IFERROR(VLOOKUP(BD131,'[1]ID(当院入力シート)'!E:F,2,FALSE)&\"\",\"\")","v":""},null,null,null,null,null,null,126,null,null,null,null,null,null,"／",null,"／",null,"／",null,null,"／","／",null,null,null,null,null,null,null,null,null,null,null,null,null,null,null,null,null,null,null,null,null,null,null,null,null,null,null,null,null,null,"",""]
[114,{"$f":"IFERROR(VLOOKUP(BD132,'[1]ID(当院入力シート)'!E:F,2,FALSE)&\"\",\"\")","v":""},null,null,null,null,null,null,126,null,null,null,null,null,null,"／",null,"／",null,"／",null,null,"／","／",null,null,null,null,null,null,null,null,null,null,null,null,null,null,null,null,null,null,null,null,null,null,null,null,null,null,null,null,null,null,"",""]
[115,{"$f":"IFERROR(VLOOKUP(BD133,'[1]ID(当院入力シート)'!E:F,2,FALSE)&\"\",\"\")","v":""},null,null,null,null,null,null,126,null,null,null,null,null,null,"／",null,"／",null,"／",null,null,"／","／",null,null,null,null,null,null,null,null,null,null,null,null,null,null,null,null,null,null,null,null,null,null,null,null,null,null,null,null,null,null,"",""]
[116,{"$f":"IFERROR(VLOOKUP(BD134,'[1]ID(当院入力シート)'!E:F,2,FALSE)&\"\",\"\")","v":""},null,null,null,null,null,null,126,null,null,null,null,null,null,"／",null,"／",null,"／",null,null,"／","／",null,null,null,null,null,null,null,null,null,null,null,null,null,null,null,null,null,null,null,null,null,null,null,null,null,null,null,null,null,null,"",""]
[117,{"$f":"IFERROR(VLOOKUP(BD135,'[1]ID(当院入力シート)'!E:F,2,FALSE)&\"\",\"\")","v":""},null,null,null,null,null,null,126,null,null,null,null,null,null,"／",null,"／",null,"／",null,null,"／","／",null,null,null,null,null,null,null,null,null,null,null,null,null,null,null,null,null,null,null,null,null,null,null,null,null,null,null,null,null,null,"",""]
[118,{"$f":"IFERROR(VLOOKUP(BD136,'[1]ID(当院入力シート)'!E:F,2,FALSE)&\"\",\"\")","v":""},null,null,null,null,null,null,126,null,null,null,null,null,null,"／",null,"／",null,"／",null,null,"／","／",null,null,null,null,null,null,null,null,null,null,null,null,null,null,null,null,null,null,null,null,null,null,null,null,null,null,null,null,null,null,"",""]
[119,{"$f":"IFERROR(VLOOKUP(BD137,'[1]ID(当院入力シート)'!E:F,2,FALSE)&\"\",\"\")","v":""},null,null,null,null,null,null,126,null,null,null,null,null,null,"／",null,"／",null,"／",null,null,"／","／",null,null,null,null,null,null,null,null,null,null,null,null,null,null,null,null,null,null,null,null,null,null,null,null,null,null,null,null,null,null,"",""]
[120,{"$f":"IFERROR(VLOOKUP(BD138,'[1]ID(当院入力シート)'!E:F,2,FALSE)&\"\",\"\")","v":""},null,null,null,null,null,null,126,null,null,null,null,null,null,"／",null,"／",null,"／",null,null,"／","／",null,null,null,null,null,null,null,null,null,null,null,null,null,null,null,null,null,null,null,null,null,null,null,null,null,null,null,null,null,null,"",""]
[121,{"$f":"IFERROR(VLOOKUP(BD139,'[1]ID(当院入力シート)'!E:F,2,FALSE)&\"\",\"\")","v":""},null,null,null,null,null,null,126,null,null,null,null,null,null,"／",null,"／",null,"／",null,null,"／","／",null,null,null,null,null,null,null,null,null,null,null,null,null,null,null,null,null,null,null,null,null,null,null,null,null,null,null,null,null,null,"",""]
[122,{"$f":"IFERROR(VLOOKUP(BD140,'[1]ID(当院入力シート)'!E:F,2,FALSE)&\"\",\"\")","v":""},null,null,null,null,null,null,126,null,null,null,null,null,null,"／",null,"／",null,"／",null,null,"／","／",null,null,null,null,null,null,null,null,null,null,null,null,null,null,null,null,null,null,null,null,null,null,null,null,null,null,null,null,null,null,"",""]
[123,{"$f":"IFERROR(VLOOKUP(BD141,'[1]ID(当院入力シート)'!E:F,2,FALSE)&\"\",\"\")","v":""},null,null,null,null,null,null,126,null,null,null,null,null,null,"／",null,"／",null,"／",null,null,"／","／",null,null,null,null,null,null,null,null,null,null,null,null,null,null,null,null,null,null,null,null,null,null,null,null,null,null,null,null,null,null,"",""]
[124,{"$f":"IFERROR(VLOOKUP(BD142,'[1]ID(当院入力シート)'!E:F,2,FALSE)&\"\",\"\")","v":""},null,null,null,null,null,null,126,null,null,null,null,null,null,"／",null,"／",null,"／",null,null,"／","／",null,null,null,null,null,null,null,null,null,null,null,null,null,null,null,null,null,null,null,null,null,null,null,null,null,null,null,null,null,null,"",""]
[125,{"$f":"IFERROR(VLOOKUP(BD143,'[1]ID(当院入力シート)'!E:F,2,FALSE)&\"\",\"\")","v":""},null,null,null,null,null,null,126,null,null,null,null,null,null,"／",null,"／",null,"／",null,null,"／","／",null,null,null,null,null,null,null,null,null,null,null,null,null,null,null,null,null,null,null,null,null,null,null,null,null,null,null,null,null,null,"",""]
[126,{"$f":"IFERROR(VLOOKUP(BD144,'[1]ID(当院入力シート)'!E:F,2,FALSE)&\"\",\"\")","v":""},null,null,null,null,null,null,126,null,null,null,null,null,null,"／",null,"／",null,"／",null,null,"／","／",null,null,null,null,null,null,null,null,null,null,null,null,null,null,null,null,null,null,null,null,null,null,null,null,null,null,null,null,null,null,"",""]
[127,{"$f":"IFERROR(VLOOKUP(BD145,'[1]ID(当院入力シート)'!E:F,2,FALSE)&\"\",\"\")","v":""},null,null,null,null,null,null,{"$f":"DATEDIF(H145,$I$14,\"y\")","v":126},null,null,null,null,null,null,"／",null,"／",null,"／",null,null,"／","／",null,null,null,null,null,null,null,null,null,null,null,null,null,null,null,null,null,null,null,null,null,null,null,null,null,null,null,null,null,null,"",""]
[128,{"$f":"IFERROR(VLOOKUP(BD146,'[1]ID(当院入力シート)'!E:F,2,FALSE)&\"\",\"\")","v":""},null,null,null,null,null,null,126,null,null,null,null,null,null,"／",null,"／",null,"／",null,null,"／",{"$f":"TEXT(W146,\"(aaa)\")","v":"／"},null,null,null,null,null,null,null,null,null,null,null,null,null,null,null,null,null,null,null,null,null,null,null,null,null,null,null,null,null,null,"",""]
[129,{"$f":"IFERROR(VLOOKUP(BD147,'[1]ID(当院入力シート)'!E:F,2,FALSE)&\"\",\"\")","v":""},null,null,null,null,null,null,126,null,null,null,null,null,null,"／",null,"／",null,"／",null,null,"／","／",null,null,null,null,null,null,null,null,null,null,null,null,null,null,null,null,null,null,null,null,null,null,null,null,null,null,null,null,null,null,{"$f":"SUBSTITUTE(SUBSTITUTE(E147,\"　\",\"\"),\" \",\"\")","v":""},{"$f":"BC147&H147","v":""}]
[130,{"$f":"IFERROR(VLOOKUP(BD148,'[1]ID(当院入力シート)'!E:F,2,FALSE)&\"\",\"\")","v":""},null,null,null,null,null,null,126,null,null,null,null,null,null,"／",null,"／",null,"／",null,null,"／","／",null,null,null,null,null,null,null,null,null,null,null,null,null,null,null,null,null,null,null,null,null,null,null,null,null,null,null,null,null,null,"",""]
[{"$f":"ROW()-18","v":131},{"$f":"IFERROR(VLOOKUP(BD149,'[1]ID(当院入力シート)'!E:F,2,FALSE)&\"\",\"\")","v":""},null,null,null,null,null,null,126,null,null,null,null,null,null,"／",null,"／",null,"／",null,null,"／","／",null,null,null,null,null,null,null,null,null,null,null,null,null,null,null,null,null,null,null,null,null,null,null,null,null,null,null,null,null,null,"",""]
[132,{"$f":"IFERROR(VLOOKUP(BD150,'[1]ID(当院入力シート)'!E:F,2,FALSE)&\"\",\"\")","v":""},null,null,null,null,null,null,126,null,null,null,null,null,null,"／",null,"／",null,"／",null,null,"／","／",null,null,null,null,null,null,null,null,null,null,null,null,null,null,null,null,null,null,null,null,null,null,null,null,null,null,null,null,null,null,"",""]
[133,{"$f":"IFERROR(VLOOKUP(BD151,'[1]ID(当院入力シート)'!E:F,2,FALSE)&\"\",\"\")","v":""},null,null,null,null,null,null,126,null,null,null,null,null,null,"／",null,"／",null,"／",null,null,"／","／",null,null,null,null,null,null,null,null,null,null,null,null,null,null,null,null,null,null,null,null,null,null,null,null,null,null,null,null,null,null,"",""]
[134,{"$f":"IFERROR(VLOOKUP(BD152,'[1]ID(当院入力シート)'!E:F,2,FALSE)&\"\",\"\")","v":""},null,null,null,null,null,null,126,null,null,null,null,null,null,"／",null,"／",null,"／",null,null,"／","／",null,null,null,null,null,null,null,null,null,null,null,null,null,null,null,null,null,null,null,null,null,null,null,null,null,null,null,null,null,null,"",""]
[135,{"$f":"IFERROR(VLOOKUP(BD153,'[1]ID(当院入力シート)'!E:F,2,FALSE)&\"\",\"\")","v":""},null,null,null,null,null,null,126,null,null,null,null,null,null,"／",null,"／",null,"／",null,null,"／","／",null,null,null,null,null,null,null,null,null,null,null,null,null,null,null,null,null,null,null,null,null,null,null,null,null,null,null,null,null,null,"",""]
[136,{"$f":"IFERROR(VLOOKUP(BD154,'[1]ID(当院入力シート)'!E:F,2,FALSE)&\"\",\"\")","v":""},null,null,null,null,null,null,126,null,null,null,null,null,null,"／",null,"／",null,"／",null,null,"／","／",null,null,null,null,null,null,null,null,null,null,null,null,null,null,null,null,null,null,null,null,null,null,null,null,null,null,null,null,null,null,"",""]
[137,{"$f":"IFERROR(VLOOKUP(BD155,'[1]ID(当院入力シート)'!E:F,2,FALSE)&\"\",\"\")","v":""},null,null,null,null,null,null,126,null,null,null,null,null,null,"／",null,"／",null,"／",null,null,"／","／",null,null,null,null,null,null,null,null,null,null,null,null,null,null,null,null,null,null,null,null,null,null,null,null,null,null,null,null,null,null,"",""]
[138,{"$f":"IFERROR(VLOOKUP(BD156,'[1]ID(当院入力シート)'!E:F,2,FALSE)&\"\",\"\")","v":""},null,null,null,null,null,null,126,null,null,null,null,null,null,"／",null,"／",null,"／",null,null,"／","／",null,null,null,null,null,null,null,null,null,null,null,null,null,null,null,null,null,null,null,null,null,null,null,null,null,null,null,null,null,null,"",""]
[139,{"$f":"IFERROR(VLOOKUP(BD157,'[1]ID(当院入力シート)'!E:F,2,FALSE)&\"\",\"\")","v":""},null,null,null,null,null,null,126,null,null,null,null,null,null,"／",null,"／",null,"／",null,null,"／","／",null,null,null,null,null,null,null,null,null,null,null,null,null,null,null,null,null,null,null,null,null,null,null,null,null,null,null,null,null,null,"",""]
[140,{"$f":"IFERROR(VLOOKUP(BD158,'[1]ID(当院入力シート)'!E:F,2,FALSE)&\"\",\"\")","v":""},null,null,null,null,null,null,126,null,null,null,null,null,null,"／",null,"／",null,"／",null,null,"／","／",null,null,null,null,null,null,null,null,null,null,null,null,null,null,null,null,null,null,null,null,null,null,null,null,null,null,null,null,null,null,"",""]
[141,{"$f":"IFERROR(VLOOKUP(BD159,'[1]ID(当院入力シート)'!E:F,2,FALSE)&\"\",\"\")","v":""},null,null,null,null,null,null,126,null,null,null,null,null,null,"／",null,"／",null,"／",null,null,"／","／",null,null,null,null,null,null,null,null,null,null,null,null,null,null,null,null,null,null,null,null,null,null,null,null,null,null,null,null,null,null,"",""]
[142,{"$f":"IFERROR(VLOOKUP(BD160,'[1]ID(当院入力シート)'!E:F,2,FALSE)&\"\",\"\")","v":""},null,null,null,null,null,null,126,null,null,null,null,null,null,"／",null,"／",null,"／",null,null,"／","／",null,null,null,null,null,null,null,null,null,null,null,null,null,null,null,null,null,null,null,null,null,null,null,null,null,null,null,null,null,null,"",""]
[143,{"$f":"IFERROR(VLOOKUP(BD161,'[1]ID(当院入力シート)'!E:F,2,FALSE)&\"\",\"\")","v":""},null,null,null,null,null,null,126,null,null,null,null,null,null,"／",null,"／",null,"／",null,null,"／","／",null,null,null,null,null,null,null,null,null,null,null,null,null,null,null,null,null,null,null,null,null,null,null,null,null,null,null,null,null,null,"",""]
[144,{"$f":"IFERROR(VLOOKUP(BD162,'[1]ID(当院入力シート)'!E:F,2,FALSE)&\"\",\"\")","v":""},null,null,null,null,null,null,126,null,null,null,null,null,null,"／",null,"／",null,"／",null,null,"／","／",null,null,null,null,null,null,null,null,null,null,null,null,null,null,null,null,null,null,null,null,null,null,null,null,null,null,null,null,null,null,"",""]
[145,{"$f":"IFERROR(VLOOKUP(BD163,'[1]ID(当院入力シート)'!E:F,2,FALSE)&\"\",\"\")","v":""},null,null,null,null,null,null,126,null,null,null,null,null,null,"／",null,"／",null,"／",null,null,"／","／",null,null,null,null,null,null,null,null,null,null,null,null,null,null,null,null,null,null,null,null,null,null,null,null,null,null,null,null,null,null,"",""]
[146,{"$f":"IFERROR(VLOOKUP(BD164,'[1]ID(当院入力シート)'!E:F,2,FALSE)&\"\",\"\")","v":""},null,null,null,null,null,null,126,null,null,null,null,null,null,"／",null,"／",null,"／",null,null,"／","／",null,null,null,null,null,null,null,null,null,null,null,null,null,null,null,null,null,null,null,null,null,null,null,null,null,null,null,null,null,null,"",""]
[147,{"$f":"IFERROR(VLOOKUP(BD165,'[1]ID(当院入力シート)'!E:F,2,FALSE)&\"\",\"\")","v":""},null,null,null,null,null,null,126,null,null,null,null,null,null,"／",null,"／",null,"／",null,null,"／","／",null,null,null,null,null,null,null,null,null,null,null,null,null,null,null,null,null,null,null,null,null,null,null,null,null,null,null,null,null,null,"",""]
[148,{"$f":"IFERROR(VLOOKUP(BD166,'[1]ID(当院入力シート)'!E:F,2,FALSE)&\"\",\"\")","v":""},null,null,null,null,null,null,126,null,null,null,null,null,null,"／",null,"／",null,"／",null,null,"／","／",null,null,null,null,null,null,null,null,null,null,null,null,null,null,null,null,null,null,null,null,null,null,null,null,null,null,null,null,null,null,"",""]
[149,{"$f":"IFERROR(VLOOKUP(BD167,'[1]ID(当院入力シート)'!E:F,2,FALSE)&\"\",\"\")","v":""},null,null,null,null,null,null,126,null,null,null,null,null,null,"／",null,"／",null,"／",null,null,"／","／",null,null,null,null,null,null,null,null,null,null,null,null,null,null,null,null,null,null,null,null,null,null,null,null,null,null,null,null,null,null,"",""]
[150,{"$f":"IFERROR(VLOOKUP(BD168,'[1]ID(当院入力シート)'!E:F,2,FALSE)&\"\",\"\")","v":""},null,null,null,null,null,null,126,null,null,null,null,null,null,"／",null,"／",null,"／",null,null,"／","／",null,null,null,null,null,null,null,null,null,null,null,null,null,null,null,null,null,null,null,null,null,null,null,null,null,null,null,null,null,null,"",""]
[151,{"$f":"IFERROR(VLOOKUP(BD169,'[1]ID(当院入力シート)'!E:F,2,FALSE)&\"\",\"\")","v":""},null,null,null,null,null,null,126,null,null,null,null,null,null,"／",null,"／",null,"／",null,null,"／","／",null,null,null,null,null,null,null,null,null,null,null,null,null,null,null,null,null,null,null,null,null,null,null,null,null,null,null,null,null,null,"",""]
[152,{"$f":"IFERROR(VLOOKUP(BD170,'[1]ID(当院入力シート)'!E:F,2,FALSE)&\"\",\"\")","v":""},null,null,null,null,null,null,126,null,null,null,null,null,null,"／",null,"／",null,"／",null,null,"／","／",null,null,null,null,null,null,null,null,null,null,null,null,null,null,null,null,null,null,null,null,null,null,null,null,null,null,null,null,null,null,"",""]
[153,{"$f":"IFERROR(VLOOKUP(BD171,'[1]ID(当院入力シート)'!E:F,2,FALSE)&\"\",\"\")","v":""},null,null,null,null,null,null,126,null,null,null,null,null,null,"／",null,"／",null,"／",null,null,"／","／",null,null,null,null,null,null,null,null,null,null,null,null,null,null,null,null,null,null,null,null,null,null,null,null,null,null,null,null,null,null,"",""]
[154,{"$f":"IFERROR(VLOOKUP(BD172,'[1]ID(当院入力シート)'!E:F,2,FALSE)&\"\",\"\")","v":""},null,null,null,null,null,null,126,null,null,null,null,null,null,"／",null,"／",null,"／",null,null,"／","／",null,null,null,null,null,null,null,null,null,null,null,null,null,null,null,null,null,null,null,null,null,null,null,null,null,null,null,null,null,null,"",""]
[155,{"$f":"IFERROR(VLOOKUP(BD173,'[1]ID(当院入力シート)'!E:F,2,FALSE)&\"\",\"\")","v":""},null,null,null,null,null,null,126,null,null,null,null,null,null,"／",null,"／",null,"／",null,null,"／","／",null,null,null,null,null,null,null,null,null,null,null,null,null,null,null,null,null,null,null,null,null,null,null,null,null,null,null,null,null,null,"",""]
[156,{"$f":"IFERROR(VLOOKUP(BD174,'[1]ID(当院入力シート)'!E:F,2,FALSE)&\"\",\"\")","v":""},null,null,null,null,null,null,126,null,null,null,null,null,null,"／",null,"／",null,"／",null,null,"／","／",null,null,null,null,null,null,null,null,null,null,null,null,null,null,null,null,null,null,null,null,null,null,null,null,null,null,null,null,null,null,"",""]
[157,{"$f":"IFERROR(VLOOKUP(BD175,'[1]ID(当院入力シート)'!E:F,2,FALSE)&\"\",\"\")","v":""},null,null,null,null,null,null,126,null,null,null,null,null,null,"／",null,"／",null,"／",null,null,"／","／",null,null,null,null,null,null,null,null,null,null,null,null,null,null,null,null,null,null,null,null,null,null,null,null,null,null,null,null,null,null,"",""]
[158,{"$f":"IFERROR(VLOOKUP(BD176,'[1]ID(当院入力シート)'!E:F,2,FALSE)&\"\",\"\")","v":""},null,null,null,null,null,null,126,null,null,null,null,null,null,"／",null,"／",null,"／",null,null,"／","／",null,null,null,null,null,null,null,null,null,null,null,null,null,null,null,null,null,null,null,null,null,null,null,null,null,null,null,null,null,null,"",""]
[159,{"$f":"IFERROR(VLOOKUP(BD177,'[1]ID(当院入力シート)'!E:F,2,FALSE)&\"\",\"\")","v":""},null,null,null,null,null,null,126,null,null,null,null,null,null,"／",null,"／",null,"／",null,null,"／","／",null,null,null,null,null,null,null,null,null,null,null,null,null,null,null,null,null,null,null,null,null,null,null,null,null,null,null,null,null,null,"",""]
[160,{"$f":"IFERROR(VLOOKUP(BD178,'[1]ID(当院入力シート)'!E:F,2,FALSE)&\"\",\"\")","v":""},null,null,null,null,null,null,126,null,null,null,null,null,null,"／",null,"／",null,"／",null,null,"／","／",null,null,null,null,null,null,null,null,null,null,null,null,null,null,null,null,null,null,null,null,null,null,null,null,null,null,null,null,null,null,"",""]
[161,{"$f":"IFERROR(VLOOKUP(BD179,'[1]ID(当院入力シート)'!E:F,2,FALSE)&\"\",\"\")","v":""},null,null,null,null,null,null,126,null,null,null,null,null,null,"／",null,"／",null,"／",null,null,"／","／",null,null,null,null,null,null,null,null,null,null,null,null,null,null,null,null,null,null,null,null,null,null,null,null,null,null,null,null,null,null,"",""]
[162,{"$f":"IFERROR(VLOOKUP(BD180,'[1]ID(当院入力シート)'!E:F,2,FALSE)&\"\",\"\")","v":""},null,null,null,null,null,null,126,null,null,null,null,null,null,"／",null,"／",null,"／",null,null,"／","／",null,null,null,null,null,null,null,null,null,null,null,null,null,null,null,null,null,null,null,null,null,null,null,null,null,null,null,null,null,null,"",""]
[163,{"$f":"IFERROR(VLOOKUP(BD181,'[1]ID(当院入力シート)'!E:F,2,FALSE)&\"\",\"\")","v":""},null,null,null,null,null,null,126,null,null,null,null,null,null,"／",null,"／",null,"／",null,null,"／","／",null,null,null,null,null,null,null,null,null,null,null,null,null,null,null,null,null,null,null,null,null,null,null,null,null,null,null,null,null,null,"",""]
[164,{"$f":"IFERROR(VLOOKUP(BD182,'[1]ID(当院入力シート)'!E:F,2,FALSE)&\"\",\"\")","v":""},null,null,null,null,null,null,126,null,null,null,null,null,null,"／",null,"／",null,"／",null,null,"／","／",null,null,null,null,null,null,null,null,null,null,null,null,null,null,null,null,null,null,null,null,null,null,null,null,null,null,null,null,null,null,"",""]
[165,{"$f":"IFERROR(VLOOKUP(BD183,'[1]ID(当院入力シート)'!E:F,2,FALSE)&\"\",\"\")","v":""},null,null,null,null,null,null,126,null,null,null,null,null,null,"／",null,"／",null,"／",null,null,"／","／",null,null,null,null,null,null,null,null,null,null,null,null,null,null,null,null,null,null,null,null,null,null,null,null,null,null,null,null,null,null,"",""]
[166,{"$f":"IFERROR(VLOOKUP(BD184,'[1]ID(当院入力シート)'!E:F,2,FALSE)&\"\",\"\")","v":""},null,null,null,null,null,null,126,null,null,null,null,null,null,"／",null,"／",null,"／",null,null,"／","／",null,null,null,null,null,null,null,null,null,null,null,null,null,null,null,null,null,null,null,null,null,null,null,null,null,null,null,null,null,null,"",""]
[167,{"$f":"IFERROR(VLOOKUP(BD185,'[1]ID(当院入力シート)'!E:F,2,FALSE)&\"\",\"\")","v":""},null,null,null,null,null,null,126,null,null,null,null,null,null,"／",null,"／",null,"／",null,null,"／","／",null,null,null,null,null,null,null,null,null,null,null,null,null,null,null,null,null,null,null,null,null,null,null,null,null,null,null,null,null,null,"",""]
[168,{"$f":"IFERROR(VLOOKUP(BD186,'[1]ID(当院入力シート)'!E:F,2,FALSE)&\"\",\"\")","v":""},null,null,null,null,null,null,126,null,null,null,null,null,null,"／",null,"／",null,"／",null,null,"／","／",null,null,null,null,null,null,null,null,null,null,null,null,null,null,null,null,null,null,null,null,null,null,null,null,null,null,null,null,null,null,"",""]
[169,{"$f":"IFERROR(VLOOKUP(BD187,'[1]ID(当院入力シート)'!E:F,2,FALSE)&\"\",\"\")","v":""},null,null,null,null,null,null,126,null,null,null,null,null,null,"／",null,"／",null,"／",null,null,"／","／",null,null,null,null,null,null,null,null,null,null,null,null,null,null,null,null,null,null,null,null,null,null,null,null,null,null,null,null,null,null,"",""]
[170,{"$f":"IFERROR(VLOOKUP(BD188,'[1]ID(当院入力シート)'!E:F,2,FALSE)&\"\",\"\")","v":""},null,null,null,null,null,null,126,null,null,null,null,null,null,"／",null,"／",null,"／",null,null,"／","／",null,null,null,null,null,null,null,null,null,null,null,null,null,null,null,null,null,null,null,null,null,null,null,null,null,null,null,null,null,null,"",""]
[171,{"$f":"IFERROR(VLOOKUP(BD189,'[1]ID(当院入力シート)'!E:F,2,FALSE)&\"\",\"\")","v":""},null,null,null,null,null,null,126,null,null,null,null,null,null,"／",null,"／",null,"／",null,null,"／","／",null,null,null,null,null,null,null,null,null,null,null,null,null,null,null,null,null,null,null,null,null,null,null,null,null,null,null,null,null,null,"",""]
[172,{"$f":"IFERROR(VLOOKUP(BD190,'[1]ID(当院入力シート)'!E:F,2,FALSE)&\"\",\"\")","v":""},null,null,null,null,null,null,126,null,null,null,null,null,null,"／",null,"／",null,"／",null,null,"／","／",null,null,null,null,null,null,null,null,null,null,null,null,null,null,null,null,null,null,null,null,null,null,null,null,null,null,null,null,null,null,"",""]
[173,{"$f":"IFERROR(VLOOKUP(BD191,'[1]ID(当院入力シート)'!E:F,2,FALSE)&\"\",\"\")","v":""},null,null,null,null,null,null,126,null,null,null,null,null,null,"／",null,"／",null,"／",null,null,"／","／",null,null,null,null,null,null,null,null,null,null,null,null,null,null,null,null,null,null,null,null,null,null,null,null,null,null,null,null,null,null,"",""]
[174,{"$f":"IFERROR(VLOOKUP(BD192,'[1]ID(当院入力シート)'!E:F,2,FALSE)&\"\",\"\")","v":""},null,null,null,null,null,null,126,null,null,null,null,null,null,"／",null,"／",null,"／",null,null,"／","／",null,null,null,null,null,null,null,null,null,null,null,null,null,null,null,null,null,null,null,null,null,null,null,null,null,null,null,null,null,null,"",""]
[175,{"$f":"IFERROR(VLOOKUP(BD193,'[1]ID(当院入力シート)'!E:F,2,FALSE)&\"\",\"\")","v":""},null,null,null,null,null,null,126,null,null,null,null,null,null,"／",null,"／",null,"／",null,null,"／","／",null,null,null,null,null,null,null,null,null,null,null,null,null,null,null,null,null,null,null,null,null,null,null,null,null,null,null,null,null,null,"",""]
[176,{"$f":"IFERROR(VLOOKUP(BD194,'[1]ID(当院入力シート)'!E:F,2,FALSE)&\"\",\"\")","v":""},null,null,null,null,null,null,126,null,null,null,null,null,null,"／",null,"／",null,"／",null,null,"／","／",null,null,null,null,null,null,null,null,null,null,null,null,null,null,null,null,null,null,null,null,null,null,null,null,null,null,null,null,null,null,"",""]
[177,{"$f":"IFERROR(VLOOKUP(BD195,'[1]ID(当院入力シート)'!E:F,2,FALSE)&\"\",\"\")","v":""},null,null,null,null,null,null,126,null,null,null,null,null,null,"／",null,"／",null,"／",null,null,"／","／",null,null,null,null,null,null,null,null,null,null,null,null,null,null,null,null,null,null,null,null,null,null,null,null,null,null,null,null,null,null,"",""]
[178,{"$f":"IFERROR(VLOOKUP(BD196,'[1]ID(当院入力シート)'!E:F,2,FALSE)&\"\",\"\")","v":""},null,null,null,null,null,null,126,null,null,null,null,null,null,"／",null,"／",null,"／",null,null,"／","／",null,null,null,null,null,null,null,null,null,null,null,null,null,null,null,null,null,null,null,null,null,null,null,null,null,null,null,null,null,null,"",""]
[179,{"$f":"IFERROR(VLOOKUP(BD197,'[1]ID(当院入力シート)'!E:F,2,FALSE)&\"\",\"\")","v":""},null,null,null,null,null,null,126,null,null,null,null,null,null,"／",null,"／",null,"／",null,null,"／","／",null,null,null,null,null,null,null,null,null,null,null,null,null,null,null,null,null,null,null,null,null,null,null,null,null,null,null,null,null,null,"",""]
[180,{"$f":"IFERROR(VLOOKUP(BD198,'[1]ID(当院入力シート)'!E:F,2,FALSE)&\"\",\"\")","v":""},null,null,null,null,null,null,126,null,null,null,null,null,null,"／",null,"／",null,"／",null,null,"／","／",null,null,null,null,null,null,null,null,null,null,null,null,null,null,null,null,null,null,null,null,null,null,null,null,null,null,null,null,null,null,"",""]
[181,{"$f":"IFERROR(VLOOKUP(BD199,'[1]ID(当院入力シート)'!E:F,2,FALSE)&\"\",\"\")","v":""},null,null,null,null,null,null,126,null,null,null,null,null,null,"／",null,"／",null,"／",null,null,"／","／",null,null,null,null,null,null,null,null,null,null,null,null,null,null,null,null,null,null,null,null,null,null,null,null,null,null,null,null,null,null,"",""]
[182,{"$f":"IFERROR(VLOOKUP(BD200,'[1]ID(当院入力シート)'!E:F,2,FALSE)&\"\",\"\")","v":""},null,null,null,null,null,null,126,null,null,null,null,null,null,"／",null,"／",null,"／",null,null,"／","／",null,null,null,null,null,null,null,null,null,null,null,null,null,null,null,null,null,null,null,null,null,null,null,null,null,null,null,null,null,null,"",""]
[183,{"$f":"IFERROR(VLOOKUP(BD201,'[1]ID(当院入力シート)'!E:F,2,FALSE)&\"\",\"\")","v":""},null,null,null,null,null,null,126,null,null,null,null,null,null,"／",null,"／",null,"／",null,null,"／","／",null,null,null,null,null,null,null,null,null,null,null,null,null,null,null,null,null,null,null,null,null,null,null,null,null,null,null,null,null,null,"",""]
[184,{"$f":"IFERROR(VLOOKUP(BD202,'[1]ID(当院入力シート)'!E:F,2,FALSE)&\"\",\"\")","v":""},null,null,null,null,null,null,126,null,null,null,null,null,null,"／",null,"／",null,"／",null,null,"／","／",null,null,null,null,null,null,null,null,null,null,null,null,null,null,null,null,null,null,null,null,null,null,null,null,null,null,null,null,null,null,"",""]
[185,{"$f":"IFERROR(VLOOKUP(BD203,'[1]ID(当院入力シート)'!E:F,2,FALSE)&\"\",\"\")","v":""},null,null,null,null,null,null,126,null,null,null,null,null,null,"／",null,"／",null,"／",null,null,"／","／",null,null,null,null,null,null,null,null,null,null,null,null,null,null,null,null,null,null,null,null,null,null,null,null,null,null,null,null,null,null,"",""]
[186,{"$f":"IFERROR(VLOOKUP(BD204,'[1]ID(当院入力シート)'!E:F,2,FALSE)&\"\",\"\")","v":""},null,null,null,null,null,null,126,null,null,null,null,null,null,"／",null,"／",null,"／",null,null,"／","／",null,null,null,null,null,null,null,null,null,null,null,null,null,null,null,null,null,null,null,null,null,null,null,null,null,null,null,null,null,null,"",""]
[187,{"$f":"IFERROR(VLOOKUP(BD205,'[1]ID(当院入力シート)'!E:F,2,FALSE)&\"\",\"\")","v":""},null,null,null,null,null,null,126,null,null,null,null,null,null,"／",null,"／",null,"／",null,null,"／","／",null,null,null,null,null,null,null,null,null,null,null,null,null,null,null,null,null,null,null,null,null,null,null,null,null,null,null,null,null,null,"",""]
[188,{"$f":"IFERROR(VLOOKUP(BD206,'[1]ID(当院入力シート)'!E:F,2,FALSE)&\"\",\"\")","v":""},null,null,null,null,null,null,126,null,null,null,null,null,null,"／",null,"／",null,"／",null,null,"／","／",null,null,null,null,null,null,null,null,null,null,null,null,null,null,null,null,null,null,null,null,null,null,null,null,null,null,null,null,null,null,"",""]
[189,{"$f":"IFERROR(VLOOKUP(BD207,'[1]ID(当院入力シート)'!E:F,2,FALSE)&\"\",\"\")","v":""},null,null,null,null,null,null,126,null,null,null,null,null,null,"／",null,"／",null,"／",null,null,"／","／",null,null,null,null,null,null,null,null,null,null,null,null,null,null,null,null,null,null,null,null,null,null,null,null,null,null,null,null,null,null,"",""]
[190,{"$f":"IFERROR(VLOOKUP(BD208,'[1]ID(当院入力シート)'!E:F,2,FALSE)&\"\",\"\")","v":""},null,null,null,null,null,null,126,null,null,null,null,null,null,"／",null,"／",null,"／",null,null,"／","／",null,null,null,null,null,null,null,null,null,null,null,null,null,null,null,null,null,null,null,null,null,null,null,null,null,null,null,null,null,null,"",""]
[191,{"$f":"IFERROR(VLOOKUP(BD209,'[1]ID(当院入力シート)'!E:F,2,FALSE)&\"\",\"\")","v":""},null,null,null,null,null,null,{"$f":"DATEDIF(H209,$I$14,\"y\")","v":126},null,null,null,null,null,null,"／",null,"／",null,"／",null,null,"／","／",null,null,null,null,null,null,null,null,null,null,null,null,null,null,null,null,null,null,null,null,null,null,null,null,null,null,null,null,null,null,"",""]
[192,{"$f":"IFERROR(VLOOKUP(BD210,'[1]ID(当院入力シート)'!E:F,2,FALSE)&\"\",\"\")","v":""},null,null,null,null,null,null,126,null,null,null,null,null,null,"／",null,"／",null,"／",null,null,"／",{"$f":"TEXT(W210,\"(aaa)\")","v":"／"},null,null,null,null,null,null,null,null,null,null,null,null,null,null,null,null,null,null,null,null,null,null,null,null,null,null,null,null,null,null,"",""]
[193,{"$f":"IFERROR(VLOOKUP(BD211,'[1]ID(当院入力シート)'!E:F,2,FALSE)&\"\",\"\")","v":""},null,null,null,null,null,null,126,null,null,null,null,null,null,"／",null,"／",null,"／",null,null,"／","／",null,null,null,null,null,null,null,null,null,null,null,null,null,null,null,null,null,null,null,null,null,null,null,null,null,null,null,null,null,null,{"$f":"SUBSTITUTE(SUBSTITUTE(E211,\"　\",\"\"),\" \",\"\")","v":""},{"$f":"BC211&H211","v":""}]
[194,{"$f":"IFERROR(VLOOKUP(BD212,'[1]ID(当院入力シート)'!E:F,2,FALSE)&\"\",\"\")","v":""},null,null,null,null,null,null,126,null,null,null,null,null,null,"／",null,"／",null,"／",null,null,"／","／",null,null,null,null,null,null,null,null,null,null,null,null,null,null,null,null,null,null,null,null,null,null,null,null,null,null,null,null,null,null,"",""]
[{"$f":"ROW()-18","v":195},{"$f":"IFERROR(VLOOKUP(BD213,'[1]ID(当院入力シート)'!E:F,2,FALSE)&\"\",\"\")","v":""},null,null,null,null,null,null,126,null,null,null,null,null,null,"／",null,"／",null,"／",null,null,"／","／",null,null,null,null,null,null,null,null,null,null,null,null,null,null,null,null,null,null,null,null,null,null,null,null,null,null,null,null,null,null,"",""]
[196,{"$f":"IFERROR(VLOOKUP(BD214,'[1]ID(当院入力シート)'!E:F,2,FALSE)&\"\",\"\")","v":""},null,null,null,null,null,null,126,null,null,null,null,null,null,"／",null,"／",null,"／",null,null,"／","／",null,null,null,null,null,null,null,null,null,null,null,null,null,null,null,null,null,null,null,null,null,null,null,null,null,null,null,null,null,null,"",""]
[197,{"$f":"IFERROR(VLOOKUP(BD215,'[1]ID(当院入力シート)'!E:F,2,FALSE)&\"\",\"\")","v":""},null,null,null,null,null,null,126,null,null,null,null,null,null,"／",null,"／",null,"／",null,null,"／","／",null,null,null,null,null,null,null,null,null,null,null,null,null,null,null,null,null,null,null,null,null,null,null,null,null,null,null,null,null,null,"",""]
[198,{"$f":"IFERROR(VLOOKUP(BD216,'[1]ID(当院入力シート)'!E:F,2,FALSE)&\"\",\"\")","v":""},null,null,null,null,null,null,126,null,null,null,null,null,null,"／",null,"／",null,"／",null,null,"／","／",null,null,null,null,null,null,null,null,null,null,null,null,null,null,null,null,null,null,null,null,null,null,null,null,null,null,null,null,null,null,"",""]
[199,{"$f":"IFERROR(VLOOKUP(BD217,'[1]ID(当院入力シート)'!E:F,2,FALSE)&\"\",\"\")","v":""},null,null,null,null,null,null,126,null,null,null,null,null,null,"／",null,"／",null,"／",null,null,"／","／",null,null,null,null,null,null,null,null,null,null,null,null,null,null,null,null,null,null,null,null,null,null,null,null,null,null,null,null,null,null,"",""]
[200,{"$f":"IFERROR(VLOOKUP(BD218,'[1]ID(当院入力シート)'!E:F,2,FALSE)&\"\",\"\")","v":""},null,null,null,null,null,null,126,null,null,null,null,null,null,"／",null,"／",null,"／",null,null,"／","／",null,null,null,null,null,null,null,null,null,null,null,null,null,null,null,null,null,null,null,null,null,null,null,null,null,null,null,null,null,null,"",""]
[201,{"$f":"IFERROR(VLOOKUP(BD219,'[1]ID(当院入力シート)'!E:F,2,FALSE)&\"\",\"\")","v":""},null,null,null,null,null,null,126,null,null,null,null,null,null,"／",null,"／",null,"／",null,null,"／","／",null,null,null,null,null,null,null,null,null,null,null,null,null,null,null,null,null,null,null,null,null,null,null,null,null,null,null,null,null,null,"",""]
[202,{"$f":"IFERROR(VLOOKUP(BD220,'[1]ID(当院入力シート)'!E:F,2,FALSE)&\"\",\"\")","v":""},null,null,null,null,null,null,126,null,null,null,null,null,null,"／",null,"／",null,"／",null,null,"／","／",null,null,null,null,null,null,null,null,null,null,null,null,null,null,null,null,null,null,null,null,null,null,null,null,null,null,null,null,null,null,"",""]
[203,{"$f":"IFERROR(VLOOKUP(BD221,'[1]ID(当院入力シート)'!E:F,2,FALSE)&\"\",\"\")","v":""},null,null,null,null,null,null,126,null,null,null,null,null,null,"／",null,"／",null,"／",null,null,"／","／",null,null,null,null,null,null,null,null,null,null,null,null,null,null,null,null,null,null,null,null,null,null,null,null,null,null,null,null,null,null,"",""]
[204,{"$f":"IFERROR(VLOOKUP(BD222,'[1]ID(当院入力シート)'!E:F,2,FALSE)&\"\",\"\")","v":""},null,null,null,null,null,null,126,null,null,null,null,null,null,"／",null,"／",null,"／",null,null,"／","／",null,null,null,null,null,null,null,null,null,null,null,null,null,null,null,null,null,null,null,null,null,null,null,null,null,null,null,null,null,null,"",""]
[205,{"$f":"IFERROR(VLOOKUP(BD223,'[1]ID(当院入力シート)'!E:F,2,FALSE)&\"\",\"\")","v":""},null,null,null,null,null,null,126,null,null,null,null,null,null,"／",null,"／",null,"／",null,null,"／","／",null,null,null,null,null,null,null,null,null,null,null,null,null,null,null,null,null,null,null,null,null,null,null,null,null,null,null,null,null,null,"",""]
[206,{"$f":"IFERROR(VLOOKUP(BD224,'[1]ID(当院入力シート)'!E:F,2,FALSE)&\"\",\"\")","v":""},null,null,null,null,null,null,126,null,null,null,null,null,null,"／",null,"／",null,"／",null,null,"／","／",null,null,null,null,null,null,null,null,null,null,null,null,null,null,null,null,null,null,null,null,null,null,null,null,null,null,null,null,null,null,"",""]
[207,{"$f":"IFERROR(VLOOKUP(BD225,'[1]ID(当院入力シート)'!E:F,2,FALSE)&\"\",\"\")","v":""},null,null,null,null,null,null,126,null,null,null,null,null,null,"／",null,"／",null,"／",null,null,"／","／",null,null,null,null,null,null,null,null,null,null,null,null,null,null,null,null,null,null,null,null,null,null,null,null,null,null,null,null,null,null,"",""]
[208,{"$f":"IFERROR(VLOOKUP(BD226,'[1]ID(当院入力シート)'!E:F,2,FALSE)&\"\",\"\")","v":""},null,null,null,null,null,null,126,null,null,null,null,null,null,"／",null,"／",null,"／",null,null,"／","／",null,null,null,null,null,null,null,null,null,null,null,null,null,null,null,null,null,null,null,null,null,null,null,null,null,null,null,null,null,null,"",""]
[209,{"$f":"IFERROR(VLOOKUP(BD227,'[1]ID(当院入力シート)'!E:F,2,FALSE)&\"\",\"\")","v":""},null,null,null,null,null,null,126,null,null,null,null,null,null,"／",null,"／",null,"／",null,null,"／","／",null,null,null,null,null,null,null,null,null,null,null,null,null,null,null,null,null,null,null,null,null,null,null,null,null,null,null,null,null,null,"",""]
[210,{"$f":"IFERROR(VLOOKUP(BD228,'[1]ID(当院入力シート)'!E:F,2,FALSE)&\"\",\"\")","v":""},null,null,null,null,null,null,126,null,null,null,null,null,null,"／",null,"／",null,"／",null,null,"／","／",null,null,null,null,null,null,null,null,null,null,null,null,null,null,null,null,null,null,null,null,null,null,null,null,null,null,null,null,null,null,"",""]
[211,{"$f":"IFERROR(VLOOKUP(BD229,'[1]ID(当院入力シート)'!E:F,2,FALSE)&\"\",\"\")","v":""},null,null,null,null,null,null,126,null,null,null,null,null,null,"／",null,"／",null,"／",null,null,"／","／",null,null,null,null,null,null,null,null,null,null,null,null,null,null,null,null,null,null,null,null,null,null,null,null,null,null,null,null,null,null,"",""]
[212,{"$f":"IFERROR(VLOOKUP(BD230,'[1]ID(当院入力シート)'!E:F,2,FALSE)&\"\",\"\")","v":""},null,null,null,null,null,null,126,null,null,null,null,null,null,"／",null,"／",null,"／",null,null,"／","／",null,null,null,null,null,null,null,null,null,null,null,null,null,null,null,null,null,null,null,null,null,null,null,null,null,null,null,null,null,null,"",""]
[213,{"$f":"IFERROR(VLOOKUP(BD231,'[1]ID(当院入力シート)'!E:F,2,FALSE)&\"\",\"\")","v":""},null,null,null,null,null,null,126,null,null,null,null,null,null,"／",null,"／",null,"／",null,null,"／","／",null,null,null,null,null,null,null,null,null,null,null,null,null,null,null,null,null,null,null,null,null,null,null,null,null,null,null,null,null,null,"",""]
[214,{"$f":"IFERROR(VLOOKUP(BD232,'[1]ID(当院入力シート)'!E:F,2,FALSE)&\"\",\"\")","v":""},null,null,null,null,null,null,126,null,null,null,null,null,null,"／",null,"／",null,"／",null,null,"／","／",null,null,null,null,null,null,null,null,null,null,null,null,null,null,null,null,null,null,null,null,null,null,null,null,null,null,null,null,null,null,"",""]
[215,{"$f":"IFERROR(VLOOKUP(BD233,'[1]ID(当院入力シート)'!E:F,2,FALSE)&\"\",\"\")","v":""},null,null,null,null,null,null,126,null,null,null,null,null,null,"／",null,"／",null,"／",null,null,"／","／",null,null,null,null,null,null,null,null,null,null,null,null,null,null,null,null,null,null,null,null,null,null,null,null,null,null,null,null,null,null,"",""]
[216,{"$f":"IFERROR(VLOOKUP(BD234,'[1]ID(当院入力シート)'!E:F,2,FALSE)&\"\",\"\")","v":""},null,null,null,null,null,null,126,null,null,null,null,null,null,"／",null,"／",null,"／",null,null,"／","／",null,null,null,null,null,null,null,null,null,null,null,null,null,null,null,null,null,null,null,null,null,null,null,null,null,null,null,null,null,null,"",""]
[217,{"$f":"IFERROR(VLOOKUP(BD235,'[1]ID(当院入力シート)'!E:F,2,FALSE)&\"\",\"\")","v":""},null,null,null,null,null,null,126,null,null,null,null,null,null,"／",null,"／",null,"／",null,null,"／","／",null,null,null,null,null,null,null,null,null,null,null,null,null,null,null,null,null,null,null,null,null,null,null,null,null,null,null,null,null,null,"",""]
[218,{"$f":"IFERROR(VLOOKUP(BD236,'[1]ID(当院入力シート)'!E:F,2,FALSE)&\"\",\"\")","v":""},null,null,null,null,null,null,126,null,null,null,null,null,null,"／",null,"／",null,"／",null,null,"／","／",null,null,null,null,null,null,null,null,null,null,null,null,null,null,null,null,null,null,null,null,null,null,null,null,null,null,null,null,null,null,"",""]
[219,{"$f":"IFERROR(VLOOKUP(BD237,'[1]ID(当院入力シート)'!E:F,2,FALSE)&\"\",\"\")","v":""},null,null,null,null,null,null,126,null,null,null,null,null,null,"／",null,"／",null,"／",null,null,"／","／",null,null,null,null,null,null,null,null,null,null,null,null,null,null,null,null,null,null,null,null,null,null,null,null,null,null,null,null,null,null,"",""]
[220,{"$f":"IFERROR(VLOOKUP(BD238,'[1]ID(当院入力シート)'!E:F,2,FALSE)&\"\",\"\")","v":""},null,null,null,null,null,null,126,null,null,null,null,null,null,"／",null,"／",null,"／",null,null,"／","／",null,null,null,null,null,null,null,null,null,null,null,null,null,null,null,null,null,null,null,null,null,null,null,null,null,null,null,null,null,null,"",""]
[221,{"$f":"IFERROR(VLOOKUP(BD239,'[1]ID(当院入力シート)'!E:F,2,FALSE)&\"\",\"\")","v":""},null,null,null,null,null,null,126,null,null,null,null,null,null,"／",null,"／",null,"／",null,null,"／","／",null,null,null,null,null,null,null,null,null,null,null,null,null,null,null,null,null,null,null,null,null,null,null,null,null,null,null,null,null,null,"",""]
[222,{"$f":"IFERROR(VLOOKUP(BD240,'[1]ID(当院入力シート)'!E:F,2,FALSE)&\"\",\"\")","v":""},null,null,null,null,null,null,126,null,null,null,null,null,null,"／",null,"／",null,"／",null,null,"／","／",null,null,null,null,null,null,null,null,null,null,null,null,null,null,null,null,null,null,null,null,null,null,null,null,null,null,null,null,null,null,"",""]
[223,{"$f":"IFERROR(VLOOKUP(BD241,'[1]ID(当院入力シート)'!E:F,2,FALSE)&\"\",\"\")","v":""},null,null,null,null,null,null,126,null,null,null,null,null,null,"／",null,"／",null,"／",null,null,"／","／",null,null,null,null,null,null,null,null,null,null,null,null,null,null,null,null,null,null,null,null,null,null,null,null,null,null,null,null,null,null,"",""]
[224,{"$f":"IFERROR(VLOOKUP(BD242,'[1]ID(当院入力シート)'!E:F,2,FALSE)&\"\",\"\")","v":""},null,null,null,null,null,null,126,null,null,null,null,null,null,"／",null,"／",null,"／",null,null,"／","／",null,null,null,null,null,null,null,null,null,null,null,null,null,null,null,null,null,null,null,null,null,null,null,null,null,null,null,null,null,null,"",""]
[225,{"$f":"IFERROR(VLOOKUP(BD243,'[1]ID(当院入力シート)'!E:F,2,FALSE)&\"\",\"\")","v":""},null,null,null,null,null,null,126,null,null,null,null,null,null,"／",null,"／",null,"／",null,null,"／","／",null,null,null,null,null,null,null,null,null,null,null,null,null,null,null,null,null,null,null,null,null,null,null,null,null,null,null,null,null,null,"",""]
[226,{"$f":"IFERROR(VLOOKUP(BD244,'[1]ID(当院入力シート)'!E:F,2,FALSE)&\"\",\"\")","v":""},null,null,null,null,null,null,126,null,null,null,null,null,null,"／",null,"／",null,"／",null,null,"／","／",null,null,null,null,null,null,null,null,null,null,null,null,null,null,null,null,null,null,null,null,null,null,null,null,null,null,null,null,null,null,"",""]
[227,{"$f":"IFERROR(VLOOKUP(BD245,'[1]ID(当院入力シート)'!E:F,2,FALSE)&\"\",\"\")","v":""},null,null,null,null,null,null,126,null,null,null,null,null,null,"／",null,"／",null,"／",null,null,"／","／",null,null,null,null,null,null,null,null,null,null,null,null,null,null,null,null,null,null,null,null,null,null,null,null,null,null,null,null,null,null,"",""]
[228,{"$f":"IFERROR(VLOOKUP(BD246,'[1]ID(当院入力シート)'!E:F,2,FALSE)&\"\",\"\")","v":""},null,null,null,null,null,null,126,null,null,null,null,null,null,"／",null,"／",null,"／",null,null,"／","／",null,null,null,null,null,null,null,null,null,null,null,null,null,null,null,null,null,null,null,null,null,null,null,null,null,null,null,null,null,null,"",""]
[229,{"$f":"IFERROR(VLOOKUP(BD247,'[1]ID(当院入力シート)'!E:F,2,FALSE)&\"\",\"\")","v":""},null,null,null,null,null,null,126,null,null,null,null,null,null,"／",null,"／",null,"／",null,null,"／","／",null,null,null,null,null,null,null,null,null,null,null,null,null,null,null,null,null,null,null,null,null,null,null,null,null,null,null,null,null,null,"",""]
[230,{"$f":"IFERROR(VLOOKUP(BD248,'[1]ID(当院入力シート)'!E:F,2,FALSE)&\"\",\"\")","v":""},null,null,null,null,null,null,126,null,null,null,null,null,null,"／",null,"／",null,"／",null,null,"／","／",null,null,null,null,null,null,null,null,null,null,null,null,null,null,null,null,null,null,null,null,null,null,null,null,null,null,null,null,null,null,"",""]
[231,{"$f":"IFERROR(VLOOKUP(BD249,'[1]ID(当院入力シート)'!E:F,2,FALSE)&\"\",\"\")","v":""},null,null,null,null,null,null,126,null,null,null,null,null,null,"／",null,"／",null,"／",null,null,"／","／",null,null,null,null,null,null,null,null,null,null,null,null,null,null,null,null,null,null,null,null,null,null,null,null,null,null,null,null,null,null,"",""]
[232,{"$f":"IFERROR(VLOOKUP(BD250,'[1]ID(当院入力シート)'!E:F,2,FALSE)&\"\",\"\")","v":""},null,null,null,null,null,null,126,null,null,null,null,null,null,"／",null,"／",null,"／",null,null,"／","／",null,null,null,null,null,null,null,null,null,null,null,null,null,null,null,null,null,null,null,null,null,null,null,null,null,null,null,null,null,null,"",""]
[233,{"$f":"IFERROR(VLOOKUP(BD251,'[1]ID(当院入力シート)'!E:F,2,FALSE)&\"\",\"\")","v":""},null,null,null,null,null,null,126,null,null,null,null,null,null,"／",null,"／",null,"／",null,null,"／","／",null,null,null,null,null,null,null,null,null,null,null,null,null,null,null,null,null,null,null,null,null,null,null,null,null,null,null,null,null,null,"",""]
[234,{"$f":"IFERROR(VLOOKUP(BD252,'[1]ID(当院入力シート)'!E:F,2,FALSE)&\"\",\"\")","v":""},null,null,null,null,null,null,126,null,null,null,null,null,null,"／",null,"／",null,"／",null,null,"／","／",null,null,null,null,null,null,null,null,null,null,null,null,null,null,null,null,null,null,null,null,null,null,null,null,null,null,null,null,null,null,"",""]
[235,{"$f":"IFERROR(VLOOKUP(BD253,'[1]ID(当院入力シート)'!E:F,2,FALSE)&\"\",\"\")","v":""},null,null,null,null,null,null,126,null,null,null,null,null,null,"／",null,"／",null,"／",null,null,"／","／",null,null,null,null,null,null,null,null,null,null,null,null,null,null,null,null,null,null,null,null,null,null,null,null,null,null,null,null,null,null,"",""]
[236,{"$f":"IFERROR(VLOOKUP(BD254,'[1]ID(当院入力シート)'!E:F,2,FALSE)&\"\",\"\")","v":""},null,null,null,null,null,null,126,null,null,null,null,null,null,"／",null,"／",null,"／",null,null,"／","／",null,null,null,null,null,null,null,null,null,null,null,null,null,null,null,null,null,null,null,null,null,null,null,null,null,null,null,null,null,null,"",""]
[237,{"$f":"IFERROR(VLOOKUP(BD255,'[1]ID(当院入力シート)'!E:F,2,FALSE)&\"\",\"\")","v":""},null,null,null,null,null,null,126,null,null,null,null,null,null,"／",null,"／",null,"／",null,null,"／","／",null,null,null,null,null,null,null,null,null,null,null,null,null,null,null,null,null,null,null,null,null,null,null,null,null,null,null,null,null,null,"",""]
[238,{"$f":"IFERROR(VLOOKUP(BD256,'[1]ID(当院入力シート)'!E:F,2,FALSE)&\"\",\"\")","v":""},null,null,null,null,null,null,126,null,null,null,null,null,null,"／",null,"／",null,"／",null,null,"／","／",null,null,null,null,null,null,null,null,null,null,null,null,null,null,null,null,null,null,null,null,null,null,null,null,null,null,null,null,null,null,"",""]
[239,{"$f":"IFERROR(VLOOKUP(BD257,'[1]ID(当院入力シート)'!E:F,2,FALSE)&\"\",\"\")","v":""},null,null,null,null,null,null,126,null,null,null,null,null,null,"／",null,"／",null,"／",null,null,"／","／",null,null,null,null,null,null,null,null,null,null,null,null,null,null,null,null,null,null,null,null,null,null,null,null,null,null,null,null,null,null,"",""]
[240,{"$f":"IFERROR(VLOOKUP(BD258,'[1]ID(当院入力シート)'!E:F,2,FALSE)&\"\",\"\")","v":""},null,null,null,null,null,null,126,null,null,null,null,null,null,"／",null,"／",null,"／",null,null,"／","／",null,null,null,null,null,null,null,null,null,null,null,null,null,null,null,null,null,null,null,null,null,null,null,null,null,null,null,null,null,null,"",""]
[241,{"$f":"IFERROR(VLOOKUP(BD259,'[1]ID(当院入力シート)'!E:F,2,FALSE)&\"\",\"\")","v":""},null,null,null,null,null,null,126,null,null,null,null,null,null,"／",null,"／",null,"／",null,null,"／","／",null,null,null,null,null,null,null,null,null,null,null,null,null,null,null,null,null,null,null,null,null,null,null,null,null,null,null,null,null,null,"",""]
[242,{"$f":"IFERROR(VLOOKUP(BD260,'[1]ID(当院入力シート)'!E:F,2,FALSE)&\"\",\"\")","v":""},null,null,null,null,null,null,126,null,null,null,null,null,null,"／",null,"／",null,"／",null,null,"／","／",null,null,null,null,null,null,null,null,null,null,null,null,null,null,null,null,null,null,null,null,null,null,null,null,null,null,null,null,null,null,"",""]
[243,{"$f":"IFERROR(VLOOKUP(BD261,'[1]ID(当院入力シート)'!E:F,2,FALSE)&\"\",\"\")","v":""},null,null,null,null,null,null,126,null,null,null,null,null,null,"／",null,"／",null,"／",null,null,"／","／",null,null,null,null,null,null,null,null,null,null,null,null,null,null,null,null,null,null,null,null,null,null,null,null,null,null,null,null,null,null,"",""]
[244,{"$f":"IFERROR(VLOOKUP(BD262,'[1]ID(当院入力シート)'!E:F,2,FALSE)&\"\",\"\")","v":""},null,null,null,null,null,null,126,null,null,null,null,null,null,"／",null,"／",null,"／",null,null,"／","／",null,null,null,null,null,null,null,null,null,null,null,null,null,null,null,null,null,null,null,null,null,null,null,null,null,null,null,null,null,null,"",""]
[245,{"$f":"IFERROR(VLOOKUP(BD263,'[1]ID(当院入力シート)'!E:F,2,FALSE)&\"\",\"\")","v":""},null,null,null,null,null,null,126,null,null,null,null,null,null,"／",null,"／",null,"／",null,null,"／","／",null,null,null,null,null,null,null,null,null,null,null,null,null,null,null,null,null,null,null,null,null,null,null,null,null,null,null,null,null,null,"",""]
[246,{"$f":"IFERROR(VLOOKUP(BD264,'[1]ID(当院入力シート)'!E:F,2,FALSE)&\"\",\"\")","v":""},null,null,null,null,null,null,126,null,null,null,null,null,null,"／",null,"／",null,"／",null,null,"／","／",null,null,null,null,null,null,null,null,null,null,null,null,null,null,null,null,null,null,null,null,null,null,null,null,null,null,null,null,null,null,"",""]
[247,{"$f":"IFERROR(VLOOKUP(BD265,'[1]ID(当院入力シート)'!E:F,2,FALSE)&\"\",\"\")","v":""},null,null,null,null,null,null,126,null,null,null,null,null,null,"／",null,"／",null,"／",null,null,"／","／",null,null,null,null,null,null,null,null,null,null,null,null,null,null,null,null,null,null,null,null,null,null,null,null,null,null,null,null,null,null,"",""]
[248,{"$f":"IFERROR(VLOOKUP(BD266,'[1]ID(当院入力シート)'!E:F,2,FALSE)&\"\",\"\")","v":""},null,null,null,null,null,null,126,null,null,null,null,null,null,"／",null,"／",null,"／",null,null,"／","／",null,null,null,null,null,null,null,null,null,null,null,null,null,null,null,null,null,null,null,null,null,null,null,null,null,null,null,null,null,null,"",""]
[249,{"$f":"IFERROR(VLOOKUP(BD267,'[1]ID(当院入力シート)'!E:F,2,FALSE)&\"\",\"\")","v":""},null,null,null,null,null,null,126,null,null,null,null,null,null,"／",null,"／",null,"／",null,null,"／","／",null,null,null,null,null,null,null,null,null,null,null,null,null,null,null,null,null,null,null,null,null,null,null,null,null,null,null,null,null,null,"",""]
[250,{"$f":"IFERROR(VLOOKUP(BD268,'[1]ID(当院入力シート)'!E:F,2,FALSE)&\"\",\"\")","v":""},null,null,null,null,null,null,126,null,null,null,null,null,null,"／",null,"／",null,"／",null,null,"／","／",null,null,null,null,null,null,null,null,null,null,null,null,null,null,null,null,null,null,null,null,null,null,null,null,null,null,null,null,null,null,"",""]
[251,{"$f":"IFERROR(VLOOKUP(BD269,'[1]ID(当院入力シート)'!E:F,2,FALSE)&\"\",\"\")","v":""},null,null,null,null,null,null,126,null,null,null,null,null,null,"／",null,"／",null,"／",null,null,"／","／",null,null,null,null,null,null,null,null,null,null,null,null,null,null,null,null,null,null,null,null,null,null,null,null,null,null,null,null,null,null,"",""]
[252,{"$f":"IFERROR(VLOOKUP(BD270,'[1]ID(当院入力シート)'!E:F,2,FALSE)&\"\",\"\")","v":""},null,null,null,null,null,null,126,null,null,null,null,null,null,"／",null,"／",null,"／",null,null,"／","／",null,null,null,null,null,null,null,null,null,null,null,null,null,null,null,null,null,null,null,null,null,null,null,null,null,null,null,null,null,null,"",""]
[253,{"$f":"IFERROR(VLOOKUP(BD271,'[1]ID(当院入力シート)'!E:F,2,FALSE)&\"\",\"\")","v":""},null,null,null,null,null,null,126,null,null,null,null,null,null,"／",null,"／",null,"／",null,null,"／","／",null,null,null,null,null,null,null,null,null,null,null,null,null,null,null,null,null,null,null,null,null,null,null,null,null,null,null,null,null,null,"",""]
[254,{"$f":"IFERROR(VLOOKUP(BD272,'[1]ID(当院入力シート)'!E:F,2,FALSE)&\"\",\"\")","v":""},null,null,null,null,null,null,126,null,null,null,null,null,null,"／",null,"／",null,"／",null,null,"／","／",null,null,null,null,null,null,null,null,null,null,null,null,null,null,null,null,null,null,null,null,null,null,null,null,null,null,null,null,null,null,"",""]
[255,{"$f":"IFERROR(VLOOKUP(BD273,'[1]ID(当院入力シート)'!E:F,2,FALSE)&\"\",\"\")","v":""},null,null,null,null,null,null,{"$f":"DATEDIF(H273,$I$14,\"y\")","v":126},null,null,null,null,null,null,"／",null,"／",null,"／",null,null,"／","／",null,null,null,null,null,null,null,null,null,null,null,null,null,null,null,null,null,null,null,null,null,null,null,null,null,null,null,null,null,null,"",""]
[256,{"$f":"IFERROR(VLOOKUP(BD274,'[1]ID(当院入力シート)'!E:F,2,FALSE)&\"\",\"\")","v":""},null,null,null,null,null,null,126,null,null,null,null,null,null,"／",null,"／",null,"／",null,null,"／",{"$f":"TEXT(W274,\"(aaa)\")","v":"／"},null,null,null,null,null,null,null,null,null,null,null,null,null,null,null,null,null,null,null,null,null,null,null,null,null,null,null,null,null,null,"",""]
[257,{"$f":"IFERROR(VLOOKUP(BD275,'[1]ID(当院入力シート)'!E:F,2,FALSE)&\"\",\"\")","v":""},null,null,null,null,null,null,126,null,null,null,null,null,null,"／",null,"／",null,"／",null,null,"／","／",null,null,null,null,null,null,null,null,null,null,null,null,null,null,null,null,null,null,null,null,null,null,null,null,null,null,null,null,null,null,{"$f":"SUBSTITUTE(SUBSTITUTE(E275,\"　\",\"\"),\" \",\"\")","v":""},{"$f":"BC275&H275","v":""}]
[258,{"$f":"IFERROR(VLOOKUP(BD276,'[1]ID(当院入力シート)'!E:F,2,FALSE)&\"\",\"\")","v":""},null,null,null,null,null,null,126,null,null,null,null,null,null,"／",null,"／",null,"／",null,null,"／","／",null,null,null,null,null,null,null,null,null,null,null,null,null,null,null,null,null,null,null,null,null,null,null,null,null,null,null,null,null,null,"",""]
[{"$f":"ROW()-18","v":259},{"$f":"IFERROR(VLOOKUP(BD277,'[1]ID(当院入力シート)'!E:F,2,FALSE)&\"\",\"\")","v":""},null,null,null,null,null,null,126,null,null,null,null,null,null,"／",null,"／",null,"／",null,null,"／","／",null,null,null,null,null,null,null,null,null,null,null,null,null,null,null,null,null,null,null,null,null,null,null,null,null,null,null,null,null,null,"",""]
[260,{"$f":"IFERROR(VLOOKUP(BD278,'[1]ID(当院入力シート)'!E:F,2,FALSE)&\"\",\"\")","v":""},null,null,null,null,null,null,126,null,null,null,null,null,null,"／",null,"／",null,"／",null,null,"／","／",null,null,null,null,null,null,null,null,null,null,null,null,null,null,null,null,null,null,null,null,null,null,null,null,null,null,null,null,null,null,"",""]
[261,{"$f":"IFERROR(VLOOKUP(BD279,'[1]ID(当院入力シート)'!E:F,2,FALSE)&\"\",\"\")","v":""},null,null,null,null,null,null,126,null,null,null,null,null,null,"／",null,"／",null,"／",null,null,"／","／",null,null,null,null,null,null,null,null,null,null,null,null,null,null,null,null,null,null,null,null,null,null,null,null,null,null,null,null,null,null,"",""]
[262,{"$f":"IFERROR(VLOOKUP(BD280,'[1]ID(当院入力シート)'!E:F,2,FALSE)&\"\",\"\")","v":""},null,null,null,null,null,null,126,null,null,null,null,null,null,"／",null,"／",null,"／",null,null,"／","／",null,null,null,null,null,null,null,null,null,null,null,null,null,null,null,null,null,null,null,null,null,null,null,null,null,null,null,null,null,null,"",""]
[263,{"$f":"IFERROR(VLOOKUP(BD281,'[1]ID(当院入力シート)'!E:F,2,FALSE)&\"\",\"\")","v":""},null,null,null,null,null,null,126,null,null,null,null,null,null,"／",null,"／",null,"／",null,null,"／","／",null,null,null,null,null,null,null,null,null,null,null,null,null,null,null,null,null,null,null,null,null,null,null,null,null,null,null,null,null,null,"",""]
[264,{"$f":"IFERROR(VLOOKUP(BD282,'[1]ID(当院入力シート)'!E:F,2,FALSE)&\"\",\"\")","v":""},null,null,null,null,null,null,126,null,null,null,null,null,null,"／",null,"／",null,"／",null,null,"／","／",null,null,null,null,null,null,null,null,null,null,null,null,null,null,null,null,null,null,null,null,null,null,null,null,null,null,null,null,null,null,"",""]
[265,{"$f":"IFERROR(VLOOKUP(BD283,'[1]ID(当院入力シート)'!E:F,2,FALSE)&\"\",\"\")","v":""},null,null,null,null,null,null,126,null,null,null,null,null,null,"／",null,"／",null,"／",null,null,"／","／",null,null,null,null,null,null,null,null,null,null,null,null,null,null,null,null,null,null,null,null,null,null,null,null,null,null,null,null,null,null,"",""]
[266,{"$f":"IFERROR(VLOOKUP(BD284,'[1]ID(当院入力シート)'!E:F,2,FALSE)&\"\",\"\")","v":""},null,null,null,null,null,null,126,null,null,null,null,null,null,"／",null,"／",null,"／",null,null,"／","／",null,null,null,null,null,null,null,null,null,null,null,null,null,null,null,null,null,null,null,null,null,null,null,null,null,null,null,null,null,null,"",""]
[267,{"$f":"IFERROR(VLOOKUP(BD285,'[1]ID(当院入力シート)'!E:F,2,FALSE)&\"\",\"\")","v":""},null,null,null,null,null,null,126,null,null,null,null,null,null,"／",null,"／",null,"／",null,null,"／","／",null,null,null,null,null,null,null,null,null,null,null,null,null,null,null,null,null,null,null,null,null,null,null,null,null,null,null,null,null,null,"",""]
[268,{"$f":"IFERROR(VLOOKUP(BD286,'[1]ID(当院入力シート)'!E:F,2,FALSE)&\"\",\"\")","v":""},null,null,null,null,null,null,126,null,null,null,null,null,null,"／",null,"／",null,"／",null,null,"／","／",null,null,null,null,null,null,null,null,null,null,null,null,null,null,null,null,null,null,null,null,null,null,null,null,null,null,null,null,null,null,"",""]
[269,{"$f":"IFERROR(VLOOKUP(BD287,'[1]ID(当院入力シート)'!E:F,2,FALSE)&\"\",\"\")","v":""},null,null,null,null,null,null,126,null,null,null,null,null,null,"／",null,"／",null,"／",null,null,"／","／",null,null,null,null,null,null,null,null,null,null,null,null,null,null,null,null,null,null,null,null,null,null,null,null,null,null,null,null,null,null,"",""]
[270,{"$f":"IFERROR(VLOOKUP(BD288,'[1]ID(当院入力シート)'!E:F,2,FALSE)&\"\",\"\")","v":""},null,null,null,null,null,null,126,null,null,null,null,null,null,"／",null,"／",null,"／",null,null,"／","／",null,null,null,null,null,null,null,null,null,null,null,null,null,null,null,null,null,null,null,null,null,null,null,null,null,null,null,null,null,null,"",""]
[271,{"$f":"IFERROR(VLOOKUP(BD289,'[1]ID(当院入力シート)'!E:F,2,FALSE)&\"\",\"\")","v":""},null,null,null,null,null,null,126,null,null,null,null,null,null,"／",null,"／",null,"／",null,null,"／","／",null,null,null,null,null,null,null,null,null,null,null,null,null,null,null,null,null,null,null,null,null,null,null,null,null,null,null,null,null,null,"",""]
[272,{"$f":"IFERROR(VLOOKUP(BD290,'[1]ID(当院入力シート)'!E:F,2,FALSE)&\"\",\"\")","v":""},null,null,null,null,null,null,126,null,null,null,null,null,null,"／",null,"／",null,"／",null,null,"／","／",null,null,null,null,null,null,null,null,null,null,null,null,null,null,null,null,null,null,null,null,null,null,null,null,null,null,null,null,null,null,"",""]
[273,{"$f":"IFERROR(VLOOKUP(BD291,'[1]ID(当院入力シート)'!E:F,2,FALSE)&\"\",\"\")","v":""},null,null,null,null,null,null,126,null,null,null,null,null,null,"／",null,"／",null,"／",null,null,"／","／",null,null,null,null,null,null,null,null,null,null,null,null,null,null,null,null,null,null,null,null,null,null,null,null,null,null,null,null,null,null,"",""]
[274,{"$f":"IFERROR(VLOOKUP(BD292,'[1]ID(当院入力シート)'!E:F,2,FALSE)&\"\",\"\")","v":""},null,null,null,null,null,null,126,null,null,null,null,null,null,"／",null,"／",null,"／",null,null,"／","／",null,null,null,null,null,null,null,null,null,null,null,null,null,null,null,null,null,null,null,null,null,null,null,null,null,null,null,null,null,null,"",""]
[275,{"$f":"IFERROR(VLOOKUP(BD293,'[1]ID(当院入力シート)'!E:F,2,FALSE)&\"\",\"\")","v":""},null,null,null,null,null,null,126,null,null,null,null,null,null,"／",null,"／",null,"／",null,null,"／","／",null,null,null,null,null,null,null,null,null,null,null,null,null,null,null,null,null,null,null,null,null,null,null,null,null,null,null,null,null,null,"",""]
[276,{"$f":"IFERROR(VLOOKUP(BD294,'[1]ID(当院入力シート)'!E:F,2,FALSE)&\"\",\"\")","v":""},null,null,null,null,null,null,126,null,null,null,null,null,null,"／",null,"／",null,"／",null,null,"／","／",null,null,null,null,null,null,null,null,null,null,null,null,null,null,null,null,null,null,null,null,null,null,null,null,null,null,null,null,null,null,"",""]
[277,{"$f":"IFERROR(VLOOKUP(BD295,'[1]ID(当院入力シート)'!E:F,2,FALSE)&\"\",\"\")","v":""},null,null,null,null,null,null,126,null,null,null,null,null,null,"／",null,"／",null,"／",null,null,"／","／",null,null,null,null,null,null,null,null,null,null,null,null,null,null,null,null,null,null,null,null,null,null,null,null,null,null,null,null,null,null,"",""]
[278,{"$f":"IFERROR(VLOOKUP(BD296,'[1]ID(当院入力シート)'!E:F,2,FALSE)&\"\",\"\")","v":""},null,null,null,null,null,null,126,null,null,null,null,null,null,"／",null,"／",null,"／",null,null,"／","／",null,null,null,null,null,null,null,null,null,null,null,null,null,null,null,null,null,null,null,null,null,null,null,null,null,null,null,null,null,null,"",""]
[279,{"$f":"IFERROR(VLOOKUP(BD297,'[1]ID(当院入力シート)'!E:F,2,FALSE)&\"\",\"\")","v":""},null,null,null,null,null,null,126,null,null,null,null,null,null,"／",null,"／",null,"／",null,null,"／","／",null,null,null,null,null,null,null,null,null,null,null,null,null,null,null,null,null,null,null,null,null,null,null,null,null,null,null,null,null,null,"",""]
[280,{"$f":"IFERROR(VLOOKUP(BD298,'[1]ID(当院入力シート)'!E:F,2,FALSE)&\"\",\"\")","v":""},null,null,null,null,null,null,126,null,null,null,null,null,null,"／",null,"／",null,"／",null,null,"／","／",null,null,null,null,null,null,null,null,null,null,null,null,null,null,null,null,null,null,null,null,null,null,null,null,null,null,null,null,null,null,"",""]
[281,{"$f":"IFERROR(VLOOKUP(BD299,'[1]ID(当院入力シート)'!E:F,2,FALSE)&\"\",\"\")","v":""},null,null,null,null,null,null,126,null,null,null,null,null,null,"／",null,"／",null,"／",null,null,"／","／",null,null,null,null,null,null,null,null,null,null,null,null,null,null,null,null,null,null,null,null,null,null,null,null,null,null,null,null,null,null,"",""]
[282,{"$f":"IFERROR(VLOOKUP(BD300,'[1]ID(当院入力シート)'!E:F,2,FALSE)&\"\",\"\")","v":""},null,null,null,null,null,null,126,null,null,null,null,null,null,"／",null,"／",null,"／",null,null,"／","／",null,null,null,null,null,null,null,null,null,null,null,null,null,null,null,null,null,null,null,null,null,null,null,null,null,null,null,null,null,null,"",""]
[283,{"$f":"IFERROR(VLOOKUP(BD301,'[1]ID(当院入力シート)'!E:F,2,FALSE)&\"\",\"\")","v":""},null,null,null,null,null,null,126,null,null,null,null,null,null,"／",null,"／",null,"／",null,null,"／","／",null,null,null,null,null,null,null,null,null,null,null,null,null,null,null,null,null,null,null,null,null,null,null,null,null,null,null,null,null,null,"",""]
[284,{"$f":"IFERROR(VLOOKUP(BD302,'[1]ID(当院入力シート)'!E:F,2,FALSE)&\"\",\"\")","v":""},null,null,null,null,null,null,126,null,null,null,null,null,null,"／",null,"／",null,"／",null,null,"／","／",null,null,null,null,null,null,null,null,null,null,null,null,null,null,null,null,null,null,null,null,null,null,null,null,null,null,null,null,null,null,"",""]
[285,{"$f":"IFERROR(VLOOKUP(BD303,'[1]ID(当院入力シート)'!E:F,2,FALSE)&\"\",\"\")","v":""},null,null,null,null,null,null,126,null,null,null,null,null,null,"／",null,"／",null,"／",null,null,"／","／",null,null,null,null,null,null,null,null,null,null,null,null,null,null,null,null,null,null,null,null,null,null,null,null,null,null,null,null,null,null,"",""]
[286,{"$f":"IFERROR(VLOOKUP(BD304,'[1]ID(当院入力シート)'!E:F,2,FALSE)&\"\",\"\")","v":""},null,null,null,null,null,null,126,null,null,null,null,null,null,"／",null,"／",null,"／",null,null,"／","／",null,null,null,null,null,null,null,null,null,null,null,null,null,null,null,null,null,null,null,null,null,null,null,null,null,null,null,null,null,null,"",""]
[287,{"$f":"IFERROR(VLOOKUP(BD305,'[1]ID(当院入力シート)'!E:F,2,FALSE)&\"\",\"\")","v":""},null,null,null,null,null,null,126,null,null,null,null,null,null,"／",null,"／",null,"／",null,null,"／","／",null,null,null,null,null,null,null,null,null,null,null,null,null,null,null,null,null,null,null,null,null,null,null,null,null,null,null,null,null,null,"",""]
[288,{"$f":"IFERROR(VLOOKUP(BD306,'[1]ID(当院入力シート)'!E:F,2,FALSE)&\"\",\"\")","v":""},null,null,null,null,null,null,126,null,null,null,null,null,null,"／",null,"／",null,"／",null,null,"／","／",null,null,null,null,null,null,null,null,null,null,null,null,null,null,null,null,null,null,null,null,null,null,null,null,null,null,null,null,null,null,"",""]
[289,{"$f":"IFERROR(VLOOKUP(BD307,'[1]ID(当院入力シート)'!E:F,2,FALSE)&\"\",\"\")","v":""},null,null,null,null,null,null,126,null,null,null,null,null,null,"／",null,"／",null,"／",null,null,"／","／",null,null,null,null,null,null,null,null,null,null,null,null,null,null,null,null,null,null,null,null,null,null,null,null,null,null,null,null,null,null,"",""]
[290,{"$f":"IFERROR(VLOOKUP(BD308,'[1]ID(当院入力シート)'!E:F,2,FALSE)&\"\",\"\")","v":""},null,null,null,null,null,null,126,null,null,null,null,null,null,"／",null,"／",null,"／",null,null,"／","／",null,null,null,null,null,null,null,null,null,null,null,null,null,null,null,null,null,null,null,null,null,null,null,null,null,null,null,null,null,null,"",""]
[291,{"$f":"IFERROR(VLOOKUP(BD309,'[1]ID(当院入力シート)'!E:F,2,FALSE)&\"\",\"\")","v":""},null,null,null,null,null,null,126,null,null,null,null,null,null,"／",null,"／",null,"／",null,null,"／","／",null,null,null,null,null,null,null,null,null,null,null,null,null,null,null,null,null,null,null,null,null,null,null,null,null,null,null,null,null,null,"",""]
[292,{"$f":"IFERROR(VLOOKUP(BD310,'[1]ID(当院入力シート)'!E:F,2,FALSE)&\"\",\"\")","v":""},null,null,null,null,null,null,126,null,null,null,null,null,null,"／",null,"／",null,"／",null,null,"／","／",null,null,null,null,null,null,null,null,null,null,null,null,null,null,null,null,null,null,null,null,null,null,null,null,null,null,null,null,null,null,"",""]
[293,{"$f":"IFERROR(VLOOKUP(BD311,'[1]ID(当院入力シート)'!E:F,2,FALSE)&\"\",\"\")","v":""},null,null,null,null,null,null,126,null,null,null,null,null,null,"／",null,"／",null,"／",null,null,"／","／",null,null,null,null,null,null,null,null,null,null,null,null,null,null,null,null,null,null,null,null,null,null,null,null,null,null,null,null,null,null,"",""]
[294,{"$f":"IFERROR(VLOOKUP(BD312,'[1]ID(当院入力シート)'!E:F,2,FALSE)&\"\",\"\")","v":""},null,null,null,null,null,null,126,null,null,null,null,null,null,"／",null,"／",null,"／",null,null,"／","／",null,null,null,null,null,null,null,null,null,null,null,null,null,null,null,null,null,null,null,null,null,null,null,null,null,null,null,null,null,null,"",""]
[295,{"$f":"IFERROR(VLOOKUP(BD313,'[1]ID(当院入力シート)'!E:F,2,FALSE)&\"\",\"\")","v":""},null,null,null,null,null,null,126,null,null,null,null,null,null,"／",null,"／",null,"／",null,null,"／","／",null,null,null,null,null,null,null,null,null,null,null,null,null,null,null,null,null,null,null,null,null,null,null,null,null,null,null,null,null,null,"",""]
[296,{"$f":"IFERROR(VLOOKUP(BD314,'[1]ID(当院入力シート)'!E:F,2,FALSE)&\"\",\"\")","v":""},null,null,null,null,null,null,126,null,null,null,null,null,null,"／",null,"／",null,"／",null,null,"／","／",null,null,null,null,null,null,null,null,null,null,null,null,null,null,null,null,null,null,null,null,null,null,null,null,null,null,null,null,null,null,"",""]
[297,{"$f":"IFERROR(VLOOKUP(BD315,'[1]ID(当院入力シート)'!E:F,2,FALSE)&\"\",\"\")","v":""},null,null,null,null,null,null,126,null,null,null,null,null,null,"／",null,"／",null,"／",null,null,"／","／",null,null,null,null,null,null,null,null,null,null,null,null,null,null,null,null,null,null,null,null,null,null,null,null,null,null,null,null,null,null,"",""]
[298,{"$f":"IFERROR(VLOOKUP(BD316,'[1]ID(当院入力シート)'!E:F,2,FALSE)&\"\",\"\")","v":""},null,null,null,null,null,null,126,null,null,null,null,null,null,"／",null,"／",null,"／",null,null,"／","／",null,null,null,null,null,null,null,null,null,null,null,null,null,null,null,null,null,null,null,null,null,null,null,null,null,null,null,null,null,null,"",""]
[299,{"$f":"IFERROR(VLOOKUP(BD317,'[1]ID(当院入力シート)'!E:F,2,FALSE)&\"\",\"\")","v":""},null,null,null,null,null,null,126,null,null,null,null,null,null,"／",null,"／",null,"／",null,null,"／","／",null,null,null,null,null,null,null,null,null,null,null,null,null,null,null,null,null,null,null,null,null,null,null,null,null,null,null,null,null,null,"",""]
[300,{"$f":"IFERROR(VLOOKUP(BD318,'[1]ID(当院入力シート)'!E:F,2,FALSE)&\"\",\"\")","v":""},null,null,null,null,null,null,126,null,null,null,null,null,null,"／",null,"／",null,"／",null,null,"／","／",null,null,null,null,null,null,null,null,null,null,null,null,null,null,null,null,null,null,null,null,null,null,null,null,null,null,null,null,null,null,"",""]
[301,{"$f":"IFERROR(VLOOKUP(BD319,'[1]ID(当院入力シート)'!E:F,2,FALSE)&\"\",\"\")","v":""},null,null,null,null,null,null,126,null,null,null,null,null,null,"／",null,"／",null,"／",null,null,"／","／",null,null,null,null,null,null,null,null,null,null,null,null,null,null,null,null,null,null,null,null,null,null,null,null,null,null,null,null,null,null,"",""]
[302,{"$f":"IFERROR(VLOOKUP(BD320,'[1]ID(当院入力シート)'!E:F,2,FALSE)&\"\",\"\")","v":""},null,null,null,null,null,null,126,null,null,null,null,null,null,"／",null,"／",null,"／",null,null,"／","／",null,null,null,null,null,null,null,null,null,null,null,null,null,null,null,null,null,null,null,null,null,null,null,null,null,null,null,null,null,null,"",""]
[303,{"$f":"IFERROR(VLOOKUP(BD321,'[1]ID(当院入力シート)'!E:F,2,FALSE)&\"\",\"\")","v":""},null,null,null,null,null,null,126,null,null,null,null,null,null,"／",null,"／",null,"／",null,null,"／","／",null,null,null,null,null,null,null,null,null,null,null,null,null,null,null,null,null,null,null,null,null,null,null,null,null,null,null,null,null,null,"",""]
[304,{"$f":"IFERROR(VLOOKUP(BD322,'[1]ID(当院入力シート)'!E:F,2,FALSE)&\"\",\"\")","v":""},null,null,null,null,null,null,126,null,null,null,null,null,null,"／",null,"／",null,"／",null,null,"／","／",null,null,null,null,null,null,null,null,null,null,null,null,null,null,null,null,null,null,null,null,null,null,null,null,null,null,null,null,null,null,"",""]
[305,{"$f":"IFERROR(VLOOKUP(BD323,'[1]ID(当院入力シート)'!E:F,2,FALSE)&\"\",\"\")","v":""},null,null,null,null,null,null,126,null,null,null,null,null,null,"／",null,"／",null,"／",null,null,"／","／",null,null,null,null,null,null,null,null,null,null,null,null,null,null,null,null,null,null,null,null,null,null,null,null,null,null,null,null,null,null,"",""]
[306,{"$f":"IFERROR(VLOOKUP(BD324,'[1]ID(当院入力シート)'!E:F,2,FALSE)&\"\",\"\")","v":""},null,null,null,null,null,null,126,null,null,null,null,null,null,"／",null,"／",null,"／",null,null,"／","／",null,null,null,null,null,null,null,null,null,null,null,null,null,null,null,null,null,null,null,null,null,null,null,null,null,null,null,null,null,null,"",""]
[307,{"$f":"IFERROR(VLOOKUP(BD325,'[1]ID(当院入力シート)'!E:F,2,FALSE)&\"\",\"\")","v":""},null,null,null,null,null,null,126,null,null,null,null,null,null,"／",null,"／",null,"／",null,null,"／","／",null,null,null,null,null,null,null,null,null,null,null,null,null,null,null,null,null,null,null,null,null,null,null,null,null,null,null,null,null,null,"",""]
[308,{"$f":"IFERROR(VLOOKUP(BD326,'[1]ID(当院入力シート)'!E:F,2,FALSE)&\"\",\"\")","v":""},null,null,null,null,null,null,126,null,null,null,null,null,null,"／",null,"／",null,"／",null,null,"／","／",null,null,null,null,null,null,null,null,null,null,null,null,null,null,null,null,null,null,null,null,null,null,null,null,null,null,null,null,null,null,"",""]
[309,{"$f":"IFERROR(VLOOKUP(BD327,'[1]ID(当院入力シート)'!E:F,2,FALSE)&\"\",\"\")","v":""},null,null,null,null,null,null,126,null,null,null,null,null,null,"／",null,"／",null,"／",null,null,"／","／",null,null,null,null,null,null,null,null,null,null,null,null,null,null,null,null,null,null,null,null,null,null,null,null,null,null,null,null,null,null,"",""]
[310,{"$f":"IFERROR(VLOOKUP(BD328,'[1]ID(当院入力シート)'!E:F,2,FALSE)&\"\",\"\")","v":""},null,null,null,null,null,null,126,null,null,null,null,null,null,"／",null,"／",null,"／",null,null,"／","／",null,null,null,null,null,null,null,null,null,null,null,null,null,null,null,null,null,null,null,null,null,null,null,null,null,null,null,null,null,null,"",""]
[311,{"$f":"IFERROR(VLOOKUP(BD329,'[1]ID(当院入力シート)'!E:F,2,FALSE)&\"\",\"\")","v":""},null,null,null,null,null,null,126,null,null,null,null,null,null,"／",null,"／",null,"／",null,null,"／","／",null,null,null,null,null,null,null,null,null,null,null,null,null,null,null,null,null,null,null,null,null,null,null,null,null,null,null,null,null,null,"",""]
[312,{"$f":"IFERROR(VLOOKUP(BD330,'[1]ID(当院入力シート)'!E:F,2,FALSE)&\"\",\"\")","v":""},null,null,null,null,null,null,126,null,null,null,null,null,null,"／",null,"／",null,"／",null,null,"／","／",null,null,null,null,null,null,null,null,null,null,null,null,null,null,null,null,null,null,null,null,null,null,null,null,null,null,null,null,null,null,"",""]
[313,{"$f":"IFERROR(VLOOKUP(BD331,'[1]ID(当院入力シート)'!E:F,2,FALSE)&\"\",\"\")","v":""},null,null,null,null,null,null,126,null,null,null,null,null,null,"／",null,"／",null,"／",null,null,"／","／",null,null,null,null,null,null,null,null,null,null,null,null,null,null,null,null,null,null,null,null,null,null,null,null,null,null,null,null,null,null,"",""]
[314,{"$f":"IFERROR(VLOOKUP(BD332,'[1]ID(当院入力シート)'!E:F,2,FALSE)&\"\",\"\")","v":""},null,null,null,null,null,null,126,null,null,null,null,null,null,"／",null,"／",null,"／",null,null,"／","／",null,null,null,null,null,null,null,null,null,null,null,null,null,null,null,null,null,null,null,null,null,null,null,null,null,null,null,null,null,null,"",""]
[315,{"$f":"IFERROR(VLOOKUP(BD333,'[1]ID(当院入力シート)'!E:F,2,FALSE)&\"\",\"\")","v":""},null,null,null,null,null,null,126,null,null,null,null,null,null,"／",null,"／",null,"／",null,null,"／","／",null,null,null,null,null,null,null,null,null,null,null,null,null,null,null,null,null,null,null,null,null,null,null,null,null,null,null,null,null,null,"",""]
[316,{"$f":"IFERROR(VLOOKUP(BD334,'[1]ID(当院入力シート)'!E:F,2,FALSE)&\"\",\"\")","v":""},null,null,null,null,null,null,126,null,null,null,null,null,null,"／",null,"／",null,"／",null,null,"／","／",null,null,null,null,null,null,null,null,null,null,null,null,null,null,null,null,null,null,null,null,null,null,null,null,null,null,null,null,null,null,"",""]
[317,{"$f":"IFERROR(VLOOKUP(BD335,'[1]ID(当院入力シート)'!E:F,2,FALSE)&\"\",\"\")","v":""},null,null,null,null,null,null,126,null,null,null,null,null,null,"／",null,"／",null,"／",null,null,"／","／",null,null,null,null,null,null,null,null,null,null,null,null,null,null,null,null,null,null,null,null,null,null,null,null,null,null,null,null,null,null,"",""]
[318,{"$f":"IFERROR(VLOOKUP(BD336,'[1]ID(当院入力シート)'!E:F,2,FALSE)&\"\",\"\")","v":""},null,null,null,null,null,null,126,null,null,null,null,null,null,"／",null,"／",null,"／",null,null,"／","／",null,null,null,null,null,null,null,null,null,null,null,null,null,null,null,null,null,null,null,null,null,null,null,null,null,null,null,null,null,null,"",""]
[319,{"$f":"IFERROR(VLOOKUP(BD337,'[1]ID(当院入力シート)'!E:F,2,FALSE)&\"\",\"\")","v":""},null,null,null,null,null,null,{"$f":"DATEDIF(H337,$I$14,\"y\")","v":126},null,null,null,null,null,null,"／",null,"／",null,"／",null,null,"／","／",null,null,null,null,null,null,null,null,null,null,null,null,null,null,null,null,null,null,null,null,null,null,null,null,null,null,null,null,null,null,"",""]
[320,{"$f":"IFERROR(VLOOKUP(BD338,'[1]ID(当院入力シート)'!E:F,2,FALSE)&\"\",\"\")","v":""},null,null,null,null,null,null,126,null,null,null,null,null,null,"／",null,"／",null,"／",null,null,"／",{"$f":"TEXT(W338,\"(aaa)\")","v":"／"},null,null,null,null,null,null,null,null,null,null,null,null,null,null,null,null,null,null,null,null,null,null,null,null,null,null,null,null,null,null,"",""]
[321,{"$f":"IFERROR(VLOOKUP(BD339,'[1]ID(当院入力シート)'!E:F,2,FALSE)&\"\",\"\")","v":""},null,null,null,null,null,null,126,null,null,null,null,null,null,"／",null,"／",null,"／",null,null,"／","／",null,null,null,null,null,null,null,null,null,null,null,null,null,null,null,null,null,null,null,null,null,null,null,null,null,null,null,null,null,null,{"$f":"SUBSTITUTE(SUBSTITUTE(E339,\"　\",\"\"),\" \",\"\")","v":""},{"$f":"BC339&H339","v":""}]
[322,{"$f":"IFERROR(VLOOKUP(BD340,'[1]ID(当院入力シート)'!E:F,2,FALSE)&\"\",\"\")","v":""},null,null,null,null,null,null,126,null,null,null,null,null,null,"／",null,"／",null,"／",null,null,"／","／",null,null,null,null,null,null,null,null,null,null,null,null,null,null,null,null,null,null,null,null,null,null,null,null,null,null,null,null,null,null,"",""]
[{"$f":"ROW()-18","v":323},{"$f":"IFERROR(VLOOKUP(BD341,'[1]ID(当院入力シート)'!E:F,2,FALSE)&\"\",\"\")","v":""},null,null,null,null,null,null,126,null,null,null,null,null,null,"／",null,"／",null,"／",null,null,"／","／",null,null,null,null,null,null,null,null,null,null,null,null,null,null,null,null,null,null,null,null,null,null,null,null,null,null,null,null,null,null,"",""]
[324,{"$f":"IFERROR(VLOOKUP(BD342,'[1]ID(当院入力シート)'!E:F,2,FALSE)&\"\",\"\")","v":""},null,null,null,null,null,null,126,null,null,null,null,null,null,"／",null,"／",null,"／",null,null,"／","／",null,null,null,null,null,null,null,null,null,null,null,null,null,null,null,null,null,null,null,null,null,null,null,null,null,null,null,null,null,null,"",""]
[325,{"$f":"IFERROR(VLOOKUP(BD343,'[1]ID(当院入力シート)'!E:F,2,FALSE)&\"\",\"\")","v":""},null,null,null,null,null,null,126,null,null,null,null,null,null,"／",null,"／",null,"／",null,null,"／","／",null,null,null,null,null,null,null,null,null,null,null,null,null,null,null,null,null,null,null,null,null,null,null,null,null,null,null,null,null,null,"",""]
[326,{"$f":"IFERROR(VLOOKUP(BD344,'[1]ID(当院入力シート)'!E:F,2,FALSE)&\"\",\"\")","v":""},null,null,null,null,null,null,126,null,null,null,null,null,null,"／",null,"／",null,"／",null,null,"／","／",null,null,null,null,null,null,null,null,null,null,null,null,null,null,null,null,null,null,null,null,null,null,null,null,null,null,null,null,null,null,"",""]
[327,{"$f":"IFERROR(VLOOKUP(BD345,'[1]ID(当院入力シート)'!E:F,2,FALSE)&\"\",\"\")","v":""},null,null,null,null,null,null,126,null,null,null,null,null,null,"／",null,"／",null,"／",null,null,"／","／",null,null,null,null,null,null,null,null,null,null,null,null,null,null,null,null,null,null,null,null,null,null,null,null,null,null,null,null,null,null,"",""]
[328,{"$f":"IFERROR(VLOOKUP(BD346,'[1]ID(当院入力シート)'!E:F,2,FALSE)&\"\",\"\")","v":""},null,null,null,null,null,null,126,null,null,null,null,null,null,"／",null,"／",null,"／",null,null,"／","／",null,null,null,null,null,null,null,null,null,null,null,null,null,null,null,null,null,null,null,null,null,null,null,null,null,null,null,null,null,null,"",""]
[329,{"$f":"IFERROR(VLOOKUP(BD347,'[1]ID(当院入力シート)'!E:F,2,FALSE)&\"\",\"\")","v":""},null,null,null,null,null,null,126,null,null,null,null,null,null,"／",null,"／",null,"／",null,null,"／","／",null,null,null,null,null,null,null,null,null,null,null,null,null,null,null,null,null,null,null,null,null,null,null,null,null,null,null,null,null,null,"",""]
[330,{"$f":"IFERROR(VLOOKUP(BD348,'[1]ID(当院入力シート)'!E:F,2,FALSE)&\"\",\"\")","v":""},null,null,null,null,null,null,126,null,null,null,null,null,null,"／",null,"／",null,"／",null,null,"／","／",null,null,null,null,null,null,null,null,null,null,null,null,null,null,null,null,null,null,null,null,null,null,null,null,null,null,null,null,null,null,"",""]
[331,{"$f":"IFERROR(VLOOKUP(BD349,'[1]ID(当院入力シート)'!E:F,2,FALSE)&\"\",\"\")","v":""},null,null,null,null,null,null,126,null,null,null,null,null,null,"／",null,"／",null,"／",null,null,"／","／",null,null,null,null,null,null,null,null,null,null,null,null,null,null,null,null,null,null,null,null,null,null,null,null,null,null,null,null,null,null,"",""]
[332,{"$f":"IFERROR(VLOOKUP(BD350,'[1]ID(当院入力シート)'!E:F,2,FALSE)&\"\",\"\")","v":""},null,null,null,null,null,null,126,null,null,null,null,null,null,"／",null,"／",null,"／",null,null,"／","／",null,null,null,null,null,null,null,null,null,null,null,null,null,null,null,null,null,null,null,null,null,null,null,null,null,null,null,null,null,null,"",""]
[333,{"$f":"IFERROR(VLOOKUP(BD351,'[1]ID(当院入力シート)'!E:F,2,FALSE)&\"\",\"\")","v":""},null,null,null,null,null,null,126,null,null,null,null,null,null,"／",null,"／",null,"／",null,null,"／","／",null,null,null,null,null,null,null,null,null,null,null,null,null,null,null,null,null,null,null,null,null,null,null,null,null,null,null,null,null,null,"",""]
[334,{"$f":"IFERROR(VLOOKUP(BD352,'[1]ID(当院入力シート)'!E:F,2,FALSE)&\"\",\"\")","v":""},null,null,null,null,null,null,126,null,null,null,null,null,null,"／",null,"／",null,"／",null,null,"／","／",null,null,null,null,null,null,null,null,null,null,null,null,null,null,null,null,null,null,null,null,null,null,null,null,null,null,null,null,null,null,"",""]
[335,{"$f":"IFERROR(VLOOKUP(BD353,'[1]ID(当院入力シート)'!E:F,2,FALSE)&\"\",\"\")","v":""},null,null,null,null,null,null,126,null,null,null,null,null,null,"／",null,"／",null,"／",null,null,"／","／",null,null,null,null,null,null,null,null,null,null,null,null,null,null,null,null,null,null,null,null,null,null,null,null,null,null,null,null,null,null,"",""]
[336,{"$f":"IFERROR(VLOOKUP(BD354,'[1]ID(当院入力シート)'!E:F,2,FALSE)&\"\",\"\")","v":""},null,null,null,null,null,null,126,null,null,null,null,null,null,"／",null,"／",null,"／",null,null,"／","／",null,null,null,null,null,null,null,null,null,null,null,null,null,null,null,null,null,null,null,null,null,null,null,null,null,null,null,null,null,null,"",""]
[337,{"$f":"IFERROR(VLOOKUP(BD355,'[1]ID(当院入力シート)'!E:F,2,FALSE)&\"\",\"\")","v":""},null,null,null,null,null,null,126,null,null,null,null,null,null,"／",null,"／",null,"／",null,null,"／","／",null,null,null,null,null,null,null,null,null,null,null,null,null,null,null,null,null,null,null,null,null,null,null,null,null,null,null,null,null,null,"",""]
[338,{"$f":"IFERROR(VLOOKUP(BD356,'[1]ID(当院入力シート)'!E:F,2,FALSE)&\"\",\"\")","v":""},null,null,null,null,null,null,126,null,null,null,null,null,null,"／",null,"／",null,"／",null,null,"／","／",null,null,null,null,null,null,null,null,null,null,null,null,null,null,null,null,null,null,null,null,null,null,null,null,null,null,null,null,null,null,"",""]
[339,{"$f":"IFERROR(VLOOKUP(BD357,'[1]ID(当院入力シート)'!E:F,2,FALSE)&\"\",\"\")","v":""},null,null,null,null,null,null,126,null,null,null,null,null,null,"／",null,"／",null,"／",null,null,"／","／",null,null,null,null,null,null,null,null,null,null,null,null,null,null,null,null,null,null,null,null,null,null,null,null,null,null,null,null,null,null,"",""]
[340,{"$f":"IFERROR(VLOOKUP(BD358,'[1]ID(当院入力シート)'!E:F,2,FALSE)&\"\",\"\")","v":""},null,null,null,null,null,null,126,null,null,null,null,null,null,"／",null,"／",null,"／",null,null,"／","／",null,null,null,null,null,null,null,null,null,null,null,null,null,null,null,null,null,null,null,null,null,null,null,null,null,null,null,null,null,null,"",""]
[341,{"$f":"IFERROR(VLOOKUP(BD359,'[1]ID(当院入力シート)'!E:F,2,FALSE)&\"\",\"\")","v":""},null,null,null,null,null,null,126,null,null,null,null,null,null,"／",null,"／",null,"／",null,null,"／","／",null,null,null,null,null,null,null,null,null,null,null,null,null,null,null,null,null,null,null,null,null,null,null,null,null,null,null,null,null,null,"",""]
[342,{"$f":"IFERROR(VLOOKUP(BD360,'[1]ID(当院入力シート)'!E:F,2,FALSE)&\"\",\"\")","v":""},null,null,null,null,null,null,126,null,null,null,null,null,null,"／",null,"／",null,"／",null,null,"／","／",null,null,null,null,null,null,null,null,null,null,null,null,null,null,null,null,null,null,null,null,null,null,null,null,null,null,null,null,null,null,"",""]
[343,{"$f":"IFERROR(VLOOKUP(BD361,'[1]ID(当院入力シート)'!E:F,2,FALSE)&\"\",\"\")","v":""},null,null,null,null,null,null,126,null,null,null,null,null,null,"／",null,"／",null,"／",null,null,"／","／",null,null,null,null,null,null,null,null,null,null,null,null,null,null,null,null,null,null,null,null,null,null,null,null,null,null,null,null,null,null,"",""]
[344,{"$f":"IFERROR(VLOOKUP(BD362,'[1]ID(当院入力シート)'!E:F,2,FALSE)&\"\",\"\")","v":""},null,null,null,null,null,null,126,null,null,null,null,null,null,"／",null,"／",null,"／",null,null,"／","／",null,null,null,null,null,null,null,null,null,null,null,null,null,null,null,null,null,null,null,null,null,null,null,null,null,null,null,null,null,null,"",""]
[345,{"$f":"IFERROR(VLOOKUP(BD363,'[1]ID(当院入力シート)'!E:F,2,FALSE)&\"\",\"\")","v":""},null,null,null,null,null,null,126,null,null,null,null,null,null,"／",null,"／",null,"／",null,null,"／","／",null,null,null,null,null,null,null,null,null,null,null,null,null,null,null,null,null,null,null,null,null,null,null,null,null,null,null,null,null,null,"",""]
[346,{"$f":"IFERROR(VLOOKUP(BD364,'[1]ID(当院入力シート)'!E:F,2,FALSE)&\"\",\"\")","v":""},null,null,null,null,null,null,126,null,null,null,null,null,null,"／",null,"／",null,"／",null,null,"／","／",null,null,null,null,null,null,null,null,null,null,null,null,null,null,null,null,null,null,null,null,null,null,null,null,null,null,null,null,null,null,"",""]
[347,{"$f":"IFERROR(VLOOKUP(BD365,'[1]ID(当院入力シート)'!E:F,2,FALSE)&\"\",\"\")","v":""},null,null,null,null,null,null,126,null,null,null,null,null,null,"／",null,"／",null,"／",null,null,"／","／",null,null,null,null,null,null,null,null,null,null,null,null,null,null,null,null,null,null,null,null,null,null,null,null,null,null,null,null,null,null,"",""]
[348,{"$f":"IFERROR(VLOOKUP(BD366,'[1]ID(当院入力シート)'!E:F,2,FALSE)&\"\",\"\")","v":""},null,null,null,null,null,null,126,null,null,null,null,null,null,"／",null,"／",null,"／",null,null,"／","／",null,null,null,null,null,null,null,null,null,null,null,null,null,null,null,null,null,null,null,null,null,null,null,null,null,null,null,null,null,null,"",""]
[349,{"$f":"IFERROR(VLOOKUP(BD367,'[1]ID(当院入力シート)'!E:F,2,FALSE)&\"\",\"\")","v":""},null,null,null,null,null,null,126,null,null,null,null,null,null,"／",null,"／",null,"／",null,null,"／","／",null,null,null,null,null,null,null,null,null,null,null,null,null,null,null,null,null,null,null,null,null,null,null,null,null,null,null,null,null,null,"",""]
[350,{"$f":"IFERROR(VLOOKUP(BD368,'[1]ID(当院入力シート)'!E:F,2,FALSE)&\"\",\"\")","v":""},null,null,null,null,null,null,126,null,null,null,null,null,null,"／",null,"／",null,"／",null,null,"／","／",null,null,null,null,null,null,null,null,null,null,null,null,null,null,null,null,null,null,null,null,null,null,null,null,null,null,null,null,null,null,"",""]
[351,{"$f":"IFERROR(VLOOKUP(BD369,'[1]ID(当院入力シート)'!E:F,2,FALSE)&\"\",\"\")","v":""},null,null,null,null,null,null,126,null,null,null,null,null,null,"／",null,"／",null,"／",null,null,"／","／",null,null,null,null,null,null,null,null,null,null,null,null,null,null,null,null,null,null,null,null,null,null,null,null,null,null,null,null,null,null,"",""]
[352,{"$f":"IFERROR(VLOOKUP(BD370,'[1]ID(当院入力シート)'!E:F,2,FALSE)&\"\",\"\")","v":""},null,null,null,null,null,null,126,null,null,null,null,null,null,"／",null,"／",null,"／",null,null,"／","／",null,null,null,null,null,null,null,null,null,null,null,null,null,null,null,null,null,null,null,null,null,null,null,null,null,null,null,null,null,null,"",""]
[353,{"$f":"IFERROR(VLOOKUP(BD371,'[1]ID(当院入力シート)'!E:F,2,FALSE)&\"\",\"\")","v":""},null,null,null,null,null,null,126,null,null,null,null,null,null,"／",null,"／",null,"／",null,null,"／","／",null,null,null,null,null,null,null,null,null,null,null,null,null,null,null,null,null,null,null,null,null,null,null,null,null,null,null,null,null,null,"",""]
[354,{"$f":"IFERROR(VLOOKUP(BD372,'[1]ID(当院入力シート)'!E:F,2,FALSE)&\"\",\"\")","v":""},null,null,null,null,null,null,126,null,null,null,null,null,null,"／",null,"／",null,"／",null,null,"／","／",null,null,null,null,null,null,null,null,null,null,null,null,null,null,null,null,null,null,null,null,null,null,null,null,null,null,null,null,null,null,"",""]
[355,{"$f":"IFERROR(VLOOKUP(BD373,'[1]ID(当院入力シート)'!E:F,2,FALSE)&\"\",\"\")","v":""},null,null,null,null,null,null,126,null,null,null,null,null,null,"／",null,"／",null,"／",null,null,"／","／",null,null,null,null,null,null,null,null,null,null,null,null,null,null,null,null,null,null,null,null,null,null,null,null,null,null,null,null,null,null,"",""]
[356,{"$f":"IFERROR(VLOOKUP(BD374,'[1]ID(当院入力シート)'!E:F,2,FALSE)&\"\",\"\")","v":""},null,null,null,null,null,null,126,null,null,null,null,null,null,"／",null,"／",null,"／",null,null,"／","／",null,null,null,null,null,null,null,null,null,null,null,null,null,null,null,null,null,null,null,null,null,null,null,null,null,null,null,null,null,null,"",""]
[357,{"$f":"IFERROR(VLOOKUP(BD375,'[1]ID(当院入力シート)'!E:F,2,FALSE)&\"\",\"\")","v":""},null,null,null,null,null,null,126,null,null,null,null,null,null,"／",null,"／",null,"／",null,null,"／","／",null,null,null,null,null,null,null,null,null,null,null,null,null,null,null,null,null,null,null,null,null,null,null,null,null,null,null,null,null,null,"",""]
[358,{"$f":"IFERROR(VLOOKUP(BD376,'[1]ID(当院入力シート)'!E:F,2,FALSE)&\"\",\"\")","v":""},null,null,null,null,null,null,126,null,null,null,null,null,null,"／",null,"／",null,"／",null,null,"／","／",null,null,null,null,null,null,null,null,null,null,null,null,null,null,null,null,null,null,null,null,null,null,null,null,null,null,null,null,null,null,"",""]
[359,{"$f":"IFERROR(VLOOKUP(BD377,'[1]ID(当院入力シート)'!E:F,2,FALSE)&\"\",\"\")","v":""},null,null,null,null,null,null,126,null,null,null,null,null,null,"／",null,"／",null,"／",null,null,"／","／",null,null,null,null,null,null,null,null,null,null,null,null,null,null,null,null,null,null,null,null,null,null,null,null,null,null,null,null,null,null,"",""]
[360,{"$f":"IFERROR(VLOOKUP(BD378,'[1]ID(当院入力シート)'!E:F,2,FALSE)&\"\",\"\")","v":""},null,null,null,null,null,null,126,null,null,null,null,null,null,"／",null,"／",null,"／",null,null,"／","／",null,null,null,null,null,null,null,null,null,null,null,null,null,null,null,null,null,null,null,null,null,null,null,null,null,null,null,null,null,null,"",""]
[361,{"$f":"IFERROR(VLOOKUP(BD379,'[1]ID(当院入力シート)'!E:F,2,FALSE)&\"\",\"\")","v":""},null,null,null,null,null,null,126,null,null,null,null,null,null,"／",null,"／",null,"／",null,null,"／","／",null,null,null,null,null,null,null,null,null,null,null,null,null,null,null,null,null,null,null,null,null,null,null,null,null,null,null,null,null,null,"",""]
[362,{"$f":"IFERROR(VLOOKUP(BD380,'[1]ID(当院入力シート)'!E:F,2,FALSE)&\"\",\"\")","v":""},null,null,null,null,null,null,126,null,null,null,null,null,null,"／",null,"／",null,"／",null,null,"／","／",null,null,null,null,null,null,null,null,null,null,null,null,null,null,null,null,null,null,null,null,null,null,null,null,null,null,null,null,null,null,"",""]
[363,{"$f":"IFERROR(VLOOKUP(BD381,'[1]ID(当院入力シート)'!E:F,2,FALSE)&\"\",\"\")","v":""},null,null,null,null,null,null,126,null,null,null,null,null,null,"／",null,"／",null,"／",null,null,"／","／",null,null,null,null,null,null,null,null,null,null,null,null,null,null,null,null,null,null,null,null,null,null,null,null,null,null,null,null,null,null,"",""]
[364,{"$f":"IFERROR(VLOOKUP(BD382,'[1]ID(当院入力シート)'!E:F,2,FALSE)&\"\",\"\")","v":""},null,null,null,null,null,null,126,null,null,null,null,null,null,"／",null,"／",null,"／",null,null,"／","／",null,null,null,null,null,null,null,null,null,null,null,null,null,null,null,null,null,null,null,null,null,null,null,null,null,null,null,null,null,null,"",""]
[365,{"$f":"IFERROR(VLOOKUP(BD383,'[1]ID(当院入力シート)'!E:F,2,FALSE)&\"\",\"\")","v":""},null,null,null,null,null,null,126,null,null,null,null,null,null,"／",null,"／",null,"／",null,null,"／","／",null,null,null,null,null,null,null,null,null,null,null,null,null,null,null,null,null,null,null,null,null,null,null,null,null,null,null,null,null,null,"",""]
[366,{"$f":"IFERROR(VLOOKUP(BD384,'[1]ID(当院入力シート)'!E:F,2,FALSE)&\"\",\"\")","v":""},null,null,null,null,null,null,126,null,null,null,null,null,null,"／",null,"／",null,"／",null,null,"／","／",null,null,null,null,null,null,null,null,null,null,null,null,null,null,null,null,null,null,null,null,null,null,null,null,null,null,null,null,null,null,"",""]
[367,{"$f":"IFERROR(VLOOKUP(BD385,'[1]ID(当院入力シート)'!E:F,2,FALSE)&\"\",\"\")","v":""},null,null,null,null,null,null,126,null,null,null,null,null,null,"／",null,"／",null,"／",null,null,"／","／",null,null,null,null,null,null,null,null,null,null,null,null,null,null,null,null,null,null,null,null,null,null,null,null,null,null,null,null,null,null,"",""]
[368,{"$f":"IFERROR(VLOOKUP(BD386,'[1]ID(当院入力シート)'!E:F,2,FALSE)&\"\",\"\")","v":""},null,null,null,null,null,null,126,null,null,null,null,null,null,"／",null,"／",null,"／",null,null,"／","／",null,null,null,null,null,null,null,null,null,null,null,null,null,null,null,null,null,null,null,null,null,null,null,null,null,null,null,null,null,null,"",""]
[369,{"$f":"IFERROR(VLOOKUP(BD387,'[1]ID(当院入力シート)'!E:F,2,FALSE)&\"\",\"\")","v":""},null,null,null,null,null,null,126,null,null,null,null,null,null,"／",null,"／",null,"／",null,null,"／","／",null,null,null,null,null,null,null,null,null,null,null,null,null,null,null,null,null,null,null,null,null,null,null,null,null,null,null,null,null,null,"",""]
[370,{"$f":"IFERROR(VLOOKUP(BD388,'[1]ID(当院入力シート)'!E:F,2,FALSE)&\"\",\"\")","v":""},null,null,null,null,null,null,126,null,null,null,null,null,null,"／",null,"／",null,"／",null,null,"／","／",null,null,null,null,null,null,null,null,null,null,null,null,null,null,null,null,null,null,null,null,null,null,null,null,null,null,null,null,null,null,"",""]
[371,{"$f":"IFERROR(VLOOKUP(BD389,'[1]ID(当院入力シート)'!E:F,2,FALSE)&\"\",\"\")","v":""},null,null,null,null,null,null,126,null,null,null,null,null,null,"／",null,"／",null,"／",null,null,"／","／",null,null,null,null,null,null,null,null,null,null,null,null,null,null,null,null,null,null,null,null,null,null,null,null,null,null,null,null,null,null,"",""]
[372,{"$f":"IFERROR(VLOOKUP(BD390,'[1]ID(当院入力シート)'!E:F,2,FALSE)&\"\",\"\")","v":""},null,null,null,null,null,null,126,null,null,null,null,null,null,"／",null,"／",null,"／",null,null,"／","／",null,null,null,null,null,null,null,null,null,null,null,null,null,null,null,null,null,null,null,null,null,null,null,null,null,null,null,null,null,null,"",""]
[373,{"$f":"IFERROR(VLOOKUP(BD391,'[1]ID(当院入力シート)'!E:F,2,FALSE)&\"\",\"\")","v":""},null,null,null,null,null,null,126,null,null,null,null,null,null,"／",null,"／",null,"／",null,null,"／","／",null,null,null,null,null,null,null,null,null,null,null,null,null,null,null,null,null,null,null,null,null,null,null,null,null,null,null,null,null,null,"",""]
[374,{"$f":"IFERROR(VLOOKUP(BD392,'[1]ID(当院入力シート)'!E:F,2,FALSE)&\"\",\"\")","v":""},null,null,null,null,null,null,126,null,null,null,null,null,null,"／",null,"／",null,"／",null,null,"／","／",null,null,null,null,null,null,null,null,null,null,null,null,null,null,null,null,null,null,null,null,null,null,null,null,null,null,null,null,null,null,"",""]
[375,{"$f":"IFERROR(VLOOKUP(BD393,'[1]ID(当院入力シート)'!E:F,2,FALSE)&\"\",\"\")","v":""},null,null,null,null,null,null,126,null,null,null,null,null,null,"／",null,"／",null,"／",null,null,"／","／",null,null,null,null,null,null,null,null,null,null,null,null,null,null,null,null,null,null,null,null,null,null,null,null,null,null,null,null,null,null,"",""]
[376,{"$f":"IFERROR(VLOOKUP(BD394,'[1]ID(当院入力シート)'!E:F,2,FALSE)&\"\",\"\")","v":""},null,null,null,null,null,null,126,null,null,null,null,null,null,"／",null,"／",null,"／",null,null,"／","／",null,null,null,null,null,null,null,null,null,null,null,null,null,null,null,null,null,null,null,null,null,null,null,null,null,null,null,null,null,null,"",""]
[377,{"$f":"IFERROR(VLOOKUP(BD395,'[1]ID(当院入力シート)'!E:F,2,FALSE)&\"\",\"\")","v":""},null,null,null,null,null,null,126,null,null,null,null,null,null,"／",null,"／",null,"／",null,null,"／","／",null,null,null,null,null,null,null,null,null,null,null,null,null,null,null,null,null,null,null,null,null,null,null,null,null,null,null,null,null,null,"",""]
[378,{"$f":"IFERROR(VLOOKUP(BD396,'[1]ID(当院入力シート)'!E:F,2,FALSE)&\"\",\"\")","v":""},null,null,null,null,null,null,126,null,null,null,null,null,null,"／",null,"／",null,"／",null,null,"／","／",null,null,null,null,null,null,null,null,null,null,null,null,null,null,null,null,null,null,null,null,null,null,null,null,null,null,null,null,null,null,"",""]
[379,{"$f":"IFERROR(VLOOKUP(BD397,'[1]ID(当院入力シート)'!E:F,2,FALSE)&\"\",\"\")","v":""},null,null,null,null,null,null,126,null,null,null,null,null,null,"／",null,"／",null,"／",null,null,"／","／",null,null,null,null,null,null,null,null,null,null,null,null,null,null,null,null,null,null,null,null,null,null,null,null,null,null,null,null,null,null,"",""]
[380,{"$f":"IFERROR(VLOOKUP(BD398,'[1]ID(当院入力シート)'!E:F,2,FALSE)&\"\",\"\")","v":""},null,null,null,null,null,null,126,null,null,null,null,null,null,"／",null,"／",null,"／",null,null,"／","／",null,null,null,null,null,null,null,null,null,null,null,null,null,null,null,null,null,null,null,null,null,null,null,null,null,null,null,null,null,null,"",""]
[381,{"$f":"IFERROR(VLOOKUP(BD399,'[1]ID(当院入力シート)'!E:F,2,FALSE)&\"\",\"\")","v":""},null,null,null,null,null,null,126,null,null,null,null,null,null,"／",null,"／",null,"／",null,null,"／","／",null,null,null,null,null,null,null,null,null,null,null,null,null,null,null,null,null,null,null,null,null,null,null,null,null,null,null,null,null,null,"",""]
[382,{"$f":"IFERROR(VLOOKUP(BD400,'[1]ID(当院入力シート)'!E:F,2,FALSE)&\"\",\"\")","v":""},null,null,null,null,null,null,126,null,null,null,null,null,null,"／",null,"／",null,"／",null,null,"／","／",null,null,null,null,null,null,null,null,null,null,null,null,null,null,null,null,null,null,null,null,null,null,null,null,null,null,null,null,null,null,"",""]
[383,{"$f":"IFERROR(VLOOKUP(BD401,'[1]ID(当院入力シート)'!E:F,2,FALSE)&\"\",\"\")","v":""},null,null,null,null,null,null,{"$f":"DATEDIF(H401,$I$14,\"y\")","v":126},null,null,null,null,null,null,"／",null,"／",null,"／",null,null,"／","／",null,null,null,null,null,null,null,null,null,null,null,null,null,null,null,null,null,null,null,null,null,null,null,null,null,null,null,null,null,null,"",""]
[384,{"$f":"IFERROR(VLOOKUP(BD402,'[1]ID(当院入力シート)'!E:F,2,FALSE)&\"\",\"\")","v":""},null,null,null,null,null,null,126,null,null,null,null,null,null,"／",null,"／",null,"／",null,null,"／",{"$f":"TEXT(W402,\"(aaa)\")","v":"／"},null,null,null,null,null,null,null,null,null,null,null,null,null,null,null,null,null,null,null,null,null,null,null,null,null,null,null,null,null,null,"",""]
[385,{"$f":"IFERROR(VLOOKUP(BD403,'[1]ID(当院入力シート)'!E:F,2,FALSE)&\"\",\"\")","v":""},null,null,null,null,null,null,126,null,null,null,null,null,null,"／",null,"／",null,"／",null,null,"／","／",null,null,null,null,null,null,null,null,null,null,null,null,null,null,null,null,null,null,null,null,null,null,null,null,null,null,null,null,null,null,{"$f":"SUBSTITUTE(SUBSTITUTE(E403,\"　\",\"\"),\" \",\"\")","v":""},{"$f":"BC403&H403","v":""}]
[386,{"$f":"IFERROR(VLOOKUP(BD404,'[1]ID(当院入力シート)'!E:F,2,FALSE)&\"\",\"\")","v":""},null,null,null,null,null,null,126,null,null,null,null,null,null,"／",null,"／",null,"／",null,null,"／","／",null,null,null,null,null,null,null,null,null,null,null,null,null,null,null,null,null,null,null,null,null,null,null,null,null,null,null,null,null,null,"",""]
[{"$f":"ROW()-18","v":387},{"$f":"IFERROR(VLOOKUP(BD405,'[1]ID(当院入力シート)'!E:F,2,FALSE)&\"\",\"\")","v":""},null,null,null,null,null,null,126,null,null,null,null,null,null,"／",null,"／",null,"／",null,null,"／","／",null,null,null,null,null,null,null,null,null,null,null,null,null,null,null,null,null,null,null,null,null,null,null,null,null,null,null,null,null,null,"",""]
[388,{"$f":"IFERROR(VLOOKUP(BD406,'[1]ID(当院入力シート)'!E:F,2,FALSE)&\"\",\"\")","v":""},null,null,null,null,null,null,126,null,null,null,null,null,null,"／",null,"／",null,"／",null,null,"／","／",null,null,null,null,null,null,null,null,null,null,null,null,null,null,null,null,null,null,null,null,null,null,null,null,null,null,null,null,null,null,"",""]
[389,{"$f":"IFERROR(VLOOKUP(BD407,'[1]ID(当院入力シート)'!E:F,2,FALSE)&\"\",\"\")","v":""},null,null,null,null,null,null,126,null,null,null,null,null,null,"／",null,"／",null,"／",null,null,"／","／",null,null,null,null,null,null,null,null,null,null,null,null,null,null,null,null,null,null,null,null,null,null,null,null,null,null,null,null,null,null,"",""]
[390,{"$f":"IFERROR(VLOOKUP(BD408,'[1]ID(当院入力シート)'!E:F,2,FALSE)&\"\",\"\")","v":""},null,null,null,null,null,null,126,null,null,null,null,null,null,"／",null,"／",null,"／",null,null,"／","／",null,null,null,null,null,null,null,null,null,null,null,null,null,null,null,null,null,null,null,null,null,null,null,null,null,null,null,null,null,null,"",""]
[391,{"$f":"IFERROR(VLOOKUP(BD409,'[1]ID(当院入力シート)'!E:F,2,FALSE)&\"\",\"\")","v":""},null,null,null,null,null,null,126,null,null,null,null,null,null,"／",null,"／",null,"／",null,null,"／","／",null,null,null,null,null,null,null,null,null,null,null,null,null,null,null,null,null,null,null,null,null,null,null,null,null,null,null,null,null,null,"",""]
[392,{"$f":"IFERROR(VLOOKUP(BD410,'[1]ID(当院入力シート)'!E:F,2,FALSE)&\"\",\"\")","v":""},null,null,null,null,null,null,126,null,null,null,null,null,null,"／",null,"／",null,"／",null,null,"／","／",null,null,null,null,null,null,null,null,null,null,null,null,null,null,null,null,null,null,null,null,null,null,null,null,null,null,null,null,null,null,"",""]
[393,{"$f":"IFERROR(VLOOKUP(BD411,'[1]ID(当院入力シート)'!E:F,2,FALSE)&\"\",\"\")","v":""},null,null,null,null,null,null,126,null,null,null,null,null,null,"／",null,"／",null,"／",null,null,"／","／",null,null,null,null,null,null,null,null,null,null,null,null,null,null,null,null,null,null,null,null,null,null,null,null,null,null,null,null,null,null,"",""]
[394,{"$f":"IFERROR(VLOOKUP(BD412,'[1]ID(当院入力シート)'!E:F,2,FALSE)&\"\",\"\")","v":""},null,null,null,null,null,null,126,null,null,null,null,null,null,"／",null,"／",null,"／",null,null,"／","／",null,null,null,null,null,null,null,null,null,null,null,null,null,null,null,null,null,null,null,null,null,null,null,null,null,null,null,null,null,null,"",""]
[395,{"$f":"IFERROR(VLOOKUP(BD413,'[1]ID(当院入力シート)'!E:F,2,FALSE)&\"\",\"\")","v":""},null,null,null,null,null,null,126,null,null,null,null,null,null,"／",null,"／",null,"／",null,null,"／","／",null,null,null,null,null,null,null,null,null,null,null,null,null,null,null,null,null,null,null,null,null,null,null,null,null,null,null,null,null,null,"",""]
[396,{"$f":"IFERROR(VLOOKUP(BD414,'[1]ID(当院入力シート)'!E:F,2,FALSE)&\"\",\"\")","v":""},null,null,null,null,null,null,126,null,null,null,null,null,null,"／",null,"／",null,"／",null,null,"／","／",null,null,null,null,null,null,null,null,null,null,null,null,null,null,null,null,null,null,null,null,null,null,null,null,null,null,null,null,null,null,"",""]
[397,{"$f":"IFERROR(VLOOKUP(BD415,'[1]ID(当院入力シート)'!E:F,2,FALSE)&\"\",\"\")","v":""},null,null,null,null,null,null,126,null,null,null,null,null,null,"／",null,"／",null,"／",null,null,"／","／",null,null,null,null,null,null,null,null,null,null,null,null,null,null,null,null,null,null,null,null,null,null,null,null,null,null,null,null,null,null,"",""]
[398,{"$f":"IFERROR(VLOOKUP(BD416,'[1]ID(当院入力シート)'!E:F,2,FALSE)&\"\",\"\")","v":""},null,null,null,null,null,null,126,null,null,null,null,null,null,"／",null,"／",null,"／",null,null,"／","／",null,null,null,null,null,null,null,null,null,null,null,null,null,null,null,null,null,null,null,null,null,null,null,null,null,null,null,null,null,null,"",""]
[399,{"$f":"IFERROR(VLOOKUP(BD417,'[1]ID(当院入力シート)'!E:F,2,FALSE)&\"\",\"\")","v":""},null,null,null,null,null,null,126,null,null,null,null,null,null,"／",null,"／",null,"／",null,null,"／","／",null,null,null,null,null,null,null,null,null,null,null,null,null,null,null,null,null,null,null,null,null,null,null,null,null,null,null,null,null,null,"",""]
[400,{"$f":"IFERROR(VLOOKUP(BD418,'[1]ID(当院入力シート)'!E:F,2,FALSE)&\"\",\"\")","v":""},null,null,null,null,null,null,126,null,null,null,null,null,null,"／",null,"／",null,"／",null,null,"／","／",null,null,null,null,null,null,null,null,null,null,null,null,null,null,null,null,null,null,null,null,null,null,null,null,null,null,null,null,null,null,"",""]
[401,{"$f":"IFERROR(VLOOKUP(BD419,'[1]ID(当院入力シート)'!E:F,2,FALSE)&\"\",\"\")","v":""},null,null,null,null,null,null,126,null,null,null,null,null,null,"／",null,"／",null,"／",null,null,"／","／",null,null,null,null,null,null,null,null,null,null,null,null,null,null,null,null,null,null,null,null,null,null,null,null,null,null,null,null,null,null,"",""]
[402,{"$f":"IFERROR(VLOOKUP(BD420,'[1]ID(当院入力シート)'!E:F,2,FALSE)&\"\",\"\")","v":""},null,null,null,null,null,null,126,null,null,null,null,null,null,"／",null,"／",null,"／",null,null,"／","／",null,null,null,null,null,null,null,null,null,null,null,null,null,null,null,null,null,null,null,null,null,null,null,null,null,null,null,null,null,null,"",""]
[403,{"$f":"IFERROR(VLOOKUP(BD421,'[1]ID(当院入力シート)'!E:F,2,FALSE)&\"\",\"\")","v":""},null,null,null,null,null,null,126,null,null,null,null,null,null,"／",null,"／",null,"／",null,null,"／","／",null,null,null,null,null,null,null,null,null,null,null,null,null,null,null,null,null,null,null,null,null,null,null,null,null,null,null,null,null,null,"",""]
[404,{"$f":"IFERROR(VLOOKUP(BD422,'[1]ID(当院入力シート)'!E:F,2,FALSE)&\"\",\"\")","v":""},null,null,null,null,null,null,126,null,null,null,null,null,null,"／",null,"／",null,"／",null,null,"／","／",null,null,null,null,null,null,null,null,null,null,null,null,null,null,null,null,null,null,null,null,null,null,null,null,null,null,null,null,null,null,"",""]
[405,{"$f":"IFERROR(VLOOKUP(BD423,'[1]ID(当院入力シート)'!E:F,2,FALSE)&\"\",\"\")","v":""},null,null,null,null,null,null,126,null,null,null,null,null,null,"／",null,"／",null,"／",null,null,"／","／",null,null,null,null,null,null,null,null,null,null,null,null,null,null,null,null,null,null,null,null,null,null,null,null,null,null,null,null,null,null,"",""]
[406,{"$f":"IFERROR(VLOOKUP(BD424,'[1]ID(当院入力シート)'!E:F,2,FALSE)&\"\",\"\")","v":""},null,null,null,null,null,null,126,null,null,null,null,null,null,"／",null,"／",null,"／",null,null,"／","／",null,null,null,null,null,null,null,null,null,null,null,null,null,null,null,null,null,null,null,null,null,null,null,null,null,null,null,null,null,null,"",""]
[407,{"$f":"IFERROR(VLOOKUP(BD425,'[1]ID(当院入力シート)'!E:F,2,FALSE)&\"\",\"\")","v":""},null,null,null,null,null,null,126,null,null,null,null,null,null,"／",null,"／",null,"／",null,null,"／","／",null,null,null,null,null,null,null,null,null,null,null,null,null,null,null,null,null,null,null,null,null,null,null,null,null,null,null,null,null,null,"",""]
[408,{"$f":"IFERROR(VLOOKUP(BD426,'[1]ID(当院入力シート)'!E:F,2,FALSE)&\"\",\"\")","v":""},null,null,null,null,null,null,126,null,null,null,null,null,null,"／",null,"／",null,"／",null,null,"／","／",null,null,null,null,null,null,null,null,null,null,null,null,null,null,null,null,null,null,null,null,null,null,null,null,null,null,null,null,null,null,"",""]
[409,{"$f":"IFERROR(VLOOKUP(BD427,'[1]ID(当院入力シート)'!E:F,2,FALSE)&\"\",\"\")","v":""},null,null,null,null,null,null,126,null,null,null,null,null,null,"／",null,"／",null,"／",null,null,"／","／",null,null,null,null,null,null,null,null,null,null,null,null,null,null,null,null,null,null,null,null,null,null,null,null,null,null,null,null,null,null,"",""]
[410,{"$f":"IFERROR(VLOOKUP(BD428,'[1]ID(当院入力シート)'!E:F,2,FALSE)&\"\",\"\")","v":""},null,null,null,null,null,null,126,null,null,null,null,null,null,"／",null,"／",null,"／",null,null,"／","／",null,null,null,null,null,null,null,null,null,null,null,null,null,null,null,null,null,null,null,null,null,null,null,null,null,null,null,null,null,null,"",""]
[411,{"$f":"IFERROR(VLOOKUP(BD429,'[1]ID(当院入力シート)'!E:F,2,FALSE)&\"\",\"\")","v":""},null,null,null,null,null,null,126,null,null,null,null,null,null,"／",null,"／",null,"／",null,null,"／","／",null,null,null,null,null,null,null,null,null,null,null,null,null,null,null,null,null,null,null,null,null,null,null,null,null,null,null,null,null,null,"",""]
[412,{"$f":"IFERROR(VLOOKUP(BD430,'[1]ID(当院入力シート)'!E:F,2,FALSE)&\"\",\"\")","v":""},null,null,null,null,null,null,126,null,null,null,null,null,null,"／",null,"／",null,"／",null,null,"／","／",null,null,null,null,null,null,null,null,null,null,null,null,null,null,null,null,null,null,null,null,null,null,null,null,null,null,null,null,null,null,"",""]
[413,{"$f":"IFERROR(VLOOKUP(BD431,'[1]ID(当院入力シート)'!E:F,2,FALSE)&\"\",\"\")","v":""},null,null,null,null,null,null,126,null,null,null,null,null,null,"／",null,"／",null,"／",null,null,"／","／",null,null,null,null,null,null,null,null,null,null,null,null,null,null,null,null,null,null,null,null,null,null,null,null,null,null,null,null,null,null,"",""]
[414,{"$f":"IFERROR(VLOOKUP(BD432,'[1]ID(当院入力シート)'!E:F,2,FALSE)&\"\",\"\")","v":""},null,null,null,null,null,null,126,null,null,null,null,null,null,"／",null,"／",null,"／",null,null,"／","／",null,null,null,null,null,null,null,null,null,null,null,null,null,null,null,null,null,null,null,null,null,null,null,null,null,null,null,null,null,null,"",""]
[415,{"$f":"IFERROR(VLOOKUP(BD433,'[1]ID(当院入力シート)'!E:F,2,FALSE)&\"\",\"\")","v":""},null,null,null,null,null,null,126,null,null,null,null,null,null,"／",null,"／",null,"／",null,null,"／","／",null,null,null,null,null,null,null,null,null,null,null,null,null,null,null,null,null,null,null,null,null,null,null,null,null,null,null,null,null,null,"",""]
[416,{"$f":"IFERROR(VLOOKUP(BD434,'[1]ID(当院入力シート)'!E:F,2,FALSE)&\"\",\"\")","v":""},null,null,null,null,null,null,126,null,null,null,null,null,null,"／",null,"／",null,"／",null,null,"／","／",null,null,null,null,null,null,null,null,null,null,null,null,null,null,null,null,null,null,null,null,null,null,null,null,null,null,null,null,null,null,"",""]
[417,{"$f":"IFERROR(VLOOKUP(BD435,'[1]ID(当院入力シート)'!E:F,2,FALSE)&\"\",\"\")","v":""},null,null,null,null,null,null,126,null,null,null,null,null,null,"／",null,"／",null,"／",null,null,"／","／",null,null,null,null,null,null,null,null,null,null,null,null,null,null,null,null,null,null,null,null,null,null,null,null,null,null,null,null,null,null,"",""]
[418,{"$f":"IFERROR(VLOOKUP(BD436,'[1]ID(当院入力シート)'!E:F,2,FALSE)&\"\",\"\")","v":""},null,null,null,null,null,null,126,null,null,null,null,null,null,"／",null,"／",null,"／",null,null,"／","／",null,null,null,null,null,null,null,null,null,null,null,null,null,null,null,null,null,null,null,null,null,null,null,null,null,null,null,null,null,null,"",""]
[419,{"$f":"IFERROR(VLOOKUP(BD437,'[1]ID(当院入力シート)'!E:F,2,FALSE)&\"\",\"\")","v":""},null,null,null,null,null,null,126,null,null,null,null,null,null,"／",null,"／",null,"／",null,null,"／","／",null,null,null,null,null,null,null,null,null,null,null,null,null,null,null,null,null,null,null,null,null,null,null,null,null,null,null,null,null,null,"",""]
[420,{"$f":"IFERROR(VLOOKUP(BD438,'[1]ID(当院入力シート)'!E:F,2,FALSE)&\"\",\"\")","v":""},null,null,null,null,null,null,126,null,null,null,null,null,null,"／",null,"／",null,"／",null,null,"／","／",null,null,null,null,null,null,null,null,null,null,null,null,null,null,null,null,null,null,null,null,null,null,null,null,null,null,null,null,null,null,"",""]
[421,{"$f":"IFERROR(VLOOKUP(BD439,'[1]ID(当院入力シート)'!E:F,2,FALSE)&\"\",\"\")","v":""},null,null,null,null,null,null,126,null,null,null,null,null,null,"／",null,"／",null,"／",null,null,"／","／",null,null,null,null,null,null,null,null,null,null,null,null,null,null,null,null,null,null,null,null,null,null,null,null,null,null,null,null,null,null,"",""]
[422,{"$f":"IFERROR(VLOOKUP(BD440,'[1]ID(当院入力シート)'!E:F,2,FALSE)&\"\",\"\")","v":""},null,null,null,null,null,null,126,null,null,null,null,null,null,"／",null,"／",null,"／",null,null,"／","／",null,null,null,null,null,null,null,null,null,null,null,null,null,null,null,null,null,null,null,null,null,null,null,null,null,null,null,null,null,null,"",""]
[423,{"$f":"IFERROR(VLOOKUP(BD441,'[1]ID(当院入力シート)'!E:F,2,FALSE)&\"\",\"\")","v":""},null,null,null,null,null,null,126,null,null,null,null,null,null,"／",null,"／",null,"／",null,null,"／","／",null,null,null,null,null,null,null,null,null,null,null,null,null,null,null,null,null,null,null,null,null,null,null,null,null,null,null,null,null,null,"",""]
[424,{"$f":"IFERROR(VLOOKUP(BD442,'[1]ID(当院入力シート)'!E:F,2,FALSE)&\"\",\"\")","v":""},null,null,null,null,null,null,126,null,null,null,null,null,null,"／",null,"／",null,"／",null,null,"／","／",null,null,null,null,null,null,null,null,null,null,null,null,null,null,null,null,null,null,null,null,null,null,null,null,null,null,null,null,null,null,"",""]
[425,{"$f":"IFERROR(VLOOKUP(BD443,'[1]ID(当院入力シート)'!E:F,2,FALSE)&\"\",\"\")","v":""},null,null,null,null,null,null,126,null,null,null,null,null,null,"／",null,"／",null,"／",null,null,"／","／",null,null,null,null,null,null,null,null,null,null,null,null,null,null,null,null,null,null,null,null,null,null,null,null,null,null,null,null,null,null,"",""]
[426,{"$f":"IFERROR(VLOOKUP(BD444,'[1]ID(当院入力シート)'!E:F,2,FALSE)&\"\",\"\")","v":""},null,null,null,null,null,null,126,null,null,null,null,null,null,"／",null,"／",null,"／",null,null,"／","／",null,null,null,null,null,null,null,null,null,null,null,null,null,null,null,null,null,null,null,null,null,null,null,null,null,null,null,null,null,null,"",""]
[427,{"$f":"IFERROR(VLOOKUP(BD445,'[1]ID(当院入力シート)'!E:F,2,FALSE)&\"\",\"\")","v":""},null,null,null,null,null,null,126,null,null,null,null,null,null,"／",null,"／",null,"／",null,null,"／","／",null,null,null,null,null,null,null,null,null,null,null,null,null,null,null,null,null,null,null,null,null,null,null,null,null,null,null,null,null,null,"",""]
[428,{"$f":"IFERROR(VLOOKUP(BD446,'[1]ID(当院入力シート)'!E:F,2,FALSE)&\"\",\"\")","v":""},null,null,null,null,null,null,126,null,null,null,null,null,null,"／",null,"／",null,"／",null,null,"／","／",null,null,null,null,null,null,null,null,null,null,null,null,null,null,null,null,null,null,null,null,null,null,null,null,null,null,null,null,null,null,"",""]
[429,{"$f":"IFERROR(VLOOKUP(BD447,'[1]ID(当院入力シート)'!E:F,2,FALSE)&\"\",\"\")","v":""},null,null,null,null,null,null,126,null,null,null,null,null,null,"／",null,"／",null,"／",null,null,"／","／",null,null,null,null,null,null,null,null,null,null,null,null,null,null,null,null,null,null,null,null,null,null,null,null,null,null,null,null,null,null,"",""]
[430,{"$f":"IFERROR(VLOOKUP(BD448,'[1]ID(当院入力シート)'!E:F,2,FALSE)&\"\",\"\")","v":""},null,null,null,null,null,null,126,null,null,null,null,null,null,"／",null,"／",null,"／",null,null,"／","／",null,null,null,null,null,null,null,null,null,null,null,null,null,null,null,null,null,null,null,null,null,null,null,null,null,null,null,null,null,null,"",""]
[431,{"$f":"IFERROR(VLOOKUP(BD449,'[1]ID(当院入力シート)'!E:F,2,FALSE)&\"\",\"\")","v":""},null,null,null,null,null,null,126,null,null,null,null,null,null,"／",null,"／",null,"／",null,null,"／","／",null,null,null,null,null,null,null,null,null,null,null,null,null,null,null,null,null,null,null,null,null,null,null,null,null,null,null,null,null,null,"",""]
[432,{"$f":"IFERROR(VLOOKUP(BD450,'[1]ID(当院入力シート)'!E:F,2,FALSE)&\"\",\"\")","v":""},null,null,null,null,null,null,126,null,null,null,null,null,null,"／",null,"／",null,"／",null,null,"／","／",null,null,null,null,null,null,null,null,null,null,null,null,null,null,null,null,null,null,null,null,null,null,null,null,null,null,null,null,null,null,"",""]
[433,{"$f":"IFERROR(VLOOKUP(BD451,'[1]ID(当院入力シート)'!E:F,2,FALSE)&\"\",\"\")","v":""},null,null,null,null,null,null,126,null,null,null,null,null,null,"／",null,"／",null,"／",null,null,"／","／",null,null,null,null,null,null,null,null,null,null,null,null,null,null,null,null,null,null,null,null,null,null,null,null,null,null,null,null,null,null,"",""]
[434,{"$f":"IFERROR(VLOOKUP(BD452,'[1]ID(当院入力シート)'!E:F,2,FALSE)&\"\",\"\")","v":""},null,null,null,null,null,null,126,null,null,null,null,null,null,"／",null,"／",null,"／",null,null,"／","／",null,null,null,null,null,null,null,null,null,null,null,null,null,null,null,null,null,null,null,null,null,null,null,null,null,null,null,null,null,null,"",""]
[435,{"$f":"IFERROR(VLOOKUP(BD453,'[1]ID(当院入力シート)'!E:F,2,FALSE)&\"\",\"\")","v":""},null,null,null,null,null,null,126,null,null,null,null,null,null,"／",null,"／",null,"／",null,null,"／","／",null,null,null,null,null,null,null,null,null,null,null,null,null,null,null,null,null,null,null,null,null,null,null,null,null,null,null,null,null,null,"",""]
[436,{"$f":"IFERROR(VLOOKUP(BD454,'[1]ID(当院入力シート)'!E:F,2,FALSE)&\"\",\"\")","v":""},null,null,null,null,null,null,126,null,null,null,null,null,null,"／",null,"／",null,"／",null,null,"／","／",null,null,null,null,null,null,null,null,null,null,null,null,null,null,null,null,null,null,null,null,null,null,null,null,null,null,null,null,null,null,"",""]
[437,{"$f":"IFERROR(VLOOKUP(BD455,'[1]ID(当院入力シート)'!E:F,2,FALSE)&\"\",\"\")","v":""},null,null,null,null,null,null,126,null,null,null,null,null,null,"／",null,"／",null,"／",null,null,"／","／",null,null,null,null,null,null,null,null,null,null,null,null,null,null,null,null,null,null,null,null,null,null,null,null,null,null,null,null,null,null,"",""]
[438,{"$f":"IFERROR(VLOOKUP(BD456,'[1]ID(当院入力シート)'!E:F,2,FALSE)&\"\",\"\")","v":""},null,null,null,null,null,null,126,null,null,null,null,null,null,"／",null,"／",null,"／",null,null,"／","／",null,null,null,null,null,null,null,null,null,null,null,null,null,null,null,null,null,null,null,null,null,null,null,null,null,null,null,null,null,null,"",""]
[439,{"$f":"IFERROR(VLOOKUP(BD457,'[1]ID(当院入力シート)'!E:F,2,FALSE)&\"\",\"\")","v":""},null,null,null,null,null,null,126,null,null,null,null,null,null,"／",null,"／",null,"／",null,null,"／","／",null,null,null,null,null,null,null,null,null,null,null,null,null,null,null,null,null,null,null,null,null,null,null,null,null,null,null,null,null,null,"",""]
[440,{"$f":"IFERROR(VLOOKUP(BD458,'[1]ID(当院入力シート)'!E:F,2,FALSE)&\"\",\"\")","v":""},null,null,null,null,null,null,126,null,null,null,null,null,null,"／",null,"／",null,"／",null,null,"／","／",null,null,null,null,null,null,null,null,null,null,null,null,null,null,null,null,null,null,null,null,null,null,null,null,null,null,null,null,null,null,"",""]
[441,{"$f":"IFERROR(VLOOKUP(BD459,'[1]ID(当院入力シート)'!E:F,2,FALSE)&\"\",\"\")","v":""},null,null,null,null,null,null,126,null,null,null,null,null,null,"／",null,"／",null,"／",null,null,"／","／",null,null,null,null,null,null,null,null,null,null,null,null,null,null,null,null,null,null,null,null,null,null,null,null,null,null,null,null,null,null,"",""]
[442,{"$f":"IFERROR(VLOOKUP(BD460,'[1]ID(当院入力シート)'!E:F,2,FALSE)&\"\",\"\")","v":""},null,null,null,null,null,null,126,null,null,null,null,null,null,"／",null,"／",null,"／",null,null,"／","／",null,null,null,null,null,null,null,null,null,null,null,null,null,null,null,null,null,null,null,null,null,null,null,null,null,null,null,null,null,null,"",""]
[443,{"$f":"IFERROR(VLOOKUP(BD461,'[1]ID(当院入力シート)'!E:F,2,FALSE)&\"\",\"\")","v":""},null,null,null,null,null,null,126,null,null,null,null,null,null,"／",null,"／",null,"／",null,null,"／","／",null,null,null,null,null,null,null,null,null,null,null,null,null,null,null,null,null,null,null,null,null,null,null,null,null,null,null,null,null,null,"",""]
[444,{"$f":"IFERROR(VLOOKUP(BD462,'[1]ID(当院入力シート)'!E:F,2,FALSE)&\"\",\"\")","v":""},null,null,null,null,null,null,126,null,null,null,null,null,null,"／",null,"／",null,"／",null,null,"／","／",null,null,null,null,null,null,null,null,null,null,null,null,null,null,null,null,null,null,null,null,null,null,null,null,null,null,null,null,null,null,"",""]
[445,{"$f":"IFERROR(VLOOKUP(BD463,'[1]ID(当院入力シート)'!E:F,2,FALSE)&\"\",\"\")","v":""},null,null,null,null,null,null,126,null,null,null,null,null,null,"／",null,"／",null,"／",null,null,"／","／",null,null,null,null,null,null,null,null,null,null,null,null,null,null,null,null,null,null,null,null,null,null,null,null,null,null,null,null,null,null,"",""]
[446,{"$f":"IFERROR(VLOOKUP(BD464,'[1]ID(当院入力シート)'!E:F,2,FALSE)&\"\",\"\")","v":""},null,null,null,null,null,null,126,null,null,null,null,null,null,"／",null,"／",null,"／",null,null,"／","／",null,null,null,null,null,null,null,null,null,null,null,null,null,null,null,null,null,null,null,null,null,null,null,null,null,null,null,null,null,null,"",""]
[447,{"$f":"IFERROR(VLOOKUP(BD465,'[1]ID(当院入力シート)'!E:F,2,FALSE)&\"\",\"\")","v":""},null,null,null,null,null,null,{"$f":"DATEDIF(H465,$I$14,\"y\")","v":126},null,null,null,null,null,null,"／",null,"／",null,"／",null,null,"／","／",null,null,null,null,null,null,null,null,null,null,null,null,null,null,null,null,null,null,null,null,null,null,null,null,null,null,null,null,null,null,"",""]
[448,{"$f":"IFERROR(VLOOKUP(BD466,'[1]ID(当院入力シート)'!E:F,2,FALSE)&\"\",\"\")","v":""},null,null,null,null,null,null,126,null,null,null,null,null,null,"／",null,"／",null,"／",null,null,"／",{"$f":"TEXT(W466,\"(aaa)\")","v":"／"},null,null,null,null,null,null,null,null,null,null,null,null,null,null,null,null,null,null,null,null,null,null,null,null,null,null,null,null,null,null,"",""]
[449,{"$f":"IFERROR(VLOOKUP(BD467,'[1]ID(当院入力シート)'!E:F,2,FALSE)&\"\",\"\")","v":""},null,null,null,null,null,null,126,null,null,null,null,null,null,"／",null,"／",null,"／",null,null,"／","／",null,null,null,null,null,null,null,null,null,null,null,null,null,null,null,null,null,null,null,null,null,null,null,null,null,null,null,null,null,null,{"$f":"SUBSTITUTE(SUBSTITUTE(E467,\"　\",\"\"),\" \",\"\")","v":""},{"$f":"BC467&H467","v":""}]
[450,{"$f":"IFERROR(VLOOKUP(BD468,'[1]ID(当院入力シート)'!E:F,2,FALSE)&\"\",\"\")","v":""},null,null,null,null,null,null,126,null,null,null,null,null,null,"／",null,"／",null,"／",null,null,"／","／",null,null,null,null,null,null,null,null,null,null,null,null,null,null,null,null,null,null,null,null,null,null,null,null,null,null,null,null,null,null,"",""]
[{"$f":"ROW()-18","v":451},{"$f":"IFERROR(VLOOKUP(BD469,'[1]ID(当院入力シート)'!E:F,2,FALSE)&\"\",\"\")","v":""},null,null,null,null,null,null,126,null,null,null,null,null,null,"／",null,"／",null,"／",null,null,"／","／",null,null,null,null,null,null,null,null,null,null,null,null,null,null,null,null,null,null,null,null,null,null,null,null,null,null,null,null,null,null,"",""]
[452,{"$f":"IFERROR(VLOOKUP(BD470,'[1]ID(当院入力シート)'!E:F,2,FALSE)&\"\",\"\")","v":""},null,null,null,null,null,null,126,null,null,null,null,null,null,"／",null,"／",null,"／",null,null,"／","／",null,null,null,null,null,null,null,null,null,null,null,null,null,null,null,null,null,null,null,null,null,null,null,null,null,null,null,null,null,null,"",""]
[453,{"$f":"IFERROR(VLOOKUP(BD471,'[1]ID(当院入力シート)'!E:F,2,FALSE)&\"\",\"\")","v":""},null,null,null,null,null,null,126,null,null,null,null,null,null,"／",null,"／",null,"／",null,null,"／","／",null,null,null,null,null,null,null,null,null,null,null,null,null,null,null,null,null,null,null,null,null,null,null,null,null,null,null,null,null,null,"",""]
[454,{"$f":"IFERROR(VLOOKUP(BD472,'[1]ID(当院入力シート)'!E:F,2,FALSE)&\"\",\"\")","v":""},null,null,null,null,null,null,126,null,null,null,null,null,null,"／",null,"／",null,"／",null,null,"／","／",null,null,null,null,null,null,null,null,null,null,null,null,null,null,null,null,null,null,null,null,null,null,null,null,null,null,null,null,null,null,"",""]
[455,{"$f":"IFERROR(VLOOKUP(BD473,'[1]ID(当院入力シート)'!E:F,2,FALSE)&\"\",\"\")","v":""},null,null,null,null,null,null,126,null,null,null,null,null,null,"／",null,"／",null,"／",null,null,"／","／",null,null,null,null,null,null,null,null,null,null,null,null,null,null,null,null,null,null,null,null,null,null,null,null,null,null,null,null,null,null,"",""]
[456,{"$f":"IFERROR(VLOOKUP(BD474,'[1]ID(当院入力シート)'!E:F,2,FALSE)&\"\",\"\")","v":""},null,null,null,null,null,null,126,null,null,null,null,null,null,"／",null,"／",null,"／",null,null,"／","／",null,null,null,null,null,null,null,null,null,null,null,null,null,null,null,null,null,null,null,null,null,null,null,null,null,null,null,null,null,null,"",""]
[457,{"$f":"IFERROR(VLOOKUP(BD475,'[1]ID(当院入力シート)'!E:F,2,FALSE)&\"\",\"\")","v":""},null,null,null,null,null,null,126,null,null,null,null,null,null,"／",null,"／",null,"／",null,null,"／","／",null,null,null,null,null,null,null,null,null,null,null,null,null,null,null,null,null,null,null,null,null,null,null,null,null,null,null,null,null,null,"",""]
[458,{"$f":"IFERROR(VLOOKUP(BD476,'[1]ID(当院入力シート)'!E:F,2,FALSE)&\"\",\"\")","v":""},null,null,null,null,null,null,126,null,null,null,null,null,null,"／",null,"／",null,"／",null,null,"／","／",null,null,null,null,null,null,null,null,null,null,null,null,null,null,null,null,null,null,null,null,null,null,null,null,null,null,null,null,null,null,"",""]
[459,{"$f":"IFERROR(VLOOKUP(BD477,'[1]ID(当院入力シート)'!E:F,2,FALSE)&\"\",\"\")","v":""},null,null,null,null,null,null,126,null,null,null,null,null,null,"／",null,"／",null,"／",null,null,"／","／",null,null,null,null,null,null,null,null,null,null,null,null,null,null,null,null,null,null,null,null,null,null,null,null,null,null,null,null,null,null,"",""]
[460,{"$f":"IFERROR(VLOOKUP(BD478,'[1]ID(当院入力シート)'!E:F,2,FALSE)&\"\",\"\")","v":""},null,null,null,null,null,null,126,null,null,null,null,null,null,"／",null,"／",null,"／",null,null,"／","／",null,null,null,null,null,null,null,null,null,null,null,null,null,null,null,null,null,null,null,null,null,null,null,null,null,null,null,null,null,null,"",""]
[461,{"$f":"IFERROR(VLOOKUP(BD479,'[1]ID(当院入力シート)'!E:F,2,FALSE)&\"\",\"\")","v":""},null,null,null,null,null,null,126,null,null,null,null,null,null,"／",null,"／",null,"／",null,null,"／","／",null,null,null,null,null,null,null,null,null,null,null,null,null,null,null,null,null,null,null,null,null,null,null,null,null,null,null,null,null,null,"",""]
[462,{"$f":"IFERROR(VLOOKUP(BD480,'[1]ID(当院入力シート)'!E:F,2,FALSE)&\"\",\"\")","v":""},null,null,null,null,null,null,126,null,null,null,null,null,null,"／",null,"／",null,"／",null,null,"／","／",null,null,null,null,null,null,null,null,null,null,null,null,null,null,null,null,null,null,null,null,null,null,null,null,null,null,null,null,null,null,"",""]
[463,{"$f":"IFERROR(VLOOKUP(BD481,'[1]ID(当院入力シート)'!E:F,2,FALSE)&\"\",\"\")","v":""},null,null,null,null,null,null,126,null,null,null,null,null,null,"／",null,"／",null,"／",null,null,"／","／",null,null,null,null,null,null,null,null,null,null,null,null,null,null,null,null,null,null,null,null,null,null,null,null,null,null,null,null,null,null,"",""]
[464,{"$f":"IFERROR(VLOOKUP(BD482,'[1]ID(当院入力シート)'!E:F,2,FALSE)&\"\",\"\")","v":""},null,null,null,null,null,null,126,null,null,null,null,null,null,"／",null,"／",null,"／",null,null,"／","／",null,null,null,null,null,null,null,null,null,null,null,null,null,null,null,null,null,null,null,null,null,null,null,null,null,null,null,null,null,null,"",""]
[465,{"$f":"IFERROR(VLOOKUP(BD483,'[1]ID(当院入力シート)'!E:F,2,FALSE)&\"\",\"\")","v":""},null,null,null,null,null,null,126,null,null,null,null,null,null,"／",null,"／",null,"／",null,null,"／","／",null,null,null,null,null,null,null,null,null,null,null,null,null,null,null,null,null,null,null,null,null,null,null,null,null,null,null,null,null,null,"",""]
[466,{"$f":"IFERROR(VLOOKUP(BD484,'[1]ID(当院入力シート)'!E:F,2,FALSE)&\"\",\"\")","v":""},null,null,null,null,null,null,126,null,null,null,null,null,null,"／",null,"／",null,"／",null,null,"／","／",null,null,null,null,null,null,null,null,null,null,null,null,null,null,null,null,null,null,null,null,null,null,null,null,null,null,null,null,null,null,"",""]
[467,{"$f":"IFERROR(VLOOKUP(BD485,'[1]ID(当院入力シート)'!E:F,2,FALSE)&\"\",\"\")","v":""},null,null,null,null,null,null,126,null,null,null,null,null,null,"／",null,"／",null,"／",null,null,"／","／",null,null,null,null,null,null,null,null,null,null,null,null,null,null,null,null,null,null,null,null,null,null,null,null,null,null,null,null,null,null,"",""]
[468,{"$f":"IFERROR(VLOOKUP(BD486,'[1]ID(当院入力シート)'!E:F,2,FALSE)&\"\",\"\")","v":""},null,null,null,null,null,null,126,null,null,null,null,null,null,"／",null,"／",null,"／",null,null,"／","／",null,null,null,null,null,null,null,null,null,null,null,null,null,null,null,null,null,null,null,null,null,null,null,null,null,null,null,null,null,null,"",""]
[469,{"$f":"IFERROR(VLOOKUP(BD487,'[1]ID(当院入力シート)'!E:F,2,FALSE)&\"\",\"\")","v":""},null,null,null,null,null,null,126,null,null,null,null,null,null,"／",null,"／",null,"／",null,null,"／","／",null,null,null,null,null,null,null,null,null,null,null,null,null,null,null,null,null,null,null,null,null,null,null,null,null,null,null,null,null,null,"",""]
[470,{"$f":"IFERROR(VLOOKUP(BD488,'[1]ID(当院入力シート)'!E:F,2,FALSE)&\"\",\"\")","v":""},null,null,null,null,null,null,126,null,null,null,null,null,null,"／",null,"／",null,"／",null,null,"／","／",null,null,null,null,null,null,null,null,null,null,null,null,null,null,null,null,null,null,null,null,null,null,null,null,null,null,null,null,null,null,"",""]
[471,{"$f":"IFERROR(VLOOKUP(BD489,'[1]ID(当院入力シート)'!E:F,2,FALSE)&\"\",\"\")","v":""},null,null,null,null,null,null,126,null,null,null,null,null,null,"／",null,"／",null,"／",null,null,"／","／",null,null,null,null,null,null,null,null,null,null,null,null,null,null,null,null,null,null,null,null,null,null,null,null,null,null,null,null,null,null,"",""]
[472,{"$f":"IFERROR(VLOOKUP(BD490,'[1]ID(当院入力シート)'!E:F,2,FALSE)&\"\",\"\")","v":""},null,null,null,null,null,null,126,null,null,null,null,null,null,"／",null,"／",null,"／",null,null,"／","／",null,null,null,null,null,null,null,null,null,null,null,null,null,null,null,null,null,null,null,null,null,null,null,null,null,null,null,null,null,null,"",""]
[473,{"$f":"IFERROR(VLOOKUP(BD491,'[1]ID(当院入力シート)'!E:F,2,FALSE)&\"\",\"\")","v":""},null,null,null,null,null,null,126,null,null,null,null,null,null,"／",null,"／",null,"／",null,null,"／","／",null,null,null,null,null,null,null,null,null,null,null,null,null,null,null,null,null,null,null,null,null,null,null,null,null,null,null,null,null,null,"",""]
[474,{"$f":"IFERROR(VLOOKUP(BD492,'[1]ID(当院入力シート)'!E:F,2,FALSE)&\"\",\"\")","v":""},null,null,null,null,null,null,126,null,null,null,null,null,null,"／",null,"／",null,"／",null,null,"／","／",null,null,null,null,null,null,null,null,null,null,null,null,null,null,null,null,null,null,null,null,null,null,null,null,null,null,null,null,null,null,"",""]
[475,{"$f":"IFERROR(VLOOKUP(BD493,'[1]ID(当院入力シート)'!E:F,2,FALSE)&\"\",\"\")","v":""},null,null,null,null,null,null,126,null,null,null,null,null,null,"／",null,"／",null,"／",null,null,"／","／",null,null,null,null,null,null,null,null,null,null,null,null,null,null,null,null,null,null,null,null,null,null,null,null,null,null,null,null,null,null,"",""]
[476,{"$f":"IFERROR(VLOOKUP(BD494,'[1]ID(当院入力シート)'!E:F,2,FALSE)&\"\",\"\")","v":""},null,null,null,null,null,null,126,null,null,null,null,null,null,"／",null,"／",null,"／",null,null,"／","／",null,null,null,null,null,null,null,null,null,null,null,null,null,null,null,null,null,null,null,null,null,null,null,null,null,null,null,null,null,null,"",""]
[477,{"$f":"IFERROR(VLOOKUP(BD495,'[1]ID(当院入力シート)'!E:F,2,FALSE)&\"\",\"\")","v":""},null,null,null,null,null,null,126,null,null,null,null,null,null,"／",null,"／",null,"／",null,null,"／","／",null,null,null,null,null,null,null,null,null,null,null,null,null,null,null,null,null,null,null,null,null,null,null,null,null,null,null,null,null,null,"",""]
[478,{"$f":"IFERROR(VLOOKUP(BD496,'[1]ID(当院入力シート)'!E:F,2,FALSE)&\"\",\"\")","v":""},null,null,null,null,null,null,126,null,null,null,null,null,null,"／",null,"／",null,"／",null,null,"／","／",null,null,null,null,null,null,null,null,null,null,null,null,null,null,null,null,null,null,null,null,null,null,null,null,null,null,null,null,null,null,"",""]
[479,{"$f":"IFERROR(VLOOKUP(BD497,'[1]ID(当院入力シート)'!E:F,2,FALSE)&\"\",\"\")","v":""},null,null,null,null,null,null,126,null,null,null,null,null,null,"／",null,"／",null,"／",null,null,"／","／",null,null,null,null,null,null,null,null,null,null,null,null,null,null,null,null,null,null,null,null,null,null,null,null,null,null,null,null,null,null,"",""]
[480,{"$f":"IFERROR(VLOOKUP(BD498,'[1]ID(当院入力シート)'!E:F,2,FALSE)&\"\",\"\")","v":""},null,null,null,null,null,null,126,null,null,null,null,null,null,"／",null,"／",null,"／",null,null,"／","／",null,null,null,null,null,null,null,null,null,null,null,null,null,null,null,null,null,null,null,null,null,null,null,null,null,null,null,null,null,null,"",""]
[481,{"$f":"IFERROR(VLOOKUP(BD499,'[1]ID(当院入力シート)'!E:F,2,FALSE)&\"\",\"\")","v":""},null,null,null,null,null,null,126,null,null,null,null,null,null,"／",null,"／",null,"／",null,null,"／","／",null,null,null,null,null,null,null,null,null,null,null,null,null,null,null,null,null,null,null,null,null,null,null,null,null,null,null,null,null,null,"",""]
[482,{"$f":"IFERROR(VLOOKUP(BD500,'[1]ID(当院入力シート)'!E:F,2,FALSE)&\"\",\"\")","v":""},null,null,null,null,null,null,126,null,null,null,null,null,null,"／",null,"／",null,"／",null,null,"／","／",null,null,null,null,null,null,null,null,null,null,null,null,null,null,null,null,null,null,null,null,null,null,null,null,null,null,null,null,null,null,"",""]
[486,{"$f":"IFERROR(VLOOKUP(BD504,'[1]ID(当院入力シート)'!E:F,2,FALSE)&\"\",\"\")","v":""},null,null,null,null,null,null,126,null,null,null,null,null,null,"／",null,"／",null,"／",null,null,"／","／",null,null,null,null,null,null,null,null,null,null,null,null,null,null,null,null,null,null,null,null,null,null,null,null,null,null,null,null,null,null,"",""]
[null,null,null,null,null,null,null,null,null,null,null,null,null,null,null,null,null,null,null,null,null,null,null,null,null,null,null,null,null,null,null,null,null,null,null,null,null,null,null,null,null,null,null,null,null,null,null,null,null,null,null,null,null,null,"",""]
[null,null,null,null,null,null,null,null,null,null,null,null,null,null,null,null,null,null,null,null,null,null,null,null,null,null,null,null,null,null,null,null,null,null,null,null,null,null,null,null,null,null,null,null,null,null,null,null,null,null,null,null,null,null,"",""]
[null,null,null,null,null,null,null,null,null,null,null,null,null,null,null,null,null,null,null,null,null,null,null,null,null,null,null,null,null,null,null,null,null,null,null,null,null,null,null,null,null,null,null,null,null,null,null,null,null,null,null,null,null,null,"",""]
[null,null,null,null,null,null,null,null,null,null,null,null,null,null,null,null,null,null,null,null,null,null,null,null,null,null,null,null,null,null,null,null,null,null,null,null,null,null,null,null,null,null,null,null,null,null,null,null,null,null,null,null,null,null,"",""]
[null,null,null,null,null,null,null,null,null,null,null,null,null,null,null,null,null,null,null,null,null,null,null,null,null,null,null,null,null,null,null,null,null,null,null,null,null,null,null,null,null,null,null,null,null,null,null,null,null,null,null,null,null,null,"",""]
[null,null,null,null,null,null,null,null,null,null,null,null,null,null,null,null,null,null,null,null,null,null,null,null,null,null,null,null,null,null,null,null,null,null,null,null,null,null,null,null,null,null,null,null,null,null,null,null,null,null,null,null,null,null,"",""]
[null,null,null,null,null,null,null,null,null,null,null,null,null,null,null,null,null,null,null,null,null,null,null,null,null,null,null,null,null,null,null,null,null,null,null,null,null,null,null,null,null,null,null,null,null,null,null,null,null,null,null,null,null,null,"",""]
[null,null,null,null,null,null,null,null,null,null,null,null,null,null,null,null,null,null,null,null,null,null,null,null,null,null,null,null,null,null,null,null,null,null,null,null,null,null,null,null,null,null,null,null,null,null,null,null,null,null,null,null,null,null,{"$f":"SUBSTITUTE(SUBSTITUTE(E595,\"　\",\"\"),\" \",\"\")","v":""},{"$f":"BC595&H595","v":""}]
[null,null,null,null,null,null,null,null,null,null,null,null,null,null,null,null,null,null,null,null,null,null,null,null,null,null,null,null,null,null,null,null,null,null,null,null,null,null,null,null,null,null,null,null,null,null,null,null,null,null,null,null,null,null,"",""]
[null,null,null,null,null,null,null,null,null,null,null,null,null,null,null,null,null,null,null,null,null,null,null,null,null,null,null,null,null,null,null,null,null,null,null,null,null,null,null,null,null,null,null,null,null,null,null,null,null,null,null,null,null,null,"",""]
[null,null,null,null,null,null,null,null,null,null,null,null,null,null,null,null,null,null,null,null,null,null,null,null,null,null,null,null,null,null,null,null,null,null,null,null,null,null,null,null,null,null,null,null,null,null,null,null,null,null,null,null,null,null,"",""]
[null,null,null,null,null,null,null,null,null,null,null,null,null,null,null,null,null,null,null,null,null,null,null,null,null,null,null,null,null,null,null,null,null,null,null,null,null,null,null,null,null,null,null,null,null,null,null,null,null,null,null,null,null,null,"",""]
[null,null,null,null,null,null,null,null,null,null,null,null,null,null,null,null,null,null,null,null,null,null,null,null,null,null,null,null,null,null,null,null,null,null,null,null,null,null,null,null,null,null,null,null,null,null,null,null,null,null,null,null,null,null,"",""]
[null,null,null,null,null,null,null,null,null,null,null,null,null,null,null,null,null,null,null,null,null,null,null,null,null,null,null,null,null,null,null,null,null,null,null,null,null,null,null,null,null,null,null,null,null,null,null,null,null,null,null,null,null,null,"",""]
[null,null,null,null,null,null,null,null,null,null,null,null,null,null,null,null,null,null,null,null,null,null,null,null,null,null,null,null,null,null,null,null,null,null,null,null,null,null,null,null,null,null,null,null,null,null,null,null,null,null,null,null,null,null,"",""]
[null,null,null,null,null,null,null,null,null,null,null,null,null,null,null,null,null,null,null,null,null,null,null,null,null,null,null,null,null,null,null,null,null,null,null,null,null,null,null,null,null,null,null,null,null,null,null,null,null,null,null,null,null,null,"",""]
[null,null,null,null,null,null,null,null,null,null,null,null,null,null,null,null,null,null,null,null,null,null,null,null,null,null,null,null,null,null,null,null,null,null,null,null,null,null,null,null,null,null,null,null,null,null,null,null,null,null,null,null,null,null,"",""]
[null,null,null,null,null,null,null,null,null,null,null,null,null,null,null,null,null,null,null,null,null,null,null,null,null,null,null,null,null,null,null,null,null,null,null,null,null,null,null,null,null,null,null,null,null,null,null,null,null,null,null,null,null,null,"",""]
[null,null,null,null,null,null,null,null,null,null,null,null,null,null,null,null,null,null,null,null,null,null,null,null,null,null,null,null,null,null,null,null,null,null,null,null,null,null,null,null,null,null,null,null,null,null,null,null,null,null,null,null,null,null,"",""]
[null,null,null,null,null,null,null,null,null,null,null,null,null,null,null,null,null,null,null,null,null,null,null,null,null,null,null,null,null,null,null,null,null,null,null,null,null,null,null,null,null,null,null,null,null,null,null,null,null,null,null,null,null,null,"",""]
[null,null,null,null,null,null,null,null,null,null,null,null,null,null,null,null,null,null,null,null,null,null,null,null,null,null,null,null,null,null,null,null,null,null,null,null,null,null,null,null,null,null,null,null,null,null,null,null,null,null,null,null,null,null,"",""]
[null,null,null,null,null,null,null,null,null,null,null,null,null,null,null,null,null,null,null,null,null,null,null,null,null,null,null,null,null,null,null,null,null,null,null,null,null,null,null,null,null,null,null,null,null,null,null,null,null,null,null,null,null,null,"",""]
[null,null,null,null,null,null,null,null,null,null,null,null,null,null,null,null,null,null,null,null,null,null,null,null,null,null,null,null,null,null,null,null,null,null,null,null,null,null,null,null,null,null,null,null,null,null,null,null,null,null,null,null,null,null,"",""]
[null,null,null,null,null,null,null,null,null,null,null,null,null,null,null,null,null,null,null,null,null,null,null,null,null,null,null,null,null,null,null,null,null,null,null,null,null,null,null,null,null,null,null,null,null,null,null,null,null,null,null,null,null,null,"",""]
[null,null,null,null,null,null,null,null,null,null,null,null,null,null,null,null,null,null,null,null,null,null,null,null,null,null,null,null,null,null,null,null,null,null,null,null,null,null,null,null,null,null,null,null,null,null,null,null,null,null,null,null,null,null,"",""]
[null,null,null,null,null,null,null,null,null,null,null,null,null,null,null,null,null,null,null,null,null,null,null,null,null,null,null,null,null,null,null,null,null,null,null,null,null,null,null,null,null,null,null,null,null,null,null,null,null,null,null,null,null,null,"",""]
[null,null,null,null,null,null,null,null,null,null,null,null,null,null,null,null,null,null,null,null,null,null,null,null,null,null,null,null,null,null,null,null,null,null,null,null,null,null,null,null,null,null,null,null,null,null,null,null,null,null,null,null,null,null,"",""]
[null,null,null,null,null,null,null,null,null,null,null,null,null,null,null,null,null,null,null,null,null,null,null,null,null,null,null,null,null,null,null,null,null,null,null,null,null,null,null,null,null,null,null,null,null,null,null,null,null,null,null,null,null,null,"",""]
[null,null,null,null,null,null,null,null,null,null,null,null,null,null,null,null,null,null,null,null,null,null,null,null,null,null,null,null,null,null,null,null,null,null,null,null,null,null,null,null,null,null,null,null,null,null,null,null,null,null,null,null,null,null,"",""]
[null,null,null,null,null,null,null,null,null,null,null,null,null,null,null,null,null,null,null,null,null,null,null,null,null,null,null,null,null,null,null,null,null,null,null,null,null,null,null,null,null,null,null,null,null,null,null,null,null,null,null,null,null,null,"",""]
[null,null,null,null,null,null,null,null,null,null,null,null,null,null,null,null,null,null,null,null,null,null,null,null,null,null,null,null,null,null,null,null,null,null,null,null,null,null,null,null,null,null,null,null,null,null,null,null,null,null,null,null,null,null,"",""]
[null,null,null,null,null,null,null,null,null,null,null,null,null,null,null,null,null,null,null,null,null,null,null,null,null,null,null,null,null,null,null,null,null,null,null,null,null,null,null,null,null,null,null,null,null,null,null,null,null,null,null,null,null,null,"",""]
[null,null,null,null,null,null,null,null,null,null,null,null,null,null,null,null,null,null,null,null,null,null,null,null,null,null,null,null,null,null,null,null,null,null,null,null,null,null,null,null,null,null,null,null,null,null,null,null,null,null,null,null,null,null,"",""]
[null,null,null,null,null,null,null,null,null,null,null,null,null,null,null,null,null,null,null,null,null,null,null,null,null,null,null,null,null,null,null,null,null,null,null,null,null,null,null,null,null,null,null,null,null,null,null,null,null,null,null,null,null,null,"",""]
[null,null,null,null,null,null,null,null,null,null,null,null,null,null,null,null,null,null,null,null,null,null,null,null,null,null,null,null,null,null,null,null,null,null,null,null,null,null,null,null,null,null,null,null,null,null,null,null,null,null,null,null,null,null,"",""]
[null,null,null,null,null,null,null,null,null,null,null,null,null,null,null,null,null,null,null,null,null,null,null,null,null,null,null,null,null,null,null,null,null,null,null,null,null,null,null,null,null,null,null,null,null,null,null,null,null,null,null,null,null,null,"",""]
[null,null,null,null,null,null,null,null,null,null,null,null,null,null,null,null,null,null,null,null,null,null,null,null,null,null,null,null,null,null,null,null,null,null,null,null,null,null,null,null,null,null,null,null,null,null,null,null,null,null,null,null,null,null,"",""]
[null,null,null,null,null,null,null,null,null,null,null,null,null,null,null,null,null,null,null,null,null,null,null,null,null,null,null,null,null,null,null,null,null,null,null,null,null,null,null,null,null,null,null,null,null,null,null,null,null,null,null,null,null,null,"",""]
[null,null,null,null,null,null,null,null,null,null,null,null,null,null,null,null,null,null,null,null,null,null,null,null,null,null,null,null,null,null,null,null,null,null,null,null,null,null,null,null,null,null,null,null,null,null,null,null,null,null,null,null,null,null,"",""]
[null,null,null,null,null,null,null,null,null,null,null,null,null,null,null,null,null,null,null,null,null,null,null,null,null,null,null,null,null,null,null,null,null,null,null,null,null,null,null,null,null,null,null,null,null,null,null,null,null,null,null,null,null,null,"",""]
[null,null,null,null,null,null,null,null,null,null,null,null,null,null,null,null,null,null,null,null,null,null,null,null,null,null,null,null,null,null,null,null,null,null,null,null,null,null,null,null,null,null,null,null,null,null,null,null,null,null,null,null,null,null,"",""]
[null,null,null,null,null,null,null,null,null,null,null,null,null,null,null,null,null,null,null,null,null,null,null,null,null,null,null,null,null,null,null,null,null,null,null,null,null,null,null,null,null,null,null,null,null,null,null,null,null,null,null,null,null,null,"",""]
[null,null,null,null,null,null,null,null,null,null,null,null,null,null,null,null,null,null,null,null,null,null,null,null,null,null,null,null,null,null,null,null,null,null,null,null,null,null,null,null,null,null,null,null,null,null,null,null,null,null,null,null,null,null,"",""]
[null,null,null,null,null,null,null,null,null,null,null,null,null,null,null,null,null,null,null,null,null,null,null,null,null,null,null,null,null,null,null,null,null,null,null,null,null,null,null,null,null,null,null,null,null,null,null,null,null,null,null,null,null,null,"",""]
[null,null,null,null,null,null,null,null,null,null,null,null,null,null,null,null,null,null,null,null,null,null,null,null,null,null,null,null,null,null,null,null,null,null,null,null,null,null,null,null,null,null,null,null,null,null,null,null,null,null,null,null,null,null,"",""]
[null,null,null,null,null,null,null,null,null,null,null,null,null,null,null,null,null,null,null,null,null,null,null,null,null,null,null,null,null,null,null,null,null,null,null,null,null,null,null,null,null,null,null,null,null,null,null,null,null,null,null,null,null,null,"",""]
[null,null,null,null,null,null,null,null,null,null,null,null,null,null,null,null,null,null,null,null,null,null,null,null,null,null,null,null,null,null,null,null,null,null,null,null,null,null,null,null,null,null,null,null,null,null,null,null,null,null,null,null,null,null,"",""]
[null,null,null,null,null,null,null,null,null,null,null,null,null,null,null,null,null,null,null,null,null,null,null,null,null,null,null,null,null,null,null,null,null,null,null,null,null,null,null,null,null,null,null,null,null,null,null,null,null,null,null,null,null,null,"",""]
[null,null,null,null,null,null,null,null,null,null,null,null,null,null,null,null,null,null,null,null,null,null,null,null,null,null,null,null,null,null,null,null,null,null,null,null,null,null,null,null,null,null,null,null,null,null,null,null,null,null,null,null,null,null,"",""]
[null,null,null,null,null,null,null,null,null,null,null,null,null,null,null,null,null,null,null,null,null,null,null,null,null,null,null,null,null,null,null,null,null,null,null,null,null,null,null,null,null,null,null,null,null,null,null,null,null,null,null,null,null,null,"",""]
[null,null,null,null,null,null,null,null,null,null,null,null,null,null,null,null,null,null,null,null,null,null,null,null,null,null,null,null,null,null,null,null,null,null,null,null,null,null,null,null,null,null,null,null,null,null,null,null,null,null,null,null,null,null,"",""]
[null,null,null,null,null,null,null,null,null,null,null,null,null,null,null,null,null,null,null,null,null,null,null,null,null,null,null,null,null,null,null,null,null,null,null,null,null,null,null,null,null,null,null,null,null,null,null,null,null,null,null,null,null,null,"",""]
[null,null,null,null,null,null,null,null,null,null,null,null,null,null,null,null,null,null,null,null,null,null,null,null,null,null,null,null,null,null,null,null,null,null,null,null,null,null,null,null,null,null,null,null,null,null,null,null,null,null,null,null,null,null,"",""]
[null,null,null,null,null,null,null,null,null,null,null,null,null,null,null,null,null,null,null,null,null,null,null,null,null,null,null,null,null,null,null,null,null,null,null,null,null,null,null,null,null,null,null,null,null,null,null,null,null,null,null,null,null,null,"",""]
[null,null,null,null,null,null,null,null,null,null,null,null,null,null,null,null,null,null,null,null,null,null,null,null,null,null,null,null,null,null,null,null,null,null,null,null,null,null,null,null,null,null,null,null,null,null,null,null,null,null,null,null,null,null,"",""]
[null,null,null,null,null,null,null,null,null,null,null,null,null,null,null,null,null,null,null,null,null,null,null,null,null,null,null,null,null,null,null,null,null,null,null,null,null,null,null,null,null,null,null,null,null,null,null,null,null,null,null,null,null,null,"",""]
[null,null,null,null,null,null,null,null,null,null,null,null,null,null,null,null,null,null,null,null,null,null,null,null,null,null,null,null,null,null,null,null,null,null,null,null,null,null,null,null,null,null,null,null,null,null,null,null,null,null,null,null,null,null,"",""]
[null,null,null,null,null,null,null,null,null,null,null,null,null,null,null,null,null,null,null,null,null,null,null,null,null,null,null,null,null,null,null,null,null,null,null,null,null,null,null,null,null,null,null,null,null,null,null,null,null,null,null,null,null,null,"",""]
[null,null,null,null,null,null,null,null,null,null,null,null,null,null,null,null,null,null,null,null,null,null,null,null,null,null,null,null,null,null,null,null,null,null,null,null,null,null,null,null,null,null,null,null,null,null,null,null,null,null,null,null,null,null,"",""]
[null,null,null,null,null,null,null,null,null,null,null,null,null,null,null,null,null,null,null,null,null,null,null,null,null,null,null,null,null,null,null,null,null,null,null,null,null,null,null,null,null,null,null,null,null,null,null,null,null,null,null,null,null,null,"",""]
[null,null,null,null,null,null,null,null,null,null,null,null,null,null,null,null,null,null,null,null,null,null,null,null,null,null,null,null,null,null,null,null,null,null,null,null,null,null,null,null,null,null,null,null,null,null,null,null,null,null,null,null,null,null,"",""]
[null,null,null,null,null,null,null,null,null,null,null,null,null,null,null,null,null,null,null,null,null,null,null,null,null,null,null,null,null,null,null,null,null,null,null,null,null,null,null,null,null,null,null,null,null,null,null,null,null,null,null,null,null,null,"",""]
[null,null,null,null,null,null,null,null,null,null,null,null,null,null,null,null,null,null,null,null,null,null,null,null,null,null,null,null,null,null,null,null,null,null,null,null,null,null,null,null,null,null,null,null,null,null,null,null,null,null,null,null,null,null,"",""]
[null,null,null,null,null,null,null,null,null,null,null,null,null,null,null,null,null,null,null,null,null,null,null,null,null,null,null,null,null,null,null,null,null,null,null,null,null,null,null,null,null,null,null,null,null,null,null,null,null,null,null,null,null,null,"",""]
[null,null,null,null,null,null,null,null,null,null,null,null,null,null,null,null,null,null,null,null,null,null,null,null,null,null,null,null,null,null,null,null,null,null,null,null,null,null,null,null,null,null,null,null,null,null,null,null,null,null,null,null,null,null,"",""]
[null,null,null,null,null,null,null,null,null,null,null,null,null,null,null,null,null,null,null,null,null,null,null,null,null,null,null,null,null,null,null,null,null,null,null,null,null,null,null,null,null,null,null,null,null,null,null,null,null,null,null,null,null,null,"",""]
[null,null,null,null,null,null,null,null,null,null,null,null,null,null,null,null,null,null,null,null,null,null,null,null,null,null,null,null,null,null,null,null,null,null,null,null,null,null,null,null,null,null,null,null,null,null,null,null,null,null,null,null,null,null,"",""]
[null,null,null,null,null,null,null,null,null,null,null,null,null,null,null,null,null,null,null,null,null,null,null,null,null,null,null,null,null,null,null,null,null,null,null,null,null,null,null,null,null,null,null,null,null,null,null,null,null,null,null,null,null,null,"",""]
[null,null,null,null,null,null,null,null,null,null,null,null,null,null,null,null,null,null,null,null,null,null,null,null,null,null,null,null,null,null,null,null,null,null,null,null,null,null,null,null,null,null,null,null,null,null,null,null,null,null,null,null,null,null,"",""]
[null,null,null,null,null,null,null,null,null,null,null,null,null,null,null,null,null,null,null,null,null,null,null,null,null,null,null,null,null,null,null,null,null,null,null,null,null,null,null,null,null,null,null,null,null,null,null,null,null,null,null,null,null,null,"",""]
[null,null,null,null,null,null,null,null,null,null,null,null,null,null,null,null,null,null,null,null,null,null,null,null,null,null,null,null,null,null,null,null,null,null,null,null,null,null,null,null,null,null,null,null,null,null,null,null,null,null,null,null,null,null,"",""]
[null,null,null,null,null,null,null,null,null,null,null,null,null,null,null,null,null,null,null,null,null,null,null,null,null,null,null,null,null,null,null,null,null,null,null,null,null,null,null,null,null,null,null,null,null,null,null,null,null,null,null,null,null,null,"",""]
[null,null,null,null,null,null,null,null,null,null,null,null,null,null,null,null,null,null,null,null,null,null,null,null,null,null,null,null,null,null,null,null,null,null,null,null,null,null,null,null,null,null,null,null,null,null,null,null,null,null,null,null,null,null,"",""]
[null,null,null,null,null,null,null,null,null,null,null,null,null,null,null,null,null,null,null,null,null,null,null,null,null,null,null,null,null,null,null,null,null,null,null,null,null,null,null,null,null,null,null,null,null,null,null,null,null,null,null,null,null,null,"",""]
[null,null,null,null,null,null,null,null,null,null,null,null,null,null,null,null,null,null,null,null,null,null,null,null,null,null,null,null,null,null,null,null,null,null,null,null,null,null,null,null,null,null,null,null,null,null,null,null,null,null,null,null,null,null,"",""]
[null,null,null,null,null,null,null,null,null,null,null,null,null,null,null,null,null,null,null,null,null,null,null,null,null,null,null,null,null,null,null,null,null,null,null,null,null,null,null,null,null,null,null,null,null,null,null,null,null,null,null,null,null,null,"",""]
[null,null,null,null,null,null,null,null,null,null,null,null,null,null,null,null,null,null,null,null,null,null,null,null,null,null,null,null,null,null,null,null,null,null,null,null,null,null,null,null,null,null,null,null,null,null,null,null,null,null,null,null,null,null,"",""]
[null,null,null,null,null,null,null,null,null,null,null,null,null,null,null,null,null,null,null,null,null,null,null,null,null,null,null,null,null,null,null,null,null,null,null,null,null,null,null,null,null,null,null,null,null,null,null,null,null,null,null,null,null,null,"",""]
[null,null,null,null,null,null,null,null,null,null,null,null,null,null,null,null,null,null,null,null,null,null,null,null,null,null,null,null,null,null,null,null,null,null,null,null,null,null,null,null,null,null,null,null,null,null,null,null,null,null,null,null,null,null,"",""]
[null,null,null,null,null,null,null,null,null,null,null,null,null,null,null,null,null,null,null,null,null,null,null,null,null,null,null,null,null,null,null,null,null,null,null,null,null,null,null,null,null,null,null,null,null,null,null,null,null,null,null,null,null,null,"",""]
[null,null,null,null,null,null,null,null,null,null,null,null,null,null,null,null,null,null,null,null,null,null,null,null,null,null,null,null,null,null,null,null,null,null,null,null,null,null,null,null,null,null,null,null,null,null,null,null,null,null,null,null,null,null,"",""]
[null,null,null,null,null,null,null,null,null,null,null,null,null,null,null,null,null,null,null,null,null,null,null,null,null,null,null,null,null,null,null,null,null,null,null,null,null,null,null,null,null,null,null,null,null,null,null,null,null,null,null,null,null,null,"",""]
[null,null,null,null,null,null,null,null,null,null,null,null,null,null,null,null,null,null,null,null,null,null,null,null,null,null,null,null,null,null,null,null,null,null,null,null,null,null,null,null,null,null,null,null,null,null,null,null,null,null,null,null,null,null,"",""]
[null,null,null,null,null,null,null,null,null,null,null,null,null,null,null,null,null,null,null,null,null,null,null,null,null,null,null,null,null,null,null,null,null,null,null,null,null,null,null,null,null,null,null,null,null,null,null,null,null,null,null,null,null,null,"",""]
[null,null,null,null,null,null,null,null,null,null,null,null,null,null,null,null,null,null,null,null,null,null,null,null,null,null,null,null,null,null,null,null,null,null,null,null,null,null,null,null,null,null,null,null,null,null,null,null,null,null,null,null,null,null,"",""]
[null,null,null,null,null,null,null,null,null,null,null,null,null,null,null,null,null,null,null,null,null,null,null,null,null,null,null,null,null,null,null,null,null,null,null,null,null,null,null,null,null,null,null,null,null,null,null,null,null,null,null,null,null,null,"",""]
[null,null,null,null,null,null,null,null,null,null,null,null,null,null,null,null,null,null,null,null,null,null,null,null,null,null,null,null,null,null,null,null,null,null,null,null,null,null,null,null,null,null,null,null,null,null,null,null,null,null,null,null,null,null,"",""]
[null,null,null,null,null,null,null,null,null,null,null,null,null,null,null,null,null,null,null,null,null,null,null,null,null,null,null,null,null,null,null,null,null,null,null,null,null,null,null,null,null,null,null,null,null,null,null,null,null,null,null,null,null,null,"",""]
[null,null,null,null,null,null,null,null,null,null,null,null,null,null,null,null,null,null,null,null,null,null,null,null,null,null,null,null,null,null,null,null,null,null,null,null,null,null,null,null,null,null,null,null,null,null,null,null,null,null,null,null,null,null,"",""]
[null,null,null,null,null,null,null,null,null,null,null,null,null,null,null,null,null,null,null,null,null,null,null,null,null,null,null,null,null,null,null,null,null,null,null,null,null,null,null,null,null,null,null,null,null,null,null,null,null,null,null,null,null,null,"",""]
[null,null,null,null,null,null,null,null,null,null,null,null,null,null,null,null,null,null,null,null,null,null,null,null,null,null,null,null,null,null,null,null,null,null,null,null,null,null,null,null,null,null,null,null,null,null,null,null,null,null,null,null,null,null,"",""]
[null,null,null,null,null,null,null,null,null,null,null,null,null,null,null,null,null,null,null,null,null,null,null,null,null,null,null,null,null,null,null,null,null,null,null,null,null,null,null,null,null,null,null,null,null,null,null,null,null,null,null,null,null,null,"",""]
[null,null,null,null,null,null,null,null,null,null,null,null,null,null,null,null,null,null,null,null,null,null,null,null,null,null,null,null,null,null,null,null,null,null,null,null,null,null,null,null,null,null,null,null,null,null,null,null,null,null,null,null,null,null,"",""]
[null,null,null,null,null,null,null,null,null,null,null,null,null,null,null,null,null,null,null,null,null,null,null,null,null,null,null,null,null,null,null,null,null,null,null,null,null,null,null,null,null,null,null,null,null,null,null,null,null,null,null,null,null,null,"",""]
[null,null,null,null,null,null,null,null,null,null,null,null,null,null,null,null,null,null,null,null,null,null,null,null,null,null,null,null,null,null,null,null,null,null,null,null,null,null,null,null,null,null,null,null,null,null,null,null,null,null,null,null,null,null,"",""]
[null,null,null,null,null,null,null,null,null,null,null,null,null,null,null,null,null,null,null,null,null,null,null,null,null,null,null,null,null,null,null,null,null,null,null,null,null,null,null,null,null,null,null,null,null,null,null,null,null,null,null,null,null,null,"",""]
[null,null,null,null,null,null,null,null,null,null,null,null,null,null,null,null,null,null,null,null,null,null,null,null,null,null,null,null,null,null,null,null,null,null,null,null,null,null,null,null,null,null,null,null,null,null,null,null,null,null,null,null,null,null,"",""]
[null,null,null,null,null,null,null,null,null,null,null,null,null,null,null,null,null,null,null,null,null,null,null,null,null,null,null,null,null,null,null,null,null,null,null,null,null,null,null,null,null,null,null,null,null,null,null,null,null,null,null,null,null,null,"",""]
[null,null,null,null,null,null,null,null,null,null,null,null,null,null,null,null,null,null,null,null,null,null,null,null,null,null,null,null,null,null,null,null,null,null,null,null,null,null,null,null,null,null,null,null,null,null,null,null,null,null,null,null,null,null,"",""]
[null,null,null,null,null,null,null,null,null,null,null,null,null,null,null,null,null,null,null,null,null,null,null,null,null,null,null,null,null,null,null,null,null,null,null,null,null,null,null,null,null,null,null,null,null,null,null,null,null,null,null,null,null,null,"",""]
[null,null,null,null,null,null,null,null,null,null,null,null,null,null,null,null,null,null,null,null,null,null,null,null,null,null,null,null,null,null,null,null,null,null,null,null,null,null,null,null,null,null,null,null,null,null,null,null,null,null,null,null,null,null,{"$f":"SUBSTITUTE(SUBSTITUTE(E1683,\"　\",\"\"),\" \",\"\")","v":""},{"$f":"BC1683&H1683","v":""}]
[null,null,null,null,null,null,null,null,null,null,null,null,null,null,null,null,null,null,null,null,null,null,null,null,null,null,null,null,null,null,null,null,null,null,null,null,null,null,null,null,null,null,null,null,null,null,null,null,null,null,null,null,null,null,"",""]
[null,null,null,null,null,null,null,null,null,null,null,null,null,null,null,null,null,null,null,null,null,null,null,null,null,null,null,null,null,null,null,null,null,null,null,null,null,null,null,null,null,null,null,null,null,null,null,null,null,null,null,null,null,null,"",""]
[null,null,null,null,null,null,null,null,null,null,null,null,null,null,null,null,null,null,null,null,null,null,null,null,null,null,null,null,null,null,null,null,null,null,null,null,null,null,null,null,null,null,null,null,null,null,null,null,null,null,null,null,null,null,"",""]
[null,null,null,null,null,null,null,null,null,null,null,null,null,null,null,null,null,null,null,null,null,null,null,null,null,null,null,null,null,null,null,null,null,null,null,null,null,null,null,null,null,null,null,null,null,null,null,null,null,null,null,null,null,null,"",""]
[null,null,null,null,null,null,null,null,null,null,null,null,null,null,null,null,null,null,null,null,null,null,null,null,null,null,null,null,null,null,null,null,null,null,null,null,null,null,null,null,null,null,null,null,null,null,null,null,null,null,null,null,null,null,"",""]
[null,null,null,null,null,null,null,null,null,null,null,null,null,null,null,null,null,null,null,null,null,null,null,null,null,null,null,null,null,null,null,null,null,null,null,null,null,null,null,null,null,null,null,null,null,null,null,null,null,null,null,null,null,null,"",""]
[null,null,null,null,null,null,null,null,null,null,null,null,null,null,null,null,null,null,null,null,null,null,null,null,null,null,null,null,null,null,null,null,null,null,null,null,null,null,null,null,null,null,null,null,null,null,null,null,null,null,null,null,null,null,"",""]
[null,null,null,null,null,null,null,null,null,null,null,null,null,null,null,null,null,null,null,null,null,null,null,null,null,null,null,null,null,null,null,null,null,null,null,null,null,null,null,null,null,null,null,null,null,null,null,null,null,null,null,null,null,null,"",""]
[null,null,null,null,null,null,null,null,null,null,null,null,null,null,null,null,null,null,null,null,null,null,null,null,null,null,null,null,null,null,null,null,null,null,null,null,null,null,null,null,null,null,null,null,null,null,null,null,null,null,null,null,null,null,"",""]
[null,null,null,null,null,null,null,null,null,null,null,null,null,null,null,null,null,null,null,null,null,null,null,null,null,null,null,null,null,null,null,null,null,null,null,null,null,null,null,null,null,null,null,null,null,null,null,null,null,null,null,null,null,null,"",""]
[null,null,null,null,null,null,null,null,null,null,null,null,null,null,null,null,null,null,null,null,null,null,null,null,null,null,null,null,null,null,null,null,null,null,null,null,null,null,null,null,null,null,null,null,null,null,null,null,null,null,null,null,null,null,"",""]
[null,null,null,null,null,null,null,null,null,null,null,null,null,null,null,null,null,null,null,null,null,null,null,null,null,null,null,null,null,null,null,null,null,null,null,null,null,null,null,null,null,null,null,null,null,null,null,null,null,null,null,null,null,null,"",""]
[null,null,null,null,null,null,null,null,null,null,null,null,null,null,null,null,null,null,null,null,null,null,null,null,null,null,null,null,null,null,null,null,null,null,null,null,null,null,null,null,null,null,null,null,null,null,null,null,null,null,null,null,null,null,"",""]
[null,null,null,null,null,null,null,null,null,null,null,null,null,null,null,null,null,null,null,null,null,null,null,null,null,null,null,null,null,null,null,null,null,null,null,null,null,null,null,null,null,null,null,null,null,null,null,null,null,null,null,null,null,null,"",""]
[null,null,null,null,null,null,null,null,null,null,null,null,null,null,null,null,null,null,null,null,null,null,null,null,null,null,null,null,null,null,null,null,null,null,null,null,null,null,null,null,null,null,null,null,null,null,null,null,null,null,null,null,null,null,"",""]
[null,null,null,null,null,null,null,null,null,null,null,null,null,null,null,null,null,null,null,null,null,null,null,null,null,null,null,null,null,null,null,null,null,null,null,null,null,null,null,null,null,null,null,null,null,null,null,null,null,null,null,null,null,null,"",""]
[null,null,null,null,null,null,null,null,null,null,null,null,null,null,null,null,null,null,null,null,null,null,null,null,null,null,null,null,null,null,null,null,null,null,null,null,null,null,null,null,null,null,null,null,null,null,null,null,null,null,null,null,null,null,"",""]
[null,null,null,null,null,null,null,null,null,null,null,null,null,null,null,null,null,null,null,null,null,null,null,null,null,null,null,null,null,null,null,null,null,null,null,null,null,null,null,null,null,null,null,null,null,null,null,null,null,null,null,null,null,null,"",""]
[null,null,null,null,null,null,null,null,null,null,null,null,null,null,null,null,null,null,null,null,null,null,null,null,null,null,null,null,null,null,null,null,null,null,null,null,null,null,null,null,null,null,null,null,null,null,null,null,null,null,null,null,null,null,"",""]
[null,null,null,null,null,null,null,null,null,null,null,null,null,null,null,null,null,null,null,null,null,null,null,null,null,null,null,null,null,null,null,null,null,null,null,null,null,null,null,null,null,null,null,null,null,null,null,null,null,null,null,null,null,null,"",""]
[null,null,null,null,null,null,null,null,null,null,null,null,null,null,null,null,null,null,null,null,null,null,null,null,null,null,null,null,null,null,null,null,null,null,null,null,null,null,null,null,null,null,null,null,null,null,null,null,null,null,null,null,null,null,"",""]
[null,null,null,null,null,null,null,null,null,null,null,null,null,null,null,null,null,null,null,null,null,null,null,null,null,null,null,null,null,null,null,null,null,null,null,null,null,null,null,null,null,null,null,null,null,null,null,null,null,null,null,null,null,null,"",""]
[null,null,null,null,null,null,null,null,null,null,null,null,null,null,null,null,null,null,null,null,null,null,null,null,null,null,null,null,null,null,null,null,null,null,null,null,null,null,null,null,null,null,null,null,null,null,null,null,null,null,null,null,null,null,"",""]
[null,null,null,null,null,null,null,null,null,null,null,null,null,null,null,null,null,null,null,null,null,null,null,null,null,null,null,null,null,null,null,null,null,null,null,null,null,null,null,null,null,null,null,null,null,null,null,null,null,null,null,null,null,null,"",""]
[null,null,null,null,null,null,null,null,null,null,null,null,null,null,null,null,null,null,null,null,null,null,null,null,null,null,null,null,null,null,null,null,null,null,null,null,null,null,null,null,null,null,null,null,null,null,null,null,null,null,null,null,null,null,"",""]
[null,null,null,null,null,null,null,null,null,null,null,null,null,null,null,null,null,null,null,null,null,null,null,null,null,null,null,null,null,null,null,null,null,null,null,null,null,null,null,null,null,null,null,null,null,null,null,null,null,null,null,null,null,null,"",""]
[null,null,null,null,null,null,null,null,null,null,null,null,null,null,null,null,null,null,null,null,null,null,null,null,null,null,null,null,null,null,null,null,null,null,null,null,null,null,null,null,null,null,null,null,null,null,null,null,null,null,null,null,null,null,"",""]
[null,null,null,null,null,null,null,null,null,null,null,null,null,null,null,null,null,null,null,null,null,null,null,null,null,null,null,null,null,null,null,null,null,null,null,null,null,null,null,null,null,null,null,null,null,null,null,null,null,null,null,null,null,null,"",""]
[null,null,null,null,null,null,null,null,null,null,null,null,null,null,null,null,null,null,null,null,null,null,null,null,null,null,null,null,null,null,null,null,null,null,null,null,null,null,null,null,null,null,null,null,null,null,null,null,null,null,null,null,null,null,"",""]
[null,null,null,null,null,null,null,null,null,null,null,null,null,null,null,null,null,null,null,null,null,null,null,null,null,null,null,null,null,null,null,null,null,null,null,null,null,null,null,null,null,null,null,null,null,null,null,null,null,null,null,null,null,null,"",""]
[null,null,null,null,null,null,null,null,null,null,null,null,null,null,null,null,null,null,null,null,null,null,null,null,null,null,null,null,null,null,null,null,null,null,null,null,null,null,null,null,null,null,null,null,null,null,null,null,null,null,null,null,null,null,"",""]
[null,null,null,null,null,null,null,null,null,null,null,null,null,null,null,null,null,null,null,null,null,null,null,null,null,null,null,null,null,null,null,null,null,null,null,null,null,null,null,null,null,null,null,null,null,null,null,null,null,null,null,null,null,null,"",""]
[null,null,null,null,null,null,null,null,null,null,null,null,null,null,null,null,null,null,null,null,null,null,null,null,null,null,null,null,null,null,null,null,null,null,null,null,null,null,null,null,null,null,null,null,null,null,null,null,null,null,null,null,null,null,"",""]
[null,null,null,null,null,null,null,null,null,null,null,null,null,null,null,null,null,null,null,null,null,null,null,null,null,null,null,null,null,null,null,null,null,null,null,null,null,null,null,null,null,null,null,null,null,null,null,null,null,null,null,null,null,null,"",""]
[null,null,null,null,null,null,null,null,null,null,null,null,null,null,null,null,null,null,null,null,null,null,null,null,null,null,null,null,null,null,null,null,null,null,null,null,null,null,null,null,null,null,null,null,null,null,null,null,null,null,null,null,null,null,"",""]
[null,null,null,null,null,null,null,null,null,null,null,null,null,null,null,null,null,null,null,null,null,null,null,null,null,null,null,null,null,null,null,null,null,null,null,null,null,null,null,null,null,null,null,null,null,null,null,null,null,null,null,null,null,null,"",""]
[null,null,null,null,null,null,null,null,null,null,null,null,null,null,null,null,null,null,null,null,null,null,null,null,null,null,null,null,null,null,null,null,null,null,null,null,null,null,null,null,null,null,null,null,null,null,null,null,null,null,null,null,null,null,"",""]
[null,null,null,null,null,null,null,null,null,null,null,null,null,null,null,null,null,null,null,null,null,null,null,null,null,null,null,null,null,null,null,null,null,null,null,null,null,null,null,null,null,null,null,null,null,null,null,null,null,null,null,null,null,null,"",""]
[null,null,null,null,null,null,null,null,null,null,null,null,null,null,null,null,null,null,null,null,null,null,null,null,null,null,null,null,null,null,null,null,null,null,null,null,null,null,null,null,null,null,null,null,null,null,null,null,null,null,null,null,null,null,"",""]
[null,null,null,null,null,null,null,null,null,null,null,null,null,null,null,null,null,null,null,null,null,null,null,null,null,null,null,null,null,null,null,null,null,null,null,null,null,null,null,null,null,null,null,null,null,null,null,null,null,null,null,null,null,null,"",""]
[null,null,null,null,null,null,null,null,null,null,null,null,null,null,null,null,null,null,null,null,null,null,null,null,null,null,null,null,null,null,null,null,null,null,null,null,null,null,null,null,null,null,null,null,null,null,null,null,null,null,null,null,null,null,"",""]
[null,null,null,null,null,null,null,null,null,null,null,null,null,null,null,null,null,null,null,null,null,null,null,null,null,null,null,null,null,null,null,null,null,null,null,null,null,null,null,null,null,null,null,null,null,null,null,null,null,null,null,null,null,null,"",""]
[null,null,null,null,null,null,null,null,null,null,null,null,null,null,null,null,null,null,null,null,null,null,null,null,null,null,null,null,null,null,null,null,null,null,null,null,null,null,null,null,null,null,null,null,null,null,null,null,null,null,null,null,null,null,"",""]
[null,null,null,null,null,null,null,null,null,null,null,null,null,null,null,null,null,null,null,null,null,null,null,null,null,null,null,null,null,null,null,null,null,null,null,null,null,null,null,null,null,null,null,null,null,null,null,null,null,null,null,null,null,null,"",""]
[null,null,null,null,null,null,null,null,null,null,null,null,null,null,null,null,null,null,null,null,null,null,null,null,null,null,null,null,null,null,null,null,null,null,null,null,null,null,null,null,null,null,null,null,null,null,null,null,null,null,null,null,null,null,"",""]
[null,null,null,null,null,null,null,null,null,null,null,null,null,null,null,null,null,null,null,null,null,null,null,null,null,null,null,null,null,null,null,null,null,null,null,null,null,null,null,null,null,null,null,null,null,null,null,null,null,null,null,null,null,null,"",""]
[null,null,null,null,null,null,null,null,null,null,null,null,null,null,null,null,null,null,null,null,null,null,null,null,null,null,null,null,null,null,null,null,null,null,null,null,null,null,null,null,null,null,null,null,null,null,null,null,null,null,null,null,null,null,"",""]
[null,null,null,null,null,null,null,null,null,null,null,null,null,null,null,null,null,null,null,null,null,null,null,null,null,null,null,null,null,null,null,null,null,null,null,null,null,null,null,null,null,null,null,null,null,null,null,null,null,null,null,null,null,null,"",""]
[null,null,null,null,null,null,null,null,null,null,null,null,null,null,null,null,null,null,null,null,null,null,null,null,null,null,null,null,null,null,null,null,null,null,null,null,null,null,null,null,null,null,null,null,null,null,null,null,null,null,null,null,null,null,"",""]
[null,null,null,null,null,null,null,null,null,null,null,null,null,null,null,null,null,null,null,null,null,null,null,null,null,null,null,null,null,null,null,null,null,null,null,null,null,null,null,null,null,null,null,null,null,null,null,null,null,null,null,null,null,null,"",""]
[null,null,null,null,null,null,null,null,null,null,null,null,null,null,null,null,null,null,null,null,null,null,null,null,null,null,null,null,null,null,null,null,null,null,null,null,null,null,null,null,null,null,null,null,null,null,null,null,null,null,null,null,null,null,"",""]
[null,null,null,null,null,null,null,null,null,null,null,null,null,null,null,null,null,null,null,null,null,null,null,null,null,null,null,null,null,null,null,null,null,null,null,null,null,null,null,null,null,null,null,null,null,null,null,null,null,null,null,null,null,null,"",""]
[null,null,null,null,null,null,null,null,null,null,null,null,null,null,null,null,null,null,null,null,null,null,null,null,null,null,null,null,null,null,null,null,null,null,null,null,null,null,null,null,null,null,null,null,null,null,null,null,null,null,null,null,null,null,"",""]
[null,null,null,null,null,null,null,null,null,null,null,null,null,null,null,null,null,null,null,null,null,null,null,null,null,null,null,null,null,null,null,null,null,null,null,null,null,null,null,null,null,null,null,null,null,null,null,null,null,null,null,null,null,null,"",""]
[null,null,null,null,null,null,null,null,null,null,null,null,null,null,null,null,null,null,null,null,null,null,null,null,null,null,null,null,null,null,null,null,null,null,null,null,null,null,null,null,null,null,null,null,null,null,null,null,null,null,null,null,null,null,"",""]
[null,null,null,null,null,null,null,null,null,null,null,null,null,null,null,null,null,null,null,null,null,null,null,null,null,null,null,null,null,null,null,null,null,null,null,null,null,null,null,null,null,null,null,null,null,null,null,null,null,null,null,null,null,null,"",""]
[null,null,null,null,null,null,null,null,null,null,null,null,null,null,null,null,null,null,null,null,null,null,null,null,null,null,null,null,null,null,null,null,null,null,null,null,null,null,null,null,null,null,null,null,null,null,null,null,null,null,null,null,null,null,"",""]
[null,null,null,null,null,null,null,null,null,null,null,null,null,null,null,null,null,null,null,null,null,null,null,null,null,null,null,null,null,null,null,null,null,null,null,null,null,null,null,null,null,null,null,null,null,null,null,null,null,null,null,null,null,null,"",""]
[null,null,null,null,null,null,null,null,null,null,null,null,null,null,null,null,null,null,null,null,null,null,null,null,null,null,null,null,null,null,null,null,null,null,null,null,null,null,null,null,null,null,null,null,null,null,null,null,null,null,null,null,null,null,"",""]
[null,null,null,null,null,null,null,null,null,null,null,null,null,null,null,null,null,null,null,null,null,null,null,null,null,null,null,null,null,null,null,null,null,null,null,null,null,null,null,null,null,null,null,null,null,null,null,null,null,null,null,null,null,null,"",""]
[null,null,null,null,null,null,null,null,null,null,null,null,null,null,null,null,null,null,null,null,null,null,null,null,null,null,null,null,null,null,null,null,null,null,null,null,null,null,null,null,null,null,null,null,null,null,null,null,null,null,null,null,null,null,"",""]
[null,null,null,null,null,null,null,null,null,null,null,null,null,null,null,null,null,null,null,null,null,null,null,null,null,null,null,null,null,null,null,null,null,null,null,null,null,null,null,null,null,null,null,null,null,null,null,null,null,null,null,null,null,null,"",""]
[null,null,null,null,null,null,null,null,null,null,null,null,null,null,null,null,null,null,null,null,null,null,null,null,null,null,null,null,null,null,null,null,null,null,null,null,null,null,null,null,null,null,null,null,null,null,null,null,null,null,null,null,null,null,"",""]
[null,null,null,null,null,null,null,null,null,null,null,null,null,null,null,null,null,null,null,null,null,null,null,null,null,null,null,null,null,null,null,null,null,null,null,null,null,null,null,null,null,null,null,null,null,null,null,null,null,null,null,null,null,null,"",""]
[null,null,null,null,null,null,null,null,null,null,null,null,null,null,null,null,null,null,null,null,null,null,null,null,null,null,null,null,null,null,null,null,null,null,null,null,null,null,null,null,null,null,null,null,null,null,null,null,null,null,null,null,null,null,"",""]
[null,null,null,null,null,null,null,null,null,null,null,null,null,null,null,null,null,null,null,null,null,null,null,null,null,null,null,null,null,null,null,null,null,null,null,null,null,null,null,null,null,null,null,null,null,null,null,null,null,null,null,null,null,null,"",""]
[null,null,null,null,null,null,null,null,null,null,null,null,null,null,null,null,null,null,null,null,null,null,null,null,null,null,null,null,null,null,null,null,null,null,null,null,null,null,null,null,null,null,null,null,null,null,null,null,null,null,null,null,null,null,"",""]
[null,null,null,null,null,null,null,null,null,null,null,null,null,null,null,null,null,null,null,null,null,null,null,null,null,null,null,null,null,null,null,null,null,null,null,null,null,null,null,null,null,null,null,null,null,null,null,null,null,null,null,null,null,null,"",""]
[null,null,null,null,null,null,null,null,null,null,null,null,null,null,null,null,null,null,null,null,null,null,null,null,null,null,null,null,null,null,null,null,null,null,null,null,null,null,null,null,null,null,null,null,null,null,null,null,null,null,null,null,null,null,"",""]
[null,null,null,null,null,null,null,null,null,null,null,null,null,null,null,null,null,null,null,null,null,null,null,null,null,null,null,null,null,null,null,null,null,null,null,null,null,null,null,null,null,null,null,null,null,null,null,null,null,null,null,null,null,null,"",""]
[null,null,null,null,null,null,null,null,null,null,null,null,null,null,null,null,null,null,null,null,null,null,null,null,null,null,null,null,null,null,null,null,null,null,null,null,null,null,null,null,null,null,null,null,null,null,null,null,null,null,null,null,null,null,"",""]
[null,null,null,null,null,null,null,null,null,null,null,null,null,null,null,null,null,null,null,null,null,null,null,null,null,null,null,null,null,null,null,null,null,null,null,null,null,null,null,null,null,null,null,null,null,null,null,null,null,null,null,null,null,null,"",""]
[null,null,null,null,null,null,null,null,null,null,null,null,null,null,null,null,null,null,null,null,null,null,null,null,null,null,null,null,null,null,null,null,null,null,null,null,null,null,null,null,null,null,null,null,null,null,null,null,null,null,null,null,null,null,"",""]
[null,null,null,null,null,null,null,null,null,null,null,null,null,null,null,null,null,null,null,null,null,null,null,null,null,null,null,null,null,null,null,null,null,null,null,null,null,null,null,null,null,null,null,null,null,null,null,null,null,null,null,null,null,null,"",""]
[null,null,null,null,null,null,null,null,null,null,null,null,null,null,null,null,null,null,null,null,null,null,null,null,null,null,null,null,null,null,null,null,null,null,null,null,null,null,null,null,null,null,null,null,null,null,null,null,null,null,null,null,null,null,"",""]
[null,null,null,null,null,null,null,null,null,null,null,null,null,null,null,null,null,null,null,null,null,null,null,null,null,null,null,null,null,null,null,null,null,null,null,null,null,null,null,null,null,null,null,null,null,null,null,null,null,null,null,null,null,null,"",""]
[null,null,null,null,null,null,null,null,null,null,null,null,null,null,null,null,null,null,null,null,null,null,null,null,null,null,null,null,null,null,null,null,null,null,null,null,null,null,null,null,null,null,null,null,null,null,null,null,null,null,null,null,null,null,"",""]
[null,null,null,null,null,null,null,null,null,null,null,null,null,null,null,null,null,null,null,null,null,null,null,null,null,null,null,null,null,null,null,null,null,null,null,null,null,null,null,null,null,null,null,null,null,null,null,null,null,null,null,null,null,null,"",""]
[null,null,null,null,null,null,null,null,null,null,null,null,null,null,null,null,null,null,null,null,null,null,null,null,null,null,null,null,null,null,null,null,null,null,null,null,null,null,null,null,null,null,null,null,null,null,null,null,null,null,null,null,null,null,"",""]
[null,null,null,null,null,null,null,null,null,null,null,null,null,null,null,null,null,null,null,null,null,null,null,null,null,null,null,null,null,null,null,null,null,null,null,null,null,null,null,null,null,null,null,null,null,null,null,null,null,null,null,null,null,null,"",""]
[null,null,null,null,null,null,null,null,null,null,null,null,null,null,null,null,null,null,null,null,null,null,null,null,null,null,null,null,null,null,null,null,null,null,null,null,null,null,null,null,null,null,null,null,null,null,null,null,null,null,null,null,null,null,"",""]
[null,null,null,null,null,null,null,null,null,null,null,null,null,null,null,null,null,null,null,null,null,null,null,null,null,null,null,null,null,null,null,null,null,null,null,null,null,null,null,null,null,null,null,null,null,null,null,null,null,null,null,null,null,null,"",""]
[null,null,null,null,null,null,null,null,null,null,null,null,null,null,null,null,null,null,null,null,null,null,null,null,null,null,null,null,null,null,null,null,null,null,null,null,null,null,null,null,null,null,null,null,null,null,null,null,null,null,null,null,null,null,"",""]
[null,null,null,null,null,null,null,null,null,null,null,null,null,null,null,null,null,null,null,null,null,null,null,null,null,null,null,null,null,null,null,null,null,null,null,null,null,null,null,null,null,null,null,null,null,null,null,null,null,null,null,null,null,null,"",""]
[null,null,null,null,null,null,null,null,null,null,null,null,null,null,null,null,null,null,null,null,null,null,null,null,null,null,null,null,null,null,null,null,null,null,null,null,null,null,null,null,null,null,null,null,null,null,null,null,null,null,null,null,null,null,"",""]
[null,null,null,null,null,null,null,null,null,null,null,null,null,null,null,null,null,null,null,null,null,null,null,null,null,null,null,null,null,null,null,null,null,null,null,null,null,null,null,null,null,null,null,null,null,null,null,null,null,null,null,null,null,null,"",""]
[null,null,null,null,null,null,null,null,null,null,null,null,null,null,null,null,null,null,null,null,null,null,null,null,null,null,null,null,null,null,null,null,null,null,null,null,null,null,null,null,null,null,null,null,null,null,null,null,null,null,null,null,null,null,"",""]
[null,null,null,null,null,null,null,null,null,null,null,null,null,null,null,null,null,null,null,null,null,null,null,null,null,null,null,null,null,null,null,null,null,null,null,null,null,null,null,null,null,null,null,null,null,null,null,null,null,null,null,null,null,null,"",""]
[null,null,null,null,null,null,null,null,null,null,null,null,null,null,null,null,null,null,null,null,null,null,null,null,null,null,null,null,null,null,null,null,null,null,null,null,null,null,null,null,null,null,null,null,null,null,null,null,null,null,null,null,null,null,"",""]
[null,null,null,null,null,null,null,null,null,null,null,null,null,null,null,null,null,null,null,null,null,null,null,null,null,null,null,null,null,null,null,null,null,null,null,null,null,null,null,null,null,null,null,null,null,null,null,null,null,null,null,null,null,null,"",""]
[null,null,null,null,null,null,null,null,null,null,null,null,null,null,null,null,null,null,null,null,null,null,null,null,null,null,null,null,null,null,null,null,null,null,null,null,null,null,null,null,null,null,null,null,null,null,null,null,null,null,null,null,null,null,"",""]
[null,null,null,null,null,null,null,null,null,null,null,null,null,null,null,null,null,null,null,null,null,null,null,null,null,null,null,null,null,null,null,null,null,null,null,null,null,null,null,null,null,null,null,null,null,null,null,null,null,null,null,null,null,null,"",""]
[null,null,null,null,null,null,null,null,null,null,null,null,null,null,null,null,null,null,null,null,null,null,null,null,null,null,null,null,null,null,null,null,null,null,null,null,null,null,null,null,null,null,null,null,null,null,null,null,null,null,null,null,null,null,"",""]
[null,null,null,null,null,null,null,null,null,null,null,null,null,null,null,null,null,null,null,null,null,null,null,null,null,null,null,null,null,null,null,null,null,null,null,null,null,null,null,null,null,null,null,null,null,null,null,null,null,null,null,null,null,null,"",""]
[null,null,null,null,null,null,null,null,null,null,null,null,null,null,null,null,null,null,null,null,null,null,null,null,null,null,null,null,null,null,null,null,null,null,null,null,null,null,null,null,null,null,null,null,null,null,null,null,null,null,null,null,null,null,"",""]
[null,null,null,null,null,null,null,null,null,null,null,null,null,null,null,null,null,null,null,null,null,null,null,null,null,null,null,null,null,null,null,null,null,null,null,null,null,null,null,null,null,null,null,null,null,null,null,null,null,null,null,null,null,null,"",""]
[null,null,null,null,null,null,null,null,null,null,null,null,null,null,null,null,null,null,null,null,null,null,null,null,null,null,null,null,null,null,null,null,null,null,null,null,null,null,null,null,null,null,null,null,null,null,null,null,null,null,null,null,null,null,"",""]
[null,null,null,null,null,null,null,null,null,null,null,null,null,null,null,null,null,null,null,null,null,null,null,null,null,null,null,null,null,null,null,null,null,null,null,null,null,null,null,null,null,null,null,null,null,null,null,null,null,null,null,null,null,null,"",""]
[null,null,null,null,null,null,null,null,null,null,null,null,null,null,null,null,null,null,null,null,null,null,null,null,null,null,null,null,null,null,null,null,null,null,null,null,null,null,null,null,null,null,null,null,null,null,null,null,null,null,null,null,null,null,{"$f":"SUBSTITUTE(SUBSTITUTE(E2835,\"　\",\"\"),\" \",\"\")","v":""},{"$f":"BC2835&H2835","v":""}]
[null,null,null,null,null,null,null,null,null,null,null,null,null,null,null,null,null,null,null,null,null,null,null,null,null,null,null,null,null,null,null,null,null,null,null,null,null,null,null,null,null,null,null,null,null,null,null,null,null,null,null,null,null,null,"",""]
[null,null,null,null,null,null,null,null,null,null,null,null,null,null,null,null,null,null,null,null,null,null,null,null,null,null,null,null,null,null,null,null,null,null,null,null,null,null,null,null,null,null,null,null,null,null,null,null,null,null,null,null,null,null,"",""]
[null,null,null,null,null,null,null,null,null,null,null,null,null,null,null,null,null,null,null,null,null,null,null,null,null,null,null,null,null,null,null,null,null,null,null,null,null,null,null,null,null,null,null,null,null,null,null,null,null,null,null,null,null,null,"",""]
[null,null,null,null,null,null,null,null,null,null,null,null,null,null,null,null,null,null,null,null,null,null,null,null,null,null,null,null,null,null,null,null,null,null,null,null,null,null,null,null,null,null,null,null,null,null,null,null,null,null,null,null,null,null,"",""]
[null,null,null,null,null,null,null,null,null,null,null,null,null,null,null,null,null,null,null,null,null,null,null,null,null,null,null,null,null,null,null,null,null,null,null,null,null,null,null,null,null,null,null,null,null,null,null,null,null,null,null,null,null,null,"",""]
[null,null,null,null,null,null,null,null,null,null,null,null,null,null,null,null,null,null,null,null,null,null,null,null,null,null,null,null,null,null,null,null,null,null,null,null,null,null,null,null,null,null,null,null,null,null,null,null,null,null,null,null,null,null,"",""]
[null,null,null,null,null,null,null,null,null,null,null,null,null,null,null,null,null,null,null,null,null,null,null,null,null,null,null,null,null,null,null,null,null,null,null,null,null,null,null,null,null,null,null,null,null,null,null,null,null,null,null,null,null,null,"",""]
[null,null,null,null,null,null,null,null,null,null,null,null,null,null,null,null,null,null,null,null,null,null,null,null,null,null,null,null,null,null,null,null,null,null,null,null,null,null,null,null,null,null,null,null,null,null,null,null,null,null,null,null,null,null,"",""]
[null,null,null,null,null,null,null,null,null,null,null,null,null,null,null,null,null,null,null,null,null,null,null,null,null,null,null,null,null,null,null,null,null,null,null,null,null,null,null,null,null,null,null,null,null,null,null,null,null,null,null,null,null,null,"",""]
[null,null,null,null,null,null,null,null,null,null,null,null,null,null,null,null,null,null,null,null,null,null,null,null,null,null,null,null,null,null,null,null,null,null,null,null,null,null,null,null,null,null,null,null,null,null,null,null,null,null,null,null,null,null,"",""]
[null,null,null,null,null,null,null,null,null,null,null,null,null,null,null,null,null,null,null,null,null,null,null,null,null,null,null,null,null,null,null,null,null,null,null,null,null,null,null,null,null,null,null,null,null,null,null,null,null,null,null,null,null,null,""]
[null,null,null,null,null,null,null,null,null,null,null,null,null,null,null,null,null,null,null,null,null,null,null,null,null,null,null,null,null,null,null,null,null,null,null,null,null,null,null,null,null,null,null,null,null,null,null,null,null,null,null,null,null,null,""]
[null,null,null,null,null,null,null,null,null,null,null,null,null,null,null,null,null,null,null,null,null,null,null,null,null,null,null,null,null,null,null,null,null,null,null,null,null,null,null,null,null,null,null,null,null,null,null,null,null,null,null,null,null,null,""]
[null,null,null,null,null,null,null,null,null,null,null,null,null,null,null,null,null,null,null,null,null,null,null,null,null,null,null,null,null,null,null,null,null,null,null,null,null,null,null,null,null,null,null,null,null,null,null,null,null,null,null,null,null,null,""]
[null,null,null,null,null,null,null,null,null,null,null,null,null,null,null,null,null,null,null,null,null,null,null,null,null,null,null,null,null,null,null,null,null,null,null,null,null,null,null,null,null,null,null,null,null,null,null,null,null,null,null,null,null,null,""]
[null,null,null,null,null,null,null,null,null,null,null,null,null,null,null,null,null,null,null,null,null,null,null,null,null,null,null,null,null,null,null,null,null,null,null,null,null,null,null,null,null,null,null,null,null,null,null,null,null,null,null,null,null,null,""]
[null,null,null,null,null,null,null,null,null,null,null,null,null,null,null,null,null,null,null,null,null,null,null,null,null,null,null,null,null,null,null,null,null,null,null,null,null,null,null,null,null,null,null,null,null,null,null,null,null,null,null,null,null,null,""]
[null,null,null,null,null,null,null,null,null,null,null,null,null,null,null,null,null,null,null,null,null,null,null,null,null,null,null,null,null,null,null,null,null,null,null,null,null,null,null,null,null,null,null,null,null,null,null,null,null,null,null,null,null,null,""]
[null,null,null,null,null,null,null,null,null,null,null,null,null,null,null,null,null,null,null,null,null,null,null,null,null,null,null,null,null,null,null,null,null,null,null,null,null,null,null,null,null,null,null,null,null,null,null,null,null,null,null,null,null,null,""]
[null,null,null,null,null,null,null,null,null,null,null,null,null,null,null,null,null,null,null,null,null,null,null,null,null,null,null,null,null,null,null,null,null,null,null,null,null,null,null,null,null,null,null,null,null,null,null,null,null,null,null,null,null,null,""]
[null,null,null,null,null,null,null,null,null,null,null,null,null,null,null,null,null,null,null,null,null,null,null,null,null,null,null,null,null,null,null,null,null,null,null,null,null,null,null,null,null,null,null,null,null,null,null,null,null,null,null,null,null,null,""]
[null,null,null,null,null,null,null,null,null,null,null,null,null,null,null,null,null,null,null,null,null,null,null,null,null,null,null,null,null,null,null,null,null,null,null,null,null,null,null,null,null,null,null,null,null,null,null,null,null,null,null,null,null,null,""]
[null,null,null,null,null,null,null,null,null,null,null,null,null,null,null,null,null,null,null,null,null,null,null,null,null,null,null,null,null,null,null,null,null,null,null,null,null,null,null,null,null,null,null,null,null,null,null,null,null,null,null,null,null,null,""]
[null,null,null,null,null,null,null,null,null,null,null,null,null,null,null,null,null,null,null,null,null,null,null,null,null,null,null,null,null,null,null,null,null,null,null,null,null,null,null,null,null,null,null,null,null,null,null,null,null,null,null,null,null,null,""]
[null,null,null,null,null,null,null,null,null,null,null,null,null,null,null,null,null,null,null,null,null,null,null,null,null,null,null,null,null,null,null,null,null,null,null,null,null,null,null,null,null,null,null,null,null,null,null,null,null,null,null,null,null,null,""]
[null,null,null,null,null,null,null,null,null,null,null,null,null,null,null,null,null,null,null,null,null,null,null,null,null,null,null,null,null,null,null,null,null,null,null,null,null,null,null,null,null,null,null,null,null,null,null,null,null,null,null,null,null,null,""]
[null,null,null,null,null,null,null,null,null,null,null,null,null,null,null,null,null,null,null,null,null,null,null,null,null,null,null,null,null,null,null,null,null,null,null,null,null,null,null,null,null,null,null,null,null,null,null,null,null,null,null,null,null,null,""]
[null,null,null,null,null,null,null,null,null,null,null,null,null,null,null,null,null,null,null,null,null,null,null,null,null,null,null,null,null,null,null,null,null,null,null,null,null,null,null,null,null,null,null,null,null,null,null,null,null,null,null,null,null,null,""]
[null,null,null,null,null,null,null,null,null,null,null,null,null,null,null,null,null,null,null,null,null,null,null,null,null,null,null,null,null,null,null,null,null,null,null,null,null,null,null,null,null,null,null,null,null,null,null,null,null,null,null,null,null,null,""]
[null,null,null,null,null,null,null,null,null,null,null,null,null,null,null,null,null,null,null,null,null,null,null,null,null,null,null,null,null,null,null,null,null,null,null,null,null,null,null,null,null,null,null,null,null,null,null,null,null,null,null,null,null,null,""]
[null,null,null,null,null,null,null,null,null,null,null,null,null,null,null,null,null,null,null,null,null,null,null,null,null,null,null,null,null,null,null,null,null,null,null,null,null,null,null,null,null,null,null,null,null,null,null,null,null,null,null,null,null,null,""]
[null,null,null,null,null,null,null,null,null,null,null,null,null,null,null,null,null,null,null,null,null,null,null,null,null,null,null,null,null,null,null,null,null,null,null,null,null,null,null,null,null,null,null,null,null,null,null,null,null,null,null,null,null,null,""]
[null,null,null,null,null,null,null,null,null,null,null,null,null,null,null,null,null,null,null,null,null,null,null,null,null,null,null,null,null,null,null,null,null,null,null,null,null,null,null,null,null,null,null,null,null,null,null,null,null,null,null,null,null,null,""]
[null,null,null,null,null,null,null,null,null,null,null,null,null,null,null,null,null,null,null,null,null,null,null,null,null,null,null,null,null,null,null,null,null,null,null,null,null,null,null,null,null,null,null,null,null,null,null,null,null,null,null,null,null,null,""]
[null,null,null,null,null,null,null,null,null,null,null,null,null,null,null,null,null,null,null,null,null,null,null,null,null,null,null,null,null,null,null,null,null,null,null,null,null,null,null,null,null,null,null,null,null,null,null,null,null,null,null,null,null,null,""]
[null,null,null,null,null,null,null,null,null,null,null,null,null,null,null,null,null,null,null,null,null,null,null,null,null,null,null,null,null,null,null,null,null,null,null,null,null,null,null,null,null,null,null,null,null,null,null,null,null,null,null,null,null,null,""]
[null,null,null,null,null,null,null,null,null,null,null,null,null,null,null,null,null,null,null,null,null,null,null,null,null,null,null,null,null,null,null,null,null,null,null,null,null,null,null,null,null,null,null,null,null,null,null,null,null,null,null,null,null,null,""]
[null,null,null,null,null,null,null,null,null,null,null,null,null,null,null,null,null,null,null,null,null,null,null,null,null,null,null,null,null,null,null,null,null,null,null,null,null,null,null,null,null,null,null,null,null,null,null,null,null,null,null,null,null,null,""]
[null,null,null,null,null,null,null,null,null,null,null,null,null,null,null,null,null,null,null,null,null,null,null,null,null,null,null,null,null,null,null,null,null,null,null,null,null,null,null,null,null,null,null,null,null,null,null,null,null,null,null,null,null,null,""]
[null,null,null,null,null,null,null,null,null,null,null,null,null,null,null,null,null,null,null,null,null,null,null,null,null,null,null,null,null,null,null,null,null,null,null,null,null,null,null,null,null,null,null,null,null,null,null,null,null,null,null,null,null,null,""]
[null,null,null,null,null,null,null,null,null,null,null,null,null,null,null,null,null,null,null,null,null,null,null,null,null,null,null,null,null,null,null,null,null,null,null,null,null,null,null,null,null,null,null,null,null,null,null,null,null,null,null,null,null,null,""]
[null,null,null,null,null,null,null,null,null,null,null,null,null,null,null,null,null,null,null,null,null,null,null,null,null,null,null,null,null,null,null,null,null,null,null,null,null,null,null,null,null,null,null,null,null,null,null,null,null,null,null,null,null,null,""]
[null,null,null,null,null,null,null,null,null,null,null,null,null,null,null,null,null,null,null,null,null,null,null,null,null,null,null,null,null,null,null,null,null,null,null,null,null,null,null,null,null,null,null,null,null,null,null,null,null,null,null,null,null,null,""]
[null,null,null,null,null,null,null,null,null,null,null,null,null,null,null,null,null,null,null,null,null,null,null,null,null,null,null,null,null,null,null,null,null,null,null,null,null,null,null,null,null,null,null,null,null,null,null,null,null,null,null,null,null,null,""]
[null,null,null,null,null,null,null,null,null,null,null,null,null,null,null,null,null,null,null,null,null,null,null,null,null,null,null,null,null,null,null,null,null,null,null,null,null,null,null,null,null,null,null,null,null,null,null,null,null,null,null,null,null,null,""]
[null,null,null,null,null,null,null,null,null,null,null,null,null,null,null,null,null,null,null,null,null,null,null,null,null,null,null,null,null,null,null,null,null,null,null,null,null,null,null,null,null,null,null,null,null,null,null,null,null,null,null,null,null,null,""]
[null,null,null,null,null,null,null,null,null,null,null,null,null,null,null,null,null,null,null,null,null,null,null,null,null,null,null,null,null,null,null,null,null,null,null,null,null,null,null,null,null,null,null,null,null,null,null,null,null,null,null,null,null,null,""]
[null,null,null,null,null,null,null,null,null,null,null,null,null,null,null,null,null,null,null,null,null,null,null,null,null,null,null,null,null,null,null,null,null,null,null,null,null,null,null,null,null,null,null,null,null,null,null,null,null,null,null,null,null,null,""]
[null,null,null,null,null,null,null,null,null,null,null,null,null,null,null,null,null,null,null,null,null,null,null,null,null,null,null,null,null,null,null,null,null,null,null,null,null,null,null,null,null,null,null,null,null,null,null,null,null,null,null,null,null,null,""]
[null,null,null,null,null,null,null,null,null,null,null,null,null,null,null,null,null,null,null,null,null,null,null,null,null,null,null,null,null,null,null,null,null,null,null,null,null,null,null,null,null,null,null,null,null,null,null,null,null,null,null,null,null,null,""]
[null,null,null,null,null,null,null,null,null,null,null,null,null,null,null,null,null,null,null,null,null,null,null,null,null,null,null,null,null,null,null,null,null,null,null,null,null,null,null,null,null,null,null,null,null,null,null,null,null,null,null,null,null,null,""]
[null,null,null,null,null,null,null,null,null,null,null,null,null,null,null,null,null,null,null,null,null,null,null,null,null,null,null,null,null,null,null,null,null,null,null,null,null,null,null,null,null,null,null,null,null,null,null,null,null,null,null,null,null,null,""]
[null,null,null,null,null,null,null,null,null,null,null,null,null,null,null,null,null,null,null,null,null,null,null,null,null,null,null,null,null,null,null,null,null,null,null,null,null,null,null,null,null,null,null,null,null,null,null,null,null,null,null,null,null,null,""]
[null,null,null,null,null,null,null,null,null,null,null,null,null,null,null,null,null,null,null,null,null,null,null,null,null,null,null,null,null,null,null,null,null,null,null,null,null,null,null,null,null,null,null,null,null,null,null,null,null,null,null,null,null,null,""]
[null,null,null,null,null,null,null,null,null,null,null,null,null,null,null,null,null,null,null,null,null,null,null,null,null,null,null,null,null,null,null,null,null,null,null,null,null,null,null,null,null,null,null,null,null,null,null,null,null,null,null,null,null,null,""]
[null,null,null,null,null,null,null,null,null,null,null,null,null,null,null,null,null,null,null,null,null,null,null,null,null,null,null,null,null,null,null,null,null,null,null,null,null,null,null,null,null,null,null,null,null,null,null,null,null,null,null,null,null,null,""]
[null,null,null,null,null,null,null,null,null,null,null,null,null,null,null,null,null,null,null,null,null,null,null,null,null,null,null,null,null,null,null,null,null,null,null,null,null,null,null,null,null,null,null,null,null,null,null,null,null,null,null,null,null,null,""]
[null,null,null,null,null,null,null,null,null,null,null,null,null,null,null,null,null,null,null,null,null,null,null,null,null,null,null,null,null,null,null,null,null,null,null,null,null,null,null,null,null,null,null,null,null,null,null,null,null,null,null,null,null,null,""]
[null,null,null,null,null,null,null,null,null,null,null,null,null,null,null,null,null,null,null,null,null,null,null,null,null,null,null,null,null,null,null,null,null,null,null,null,null,null,null,null,null,null,null,null,null,null,null,null,null,null,null,null,null,null,""]
[null,null,null,null,null,null,null,null,null,null,null,null,null,null,null,null,null,null,null,null,null,null,null,null,null,null,null,null,null,null,null,null,null,null,null,null,null,null,null,null,null,null,null,null,null,null,null,null,null,null,null,null,null,null,""]
[null,null,null,null,null,null,null,null,null,null,null,null,null,null,null,null,null,null,null,null,null,null,null,null,null,null,null,null,null,null,null,null,null,null,null,null,null,null,null,null,null,null,null,null,null,null,null,null,null,null,null,null,null,null,""]
[null,null,null,null,null,null,null,null,null,null,null,null,null,null,null,null,null,null,null,null,null,null,null,null,null,null,null,null,null,null,null,null,null,null,null,null,null,null,null,null,null,null,null,null,null,null,null,null,null,null,null,null,null,null,""]
[null,null,null,null,null,null,null,null,null,null,null,null,null,null,null,null,null,null,null,null,null,null,null,null,null,null,null,null,null,null,null,null,null,null,null,null,null,null,null,null,null,null,null,null,null,null,null,null,null,null,null,null,null,null,""]
[null,null,null,null,null,null,null,null,null,null,null,null,null,null,null,null,null,null,null,null,null,null,null,null,null,null,null,null,null,null,null,null,null,null,null,null,null,null,null,null,null,null,null,null,null,null,null,null,null,null,null,null,null,null,""]
[null,null,null,null,null,null,null,null,null,null,null,null,null,null,null,null,null,null,null,null,null,null,null,null,null,null,null,null,null,null,null,null,null,null,null,null,null,null,null,null,null,null,null,null,null,null,null,null,null,null,null,null,null,null,""]
[null,null,null,null,null,null,null,null,null,null,null,null,null,null,null,null,null,null,null,null,null,null,null,null,null,null,null,null,null,null,null,null,null,null,null,null,null,null,null,null,null,null,null,null,null,null,null,null,null,null,null,null,null,null,""]
[null,null,null,null,null,null,null,null,null,null,null,null,null,null,null,null,null,null,null,null,null,null,null,null,null,null,null,null,null,null,null,null,null,null,null,null,null,null,null,null,null,null,null,null,null,null,null,null,null,null,null,null,null,null,""]
[null,null,null,null,null,null,null,null,null,null,null,null,null,null,null,null,null,null,null,null,null,null,null,null,null,null,null,null,null,null,null,null,null,null,null,null,null,null,null,null,null,null,null,null,null,null,null,null,null,null,null,null,null,null,""]
[null,null,null,null,null,null,null,null,null,null,null,null,null,null,null,null,null,null,null,null,null,null,null,null,null,null,null,null,null,null,null,null,null,null,null,null,null,null,null,null,null,null,null,null,null,null,null,null,null,null,null,null,null,null,""]
[null,null,null,null,null,null,null,null,null,null,null,null,null,null,null,null,null,null,null,null,null,null,null,null,null,null,null,null,null,null,null,null,null,null,null,null,null,null,null,null,null,null,null,null,null,null,null,null,null,null,null,null,null,null,""]
[null,null,null,null,null,null,null,null,null,null,null,null,null,null,null,null,null,null,null,null,null,null,null,null,null,null,null,null,null,null,null,null,null,null,null,null,null,null,null,null,null,null,null,null,null,null,null,null,null,null,null,null,null,null,{"$f":"SUBSTITUTE(SUBSTITUTE(E3668,\"　\",\"\"),\" \",\"\")","v":""}]
[null,null,null,null,null,null,null,null,null,null,null,null,null,null,null,null,null,null,null,null,null,null,null,null,null,null,null,null,null,null,null,null,null,null,null,null,null,null,null,null,null,null,null,null,null,null,null,null,null,null,null,null,null,null,""]
[null,null,null,null,null,null,null,null,null,null,null,null,null,null,null,null,null,null,null,null,null,null,null,null,null,null,null,null,null,null,null,null,null,null,null,null,null,null,null,null,null,null,null,null,null,null,null,null,null,null,null,null,null,null,""]
[null,null,null,null,null,null,null,null,null,null,null,null,null,null,null,null,null,null,null,null,null,null,null,null,null,null,null,null,null,null,null,null,null,null,null,null,null,null,null,null,null,null,null,null,null,null,null,null,null,null,null,null,null,null,""]
[null,null,null,null,null,null,null,null,null,null,null,null,null,null,null,null,null,null,null,null,null,null,null,null,null,null,null,null,null,null,null,null,null,null,null,null,null,null,null,null,null,null,null,null,null,null,null,null,null,null,null,null,null,null,""]
[null,null,null,null,null,null,null,null,null,null,null,null,null,null,null,null,null,null,null,null,null,null,null,null,null,null,null,null,null,null,null,null,null,null,null,null,null,null,null,null,null,null,null,null,null,null,null,null,null,null,null,null,null,null,""]
[null,null,null,null,null,null,null,null,null,null,null,null,null,null,null,null,null,null,null,null,null,null,null,null,null,null,null,null,null,null,null,null,null,null,null,null,null,null,null,null,null,null,null,null,null,null,null,null,null,null,null,null,null,null,""]
[null,null,null,null,null,null,null,null,null,null,null,null,null,null,null,null,null,null,null,null,null,null,null,null,null,null,null,null,null,null,null,null,null,null,null,null,null,null,null,null,null,null,null,null,null,null,null,null,null,null,null,null,null,null,""]
[null,null,null,null,null,null,null,null,null,null,null,null,null,null,null,null,null,null,null,null,null,null,null,null,null,null,null,null,null,null,null,null,null,null,null,null,null,null,null,null,null,null,null,null,null,null,null,null,null,null,null,null,null,null,""]
[null,null,null,null,null,null,null,null,null,null,null,null,null,null,null,null,null,null,null,null,null,null,null,null,null,null,null,null,null,null,null,null,null,null,null,null,null,null,null,null,null,null,null,null,null,null,null,null,null,null,null,null,null,null,""]
[null,null,null,null,null,null,null,null,null,null,null,null,null,null,null,null,null,null,null,null,null,null,null,null,null,null,null,null,null,null,null,null,null,null,null,null,null,null,null,null,null,null,null,null,null,null,null,null,null,null,null,null,null,null,""]
[null,null,null,null,null,null,null,null,null,null,null,null,null,null,null,null,null,null,null,null,null,null,null,null,null,null,null,null,null,null,null,null,null,null,null,null,null,null,null,null,null,null,null,null,null,null,null,null,null,null,null,null,null,null,""]
[null,null,null,null,null,null,null,null,null,null,null,null,null,null,null,null,null,null,null,null,null,null,null,null,null,null,null,null,null,null,null,null,null,null,null,null,null,null,null,null,null,null,null,null,null,null,null,null,null,null,null,null,null,null,""]
[null,null,null,null,null,null,null,null,null,null,null,null,null,null,null,null,null,null,null,null,null,null,null,null,null,null,null,null,null,null,null,null,null,null,null,null,null,null,null,null,null,null,null,null,null,null,null,null,null,null,null,null,null,null,""]
[null,null,null,null,null,null,null,null,null,null,null,null,null,null,null,null,null,null,null,null,null,null,null,null,null,null,null,null,null,null,null,null,null,null,null,null,null,null,null,null,null,null,null,null,null,null,null,null,null,null,null,null,null,null,""]
[null,null,null,null,null,null,null,null,null,null,null,null,null,null,null,null,null,null,null,null,null,null,null,null,null,null,null,null,null,null,null,null,null,null,null,null,null,null,null,null,null,null,null,null,null,null,null,null,null,null,null,null,null,null,""]
[null,null,null,null,null,null,null,null,null,null,null,null,null,null,null,null,null,null,null,null,null,null,null,null,null,null,null,null,null,null,null,null,null,null,null,null,null,null,null,null,null,null,null,null,null,null,null,null,null,null,null,null,null,null,""]
[null,null,null,null,null,null,null,null,null,null,null,null,null,null,null,null,null,null,null,null,null,null,null,null,null,null,null,null,null,null,null,null,null,null,null,null,null,null,null,null,null,null,null,null,null,null,null,null,null,null,null,null,null,null,""]
[null,null,null,null,null,null,null,null,null,null,null,null,null,null,null,null,null,null,null,null,null,null,null,null,null,null,null,null,null,null,null,null,null,null,null,null,null,null,null,null,null,null,null,null,null,null,null,null,null,null,null,null,null,null,""]
[null,null,null,null,null,null,null,null,null,null,null,null,null,null,null,null,null,null,null,null,null,null,null,null,null,null,null,null,null,null,null,null,null,null,null,null,null,null,null,null,null,null,null,null,null,null,null,null,null,null,null,null,null,null,""]
[null,null,null,null,null,null,null,null,null,null,null,null,null,null,null,null,null,null,null,null,null,null,null,null,null,null,null,null,null,null,null,null,null,null,null,null,null,null,null,null,null,null,null,null,null,null,null,null,null,null,null,null,null,null,""]
[null,null,null,null,null,null,null,null,null,null,null,null,null,null,null,null,null,null,null,null,null,null,null,null,null,null,null,null,null,null,null,null,null,null,null,null,null,null,null,null,null,null,null,null,null,null,null,null,null,null,null,null,null,null,""]
[null,null,null,null,null,null,null,null,null,null,null,null,null,null,null,null,null,null,null,null,null,null,null,null,null,null,null,null,null,null,null,null,null,null,null,null,null,null,null,null,null,null,null,null,null,null,null,null,null,null,null,null,null,null,{"$f":"SUBSTITUTE(SUBSTITUTE(E3924,\"　\",\"\"),\" \",\"\")","v":""}]
[null,null,null,null,null,null,null,null,null,null,null,null,null,null,null,null,null,null,null,null,null,null,null,null,null,null,null,null,null,null,null,null,null,null,null,null,null,null,null,null,null,null,null,null,null,null,null,null,null,null,null,null,null,null,""]
[null,null,null,null,null,null,null,null,null,null,null,null,null,null,null,null,null,null,null,null,null,null,null,null,null,null,null,null,null,null,null,null,null,null,null,null,null,null,null,null,null,null,null,null,null,null,null,null,null,null,null,null,null,null,""]
[null,null,null,null,null,null,null,null,null,null,null,null,null,null,null,null,null,null,null,null,null,null,null,null,null,null,null,null,null,null,null,null,null,null,null,null,null,null,null,null,null,null,null,null,null,null,null,null,null,null,null,null,null,null,""]
[null,null,null,null,null,null,null,null,null,null,null,null,null,null,null,null,null,null,null,null,null,null,null,null,null,null,null,null,null,null,null,null,null,null,null,null,null,null,null,null,null,null,null,null,null,null,null,null,null,null,null,null,null,null,""]
[null,null,null,null,null,null,null,null,null,null,null,null,null,null,null,null,null,null,null,null,null,null,null,null,null,null,null,null,null,null,null,null,null,null,null,null,null,null,null,null,null,null,null,null,null,null,null,null,null,null,null,null,null,null,""]
[null,null,null,null,null,null,null,null,null,null,null,null,null,null,null,null,null,null,null,null,null,null,null,null,null,null,null,null,null,null,null,null,null,null,null,null,null,null,null,null,null,null,null,null,null,null,null,null,null,null,null,null,null,null,{"$f":"SUBSTITUTE(SUBSTITUTE(E3988,\"　\",\"\"),\" \",\"\")","v":""}]
[null,null,null,null,null,null,null,null,null,null,null,null,null,null,null,null,null,null,null,null,null,null,null,null,null,null,null,null,null,null,null,null,null,null,null,null,null,null,null,null,null,null,null,null,null,null,null,null,null,null,null,null,null,null,""]
[null,null,null,null,null,null,null,null,null,null,null,null,null,null,null,null,null,null,null,null,null,null,null,null,null,null,null,null,null,null,null,null,null,null,null,null,null,null,null,null,null,null,null,null,null,null,null,null,null,null,null,null,null,null,""]
[null,null,null,null,null,null,null,null,null,null,null,null,null,null,null,null,null,null,null,null,null,null,null,null,null,null,null,null,null,null,null,null,null,null,null,null,null,null,null,null,null,null,null,null,null,null,null,null,null,null,null,null,null,null,""]
[null,null,null,null,null,null,null,null,null,null,null,null,null,null,null,null,null,null,null,null,null,null,null,null,null,null,null,null,null,null,null,null,null,null,null,null,null,null,null,null,null,null,null,null,null,null,null,null,null,null,null,null,null,null,""]
[null,null,null,null,null,null,null,null,null,null,null,null,null,null,null,null,null,null,null,null,null,null,null,null,null,null,null,null,null,null,null,null,null,null,null,null,null,null,null,null,null,null,null,null,null,null,null,null,null,null,null,null,null,null,""]
[null,null,null,null,null,null,null,null,null,null,null,null,null,null,null,null,null,null,null,null,null,null,null,null,null,null,null,null,null,null,null,null,null,null,null,null,null,null,null,null,null,null,null,null,null,null,null,null,null,null,null,null,null,null,""]
[null,null,null,null,null,null,null,null,null,null,null,null,null,null,null,null,null,null,null,null,null,null,null,null,null,null,null,null,null,null,null,null,null,null,null,null,null,null,null,null,null,null,null,null,null,null,null,null,null,null,null,null,null,null,""]
[null,null,null,null,null,null,null,null,null,null,null,null,null,null,null,null,null,null,null,null,null,null,null,null,null,null,null,null,null,null,null,null,null,null,null,null,null,null,null,null,null,null,null,null,null,null,null,null,null,null,null,null,null,null,""]
[null,null,null,null,null,null,null,null,null,null,null,null,null,null,null,null,null,null,null,null,null,null,null,null,null,null,null,null,null,null,null,null,null,null,null,null,null,null,null,null,null,null,null,null,null,null,null,null,null,null,null,null,null,null,""]
[null,null,null,null,null,null,null,null,null,null,null,null,null,null,null,null,null,null,null,null,null,null,null,null,null,null,null,null,null,null,null,null,null,null,null,null,null,null,null,null,null,null,null,null,null,null,null,null,null,null,null,null,null,null,""]
[null,null,null,null,null,null,null,null,null,null,null,null,null,null,null,null,null,null,null,null,null,null,null,null,null,null,null,null,null,null,null,null,null,null,null,null,null,null,null,null,null,null,null,null,null,null,null,null,null,null,null,null,null,null,""]
[null,null,null,null,null,null,null,null,null,null,null,null,null,null,null,null,null,null,null,null,null,null,null,null,null,null,null,null,null,null,null,null,null,null,null,null,null,null,null,null,null,null,null,null,null,null,null,null,null,null,null,null,null,null,""]
[null,null,null,null,null,null,null,null,null,null,null,null,null,null,null,null,null,null,null,null,null,null,null,null,null,null,null,null,null,null,null,null,null,null,null,null,null,null,null,null,null,null,null,null,null,null,null,null,null,null,null,null,null,null,""]
[null,null,null,null,null,null,null,null,null,null,null,null,null,null,null,null,null,null,null,null,null,null,null,null,null,null,null,null,null,null,null,null,null,null,null,null,null,null,null,null,null,null,null,null,null,null,null,null,null,null,null,null,null,null,""]
[null,null,null,null,null,null,null,null,null,null,null,null,null,null,null,null,null,null,null,null,null,null,null,null,null,null,null,null,null,null,null,null,null,null,null,null,null,null,null,null,null,null,null,null,null,null,null,null,null,null,null,null,null,null,""]
[null,null,null,null,null,null,null,null,null,null,null,null,null,null,null,null,null,null,null,null,null,null,null,null,null,null,null,null,null,null,null,null,null,null,null,null,null,null,null,null,null,null,null,null,null,null,null,null,null,null,null,null,null,null,""]
[null,null,null,null,null,null,null,null,null,null,null,null,null,null,null,null,null,null,null,null,null,null,null,null,null,null,null,null,null,null,null,null,null,null,null,null,null,null,null,null,null,null,null,null,null,null,null,null,null,null,null,null,null,null,""]
[null,null,null,null,null,null,null,null,null,null,null,null,null,null,null,null,null,null,null,null,null,null,null,null,null,null,null,null,null,null,null,null,null,null,null,null,null,null,null,null,null,null,null,null,null,null,null,null,null,null,null,null,null,null,""]
[null,null,null,null,null,null,null,null,null,null,null,null,null,null,null,null,null,null,null,null,null,null,null,null,null,null,null,null,null,null,null,null,null,null,null,null,null,null,null,null,null,null,null,null,null,null,null,null,null,null,null,null,null,null,""]
[null,null,null,null,null,null,null,null,null,null,null,null,null,null,null,null,null,null,null,null,null,null,null,null,null,null,null,null,null,null,null,null,null,null,null,null,null,null,null,null,null,null,null,null,null,null,null,null,null,null,null,null,null,null,""]
[null,null,null,null,null,null,null,null,null,null,null,null,null,null,null,null,null,null,null,null,null,null,null,null,null,null,null,null,null,null,null,null,null,null,null,null,null,null,null,null,null,null,null,null,null,null,null,null,null,null,null,null,null,null,""]
[null,null,null,null,null,null,null,null,null,null,null,null,null,null,null,null,null,null,null,null,null,null,null,null,null,null,null,null,null,null,null,null,null,null,null,null,null,null,null,null,null,null,null,null,null,null,null,null,null,null,null,null,null,null,""]
[null,null,null,null,null,null,null,null,null,null,null,null,null,null,null,null,null,null,null,null,null,null,null,null,null,null,null,null,null,null,null,null,null,null,null,null,null,null,null,null,null,null,null,null,null,null,null,null,null,null,null,null,null,null,""]
[null,null,null,null,null,null,null,null,null,null,null,null,null,null,null,null,null,null,null,null,null,null,null,null,null,null,null,null,null,null,null,null,null,null,null,null,null,null,null,null,null,null,null,null,null,null,null,null,null,null,null,null,null,null,""]
[null,null,null,null,null,null,null,null,null,null,null,null,null,null,null,null,null,null,null,null,null,null,null,null,null,null,null,null,null,null,null,null,null,null,null,null,null,null,null,null,null,null,null,null,null,null,null,null,null,null,null,null,null,null,""]
[null,null,null,null,null,null,null,null,null,null,null,null,null,null,null,null,null,null,null,null,null,null,null,null,null,null,null,null,null,null,null,null,null,null,null,null,null,null,null,null,null,null,null,null,null,null,null,null,null,null,null,null,null,null,""]
[null,null,null,null,null,null,null,null,null,null,null,null,null,null,null,null,null,null,null,null,null,null,null,null,null,null,null,null,null,null,null,null,null,null,null,null,null,null,null,null,null,null,null,null,null,null,null,null,null,null,null,null,null,null,""]
[null,null,null,null,null,null,null,null,null,null,null,null,null,null,null,null,null,null,null,null,null,null,null,null,null,null,null,null,null,null,null,null,null,null,null,null,null,null,null,null,null,null,null,null,null,null,null,null,null,null,null,null,null,null,""]
[null,null,null,null,null,null,null,null,null,null,null,null,null,null,null,null,null,null,null,null,null,null,null,null,null,null,null,null,null,null,null,null,null,null,null,null,null,null,null,null,null,null,null,null,null,null,null,null,null,null,null,null,null,null,""]
[null,null,null,null,null,null,null,null,null,null,null,null,null,null,null,null,null,null,null,null,null,null,null,null,null,null,null,null,null,null,null,null,null,null,null,null,null,null,null,null,null,null,null,null,null,null,null,null,null,null,null,null,null,null,""]
[null,null,null,null,null,null,null,null,null,null,null,null,null,null,null,null,null,null,null,null,null,null,null,null,null,null,null,null,null,null,null,null,null,null,null,null,null,null,null,null,null,null,null,null,null,null,null,null,null,null,null,null,null,null,""]
[null,null,null,null,null,null,null,null,null,null,null,null,null,null,null,null,null,null,null,null,null,null,null,null,null,null,null,null,null,null,null,null,null,null,null,null,null,null,null,null,null,null,null,null,null,null,null,null,null,null,null,null,null,null,""]
[null,null,null,null,null,null,null,null,null,null,null,null,null,null,null,null,null,null,null,null,null,null,null,null,null,null,null,null,null,null,null,null,null,null,null,null,null,null,null,null,null,null,null,null,null,null,null,null,null,null,null,null,null,null,""]
[null,null,null,null,null,null,null,null,null,null,null,null,null,null,null,null,null,null,null,null,null,null,null,null,null,null,null,null,null,null,null,null,null,null,null,null,null,null,null,null,null,null,null,null,null,null,null,null,null,null,null,null,null,null,""]
[null,null,null,null,null,null,null,null,null,null,null,null,null,null,null,null,null,null,null,null,null,null,null,null,null,null,null,null,null,null,null,null,null,null,null,null,null,null,null,null,null,null,null,null,null,null,null,null,null,null,null,null,null,null,""]
[null,null,null,null,null,null,null,null,null,null,null,null,null,null,null,null,null,null,null,null,null,null,null,null,null,null,null,null,null,null,null,null,null,null,null,null,null,null,null,null,null,null,null,null,null,null,null,null,null,null,null,null,null,null,""]
[null,null,null,null,null,null,null,null,null,null,null,null,null,null,null,null,null,null,null,null,null,null,null,null,null,null,null,null,null,null,null,null,null,null,null,null,null,null,null,null,null,null,null,null,null,null,null,null,null,null,null,null,null,null,""]
[null,null,null,null,null,null,null,null,null,null,null,null,null,null,null,null,null,null,null,null,null,null,null,null,null,null,null,null,null,null,null,null,null,null,null,null,null,null,null,null,null,null,null,null,null,null,null,null,null,null,null,null,null,null,""]
[null,null,null,null,null,null,null,null,null,null,null,null,null,null,null,null,null,null,null,null,null,null,null,null,null,null,null,null,null,null,null,null,null,null,null,null,null,null,null,null,null,null,null,null,null,null,null,null,null,null,null,null,null,null,""]
[null,null,null,null,null,null,null,null,null,null,null,null,null,null,null,null,null,null,null,null,null,null,null,null,null,null,null,null,null,null,null,null,null,null,null,null,null,null,null,null,null,null,null,null,null,null,null,null,null,null,null,null,null,null,""]
[null,null,null,null,null,null,null,null,null,null,null,null,null,null,null,null,null,null,null,null,null,null,null,null,null,null,null,null,null,null,null,null,null,null,null,null,null,null,null,null,null,null,null,null,null,null,null,null,null,null,null,null,null,null,""]
[null,null,null,null,null,null,null,null,null,null,null,null,null,null,null,null,null,null,null,null,null,null,null,null,null,null,null,null,null,null,null,null,null,null,null,null,null,null,null,null,null,null,null,null,null,null,null,null,null,null,null,null,null,null,""]
[null,null,null,null,null,null,null,null,null,null,null,null,null,null,null,null,null,null,null,null,null,null,null,null,null,null,null,null,null,null,null,null,null,null,null,null,null,null,null,null,null,null,null,null,null,null,null,null,null,null,null,null,null,null,""]
[null,null,null,null,null,null,null,null,null,null,null,null,null,null,null,null,null,null,null,null,null,null,null,null,null,null,null,null,null,null,null,null,null,null,null,null,null,null,null,null,null,null,null,null,null,null,null,null,null,null,null,null,null,null,""]
[null,null,null,null,null,null,null,null,null,null,null,null,null,null,null,null,null,null,null,null,null,null,null,null,null,null,null,null,null,null,null,null,null,null,null,null,null,null,null,null,null,null,null,null,null,null,null,null,null,null,null,null,null,null,""]
[null,null,null,null,null,null,null,null,null,null,null,null,null,null,null,null,null,null,null,null,null,null,null,null,null,null,null,null,null,null,null,null,null,null,null,null,null,null,null,null,null,null,null,null,null,null,null,null,null,null,null,null,null,null,""]
[null,null,null,null,null,null,null,null,null,null,null,null,null,null,null,null,null,null,null,null,null,null,null,null,null,null,null,null,null,null,null,null,null,null,null,null,null,null,null,null,null,null,null,null,null,null,null,null,null,null,null,null,null,null,""]
[null,null,null,null,null,null,null,null,null,null,null,null,null,null,null,null,null,null,null,null,null,null,null,null,null,null,null,null,null,null,null,null,null,null,null,null,null,null,null,null,null,null,null,null,null,null,null,null,null,null,null,null,null,null,""]
[null,null,null,null,null,null,null,null,null,null,null,null,null,null,null,null,null,null,null,null,null,null,null,null,null,null,null,null,null,null,null,null,null,null,null,null,null,null,null,null,null,null,null,null,null,null,null,null,null,null,null,null,null,null,""]
[null,null,null,null,null,null,null,null,null,null,null,null,null,null,null,null,null,null,null,null,null,null,null,null,null,null,null,null,null,null,null,null,null,null,null,null,null,null,null,null,null,null,null,null,null,null,null,null,null,null,null,null,null,null,""]
[null,null,null,null,null,null,null,null,null,null,null,null,null,null,null,null,null,null,null,null,null,null,null,null,null,null,null,null,null,null,null,null,null,null,null,null,null,null,null,null,null,null,null,null,null,null,null,null,null,null,null,null,null,null,""]
[null,null,null,null,null,null,null,null,null,null,null,null,null,null,null,null,null,null,null,null,null,null,null,null,null,null,null,null,null,null,null,null,null,null,null,null,null,null,null,null,null,null,null,null,null,null,null,null,null,null,null,null,null,null,""]
[null,null,null,null,null,null,null,null,null,null,null,null,null,null,null,null,null,null,null,null,null,null,null,null,null,null,null,null,null,null,null,null,null,null,null,null,null,null,null,null,null,null,null,null,null,null,null,null,null,null,null,null,null,null,""]
[null,null,null,null,null,null,null,null,null,null,null,null,null,null,null,null,null,null,null,null,null,null,null,null,null,null,null,null,null,null,null,null,null,null,null,null,null,null,null,null,null,null,null,null,null,null,null,null,null,null,null,null,null,null,""]
[null,null,null,null,null,null,null,null,null,null,null,null,null,null,null,null,null,null,null,null,null,null,null,null,null,null,null,null,null,null,null,null,null,null,null,null,null,null,null,null,null,null,null,null,null,null,null,null,null,null,null,null,null,null,""]
[null,null,null,null,null,null,null,null,null,null,null,null,null,null,null,null,null,null,null,null,null,null,null,null,null,null,null,null,null,null,null,null,null,null,null,null,null,null,null,null,null,null,null,null,null,null,null,null,null,null,null,null,null,null,""]
[null,null,null,null,null,null,null,null,null,null,null,null,null,null,null,null,null,null,null,null,null,null,null,null,null,null,null,null,null,null,null,null,null,null,null,null,null,null,null,null,null,null,null,null,null,null,null,null,null,null,null,null,null,null,""]
[null,null,null,null,null,null,null,null,null,null,null,null,null,null,null,null,null,null,null,null,null,null,null,null,null,null,null,null,null,null,null,null,null,null,null,null,null,null,null,null,null,null,null,null,null,null,null,null,null,null,null,null,null,null,""]
[null,null,null,null,null,null,null,null,null,null,null,null,null,null,null,null,null,null,null,null,null,null,null,null,null,null,null,null,null,null,null,null,null,null,null,null,null,null,null,null,null,null,null,null,null,null,null,null,null,null,null,null,null,null,""]
[null,null,null,null,null,null,null,null,null,null,null,null,null,null,null,null,null,null,null,null,null,null,null,null,null,null,null,null,null,null,null,null,null,null,null,null,null,null,null,null,null,null,null,null,null,null,null,null,null,null,null,null,null,null,""]
[null,null,null,null,null,null,null,null,null,null,null,null,null,null,null,null,null,null,null,null,null,null,null,null,null,null,null,null,null,null,null,null,null,null,null,null,null,null,null,null,null,null,null,null,null,null,null,null,null,null,null,null,null,null,""]
[null,null,null,null,null,null,null,null,null,null,null,null,null,null,null,null,null,null,null,null,null,null,null,null,null,null,null,null,null,null,null,null,null,null,null,null,null,null,null,null,null,null,null,null,null,null,null,null,null,null,null,null,null,null,""]
[null,null,null,null,null,null,null,null,null,null,null,null,null,null,null,null,null,null,null,null,null,null,null,null,null,null,null,null,null,null,null,null,null,null,null,null,null,null,null,null,null,null,null,null,null,null,null,null,null,null,null,null,null,null,""]
[null,null,null,null,null,null,null,null,null,null,null,null,null,null,null,null,null,null,null,null,null,null,null,null,null,null,null,null,null,null,null,null,null,null,null,null,null,null,null,null,null,null,null,null,null,null,null,null,null,null,null,null,null,null,""]
[null,null,null,null,null,null,null,null,null,null,null,null,null,null,null,null,null,null,null,null,null,null,null,null,null,null,null,null,null,null,null,null,null,null,null,null,null,null,null,null,null,null,null,null,null,null,null,null,null,null,null,null,null,null,""]
[null,null,null,null,null,null,null,null,null,null,null,null,null,null,null,null,null,null,null,null,null,null,null,null,null,null,null,null,null,null,null,null,null,null,null,null,null,null,null,null,null,null,null,null,null,null,null,null,null,null,null,null,null,null,{"$f":"SUBSTITUTE(SUBSTITUTE(E4756,\"　\",\"\"),\" \",\"\")","v":""}]
[null,null,null,null,null,null,null,null,null,null,null,null,null,null,null,null,null,null,null,null,null,null,null,null,null,null,null,null,null,null,null,null,null,null,null,null,null,null,null,null,null,null,null,null,null,null,null,null,null,null,null,null,null,null,""]
[null,null,null,null,null,null,null,null,null,null,null,null,null,null,null,null,null,null,null,null,null,null,null,null,null,null,null,null,null,null,null,null,null,null,null,null,null,null,null,null,null,null,null,null,null,null,null,null,null,null,null,null,null,null,""]
[null,null,null,null,null,null,null,null,null,null,null,null,null,null,null,null,null,null,null,null,null,null,null,null,null,null,null,null,null,null,null,null,null,null,null,null,null,null,null,null,null,null,null,null,null,null,null,null,null,null,null,null,null,null,""]
[null,null,null,null,null,null,null,null,null,null,null,null,null,null,null,null,null,null,null,null,null,null,null,null,null,null,null,null,null,null,null,null,null,null,null,null,null,null,null,null,null,null,null,null,null,null,null,null,null,null,null,null,null,null,""]
[null,null,null,null,null,null,null,null,null,null,null,null,null,null,null,null,null,null,null,null,null,null,null,null,null,null,null,null,null,null,null,null,null,null,null,null,null,null,null,null,null,null,null,null,null,null,null,null,null,null,null,null,null,null,""]
[null,null,null,null,null,null,null,null,null,null,null,null,null,null,null,null,null,null,null,null,null,null,null,null,null,null,null,null,null,null,null,null,null,null,null,null,null,null,null,null,null,null,null,null,null,null,null,null,null,null,null,null,null,null,""]
[null,null,null,null,null,null,null,null,null,null,null,null,null,null,null,null,null,null,null,null,null,null,null,null,null,null,null,null,null,null,null,null,null,null,null,null,null,null,null,null,null,null,null,null,null,null,null,null,null,null,null,null,null,null,""]
[null,null,null,null,null,null,null,null,null,null,null,null,null,null,null,null,null,null,null,null,null,null,null,null,null,null,null,null,null,null,null,null,null,null,null,null,null,null,null,null,null,null,null,null,null,null,null,null,null,null,null,null,null,null,""]
[null,null,null,null,null,null,null,null,null,null,null,null,null,null,null,null,null,null,null,null,null,null,null,null,null,null,null,null,null,null,null,null,null,null,null,null,null,null,null,null,null,null,null,null,null,null,null,null,null,null,null,null,null,null,""]
[null,null,null,null,null,null,null,null,null,null,null,null,null,null,null,null,null,null,null,null,null,null,null,null,null,null,null,null,null,null,null,null,null,null,null,null,null,null,null,null,null,null,null,null,null,null,null,null,null,null,null,null,null,null,""]
[null,null,null,null,null,null,null,null,null,null,null,null,null,null,null,null,null,null,null,null,null,null,null,null,null,null,null,null,null,null,null,null,null,null,null,null,null,null,null,null,null,null,null,null,null,null,null,null,null,null,null,null,null,null,""]
[null,null,null,null,null,null,null,null,null,null,null,null,null,null,null,null,null,null,null,null,null,null,null,null,null,null,null,null,null,null,null,null,null,null,null,null,null,null,null,null,null,null,null,null,null,null,null,null,null,null,null,null,null,null,""]
[null,null,null,null,null,null,null,null,null,null,null,null,null,null,null,null,null,null,null,null,null,null,null,null,null,null,null,null,null,null,null,null,null,null,null,null,null,null,null,null,null,null,null,null,null,null,null,null,null,null,null,null,null,null,""]
[null,null,null,null,null,null,null,null,null,null,null,null,null,null,null,null,null,null,null,null,null,null,null,null,null,null,null,null,null,null,null,null,null,null,null,null,null,null,null,null,null,null,null,null,null,null,null,null,null,null,null,null,null,null,""]
[null,null,null,null,null,null,null,null,null,null,null,null,null,null,null,null,null,null,null,null,null,null,null,null,null,null,null,null,null,null,null,null,null,null,null,null,null,null,null,null,null,null,null,null,null,null,null,null,null,null,null,null,null,null,""]
[null,null,null,null,null,null,null,null,null,null,null,null,null,null,null,null,null,null,null,null,null,null,null,null,null,null,null,null,null,null,null,null,null,null,null,null,null,null,null,null,null,null,null,null,null,null,null,null,null,null,null,null,null,null,""]
[null,null,null,null,null,null,null,null,null,null,null,null,null,null,null,null,null,null,null,null,null,null,null,null,null,null,null,null,null,null,null,null,null,null,null,null,null,null,null,null,null,null,null,null,null,null,null,null,null,null,null,null,null,null,""]
[null,null,null,null,null,null,null,null,null,null,null,null,null,null,null,null,null,null,null,null,null,null,null,null,null,null,null,null,null,null,null,null,null,null,null,null,null,null,null,null,null,null,null,null,null,null,null,null,null,null,null,null,null,null,""]
[null,null,null,null,null,null,null,null,null,null,null,null,null,null,null,null,null,null,null,null,null,null,null,null,null,null,null,null,null,null,null,null,null,null,null,null,null,null,null,null,null,null,null,null,null,null,null,null,null,null,null,null,null,null,""]
[null,null,null,null,null,null,null,null,null,null,null,null,null,null,null,null,null,null,null,null,null,null,null,null,null,null,null,null,null,null,null,null,null,null,null,null,null,null,null,null,null,null,null,null,null,null,null,null,null,null,null,null,null,null,""]
[null,null,null,null,null,null,null,null,null,null,null,null,null,null,null,null,null,null,null,null,null,null,null,null,null,null,null,null,null,null,null,null,null,null,null,null,null,null,null,null,null,null,null,null,null,null,null,null,null,null,null,null,null,null,""]
[null,null,null,null,null,null,null,null,null,null,null,null,null,null,null,null,null,null,null,null,null,null,null,null,null,null,null,null,null,null,null,null,null,null,null,null,null,null,null,null,null,null,null,null,null,null,null,null,null,null,null,null,null,null,""]
[null,null,null,null,null,null,null,null,null,null,null,null,null,null,null,null,null,null,null,null,null,null,null,null,null,null,null,null,null,null,null,null,null,null,null,null,null,null,null,null,null,null,null,null,null,null,null,null,null,null,null,null,null,null,""]
[null,null,null,null,null,null,null,null,null,null,null,null,null,null,null,null,null,null,null,null,null,null,null,null,null,null,null,null,null,null,null,null,null,null,null,null,null,null,null,null,null,null,null,null,null,null,null,null,null,null,null,null,null,null,""]
[null,null,null,null,null,null,null,null,null,null,null,null,null,null,null,null,null,null,null,null,null,null,null,null,null,null,null,null,null,null,null,null,null,null,null,null,null,null,null,null,null,null,null,null,null,null,null,null,null,null,null,null,null,null,""]
[null,null,null,null,null,null,null,null,null,null,null,null,null,null,null,null,null,null,null,null,null,null,null,null,null,null,null,null,null,null,null,null,null,null,null,null,null,null,null,null,null,null,null,null,null,null,null,null,null,null,null,null,null,null,""]
[null,null,null,null,null,null,null,null,null,null,null,null,null,null,null,null,null,null,null,null,null,null,null,null,null,null,null,null,null,null,null,null,null,null,null,null,null,null,null,null,null,null,null,null,null,null,null,null,null,null,null,null,null,null,{"$f":"SUBSTITUTE(SUBSTITUTE(E5076,\"　\",\"\"),\" \",\"\")","v":""}]
[null,null,null,null,null,null,null,null,null,null,null,null,null,null,null,null,null,null,null,null,null,null,null,null,null,null,null,null,null,null,null,null,null,null,null,null,null,null,null,null,null,null,null,null,null,null,null,null,null,null,null,null,null,null,""]
[null,null,null,null,null,null,null,null,null,null,null,null,null,null,null,null,null,null,null,null,null,null,null,null,null,null,null,null,null,null,null,null,null,null,null,null,null,null,null,null,null,null,null,null,null,null,null,null,null,null,null,null,null,null,""]
[null,null,null,null,null,null,null,null,null,null,null,null,null,null,null,null,null,null,null,null,null,null,null,null,null,null,null,null,null,null,null,null,null,null,null,null,null,null,null,null,null,null,null,null,null,null,null,null,null,null,null,null,null,null,""]
[null,null,null,null,null,null,null,null,null,null,null,null,null,null,null,null,null,null,null,null,null,null,null,null,null,null,null,null,null,null,null,null,null,null,null,null,null,null,null,null,null,null,null,null,null,null,null,null,null,null,null,null,null,null,""]
[null,null,null,null,null,null,null,null,null,null,null,null,null,null,null,null,null,null,null,null,null,null,null,null,null,null,null,null,null,null,null,null,null,null,null,null,null,null,null,null,null,null,null,null,null,null,null,null,null,null,null,null,null,null,""]
[null,null,null,null,null,null,null,null,null,null,null,null,null,null,null,null,null,null,null,null,null,null,null,null,null,null,null,null,null,null,null,null,null,null,null,null,null,null,null,null,null,null,null,null,null,null,null,null,null,null,null,null,null,null,{"$f":"SUBSTITUTE(SUBSTITUTE(E5140,\"　\",\"\"),\" \",\"\")","v":""}]
[null,null,null,null,null,null,null,null,null,null,null,null,null,null,null,null,null,null,null,null,null,null,null,null,null,null,null,null,null,null,null,null,null,null,null,null,null,null,null,null,null,null,null,null,null,null,null,null,null,null,null,null,null,null,""]
[null,null,null,null,null,null,null,null,null,null,null,null,null,null,null,null,null,null,null,null,null,null,null,null,null,null,null,null,null,null,null,null,null,null,null,null,null,null,null,null,null,null,null,null,null,null,null,null,null,null,null,null,null,null,""]
[null,null,null,null,null,null,null,null,null,null,null,null,null,null,null,null,null,null,null,null,null,null,null,null,null,null,null,null,null,null,null,null,null,null,null,null,null,null,null,null,null,null,null,null,null,null,null,null,null,null,null,null,null,null,""]
[null,null,null,null,null,null,null,null,null,null,null,null,null,null,null,null,null,null,null,null,null,null,null,null,null,null,null,null,null,null,null,null,null,null,null,null,null,null,null,null,null,null,null,null,null,null,null,null,null,null,null,null,null,null,""]
[null,null,null,null,null,null,null,null,null,null,null,null,null,null,null,null,null,null,null,null,null,null,null,null,null,null,null,null,null,null,null,null,null,null,null,null,null,null,null,null,null,null,null,null,null,null,null,null,null,null,null,null,null,null,""]
[null,null,null,null,null,null,null,null,null,null,null,null,null,null,null,null,null,null,null,null,null,null,null,null,null,null,null,null,null,null,null,null,null,null,null,null,null,null,null,null,null,null,null,null,null,null,null,null,null,null,null,null,null,null,""]
[null,null,null,null,null,null,null,null,null,null,null,null,null,null,null,null,null,null,null,null,null,null,null,null,null,null,null,null,null,null,null,null,null,null,null,null,null,null,null,null,null,null,null,null,null,null,null,null,null,null,null,null,null,null,""]
[null,null,null,null,null,null,null,null,null,null,null,null,null,null,null,null,null,null,null,null,null,null,null,null,null,null,null,null,null,null,null,null,null,null,null,null,null,null,null,null,null,null,null,null,null,null,null,null,null,null,null,null,null,null,""]
[null,null,null,null,null,null,null,null,null,null,null,null,null,null,null,null,null,null,null,null,null,null,null,null,null,null,null,null,null,null,null,null,null,null,null,null,null,null,null,null,null,null,null,null,null,null,null,null,null,null,null,null,null,null,""]
[null,null,null,null,null,null,null,null,null,null,null,null,null,null,null,null,null,null,null,null,null,null,null,null,null,null,null,null,null,null,null,null,null,null,null,null,null,null,null,null,null,null,null,null,null,null,null,null,null,null,null,null,null,null,""]
[null,null,null,null,null,null,null,null,null,null,null,null,null,null,null,null,null,null,null,null,null,null,null,null,null,null,null,null,null,null,null,null,null,null,null,null,null,null,null,null,null,null,null,null,null,null,null,null,null,null,null,null,null,null,""]
[null,null,null,null,null,null,null,null,null,null,null,null,null,null,null,null,null,null,null,null,null,null,null,null,null,null,null,null,null,null,null,null,null,null,null,null,null,null,null,null,null,null,null,null,null,null,null,null,null,null,null,null,null,null,""]
[null,null,null,null,null,null,null,null,null,null,null,null,null,null,null,null,null,null,null,null,null,null,null,null,null,null,null,null,null,null,null,null,null,null,null,null,null,null,null,null,null,null,null,null,null,null,null,null,null,null,null,null,null,null,""]
[null,null,null,null,null,null,null,null,null,null,null,null,null,null,null,null,null,null,null,null,null,null,null,null,null,null,null,null,null,null,null,null,null,null,null,null,null,null,null,null,null,null,null,null,null,null,null,null,null,null,null,null,null,null,""]
[null,null,null,null,null,null,null,null,null,null,null,null,null,null,null,null,null,null,null,null,null,null,null,null,null,null,null,null,null,null,null,null,null,null,null,null,null,null,null,null,null,null,null,null,null,null,null,null,null,null,null,null,null,null,""]
[null,null,null,null,null,null,null,null,null,null,null,null,null,null,null,null,null,null,null,null,null,null,null,null,null,null,null,null,null,null,null,null,null,null,null,null,null,null,null,null,null,null,null,null,null,null,null,null,null,null,null,null,null,null,""]
[null,null,null,null,null,null,null,null,null,null,null,null,null,null,null,null,null,null,null,null,null,null,null,null,null,null,null,null,null,null,null,null,null,null,null,null,null,null,null,null,null,null,null,null,null,null,null,null,null,null,null,null,null,null,""]
[null,null,null,null,null,null,null,null,null,null,null,null,null,null,null,null,null,null,null,null,null,null,null,null,null,null,null,null,null,null,null,null,null,null,null,null,null,null,null,null,null,null,null,null,null,null,null,null,null,null,null,null,null,null,""]
[null,null,null,null,null,null,null,null,null,null,null,null,null,null,null,null,null,null,null,null,null,null,null,null,null,null,null,null,null,null,null,null,null,null,null,null,null,null,null,null,null,null,null,null,null,null,null,null,null,null,null,null,null,null,""]
[null,null,null,null,null,null,null,null,null,null,null,null,null,null,null,null,null,null,null,null,null,null,null,null,null,null,null,null,null,null,null,null,null,null,null,null,null,null,null,null,null,null,null,null,null,null,null,null,null,null,null,null,null,null,""]
[null,null,null,null,null,null,null,null,null,null,null,null,null,null,null,null,null,null,null,null,null,null,null,null,null,null,null,null,null,null,null,null,null,null,null,null,null,null,null,null,null,null,null,null,null,null,null,null,null,null,null,null,null,null,""]
[null,null,null,null,null,null,null,null,null,null,null,null,null,null,null,null,null,null,null,null,null,null,null,null,null,null,null,null,null,null,null,null,null,null,null,null,null,null,null,null,null,null,null,null,null,null,null,null,null,null,null,null,null,null,""]
[null,null,null,null,null,null,null,null,null,null,null,null,null,null,null,null,null,null,null,null,null,null,null,null,null,null,null,null,null,null,null,null,null,null,null,null,null,null,null,null,null,null,null,null,null,null,null,null,null,null,null,null,null,null,""]
[null,null,null,null,null,null,null,null,null,null,null,null,null,null,null,null,null,null,null,null,null,null,null,null,null,null,null,null,null,null,null,null,null,null,null,null,null,null,null,null,null,null,null,null,null,null,null,null,null,null,null,null,null,null,""]
[null,null,null,null,null,null,null,null,null,null,null,null,null,null,null,null,null,null,null,null,null,null,null,null,null,null,null,null,null,null,null,null,null,null,null,null,null,null,null,null,null,null,null,null,null,null,null,null,null,null,null,null,null,null,""]
[null,null,null,null,null,null,null,null,null,null,null,null,null,null,null,null,null,null,null,null,null,null,null,null,null,null,null,null,null,null,null,null,null,null,null,null,null,null,null,null,null,null,null,null,null,null,null,null,null,null,null,null,null,null,""]
[null,null,null,null,null,null,null,null,null,null,null,null,null,null,null,null,null,null,null,null,null,null,null,null,null,null,null,null,null,null,null,null,null,null,null,null,null,null,null,null,null,null,null,null,null,null,null,null,null,null,null,null,null,null,""]
[null,null,null,null,null,null,null,null,null,null,null,null,null,null,null,null,null,null,null,null,null,null,null,null,null,null,null,null,null,null,null,null,null,null,null,null,null,null,null,null,null,null,null,null,null,null,null,null,null,null,null,null,null,null,""]
[null,null,null,null,null,null,null,null,null,null,null,null,null,null,null,null,null,null,null,null,null,null,null,null,null,null,null,null,null,null,null,null,null,null,null,null,null,null,null,null,null,null,null,null,null,null,null,null,null,null,null,null,null,null,""]
[null,null,null,null,null,null,null,null,null,null,null,null,null,null,null,null,null,null,null,null,null,null,null,null,null,null,null,null,null,null,null,null,null,null,null,null,null,null,null,null,null,null,null,null,null,null,null,null,null,null,null,null,null,null,""]
[null,null,null,null,null,null,null,null,null,null,null,null,null,null,null,null,null,null,null,null,null,null,null,null,null,null,null,null,null,null,null,null,null,null,null,null,null,null,null,null,null,null,null,null,null,null,null,null,null,null,null,null,null,null,""]
[null,null,null,null,null,null,null,null,null,null,null,null,null,null,null,null,null,null,null,null,null,null,null,null,null,null,null,null,null,null,null,null,null,null,null,null,null,null,null,null,null,null,null,null,null,null,null,null,null,null,null,null,null,null,""]
[null,null,null,null,null,null,null,null,null,null,null,null,null,null,null,null,null,null,null,null,null,null,null,null,null,null,null,null,null,null,null,null,null,null,null,null,null,null,null,null,null,null,null,null,null,null,null,null,null,null,null,null,null,null,""]
[null,null,null,null,null,null,null,null,null,null,null,null,null,null,null,null,null,null,null,null,null,null,null,null,null,null,null,null,null,null,null,null,null,null,null,null,null,null,null,null,null,null,null,null,null,null,null,null,null,null,null,null,null,null,""]
[null,null,null,null,null,null,null,null,null,null,null,null,null,null,null,null,null,null,null,null,null,null,null,null,null,null,null,null,null,null,null,null,null,null,null,null,null,null,null,null,null,null,null,null,null,null,null,null,null,null,null,null,null,null,""]
[null,null,null,null,null,null,null,null,null,null,null,null,null,null,null,null,null,null,null,null,null,null,null,null,null,null,null,null,null,null,null,null,null,null,null,null,null,null,null,null,null,null,null,null,null,null,null,null,null,null,null,null,null,null,""]
[null,null,null,null,null,null,null,null,null,null,null,null,null,null,null,null,null,null,null,null,null,null,null,null,null,null,null,null,null,null,null,null,null,null,null,null,null,null,null,null,null,null,null,null,null,null,null,null,null,null,null,null,null,null,""]
[null,null,null,null,null,null,null,null,null,null,null,null,null,null,null,null,null,null,null,null,null,null,null,null,null,null,null,null,null,null,null,null,null,null,null,null,null,null,null,null,null,null,null,null,null,null,null,null,null,null,null,null,null,null,""]
[null,null,null,null,null,null,null,null,null,null,null,null,null,null,null,null,null,null,null,null,null,null,null,null,null,null,null,null,null,null,null,null,null,null,null,null,null,null,null,null,null,null,null,null,null,null,null,null,null,null,null,null,null,null,""]
[null,null,null,null,null,null,null,null,null,null,null,null,null,null,null,null,null,null,null,null,null,null,null,null,null,null,null,null,null,null,null,null,null,null,null,null,null,null,null,null,null,null,null,null,null,null,null,null,null,null,null,null,null,null,""]
[null,null,null,null,null,null,null,null,null,null,null,null,null,null,null,null,null,null,null,null,null,null,null,null,null,null,null,null,null,null,null,null,null,null,null,null,null,null,null,null,null,null,null,null,null,null,null,null,null,null,null,null,null,null,""]
[null,null,null,null,null,null,null,null,null,null,null,null,null,null,null,null,null,null,null,null,null,null,null,null,null,null,null,null,null,null,null,null,null,null,null,null,null,null,null,null,null,null,null,null,null,null,null,null,null,null,null,null,null,null,""]
[null,null,null,null,null,null,null,null,null,null,null,null,null,null,null,null,null,null,null,null,null,null,null,null,null,null,null,null,null,null,null,null,null,null,null,null,null,null,null,null,null,null,null,null,null,null,null,null,null,null,null,null,null,null,""]
[null,null,null,null,null,null,null,null,null,null,null,null,null,null,null,null,null,null,null,null,null,null,null,null,null,null,null,null,null,null,null,null,null,null,null,null,null,null,null,null,null,null,null,null,null,null,null,null,null,null,null,null,null,null,""]
[null,null,null,null,null,null,null,null,null,null,null,null,null,null,null,null,null,null,null,null,null,null,null,null,null,null,null,null,null,null,null,null,null,null,null,null,null,null,null,null,null,null,null,null,null,null,null,null,null,null,null,null,null,null,""]
[null,null,null,null,null,null,null,null,null,null,null,null,null,null,null,null,null,null,null,null,null,null,null,null,null,null,null,null,null,null,null,null,null,null,null,null,null,null,null,null,null,null,null,null,null,null,null,null,null,null,null,null,null,null,""]
[null,null,null,null,null,null,null,null,null,null,null,null,null,null,null,null,null,null,null,null,null,null,null,null,null,null,null,null,null,null,null,null,null,null,null,null,null,null,null,null,null,null,null,null,null,null,null,null,null,null,null,null,null,null,""]
[null,null,null,null,null,null,null,null,null,null,null,null,null,null,null,null,null,null,null,null,null,null,null,null,null,null,null,null,null,null,null,null,null,null,null,null,null,null,null,null,null,null,null,null,null,null,null,null,null,null,null,null,null,null,""]
[null,null,null,null,null,null,null,null,null,null,null,null,null,null,null,null,null,null,null,null,null,null,null,null,null,null,null,null,null,null,null,null,null,null,null,null,null,null,null,null,null,null,null,null,null,null,null,null,null,null,null,null,null,null,""]
[null,null,null,null,null,null,null,null,null,null,null,null,null,null,null,null,null,null,null,null,null,null,null,null,null,null,null,null,null,null,null,null,null,null,null,null,null,null,null,null,null,null,null,null,null,null,null,null,null,null,null,null,null,null,""]
[null,null,null,null,null,null,null,null,null,null,null,null,null,null,null,null,null,null,null,null,null,null,null,null,null,null,null,null,null,null,null,null,null,null,null,null,null,null,null,null,null,null,null,null,null,null,null,null,null,null,null,null,null,null,""]
[null,null,null,null,null,null,null,null,null,null,null,null,null,null,null,null,null,null,null,null,null,null,null,null,null,null,null,null,null,null,null,null,null,null,null,null,null,null,null,null,null,null,null,null,null,null,null,null,null,null,null,null,null,null,""]
[null,null,null,null,null,null,null,null,null,null,null,null,null,null,null,null,null,null,null,null,null,null,null,null,null,null,null,null,null,null,null,null,null,null,null,null,null,null,null,null,null,null,null,null,null,null,null,null,null,null,null,null,null,null,""]
[null,null,null,null,null,null,null,null,null,null,null,null,null,null,null,null,null,null,null,null,null,null,null,null,null,null,null,null,null,null,null,null,null,null,null,null,null,null,null,null,null,null,null,null,null,null,null,null,null,null,null,null,null,null,""]
[null,null,null,null,null,null,null,null,null,null,null,null,null,null,null,null,null,null,null,null,null,null,null,null,null,null,null,null,null,null,null,null,null,null,null,null,null,null,null,null,null,null,null,null,null,null,null,null,null,null,null,null,null,null,""]
[null,null,null,null,null,null,null,null,null,null,null,null,null,null,null,null,null,null,null,null,null,null,null,null,null,null,null,null,null,null,null,null,null,null,null,null,null,null,null,null,null,null,null,null,null,null,null,null,null,null,null,null,null,null,""]
[null,null,null,null,null,null,null,null,null,null,null,null,null,null,null,null,null,null,null,null,null,null,null,null,null,null,null,null,null,null,null,null,null,null,null,null,null,null,null,null,null,null,null,null,null,null,null,null,null,null,null,null,null,null,""]
[null,null,null,null,null,null,null,null,null,null,null,null,null,null,null,null,null,null,null,null,null,null,null,null,null,null,null,null,null,null,null,null,null,null,null,null,null,null,null,null,null,null,null,null,null,null,null,null,null,null,null,null,null,null,""]
[null,null,null,null,null,null,null,null,null,null,null,null,null,null,null,null,null,null,null,null,null,null,null,null,null,null,null,null,null,null,null,null,null,null,null,null,null,null,null,null,null,null,null,null,null,null,null,null,null,null,null,null,null,null,""]
[null,null,null,null,null,null,null,null,null,null,null,null,null,null,null,null,null,null,null,null,null,null,null,null,null,null,null,null,null,null,null,null,null,null,null,null,null,null,null,null,null,null,null,null,null,null,null,null,null,null,null,null,null,null,""]
[null,null,null,null,null,null,null,null,null,null,null,null,null,null,null,null,null,null,null,null,null,null,null,null,null,null,null,null,null,null,null,null,null,null,null,null,null,null,null,null,null,null,null,null,null,null,null,null,null,null,null,null,null,null,""]
[null,null,null,null,null,null,null,null,null,null,null,null,null,null,null,null,null,null,null,null,null,null,null,null,null,null,null,null,null,null,null,null,null,null,null,null,null,null,null,null,null,null,null,null,null,null,null,null,null,null,null,null,null,null,""]
[null,null,null,null,null,null,null,null,null,null,null,null,null,null,null,null,null,null,null,null,null,null,null,null,null,null,null,null,null,null,null,null,null,null,null,null,null,null,null,null,null,null,null,null,null,null,null,null,null,null,null,null,null,null,""]
[null,null,null,null,null,null,null,null,null,null,null,null,null,null,null,null,null,null,null,null,null,null,null,null,null,null,null,null,null,null,null,null,null,null,null,null,null,null,null,null,null,null,null,null,null,null,null,null,null,null,null,null,null,null,""]
[null,null,null,null,null,null,null,null,null,null,null,null,null,null,null,null,null,null,null,null,null,null,null,null,null,null,null,null,null,null,null,null,null,null,null,null,null,null,null,null,null,null,null,null,null,null,null,null,null,null,null,null,null,null,""]
[null,null,null,null,null,null,null,null,null,null,null,null,null,null,null,null,null,null,null,null,null,null,null,null,null,null,null,null,null,null,null,null,null,null,null,null,null,null,null,null,null,null,null,null,null,null,null,null,null,null,null,null,null,null,""]
[null,null,null,null,null,null,null,null,null,null,null,null,null,null,null,null,null,null,null,null,null,null,null,null,null,null,null,null,null,null,null,null,null,null,null,null,null,null,null,null,null,null,null,null,null,null,null,null,null,null,null,null,null,null,""]
[null,null,null,null,null,null,null,null,null,null,null,null,null,null,null,null,null,null,null,null,null,null,null,null,null,null,null,null,null,null,null,null,null,null,null,null,null,null,null,null,null,null,null,null,null,null,null,null,null,null,null,null,null,null,""]
[null,null,null,null,null,null,null,null,null,null,null,null,null,null,null,null,null,null,null,null,null,null,null,null,null,null,null,null,null,null,null,null,null,null,null,null,null,null,null,null,null,null,null,null,null,null,null,null,null,null,null,null,null,null,""]
[null,null,null,null,null,null,null,null,null,null,null,null,null,null,null,null,null,null,null,null,null,null,null,null,null,null,null,null,null,null,null,null,null,null,null,null,null,null,null,null,null,null,null,null,null,null,null,null,null,null,null,null,null,null,""]
[null,null,null,null,null,null,null,null,null,null,null,null,null,null,null,null,null,null,null,null,null,null,null,null,null,null,null,null,null,null,null,null,null,null,null,null,null,null,null,null,null,null,null,null,null,null,null,null,null,null,null,null,null,null,""]
[null,null,null,null,null,null,null,null,null,null,null,null,null,null,null,null,null,null,null,null,null,null,null,null,null,null,null,null,null,null,null,null,null,null,null,null,null,null,null,null,null,null,null,null,null,null,null,null,null,null,null,null,null,null,""]
[null,null,null,null,null,null,null,null,null,null,null,null,null,null,null,null,null,null,null,null,null,null,null,null,null,null,null,null,null,null,null,null,null,null,null,null,null,null,null,null,null,null,null,null,null,null,null,null,null,null,null,null,null,null,""]
[null,null,null,null,null,null,null,null,null,null,null,null,null,null,null,null,null,null,null,null,null,null,null,null,null,null,null,null,null,null,null,null,null,null,null,null,null,null,null,null,null,null,null,null,null,null,null,null,null,null,null,null,null,null,""]
[null,null,null,null,null,null,null,null,null,null,null,null,null,null,null,null,null,null,null,null,null,null,null,null,null,null,null,null,null,null,null,null,null,null,null,null,null,null,null,null,null,null,null,null,null,null,null,null,null,null,null,null,null,null,""]
[null,null,null,null,null,null,null,null,null,null,null,null,null,null,null,null,null,null,null,null,null,null,null,null,null,null,null,null,null,null,null,null,null,null,null,null,null,null,null,null,null,null,null,null,null,null,null,null,null,null,null,null,null,null,""]
[null,null,null,null,null,null,null,null,null,null,null,null,null,null,null,null,null,null,null,null,null,null,null,null,null,null,null,null,null,null,null,null,null,null,null,null,null,null,null,null,null,null,null,null,null,null,null,null,null,null,null,null,null,null,""]
[null,null,null,null,null,null,null,null,null,null,null,null,null,null,null,null,null,null,null,null,null,null,null,null,null,null,null,null,null,null,null,null,null,null,null,null,null,null,null,null,null,null,null,null,null,null,null,null,null,null,null,null,null,null,""]
[null,null,null,null,null,null,null,null,null,null,null,null,null,null,null,null,null,null,null,null,null,null,null,null,null,null,null,null,null,null,null,null,null,null,null,null,null,null,null,null,null,null,null,null,null,null,null,null,null,null,null,null,null,null,""]
[null,null,null,null,null,null,null,null,null,null,null,null,null,null,null,null,null,null,null,null,null,null,null,null,null,null,null,null,null,null,null,null,null,null,null,null,null,null,null,null,null,null,null,null,null,null,null,null,null,null,null,null,null,null,""]
[null,null,null,null,null,null,null,null,null,null,null,null,null,null,null,null,null,null,null,null,null,null,null,null,null,null,null,null,null,null,null,null,null,null,null,null,null,null,null,null,null,null,null,null,null,null,null,null,null,null,null,null,null,null,""]
[null,null,null,null,null,null,null,null,null,null,null,null,null,null,null,null,null,null,null,null,null,null,null,null,null,null,null,null,null,null,null,null,null,null,null,null,null,null,null,null,null,null,null,null,null,null,null,null,null,null,null,null,null,null,""]
[null,null,null,null,null,null,null,null,null,null,null,null,null,null,null,null,null,null,null,null,null,null,null,null,null,null,null,null,null,null,null,null,null,null,null,null,null,null,null,null,null,null,null,null,null,null,null,null,null,null,null,null,null,null,""]
[null,null,null,null,null,null,null,null,null,null,null,null,null,null,null,null,null,null,null,null,null,null,null,null,null,null,null,null,null,null,null,null,null,null,null,null,null,null,null,null,null,null,null,null,null,null,null,null,null,null,null,null,null,null,""]
[null,null,null,null,null,null,null,null,null,null,null,null,null,null,null,null,null,null,null,null,null,null,null,null,null,null,null,null,null,null,null,null,null,null,null,null,null,null,null,null,null,null,null,null,null,null,null,null,null,null,null,null,null,null,""]
[null,null,null,null,null,null,null,null,null,null,null,null,null,null,null,null,null,null,null,null,null,null,null,null,null,null,null,null,null,null,null,null,null,null,null,null,null,null,null,null,null,null,null,null,null,null,null,null,null,null,null,null,null,null,""]
[null,null,null,null,null,null,null,null,null,null,null,null,null,null,null,null,null,null,null,null,null,null,null,null,null,null,null,null,null,null,null,null,null,null,null,null,null,null,null,null,null,null,null,null,null,null,null,null,null,null,null,null,null,null,""]
[null,null,null,null,null,null,null,null,null,null,null,null,null,null,null,null,null,null,null,null,null,null,null,null,null,null,null,null,null,null,null,null,null,null,null,null,null,null,null,null,null,null,null,null,null,null,null,null,null,null,null,null,null,null,""]
[null,null,null,null,null,null,null,null,null,null,null,null,null,null,null,null,null,null,null,null,null,null,null,null,null,null,null,null,null,null,null,null,null,null,null,null,null,null,null,null,null,null,null,null,null,null,null,null,null,null,null,null,null,null,""]
[null,null,null,null,null,null,null,null,null,null,null,null,null,null,null,null,null,null,null,null,null,null,null,null,null,null,null,null,null,null,null,null,null,null,null,null,null,null,null,null,null,null,null,null,null,null,null,null,null,null,null,null,null,null,""]
[null,null,null,null,null,null,null,null,null,null,null,null,null,null,null,null,null,null,null,null,null,null,null,null,null,null,null,null,null,null,null,null,null,null,null,null,null,null,null,null,null,null,null,null,null,null,null,null,null,null,null,null,null,null,""]
[null,null,null,null,null,null,null,null,null,null,null,null,null,null,null,null,null,null,null,null,null,null,null,null,null,null,null,null,null,null,null,null,null,null,null,null,null,null,null,null,null,null,null,null,null,null,null,null,null,null,null,null,null,null,""]
[null,null,null,null,null,null,null,null,null,null,null,null,null,null,null,null,null,null,null,null,null,null,null,null,null,null,null,null,null,null,null,null,null,null,null,null,null,null,null,null,null,null,null,null,null,null,null,null,null,null,null,null,null,null,""]
[null,null,null,null,null,null,null,null,null,null,null,null,null,null,null,null,null,null,null,null,null,null,null,null,null,null,null,null,null,null,null,null,null,null,null,null,null,null,null,null,null,null,null,null,null,null,null,null,null,null,null,null,null,null,""]
[null,null,null,null,null,null,null,null,null,null,null,null,null,null,null,null,null,null,null,null,null,null,null,null,null,null,null,null,null,null,null,null,null,null,null,null,null,null,null,null,null,null,null,null,null,null,null,null,null,null,null,null,null,null,""]
[null,null,null,null,null,null,null,null,null,null,null,null,null,null,null,null,null,null,null,null,null,null,null,null,null,null,null,null,null,null,null,null,null,null,null,null,null,null,null,null,null,null,null,null,null,null,null,null,null,null,null,null,null,null,""]
[null,null,null,null,null,null,null,null,null,null,null,null,null,null,null,null,null,null,null,null,null,null,null,null,null,null,null,null,null,null,null,null,null,null,null,null,null,null,null,null,null,null,null,null,null,null,null,null,null,null,null,null,null,null,""]
[null,null,null,null,null,null,null,null,null,null,null,null,null,null,null,null,null,null,null,null,null,null,null,null,null,null,null,null,null,null,null,null,null,null,null,null,null,null,null,null,null,null,null,null,null,null,null,null,null,null,null,null,null,null,""]
[null,null,null,null,null,null,null,null,null,null,null,null,null,null,null,null,null,null,null,null,null,null,null,null,null,null,null,null,null,null,null,null,null,null,null,null,null,null,null,null,null,null,null,null,null,null,null,null,null,null,null,null,null,null,""]
[null,null,null,null,null,null,null,null,null,null,null,null,null,null,null,null,null,null,null,null,null,null,null,null,null,null,null,null,null,null,null,null,null,null,null,null,null,null,null,null,null,null,null,null,null,null,null,null,null,null,null,null,null,null,""]
[null,null,null,null,null,null,null,null,null,null,null,null,null,null,null,null,null,null,null,null,null,null,null,null,null,null,null,null,null,null,null,null,null,null,null,null,null,null,null,null,null,null,null,null,null,null,null,null,null,null,null,null,null,null,""]
[null,null,null,null,null,null,null,null,null,null,null,null,null,null,null,null,null,null,null,null,null,null,null,null,null,null,null,null,null,null,null,null,null,null,null,null,null,null,null,null,null,null,null,null,null,null,null,null,null,null,null,null,null,null,""]
[null,null,null,null,null,null,null,null,null,null,null,null,null,null,null,null,null,null,null,null,null,null,null,null,null,null,null,null,null,null,null,null,null,null,null,null,null,null,null,null,null,null,null,null,null,null,null,null,null,null,null,null,null,null,""]
[null,null,null,null,null,null,null,null,null,null,null,null,null,null,null,null,null,null,null,null,null,null,null,null,null,null,null,null,null,null,null,null,null,null,null,null,null,null,null,null,null,null,null,null,null,null,null,null,null,null,null,null,null,null,""]
[null,null,null,null,null,null,null,null,null,null,null,null,null,null,null,null,null,null,null,null,null,null,null,null,null,null,null,null,null,null,null,null,null,null,null,null,null,null,null,null,null,null,null,null,null,null,null,null,null,null,null,null,null,null,""]
[null,null,null,null,null,null,null,null,null,null,null,null,null,null,null,null,null,null,null,null,null,null,null,null,null,null,null,null,null,null,null,null,null,null,null,null,null,null,null,null,null,null,null,null,null,null,null,null,null,null,null,null,null,null,""]
[null,null,null,null,null,null,null,null,null,null,null,null,null,null,null,null,null,null,null,null,null,null,null,null,null,null,null,null,null,null,null,null,null,null,null,null,null,null,null,null,null,null,null,null,null,null,null,null,null,null,null,null,null,null,""]
[null,null,null,null,null,null,null,null,null,null,null,null,null,null,null,null,null,null,null,null,null,null,null,null,null,null,null,null,null,null,null,null,null,null,null,null,null,null,null,null,null,null,null,null,null,null,null,null,null,null,null,null,null,null,""]
[null,null,null,null,null,null,null,null,null,null,null,null,null,null,null,null,null,null,null,null,null,null,null,null,null,null,null,null,null,null,null,null,null,null,null,null,null,null,null,null,null,null,null,null,null,null,null,null,null,null,null,null,null,null,""]
[null,null,null,null,null,null,null,null,null,null,null,null,null,null,null,null,null,null,null,null,null,null,null,null,null,null,null,null,null,null,null,null,null,null,null,null,null,null,null,null,null,null,null,null,null,null,null,null,null,null,null,null,null,null,""]
[null,null,null,null,null,null,null,null,null,null,null,null,null,null,null,null,null,null,null,null,null,null,null,null,null,null,null,null,null,null,null,null,null,null,null,null,null,null,null,null,null,null,null,null,null,null,null,null,null,null,null,null,null,null,""]
[null,null,null,null,null,null,null,null,null,null,null,null,null,null,null,null,null,null,null,null,null,null,null,null,null,null,null,null,null,null,null,null,null,null,null,null,null,null,null,null,null,null,null,null,null,null,null,null,null,null,null,null,null,null,""]
[null,null,null,null,null,null,null,null,null,null,null,null,null,null,null,null,null,null,null,null,null,null,null,null,null,null,null,null,null,null,null,null,null,null,null,null,null,null,null,null,null,null,null,null,null,null,null,null,null,null,null,null,null,null,""]
[null,null,null,null,null,null,null,null,null,null,null,null,null,null,null,null,null,null,null,null,null,null,null,null,null,null,null,null,null,null,null,null,null,null,null,null,null,null,null,null,null,null,null,null,null,null,null,null,null,null,null,null,null,null,""]
[null,null,null,null,null,null,null,null,null,null,null,null,null,null,null,null,null,null,null,null,null,null,null,null,null,null,null,null,null,null,null,null,null,null,null,null,null,null,null,null,null,null,null,null,null,null,null,null,null,null,null,null,null,null,""]
[null,null,null,null,null,null,null,null,null,null,null,null,null,null,null,null,null,null,null,null,null,null,null,null,null,null,null,null,null,null,null,null,null,null,null,null,null,null,null,null,null,null,null,null,null,null,null,null,null,null,null,null,null,null,""]
[null,null,null,null,null,null,null,null,null,null,null,null,null,null,null,null,null,null,null,null,null,null,null,null,null,null,null,null,null,null,null,null,null,null,null,null,null,null,null,null,null,null,null,null,null,null,null,null,null,null,null,null,null,null,""]
[null,null,null,null,null,null,null,null,null,null,null,null,null,null,null,null,null,null,null,null,null,null,null,null,null,null,null,null,null,null,null,null,null,null,null,null,null,null,null,null,null,null,null,null,null,null,null,null,null,null,null,null,null,null,""]
[null,null,null,null,null,null,null,null,null,null,null,null,null,null,null,null,null,null,null,null,null,null,null,null,null,null,null,null,null,null,null,null,null,null,null,null,null,null,null,null,null,null,null,null,null,null,null,null,null,null,null,null,null,null,""]
[null,null,null,null,null,null,null,null,null,null,null,null,null,null,null,null,null,null,null,null,null,null,null,null,null,null,null,null,null,null,null,null,null,null,null,null,null,null,null,null,null,null,null,null,null,null,null,null,null,null,null,null,null,null,""]
[null,null,null,null,null,null,null,null,null,null,null,null,null,null,null,null,null,null,null,null,null,null,null,null,null,null,null,null,null,null,null,null,null,null,null,null,null,null,null,null,null,null,null,null,null,null,null,null,null,null,null,null,null,null,""]
[null,null,null,null,null,null,null,null,null,null,null,null,null,null,null,null,null,null,null,null,null,null,null,null,null,null,null,null,null,null,null,null,null,null,null,null,null,null,null,null,null,null,null,null,null,null,null,null,null,null,null,null,null,null,""]
[null,null,null,null,null,null,null,null,null,null,null,null,null,null,null,null,null,null,null,null,null,null,null,null,null,null,null,null,null,null,null,null,null,null,null,null,null,null,null,null,null,null,null,null,null,null,null,null,null,null,null,null,null,null,""]
[null,null,null,null,null,null,null,null,null,null,null,null,null,null,null,null,null,null,null,null,null,null,null,null,null,null,null,null,null,null,null,null,null,null,null,null,null,null,null,null,null,null,null,null,null,null,null,null,null,null,null,null,null,null,""]
[null,null,null,null,null,null,null,null,null,null,null,null,null,null,null,null,null,null,null,null,null,null,null,null,null,null,null,null,null,null,null,null,null,null,null,null,null,null,null,null,null,null,null,null,null,null,null,null,null,null,null,null,null,null,""]
[null,null,null,null,null,null,null,null,null,null,null,null,null,null,null,null,null,null,null,null,null,null,null,null,null,null,null,null,null,null,null,null,null,null,null,null,null,null,null,null,null,null,null,null,null,null,null,null,null,null,null,null,null,null,""]
[null,null,null,null,null,null,null,null,null,null,null,null,null,null,null,null,null,null,null,null,null,null,null,null,null,null,null,null,null,null,null,null,null,null,null,null,null,null,null,null,null,null,null,null,null,null,null,null,null,null,null,null,null,null,""]
[null,null,null,null,null,null,null,null,null,null,null,null,null,null,null,null,null,null,null,null,null,null,null,null,null,null,null,null,null,null,null,null,null,null,null,null,null,null,null,null,null,null,null,null,null,null,null,null,null,null,null,null,null,null,""]
[null,null,null,null,null,null,null,null,null,null,null,null,null,null,null,null,null,null,null,null,null,null,null,null,null,null,null,null,null,null,null,null,null,null,null,null,null,null,null,null,null,null,null,null,null,null,null,null,null,null,null,null,null,null,""]
[null,null,null,null,null,null,null,null,null,null,null,null,null,null,null,null,null,null,null,null,null,null,null,null,null,null,null,null,null,null,null,null,null,null,null,null,null,null,null,null,null,null,null,null,null,null,null,null,null,null,null,null,null,null,""]
[null,null,null,null,null,null,null,null,null,null,null,null,null,null,null,null,null,null,null,null,null,null,null,null,null,null,null,null,null,null,null,null,null,null,null,null,null,null,null,null,null,null,null,null,null,null,null,null,null,null,null,null,null,null,""]
[null,null,null,null,null,null,null,null,null,null,null,null,null,null,null,null,null,null,null,null,null,null,null,null,null,null,null,null,null,null,null,null,null,null,null,null,null,null,null,null,null,null,null,null,null,null,null,null,null,null,null,null,null,null,{"$f":"SUBSTITUTE(SUBSTITUTE(E6356,\"　\",\"\"),\" \",\"\")","v":""}]
[null,null,null,null,null,null,null,null,null,null,null,null,null,null,null,null,null,null,null,null,null,null,null,null,null,null,null,null,null,null,null,null,null,null,null,null,null,null,null,null,null,null,null,null,null,null,null,null,null,null,null,null,null,null,""]
[null,null,null,null,null,null,null,null,null,null,null,null,null,null,null,null,null,null,null,null,null,null,null,null,null,null,null,null,null,null,null,null,null,null,null,null,null,null,null,null,null,null,null,null,null,null,null,null,null,null,null,null,null,null,""]
[null,null,null,null,null,null,null,null,null,null,null,null,null,null,null,null,null,null,null,null,null,null,null,null,null,null,null,null,null,null,null,null,null,null,null,null,null,null,null,null,null,null,null,null,null,null,null,null,null,null,null,null,null,null,""]
[null,null,null,null,null,null,null,null,null,null,null,null,null,null,null,null,null,null,null,null,null,null,null,null,null,null,null,null,null,null,null,null,null,null,null,null,null,null,null,null,null,null,null,null,null,null,null,null,null,null,null,null,null,null,""]
[null,null,null,null,null,null,null,null,null,null,null,null,null,null,null,null,null,null,null,null,null,null,null,null,null,null,null,null,null,null,null,null,null,null,null,null,null,null,null,null,null,null,null,null,null,null,null,null,null,null,null,null,null,null,""]
[null,null,null,null,null,null,null,null,null,null,null,null,null,null,null,null,null,null,null,null,null,null,null,null,null,null,null,null,null,null,null,null,null,null,null,null,null,null,null,null,null,null,null,null,null,null,null,null,null,null,null,null,null,null,""]
[null,null,null,null,null,null,null,null,null,null,null,null,null,null,null,null,null,null,null,null,null,null,null,null,null,null,null,null,null,null,null,null,null,null,null,null,null,null,null,null,null,null,null,null,null,null,null,null,null,null,null,null,null,null,""]
[null,null,null,null,null,null,null,null,null,null,null,null,null,null,null,null,null,null,null,null,null,null,null,null,null,null,null,null,null,null,null,null,null,null,null,null,null,null,null,null,null,null,null,null,null,null,null,null,null,null,null,null,null,null,""]
[null,null,null,null,null,null,null,null,null,null,null,null,null,null,null,null,null,null,null,null,null,null,null,null,null,null,null,null,null,null,null,null,null,null,null,null,null,null,null,null,null,null,null,null,null,null,null,null,null,null,null,null,null,null,""]
[null,null,null,null,null,null,null,null,null,null,null,null,null,null,null,null,null,null,null,null,null,null,null,null,null,null,null,null,null,null,null,null,null,null,null,null,null,null,null,null,null,null,null,null,null,null,null,null,null,null,null,null,null,null,""]
[null,null,null,null,null,null,null,null,null,null,null,null,null,null,null,null,null,null,null,null,null,null,null,null,null,null,null,null,null,null,null,null,null,null,null,null,null,null,null,null,null,null,null,null,null,null,null,null,null,null,null,null,null,null,""]
[null,null,null,null,null,null,null,null,null,null,null,null,null,null,null,null,null,null,null,null,null,null,null,null,null,null,null,null,null,null,null,null,null,null,null,null,null,null,null,null,null,null,null,null,null,null,null,null,null,null,null,null,null,null,""]
[null,null,null,null,null,null,null,null,null,null,null,null,null,null,null,null,null,null,null,null,null,null,null,null,null,null,null,null,null,null,null,null,null,null,null,null,null,null,null,null,null,null,null,null,null,null,null,null,null,null,null,null,null,null,""]
[null,null,null,null,null,null,null,null,null,null,null,null,null,null,null,null,null,null,null,null,null,null,null,null,null,null,null,null,null,null,null,null,null,null,null,null,null,null,null,null,null,null,null,null,null,null,null,null,null,null,null,null,null,null,""]
[null,null,null,null,null,null,null,null,null,null,null,null,null,null,null,null,null,null,null,null,null,null,null,null,null,null,null,null,null,null,null,null,null,null,null,null,null,null,null,null,null,null,null,null,null,null,null,null,null,null,null,null,null,null,""]
[null,null,null,null,null,null,null,null,null,null,null,null,null,null,null,null,null,null,null,null,null,null,null,null,null,null,null,null,null,null,null,null,null,null,null,null,null,null,null,null,null,null,null,null,null,null,null,null,null,null,null,null,null,null,""]
[null,null,null,null,null,null,null,null,null,null,null,null,null,null,null,null,null,null,null,null,null,null,null,null,null,null,null,null,null,null,null,null,null,null,null,null,null,null,null,null,null,null,null,null,null,null,null,null,null,null,null,null,null,null,""]
[null,null,null,null,null,null,null,null,null,null,null,null,null,null,null,null,null,null,null,null,null,null,null,null,null,null,null,null,null,null,null,null,null,null,null,null,null,null,null,null,null,null,null,null,null,null,null,null,null,null,null,null,null,null,""]
[null,null,null,null,null,null,null,null,null,null,null,null,null,null,null,null,null,null,null,null,null,null,null,null,null,null,null,null,null,null,null,null,null,null,null,null,null,null,null,null,null,null,null,null,null,null,null,null,null,null,null,null,null,null,""]
[null,null,null,null,null,null,null,null,null,null,null,null,null,null,null,null,null,null,null,null,null,null,null,null,null,null,null,null,null,null,null,null,null,null,null,null,null,null,null,null,null,null,null,null,null,null,null,null,null,null,null,null,null,null,""]
[null,null,null,null,null,null,null,null,null,null,null,null,null,null,null,null,null,null,null,null,null,null,null,null,null,null,null,null,null,null,null,null,null,null,null,null,null,null,null,null,null,null,null,null,null,null,null,null,null,null,null,null,null,null,""]
[null,null,null,null,null,null,null,null,null,null,null,null,null,null,null,null,null,null,null,null,null,null,null,null,null,null,null,null,null,null,null,null,null,null,null,null,null,null,null,null,null,null,null,null,null,null,null,null,null,null,null,null,null,null,""]
[null,null,null,null,null,null,null,null,null,null,null,null,null,null,null,null,null,null,null,null,null,null,null,null,null,null,null,null,null,null,null,null,null,null,null,null,null,null,null,null,null,null,null,null,null,null,null,null,null,null,null,null,null,null,""]
[null,null,null,null,null,null,null,null,null,null,null,null,null,null,null,null,null,null,null,null,null,null,null,null,null,null,null,null,null,null,null,null,null,null,null,null,null,null,null,null,null,null,null,null,null,null,null,null,null,null,null,null,null,null,""]
[null,null,null,null,null,null,null,null,null,null,null,null,null,null,null,null,null,null,null,null,null,null,null,null,null,null,null,null,null,null,null,null,null,null,null,null,null,null,null,null,null,null,null,null,null,null,null,null,null,null,null,null,null,null,""]
[null,null,null,null,null,null,null,null,null,null,null,null,null,null,null,null,null,null,null,null,null,null,null,null,null,null,null,null,null,null,null,null,null,null,null,null,null,null,null,null,null,null,null,null,null,null,null,null,null,null,null,null,null,null,""]
[null,null,null,null,null,null,null,null,null,null,null,null,null,null,null,null,null,null,null,null,null,null,null,null,null,null,null,null,null,null,null,null,null,null,null,null,null,null,null,null,null,null,null,null,null,null,null,null,null,null,null,null,null,null,""]
[null,null,null,null,null,null,null,null,null,null,null,null,null,null,null,null,null,null,null,null,null,null,null,null,null,null,null,null,null,null,null,null,null,null,null,null,null,null,null,null,null,null,null,null,null,null,null,null,null,null,null,null,null,null,""]
[null,null,null,null,null,null,null,null,null,null,null,null,null,null,null,null,null,null,null,null,null,null,null,null,null,null,null,null,null,null,null,null,null,null,null,null,null,null,null,null,null,null,null,null,null,null,null,null,null,null,null,null,null,null,""]
[null,null,null,null,null,null,null,null,null,null,null,null,null,null,null,null,null,null,null,null,null,null,null,null,null,null,null,null,null,null,null,null,null,null,null,null,null,null,null,null,null,null,null,null,null,null,null,null,null,null,null,null,null,null,""]
[null,null,null,null,null,null,null,null,null,null,null,null,null,null,null,null,null,null,null,null,null,null,null,null,null,null,null,null,null,null,null,null,null,null,null,null,null,null,null,null,null,null,null,null,null,null,null,null,null,null,null,null,null,null,""]
[null,null,null,null,null,null,null,null,null,null,null,null,null,null,null,null,null,null,null,null,null,null,null,null,null,null,null,null,null,null,null,null,null,null,null,null,null,null,null,null,null,null,null,null,null,null,null,null,null,null,null,null,null,null,""]
[null,null,null,null,null,null,null,null,null,null,null,null,null,null,null,null,null,null,null,null,null,null,null,null,null,null,null,null,null,null,null,null,null,null,null,null,null,null,null,null,null,null,null,null,null,null,null,null,null,null,null,null,null,null,""]
[null,null,null,null,null,null,null,null,null,null,null,null,null,null,null,null,null,null,null,null,null,null,null,null,null,null,null,null,null,null,null,null,null,null,null,null,null,null,null,null,null,null,null,null,null,null,null,null,null,null,null,null,null,null,""]
[null,null,null,null,null,null,null,null,null,null,null,null,null,null,null,null,null,null,null,null,null,null,null,null,null,null,null,null,null,null,null,null,null,null,null,null,null,null,null,null,null,null,null,null,null,null,null,null,null,null,null,null,null,null,""]
[null,null,null,null,null,null,null,null,null,null,null,null,null,null,null,null,null,null,null,null,null,null,null,null,null,null,null,null,null,null,null,null,null,null,null,null,null,null,null,null,null,null,null,null,null,null,null,null,null,null,null,null,null,null,""]
[null,null,null,null,null,null,null,null,null,null,null,null,null,null,null,null,null,null,null,null,null,null,null,null,null,null,null,null,null,null,null,null,null,null,null,null,null,null,null,null,null,null,null,null,null,null,null,null,null,null,null,null,null,null,""]
[null,null,null,null,null,null,null,null,null,null,null,null,null,null,null,null,null,null,null,null,null,null,null,null,null,null,null,null,null,null,null,null,null,null,null,null,null,null,null,null,null,null,null,null,null,null,null,null,null,null,null,null,null,null,""]
[null,null,null,null,null,null,null,null,null,null,null,null,null,null,null,null,null,null,null,null,null,null,null,null,null,null,null,null,null,null,null,null,null,null,null,null,null,null,null,null,null,null,null,null,null,null,null,null,null,null,null,null,null,null,""]
[null,null,null,null,null,null,null,null,null,null,null,null,null,null,null,null,null,null,null,null,null,null,null,null,null,null,null,null,null,null,null,null,null,null,null,null,null,null,null,null,null,null,null,null,null,null,null,null,null,null,null,null,null,null,""]
[null,null,null,null,null,null,null,null,null,null,null,null,null,null,null,null,null,null,null,null,null,null,null,null,null,null,null,null,null,null,null,null,null,null,null,null,null,null,null,null,null,null,null,null,null,null,null,null,null,null,null,null,null,null,""]
[null,null,null,null,null,null,null,null,null,null,null,null,null,null,null,null,null,null,null,null,null,null,null,null,null,null,null,null,null,null,null,null,null,null,null,null,null,null,null,null,null,null,null,null,null,null,null,null,null,null,null,null,null,null,""]
[null,null,null,null,null,null,null,null,null,null,null,null,null,null,null,null,null,null,null,null,null,null,null,null,null,null,null,null,null,null,null,null,null,null,null,null,null,null,null,null,null,null,null,null,null,null,null,null,null,null,null,null,null,null,""]
[null,null,null,null,null,null,null,null,null,null,null,null,null,null,null,null,null,null,null,null,null,null,null,null,null,null,null,null,null,null,null,null,null,null,null,null,null,null,null,null,null,null,null,null,null,null,null,null,null,null,null,null,null,null,""]
[null,null,null,null,null,null,null,null,null,null,null,null,null,null,null,null,null,null,null,null,null,null,null,null,null,null,null,null,null,null,null,null,null,null,null,null,null,null,null,null,null,null,null,null,null,null,null,null,null,null,null,null,null,null,""]
[null,null,null,null,null,null,null,null,null,null,null,null,null,null,null,null,null,null,null,null,null,null,null,null,null,null,null,null,null,null,null,null,null,null,null,null,null,null,null,null,null,null,null,null,null,null,null,null,null,null,null,null,null,null,""]
[null,null,null,null,null,null,null,null,null,null,null,null,null,null,null,null,null,null,null,null,null,null,null,null,null,null,null,null,null,null,null,null,null,null,null,null,null,null,null,null,null,null,null,null,null,null,null,null,null,null,null,null,null,null,""]
[null,null,null,null,null,null,null,null,null,null,null,null,null,null,null,null,null,null,null,null,null,null,null,null,null,null,null,null,null,null,null,null,null,null,null,null,null,null,null,null,null,null,null,null,null,null,null,null,null,null,null,null,null,null,""]
[null,null,null,null,null,null,null,null,null,null,null,null,null,null,null,null,null,null,null,null,null,null,null,null,null,null,null,null,null,null,null,null,null,null,null,null,null,null,null,null,null,null,null,null,null,null,null,null,null,null,null,null,null,null,""]
[null,null,null,null,null,null,null,null,null,null,null,null,null,null,null,null,null,null,null,null,null,null,null,null,null,null,null,null,null,null,null,null,null,null,null,null,null,null,null,null,null,null,null,null,null,null,null,null,null,null,null,null,null,null,""]
[null,null,null,null,null,null,null,null,null,null,null,null,null,null,null,null,null,null,null,null,null,null,null,null,null,null,null,null,null,null,null,null,null,null,null,null,null,null,null,null,null,null,null,null,null,null,null,null,null,null,null,null,null,null,""]
[null,null,null,null,null,null,null,null,null,null,null,null,null,null,null,null,null,null,null,null,null,null,null,null,null,null,null,null,null,null,null,null,null,null,null,null,null,null,null,null,null,null,null,null,null,null,null,null,null,null,null,null,null,null,""]
[null,null,null,null,null,null,null,null,null,null,null,null,null,null,null,null,null,null,null,null,null,null,null,null,null,null,null,null,null,null,null,null,null,null,null,null,null,null,null,null,null,null,null,null,null,null,null,null,null,null,null,null,null,null,""]
[null,null,null,null,null,null,null,null,null,null,null,null,null,null,null,null,null,null,null,null,null,null,null,null,null,null,null,null,null,null,null,null,null,null,null,null,null,null,null,null,null,null,null,null,null,null,null,null,null,null,null,null,null,null,""]
[null,null,null,null,null,null,null,null,null,null,null,null,null,null,null,null,null,null,null,null,null,null,null,null,null,null,null,null,null,null,null,null,null,null,null,null,null,null,null,null,null,null,null,null,null,null,null,null,null,null,null,null,null,null,""]
[null,null,null,null,null,null,null,null,null,null,null,null,null,null,null,null,null,null,null,null,null,null,null,null,null,null,null,null,null,null,null,null,null,null,null,null,null,null,null,null,null,null,null,null,null,null,null,null,null,null,null,null,null,null,""]
[null,null,null,null,null,null,null,null,null,null,null,null,null,null,null,null,null,null,null,null,null,null,null,null,null,null,null,null,null,null,null,null,null,null,null,null,null,null,null,null,null,null,null,null,null,null,null,null,null,null,null,null,null,null,""]
[null,null,null,null,null,null,null,null,null,null,null,null,null,null,null,null,null,null,null,null,null,null,null,null,null,null,null,null,null,null,null,null,null,null,null,null,null,null,null,null,null,null,null,null,null,null,null,null,null,null,null,null,null,null,""]
[null,null,null,null,null,null,null,null,null,null,null,null,null,null,null,null,null,null,null,null,null,null,null,null,null,null,null,null,null,null,null,null,null,null,null,null,null,null,null,null,null,null,null,null,null,null,null,null,null,null,null,null,null,null,""]
[null,null,null,null,null,null,null,null,null,null,null,null,null,null,null,null,null,null,null,null,null,null,null,null,null,null,null,null,null,null,null,null,null,null,null,null,null,null,null,null,null,null,null,null,null,null,null,null,null,null,null,null,null,null,""]
[null,null,null,null,null,null,null,null,null,null,null,null,null,null,null,null,null,null,null,null,null,null,null,null,null,null,null,null,null,null,null,null,null,null,null,null,null,null,null,null,null,null,null,null,null,null,null,null,null,null,null,null,null,null,""]
[null,null,null,null,null,null,null,null,null,null,null,null,null,null,null,null,null,null,null,null,null,null,null,null,null,null,null,null,null,null,null,null,null,null,null,null,null,null,null,null,null,null,null,null,null,null,null,null,null,null,null,null,null,null,""]
[null,null,null,null,null,null,null,null,null,null,null,null,null,null,null,null,null,null,null,null,null,null,null,null,null,null,null,null,null,null,null,null,null,null,null,null,null,null,null,null,null,null,null,null,null,null,null,null,null,null,null,null,null,null,""]
[null,null,null,null,null,null,null,null,null,null,null,null,null,null,null,null,null,null,null,null,null,null,null,null,null,null,null,null,null,null,null,null,null,null,null,null,null,null,null,null,null,null,null,null,null,null,null,null,null,null,null,null,null,null,{"$f":"SUBSTITUTE(SUBSTITUTE(E6420,\"　\",\"\"),\" \",\"\")","v":""}]
[null,null,null,null,null,null,null,null,null,null,null,null,null,null,null,null,null,null,null,null,null,null,null,null,null,null,null,null,null,null,null,null,null,null,null,null,null,null,null,null,null,null,null,null,null,null,null,null,null,null,null,null,null,null,""]
[null,null,null,null,null,null,null,null,null,null,null,null,null,null,null,null,null,null,null,null,null,null,null,null,null,null,null,null,null,null,null,null,null,null,null,null,null,null,null,null,null,null,null,null,null,null,null,null,null,null,null,null,null,null,""]
[null,null,null,null,null,null,null,null,null,null,null,null,null,null,null,null,null,null,null,null,null,null,null,null,null,null,null,null,null,null,null,null,null,null,null,null,null,null,null,null,null,null,null,null,null,null,null,null,null,null,null,null,null,null,""]
[null,null,null,null,null,null,null,null,null,null,null,null,null,null,null,null,null,null,null,null,null,null,null,null,null,null,null,null,null,null,null,null,null,null,null,null,null,null,null,null,null,null,null,null,null,null,null,null,null,null,null,null,null,null,""]
[null,null,null,null,null,null,null,null,null,null,null,null,null,null,null,null,null,null,null,null,null,null,null,null,null,null,null,null,null,null,null,null,null,null,null,null,null,null,null,null,null,null,null,null,null,null,null,null,null,null,null,null,null,null,""]
[null,null,null,null,null,null,null,null,null,null,null,null,null,null,null,null,null,null,null,null,null,null,null,null,null,null,null,null,null,null,null,null,null,null,null,null,null,null,null,null,null,null,null,null,null,null,null,null,null,null,null,null,null,null,""]
[null,null,null,null,null,null,null,null,null,null,null,null,null,null,null,null,null,null,null,null,null,null,null,null,null,null,null,null,null,null,null,null,null,null,null,null,null,null,null,null,null,null,null,null,null,null,null,null,null,null,null,null,null,null,""]
[null,null,null,null,null,null,null,null,null,null,null,null,null,null,null,null,null,null,null,null,null,null,null,null,null,null,null,null,null,null,null,null,null,null,null,null,null,null,null,null,null,null,null,null,null,null,null,null,null,null,null,null,null,null,""]
[null,null,null,null,null,null,null,null,null,null,null,null,null,null,null,null,null,null,null,null,null,null,null,null,null,null,null,null,null,null,null,null,null,null,null,null,null,null,null,null,null,null,null,null,null,null,null,null,null,null,null,null,null,null,""]
[null,null,null,null,null,null,null,null,null,null,null,null,null,null,null,null,null,null,null,null,null,null,null,null,null,null,null,null,null,null,null,null,null,null,null,null,null,null,null,null,null,null,null,null,null,null,null,null,null,null,null,null,null,null,""]
[null,null,null,null,null,null,null,null,null,null,null,null,null,null,null,null,null,null,null,null,null,null,null,null,null,null,null,null,null,null,null,null,null,null,null,null,null,null,null,null,null,null,null,null,null,null,null,null,null,null,null,null,null,null,""]
[null,null,null,null,null,null,null,null,null,null,null,null,null,null,null,null,null,null,null,null,null,null,null,null,null,null,null,null,null,null,null,null,null,null,null,null,null,null,null,null,null,null,null,null,null,null,null,null,null,null,null,null,null,null,""]
[null,null,null,null,null,null,null,null,null,null,null,null,null,null,null,null,null,null,null,null,null,null,null,null,null,null,null,null,null,null,null,null,null,null,null,null,null,null,null,null,null,null,null,null,null,null,null,null,null,null,null,null,null,null,""]
[null,null,null,null,null,null,null,null,null,null,null,null,null,null,null,null,null,null,null,null,null,null,null,null,null,null,null,null,null,null,null,null,null,null,null,null,null,null,null,null,null,null,null,null,null,null,null,null,null,null,null,null,null,null,""]
[null,null,null,null,null,null,null,null,null,null,null,null,null,null,null,null,null,null,null,null,null,null,null,null,null,null,null,null,null,null,null,null,null,null,null,null,null,null,null,null,null,null,null,null,null,null,null,null,null,null,null,null,null,null,""]
[null,null,null,null,null,null,null,null,null,null,null,null,null,null,null,null,null,null,null,null,null,null,null,null,null,null,null,null,null,null,null,null,null,null,null,null,null,null,null,null,null,null,null,null,null,null,null,null,null,null,null,null,null,null,""]
[null,null,null,null,null,null,null,null,null,null,null,null,null,null,null,null,null,null,null,null,null,null,null,null,null,null,null,null,null,null,null,null,null,null,null,null,null,null,null,null,null,null,null,null,null,null,null,null,null,null,null,null,null,null,""]
[null,null,null,null,null,null,null,null,null,null,null,null,null,null,null,null,null,null,null,null,null,null,null,null,null,null,null,null,null,null,null,null,null,null,null,null,null,null,null,null,null,null,null,null,null,null,null,null,null,null,null,null,null,null,""]
[null,null,null,null,null,null,null,null,null,null,null,null,null,null,null,null,null,null,null,null,null,null,null,null,null,null,null,null,null,null,null,null,null,null,null,null,null,null,null,null,null,null,null,null,null,null,null,null,null,null,null,null,null,null,""]
[null,null,null,null,null,null,null,null,null,null,null,null,null,null,null,null,null,null,null,null,null,null,null,null,null,null,null,null,null,null,null,null,null,null,null,null,null,null,null,null,null,null,null,null,null,null,null,null,null,null,null,null,null,null,""]
[null,null,null,null,null,null,null,null,null,null,null,null,null,null,null,null,null,null,null,null,null,null,null,null,null,null,null,null,null,null,null,null,null,null,null,null,null,null,null,null,null,null,null,null,null,null,null,null,null,null,null,null,null,null,""]
[null,null,null,null,null,null,null,null,null,null,null,null,null,null,null,null,null,null,null,null,null,null,null,null,null,null,null,null,null,null,null,null,null,null,null,null,null,null,null,null,null,null,null,null,null,null,null,null,null,null,null,null,null,null,""]
[null,null,null,null,null,null,null,null,null,null,null,null,null,null,null,null,null,null,null,null,null,null,null,null,null,null,null,null,null,null,null,null,null,null,null,null,null,null,null,null,null,null,null,null,null,null,null,null,null,null,null,null,null,null,""]
[null,null,null,null,null,null,null,null,null,null,null,null,null,null,null,null,null,null,null,null,null,null,null,null,null,null,null,null,null,null,null,null,null,null,null,null,null,null,null,null,null,null,null,null,null,null,null,null,null,null,null,null,null,null,""]
[null,null,null,null,null,null,null,null,null,null,null,null,null,null,null,null,null,null,null,null,null,null,null,null,null,null,null,null,null,null,null,null,null,null,null,null,null,null,null,null,null,null,null,null,null,null,null,null,null,null,null,null,null,null,""]
[null,null,null,null,null,null,null,null,null,null,null,null,null,null,null,null,null,null,null,null,null,null,null,null,null,null,null,null,null,null,null,null,null,null,null,null,null,null,null,null,null,null,null,null,null,null,null,null,null,null,null,null,null,null,""]
[null,null,null,null,null,null,null,null,null,null,null,null,null,null,null,null,null,null,null,null,null,null,null,null,null,null,null,null,null,null,null,null,null,null,null,null,null,null,null,null,null,null,null,null,null,null,null,null,null,null,null,null,null,null,""]
[null,null,null,null,null,null,null,null,null,null,null,null,null,null,null,null,null,null,null,null,null,null,null,null,null,null,null,null,null,null,null,null,null,null,null,null,null,null,null,null,null,null,null,null,null,null,null,null,null,null,null,null,null,null,""]
[null,null,null,null,null,null,null,null,null,null,null,null,null,null,null,null,null,null,null,null,null,null,null,null,null,null,null,null,null,null,null,null,null,null,null,null,null,null,null,null,null,null,null,null,null,null,null,null,null,null,null,null,null,null,""]
[null,null,null,null,null,null,null,null,null,null,null,null,null,null,null,null,null,null,null,null,null,null,null,null,null,null,null,null,null,null,null,null,null,null,null,null,null,null,null,null,null,null,null,null,null,null,null,null,null,null,null,null,null,null,""]

{"sheet":"⑤申込みスケジュール","index":5,"n_rows":25,"n_cols":16,"rows_kept":25,"cut":false,"hidden":false,"merged":[[14,2,15,2],[14,7,14,9],[14,11,15,15],[15,8,15,10],[22,14,22,15],[16,8,16,15],[18,10,18,15],[19,11,19,15],[20,12,20,15],[21,13,21,15],[11,6,11,8],[12,2,13,2],[12,6,12,8],[12,10,13,15],[13,7,13,9],[2,1,2,15],[4,1,5,3],[4,4,4,15],[6,1,24,1],[6,2,7,2],[6,4,6,6],[6,7,7,15],[7,4,7,6],[8,2,9,2],[8,4,8,6],[8,8,9,15],[17,9,17,15],[9,5,9,7],[10,2,11,2],[10,5,10,7],[10,9,11,15]]}
[]
[]
[null,"申込みスケジュール"]
[]
[null,"2025年度",null,null,"受 診 希 望 月"]
[null,null,null,null,"4月健診","5月健診","6月健診","7月健診","8月健診","9月健診","10月健診","11月健診","12月健診","1月健診","2月健診","3月健診"]
[null,"申込み時期","2月","15日までに申込み","2月末日までに回答",null,null,"3月末日までに回答　　　　　　　　　　　　　　　　　　　　"]
[null,null,null,"末日までに申込み","3月15日までに回答"]
[null,null,"3月","15日までに申込み","3月末日までに回答",null,null,null,"4月末日までに回答　　　　　　　　　　　　　　　　　　　　"]
[null,null,null,"末日までに申込み",null,"4月15日までに回答"]
[null,null,"4月","15日までに申込み",null,"4月末日までに回答",null,null,null,"5月末日までに回答　　　　　　　　　　　　　　　　　　　　"]
[null,null,null,"末日までに申込み",null,null,"5月15日までに回答"]
[null,null,"5月","15日までに申込み",null,null,"5月末日までに回答",null,null,null,"6月末日までに回答　　　　　　　　　　　　　　　　　　　　"]
[null,null,null,"末日までに申込み",null,null,null,"6月15日までに回答"]
[null,null,"6月","15日までに申込み",null,null,null,"6月末日までに回答",null,null,null,"7月末日までに回答　　　　　　　　　　　　　　　　　　　　"]
[null,null,null,"末日までに申込み",null,null,null,null,"7月15日までに回答"]
[null,null,"7月","末日までに申込み",null,null,null,null,"2週間以内に回答"]
[null,null,"8月","末日までに申込み",null,null,null,null,null,"2週間以内に回答"]
[null,null,"9月","末日までに申込み",null,null,null,null,null,null,"2週間以内に回答"]
[null,null,"10月","末日までに申込み",null,null,null,null,null,null,null,"2週間以内に回答"]
[null,null,"11月","末日までに申込み",null,null,null,null,null,null,null,null,"2週間以内に回答"]
[null,null,"12月","末日までに申込み",null,null,null,null,null,null,null,null,null,"2週間以内に回答"]
[null,null,"1月","末日までに申込み",null,null,null,null,null,null,null,null,null,null,"2週間以内に回答"]
[null,null,"2月","末日までに申込み",null,null,null,null,null,null,null,null,null,null,null,"2週間以内\nに回答"]
[null,null,"3月","末日までに申込み",null,null,null,null,null,null,null,null,null,null,null,"随時回答"]

{"sheet":"⑥営業時間","index":6,"n_rows":65,"n_cols":14,"rows_kept":65,"cut":false,"hidden":false,"merged":[[63,1,63,13],[64,1,64,13],[44,3,44,7],[44,8,44,13],[44,1,45,2],[34,1,34,13],[61,1,61,13],[29,11,29,13],[29,8,29,9],[56,8,56,9],[41,3,41,13],[42,3,42,13],[43,3,43,13],[56,3,56,5],[57,3,57,13],[46,6,46,7],[48,6,48,7],[56,6,56,7],[54,6,54,7],[52,6,52,7],[50,6,50,7],[47,6,47,7],[49,6,49,7],[30,3,30,13],[17,8,17,13],[17,3,17,7],[17,1,18,2],[19,8,19,13],[21,8,21,13],[25,8,25,13],[23,8,23,13],[20,8,20,13],[24,8,24,13],[19,6,19,7],[20,6,20,7],[29,6,29,7],[27,6,27,7],[25,6,25,7],[23,6,23,7],[21,6,21,7],[22,3,22,13],[28,3,28,13],[26,6,26,7],[24,6,24,7],[26,3,26,5],[27,3,27,5],[27,8,27,13],[50,8,50,9],[51,3,51,5],[52,3,52,5],[53,3,53,5],[54,3,54,5],[55,3,55,5],[46,3,46,5],[47,3,47,5],[48,3,48,5],[49,3,49,5],[50,3,50,5],[1,1,1,13],[41,1,41,2],[33,1,33,13],[32,1,32,13],[19,1,20,1],[21,1,22,1],[23,1,24,1],[25,1,26,1],[27,1,28,1],[29,1,30,1],[15,1,15,2],[14,1,14,2],[3,1,3,13],[14,3,14,13],[15,3,15,13],[16,3,16,13],[19,3,19,5],[20,3,20,5],[21,3,21,5],[23,3,23,5],[24,3,24,5],[25,3,25,5],[26,8,26,13],[29,3,29,5],[62,1,62,13],[4,1,4,13],[5,1,5,13],[59,1,59,13],[60,1,60,13],[54,1,55,1],[56,1,57,1],[35,1,35,13],[43,1,43,2],[16,1,16,2],[46,12,56,13],[52,8,52,9],[54,8,54,9],[42,1,42,2],[11,1,11,13],[46,1,47,1],[48,1,49,1],[50,1,51,1],[52,1,53,1],[51,6,51,7],[53,6,53,7],[55,6,55,7],[46,8,46,9],[48,8,48,9]]}
[]
[]
[]
[null,"2025年度"]
[null,"桜十字福岡病院・桜十字博多駅健診クリニック"]
[null,"　人間ドック/健康診断　営業時間ご案内"]
[]
[]
[]
[]
[]
[null,"適用期間 ( 2025年4月1日 ～ 2026年3月31日 )　　　　※予定はご案内無しに変更となる場合がございます。予めご了承ください。"]
[]
[]
[null,"施設名称",null,"　桜十字福岡病院 2F　　人間ドック・健診センター"]
[null,"所在地",null,"　福岡市中央区渡辺通3-5-11"]
[null,"営業時間",null,"　【AM】 7：45 ～ 10：30 (※土曜日： 8：00 ～ 9：45)　　　　　【PM】 13：45 ～ 15：00"]
[null,null,null,"健診コース",null,null,null,null,"検査項目"]
[null,null,null,"定期健診","雇用時健診","法定健診\n(胃の検査なし)","生活習慣病\n健診","人間\nドック","超音波検査\n(エコー) ※1","胃部検査\n※2","大腸検査\n※3","婦人科検診\n※4","MRI","CT"]
[null,"月","AM",null,null,null,"○",null,"○"]
[null,null,"PM","○"]
[null,"火","AM",null,null,null,"○",null,"○"]
[null,null,"PM","休　診"]
[null,"水","AM",null,null,null,"○",null,"○"]
[null,null,"PM","○"]
[null,"木","AM",null,null,null,"○",null,"○"]
[null,null,"PM","○"]
[null,"金","AM",null,null,null,"○",null,"○"]
[null,null,"PM","休　診"]
[null,"土","AM",null,null,null,"○",null,"○",null,null,"○"]
[null,null,"PM","休　診"]
[]
[null,"※1　超音波検査　→　腹部エコー ・ 頸動脈エコー ・ 甲状腺エコー ・ 乳腺エコー"]
[null,"※2　胃部検査　　 →　バリウム検査 ・ 胃カメラ検査（鎮静剤あり/なし）"]
[null,"※3　大腸検査　　 →　大腸CT（月曜日/金曜日のみ） ・ 大腸カメラ（月曜日～金曜日）"]
[null,"※4　婦人科検診　→　子宮頸部細胞診 ・ 経腟エコー ・ マンモグラフィー（１方向/2方向）　　土曜日はマンモグラフィーのみ受診可能"]
[]
[]
[]
[]
[]
[null,"施設名称",null,"　桜十字博多駅健診クリニック"]
[null,"所在地",null,"　福岡市博多区博多駅中央街8-1　JRJP博多ビル ８Ｆ"]
[null,"営業時間",null,"　【AM】 8：00 ～ 11：00 (※土曜日： 8：00 ～ 10：15)　　　　　【PM】 月・火・木　14：00 ～ 15：30　/　水・金　14：00 ～ 14：30"]
[null,null,null,"健診コース",null,null,null,null,"検査項目"]
[null,null,null,"定期健診","雇用時健診","法定健診\n(胃の検査なし)","生活習慣病\n健診","人間\nドック","超音波検査\n(エコー) ※1","胃部検査\n※2","大腸検査\n※3","婦人科検診\n※4","MRI","CT"]
[null,"月","AM",null,null,null,"○",null,"○",null,null,"　　○※5","MRI・CT は\n“桜十字福岡病院”\nでのみ受診可能"]
[null,null,"PM","○",null,null,null,null,null,null,"○"]
[null,"火","AM",null,null,null,"○",null,"○",null,null,"○"]
[null,null,"PM","○",null,null,null,null,null,null,"○"]
[null,"水","AM",null,null,null,"○",null,"○",null,null,"○"]
[null,null,"PM","○",null,null,null,null,null,null,"○"]
[null,"木","AM",null,null,null,"○",null,"○",null,null,"○"]
[null,null,"PM","○",null,null,null,null,null,null,"○"]
[null,"金","AM",null,null,null,"　　○※6",null,"○",null,null,"○"]
[null,null,"PM","○",null,null,null,null,null,null,"○"]
[null,"土","AM",null,null,null,"○",null,"○"]
[null,null,"PM","休　診"]
[]
[null,"※1　超音波検査　→　腹部エコー ・ 頸動脈エコー ・ 甲状腺エコー ・ 乳腺エコー"]
[null,"※2　胃部検査　　 →　バリウム検査 ・ 胃カメラ検査（鎮静剤あり/なし）"]
[null,"※3　大腸検査　　 →　大腸カメラのみ"]
[null,"※4　婦人科検診　→　子宮頸部細胞診 ・ 経腟エコー ・ マンモグラフィー（１方向/2方向）"]
[null,"※5　月曜日は子宮頸部細胞診の検査を行っておりません。"]
[null,"※6　金曜日の午前中はレディースデーです。　男性のご予約は承れません。"]

{"sheet":"⑦診療日カレンダー","index":7,"n_rows":134,"n_cols":24,"rows_kept":134,"cut":false,"hidden":false,"merged":[[106,1,106,7],[106,9,106,15],[106,17,106,23],[122,1,122,7],[122,9,122,15],[122,17,122,23],[90,1,90,7],[90,9,90,15],[90,17,90,23],[36,1,36,7],[36,9,36,15],[36,17,36,23],[52,1,52,7],[52,9,52,15],[52,17,52,23],[74,1,74,23],[76,1,76,7],[76,9,76,15],[76,17,76,23],[72,1,72,23],[2,1,2,23],[20,1,20,7],[20,9,20,15],[20,17,20,23],[4,1,4,23],[6,1,6,7],[6,9,6,15],[6,17,6,23]]}
[]
[]
[null,"健診カレンダー（天神）"]
[]
[null,"　　　　火曜日・金曜日・土曜日は午前のみ（午後休館）"]
[]
[null,2025,null,null,null,null,null,null,null,2025,null,null,null,null,null,null,null,2025]
[null,"日","月","火","水","木","金","土",null,"日","月","火","水","木","金","土",null,"日","月","火","水","木","金","土"]
[null,null,null,1,2,3,4,5,null,null,null,null,null,1,2,3,null,1,2,3,4,5,6,7]
[null,null,null,null,null,null,null,"休館",null,null,null,null,null,null,null,"休館",null,"休館"]
[null,6,7,8,9,10,11,12,null,4,5,6,7,8,9,10,null,8,9,10,11,12,13,14]
[null,"休館",null,null,null,null,null,"休館",null,"休館","休館","休館",null,null,null,"休館",null,"休館",null,null,null,null,null,"休館"]
[null,13,14,15,16,17,18,19,null,11,12,13,14,15,16,17,null,15,16,17,18,19,20,21]
[null,"休館",null,null,null,null,null,null,null,"休館",null,null,null,null,null,null,null,"休館"]
[null,20,21,22,23,24,25,26,null,18,19,20,21,22,23,24,null,22,23,24,25,26,27,28]
[null,"休館",null,null,null,null,null,"休館",null,"休館",null,null,null,null,null,"休館",null,"休館",null,null,null,null,null,"休館"]
[null,27,28,29,30,null,null,null,null,25,26,27,28,29,30,31,null,29,30]
[null,"休館",null,"休館",null,null,null,null,null,"休館",null,null,null,null,null,null,null,"休館"]
[]
[]
[null,2025,null,null,null,null,null,null,null,2025,null,null,null,null,null,null,null,2025]
[null,"日","月","火","水","木","金","土",null,"日","月","火","水","木","金","土",null,"日","月","火","水","木","金","土"]
[null,null,null,1,2,3,4,5,null,null,null,null,null,null,1,2,null,null,1,2,3,4,5,6]
[]
[null,6,7,8,9,10,11,12,null,3,4,5,6,7,8,9,null,7,8,9,10,11,12,13]
[null,"休館",null,null,null,null,null,"休館",null,"休館",null,null,null,null,null,"休館",null,"休館",null,null,null,null,null,"休館"]
[null,13,14,15,16,17,18,19,null,10,11,12,13,14,15,16,null,14,15,16,17,18,19,20]
[null,"休館",null,null,null,null,null,null,null,"休館","休館",null,null,null,null,null,null,"休館","休館"]
[null,20,21,22,23,24,25,26,null,17,18,19,20,21,22,23,null,21,22,23,24,25,26,27]
[null,"休館","休館",null,null,null,null,"休館",null,"休館",null,null,null,null,null,"休館",null,"休館",null,"休館",null,null,null,"休館"]
[null,27,28,29,30,31,null,null,null,24,25,26,27,28,29,30,null,28,29,30]
[null,"休館",null,null,null,null,null,null,null,"休館",null,null,null,null,null,null,null,"休館"]
[null,null,null,null,null,null,null,null,null,31]
[null,null,null,null,null,null,null,null,null,"休館"]
[]
[]
[null,2025,null,null,null,null,null,null,null,2025,null,null,null,null,null,null,null,2025]
[null,"日","月","火","水","木","金","土",null,"日","月","火","水","木","金","土",null,"日","月","火","水","木","金","土"]
[null,null,null,null,1,2,3,4,null,null,null,null,null,null,null,1,null,null,1,2,3,4,5,6]
[]
[null,5,6,7,8,9,10,11,null,2,3,4,5,6,7,8,null,7,8,9,10,11,12,13]
[null,"休館",null,null,null,null,null,"休館",null,"休館","休館",null,null,null,null,"休館",null,"休館",null,null,null,null,null,"休館"]
[null,12,13,14,15,16,17,18,null,9,10,11,12,13,14,15,null,14,15,16,17,18,19,20]
[null,"休館","休館",null,null,null,null,null,null,"休館",null,null,null,null,null,null,null,"休館"]
[null,19,20,21,22,23,24,25,null,16,17,18,19,20,21,22,null,21,22,23,24,25,26,27]
[null,"休館",null,null,null,null,null,"休館",null,"休館",null,null,null,null,null,"休館",null,"休館",null,null,null,null,null,"休館"]
[null,26,27,28,29,30,31,null,null,23,24,25,26,27,28,29,null,28,29,30,31]
[null,"休館",null,null,null,null,null,null,null,"休館","休館",null,null,null,null,null,null,"休館","休館","休館","休館"]
[null,null,null,null,null,null,null,null,null,30]
[null,null,null,null,null,null,null,null,null,"休館"]
[]
[]
[null,2026,null,null,null,null,null,null,null,2026,null,null,null,null,null,null,null,2026]
[null,"日","月","火","水","木","金","土",null,"日","月","火","水","木","金","土",null,"日","月","火","水","木","金","土"]
[null,null,null,null,null,1,2,3,null,1,2,3,4,5,6,7,null,1,2,3,4,5,6,7]
[null,null,null,null,null,"休館","休館","休館",null,"休館",null,null,null,null,null,null,null,"休館"]
[null,4,5,6,7,8,9,10,null,8,9,10,11,12,13,14,null,8,9,10,11,12,13,14]
[null,"休館",null,null,null,null,null,"休館",null,"休館",null,null,null,null,null,"休館",null,"休館",null,null,null,null,null,"休館"]
[null,11,12,13,14,15,16,17,null,15,16,17,18,19,20,21,null,15,16,17,18,19,20,21]
[null,"休館","休館",null,null,null,null,null,null,"休館",null,null,null,null,null,null,null,"休館",null,null,null,null,"休館"]
[null,18,19,20,21,22,23,24,null,22,23,24,25,26,27,28,null,22,23,24,25,26,27,28]
[null,"休館",null,null,null,null,null,"休館",null,"休館","休館",null,null,null,null,"休館",null,"休館",null,null,null,null,null,"休館"]
[null,25,26,27,28,29,30,31,null,null,null,null,null,null,null,null,null,29,30,31]
[null,"休館",null,null,null,null,null,null,null,null,null,null,null,null,null,null,null,"休館"]
[]
[]
[]
[]
[]
[]
[]
[]
[null,"健診カレンダー（博多）"]
[]
[null,"　　　　金曜日はレディースデー（午前中は女性専用　午後は男女可能）　　　　　　　　　　　　　　　　土曜日は午前のみ（午後休館）"]
[]
[null,2025,null,null,null,null,null,null,null,2025,null,null,null,null,null,null,null,2025]
[null,"日","月","火","水","木","金","土",null,"日","月","火","水","木","金","土",null,"日","月","火","水","木","金","土"]
[null,null,null,1,2,3,4,5,null,null,null,null,null,1,2,3,null,1,2,3,4,5,6,7]
[null,null,null,null,null,null,null,"休館",null,null,null,null,null,null,null,"休館",null,"休館",null,null,null,null,null,"休館"]
[null,6,7,8,9,10,11,12,null,4,5,6,7,8,9,10,null,8,9,10,11,12,13,14]
[null,"休館",null,null,null,null,null,"休館",null,"休館","休館","休館",null,null,null,"休館",null,"休館",null,null,null,null,null,"休館"]
[null,13,14,15,16,17,18,19,null,11,12,13,14,15,16,17,null,15,16,17,18,19,20,21]
[null,"休館",null,null,null,null,null,null,null,"休館",null,null,null,null,null,null,null,"休館"]
[null,20,21,22,23,24,25,26,null,18,19,20,21,22,23,24,null,22,23,24,25,26,27,28]
[null,"休館",null,null,null,null,null,"休館",null,"休館",null,null,null,null,null,"休館",null,"休館",null,null,null,null,null,"休館"]
[null,27,28,29,30,null,null,null,null,25,26,27,28,29,30,31,null,29,30]
[null,"休館",null,"休館",null,null,null,null,null,"休館",null,null,null,null,null,"休館",null,"休館"]
[]
[]
[null,2025,null,null,null,null,null,null,null,2025,null,null,null,null,null,null,null,2025]
[null,"日","月","火","水","木","金","土",null,"日","月","火","水","木","金","土",null,"日","月","火","水","木","金","土"]
[null,null,null,1,2,3,4,5,null,null,null,null,null,null,1,2,null,null,1,2,3,4,5,6]
[null,null,null,null,null,null,null,"休館",null,null,null,null,null,null,null,"休館",null,null,null,null,null,null,null,"休館"]
[null,6,7,8,9,10,11,12,null,3,4,5,6,7,8,9,null,7,8,9,10,11,12,13]
[null,"休館",null,null,null,null,null,"休館",null,"休館",null,null,null,null,null,"休館",null,"休館",null,null,null,null,null,"休館"]
[null,13,14,15,16,17,18,19,null,10,11,12,13,14,15,16,null,14,15,16,17,18,19,20]
[null,"休館",null,null,null,null,null,null,null,"休館","休館",null,null,null,null,null,null,"休館","休館"]
[null,20,21,22,23,24,25,26,null,17,18,19,20,21,22,23,null,21,22,23,24,25,26,27]
[null,"休館","休館",null,null,null,null,"休館",null,"休館",null,null,null,null,null,"休館",null,"休館",null,"休館",null,null,null,"休館"]
[null,27,28,29,30,31,null,null,null,24,25,26,27,28,29,30,null,28,29,30]
[null,"休館",null,null,null,null,null,null,null,"休館",null,null,null,null,null,"休館",null,"休館"]
[null,null,null,null,null,null,null,null,null,31]
[null,null,null,null,null,null,null,null,null,"休館"]
[]
[]
[null,2025,null,null,null,null,null,null,null,2025,null,null,null,null,null,null,null,2025]
[null,"日","月","火","水","木","金","土",null,"日","月","火","水","木","金","土",null,"日","月","火","水","木","金","土"]
[null,null,null,null,1,2,3,4,null,null,null,null,null,null,null,1,null,null,1,2,3,4,5,6]
[null,null,null,null,null,null,null,"休館",null,null,null,null,null,null,null,"休館",null,null,null,null,null,null,null,"休館"]
[null,5,6,7,8,9,10,11,null,2,3,4,5,6,7,8,null,7,8,9,10,11,12,13]
[null,"休館",null,null,null,null,null,"休館",null,"休館","休館",null,null,null,null,"休館",null,"休館",null,null,null,null,null,"休館"]
[null,12,13,14,15,16,17,18,null,9,10,11,12,13,14,15,null,14,15,16,17,18,19,20]
[null,"休館","休館",null,null,null,null,null,null,"休館",null,null,null,null,null,null,null,"休館"]
[null,19,20,21,22,23,24,25,null,16,17,18,19,20,21,22,null,21,22,23,24,25,26,27]
[null,"休館",null,null,null,null,null,"休館",null,"休館",null,null,null,null,null,"休館",null,"休館",null,null,null,null,null,"休館"]
[null,26,27,28,29,30,31,null,null,23,24,25,26,27,28,29,null,28,29,30,31]
[null,"休館",null,null,null,null,null,null,null,"休館","休館",null,null,null,null,"休館",null,"休館","休館","休館","休館"]
[null,null,null,null,null,null,null,null,null,30]
[null,null,null,null,null,null,null,null,null,"休館"]
[]
[]
[null,2026,null,null,null,null,null,null,null,2026,null,null,null,null,null,null,null,2026]
[null,"日","月","火","水","木","金","土",null,"日","月","火","水","木","金","土",null,"日","月","火","水","木","金","土"]
[null,null,null,null,null,1,2,3,null,1,2,3,4,5,6,7,null,1,2,3,4,5,6,7]
[null,null,null,null,null,"休館","休館","休館",null,"休館",null,null,null,null,null,"休館",null,"休館",null,null,null,null,null,"休館"]
[null,4,5,6,7,8,9,10,null,8,9,10,11,12,13,14,null,8,9,10,11,12,13,14]
[null,"休館",null,null,null,null,null,"休館",null,"休館",null,null,null,null,null,"休館",null,"休館",null,null,null,null,null,"休館"]
[null,11,12,13,14,15,16,17,null,15,16,17,18,19,20,21,null,15,16,17,18,19,20,21]
[null,"休館","休館",null,null,null,null,null,null,"休館",null,null,null,null,null,null,null,"休館",null,null,null,null,"休館"]
[null,18,19,20,21,22,23,24,null,22,23,24,25,26,27,28,null,22,23,24,25,26,27,28]
[null,"休館",null,null,null,null,null,"休館",null,"休館","休館",null,null,null,null,"休館",null,"休館",null,null,null,null,null,"休館"]
[null,25,26,27,28,29,30,31,null,null,null,null,null,null,null,null,null,29,30,31]
[null,"休館",null,null,null,null,null,"休館",null,null,null,null,null,null,null,null,null,"休館"]

{"sheet":"⑧オプション一覧","index":8,"n_rows":71,"n_cols":6,"rows_kept":71,"cut":false,"hidden":false,"merged":[[70,1,70,5],[69,1,69,5],[67,4,67,5],[66,4,66,5],[65,4,65,5],[57,1,67,1],[64,4,64,5],[63,4,63,5],[62,4,62,5],[60,4,60,5],[59,4,59,5],[58,4,58,5],[57,4,57,5],[61,4,61,5],[48,4,48,5],[50,4,50,5],[53,4,53,5],[52,4,52,5],[51,4,51,5],[46,4,46,5],[32,4,32,5],[30,4,30,5],[29,4,29,5],[28,4,28,5],[35,4,35,5],[34,4,34,5],[33,4,33,5],[36,4,36,5],[41,4,41,5],[40,4,40,5],[43,4,43,5],[42,4,42,5],[31,4,31,5],[21,4,21,5],[20,4,20,5],[19,4,19,5],[17,4,17,5],[23,4,23,5],[47,1,56,1],[1,1,1,5],[9,4,9,5],[11,4,11,5],[12,4,12,5],[15,4,15,5],[14,4,14,5],[4,1,12,1],[13,1,15,1],[25,4,25,5],[24,4,24,5],[2,4,2,5],[2,1,3,2],[2,3,3,3],[16,1,21,1],[22,1,25,1],[26,1,35,1],[36,1,39,1],[40,1,41,1],[44,1,46,1],[44,3,45,3]]}
[]
[null,"2025年度 　　オプション検査料金表"]
[null,"オプション名",null,"検査の説明","料金（税込）"]
[null,null,null,null,"天神","博多"]
[null,"脳・心臓","頭部MRI・MRA　","磁石と電磁波を用い放射線被曝なく脳の状態を詳しく調べることができるため、将来の脳卒中予防の目的で脳ドックの主要検査項目の一つとなっています。また造影剤（薬剤）を用いずに脳の動脈を立体的に観察できるため、くも膜下出血の原因となる未破裂動脈瘤の有無についても調べることが可能です。",27500]
[null,null,"頸動脈エコー","頸動脈にエコーをあて動脈壁の厚さを測定し、全身の動脈硬化の程度を判定する検査です。また頸動脈が狭くなっていないかについても調べることができます。",4730,4400]
[null,null,"脳検査セット\n頭部MRI・MRA＋頸動脈エコー","MRIによる脳や脳動脈の状態チェックとエコーによる動脈硬化のチェックを合わせたセットです。40歳以上、飲酒や喫煙量が多い、血縁者に脳卒中になった方がいる、肥満や生活習慣病がある方などにおすすめです。",29150]
[null,null,"AI認知機能検査（BrainSuite）　※1","AIを使用した認知機能検査です。脳画像検査（MRI）及び認知機能スクリーニング検査を行い、現在の脳機能を評価することで、生活習慣を見直し、脳萎縮を抑え認知症等の疾患を予防・脳健康を維持することにつなげます。",11220]
[null,null,"AI認知機能検査セット\n　　（『頭部MRI・MRA』 ＋ 『BrainSuite』）","MRIによる脳や脳動脈の状態チェックとAIを使用した認知機能検査を合わせたセットです。",35200]
[null,null,"MCIスクリーニング検査プラス","軽度認知障害 (MCI ）のリスク を調べることができる40歳以上の方にお勧めの血液検査です。\n認知症の予備軍とも言われ、そのまま放置すると5年で50%近くが認知症に進行しすると言われております。\nまた急性炎症が認められる方、肝硬変の方、先天的脂質異常症の方、自己免疫性疾患をお持ちの方は判定結果に影響する可能性がございます。",24200]
[null,null,"安静時心電図","手足・胸に電極を付け、心臓が発する電気刺激を波形として記録する検査です。心臓の病気を発見する手掛かりになります。",1980,1650]
[null,null,"NTPro-BNP","心臓にかかる負荷の有無やその程度を測定する心機能のマーカーです。自覚症状のない初期の段階の心機能低下の早期発見につながります。",2750]
[null,null,"LOX‐index","脳梗塞や心筋梗塞の原因となる動脈硬化の原因物質を測定することにより、脳梗塞や心筋梗塞の発症リスクがわかる最新の検査です。近親者でこれらの疾患の既往歴がある方、コレステロールや血糖値が高い方、喫煙されている40歳以上の方などにおすすめです。",13200]
[null,"肺","低線量肺がんCT","日本人のがん死亡者数の第１位である肺がんを発見することに特化したCT検査です。対象臓器を肺に限定することで、被ばく線量を従来の胸部CTの約1/5（当院従来比）に低減させることができます。",11000]
[null,null,"Pro‐GRP","肺がん（特に小細胞がん）に有用な腫瘍マーカーです。",2750]
[null,null,"シフラ","肺がん（特に扁平上皮がん）に有用な腫瘍マーカーです。",2750]
[null,"胃","胃透視（バリウム検査）","バリウムを飲んでX線で食道・胃・十二指腸の上部消化管の撮影を行います。胃全体の形を捉えやすいため、スキルス胃がんの特徴である胃の伸展不良（壁が硬くふくらみが悪い）の診断に有用です。",12100,11000]
[null,null,"35歳未満限定胃透視　\n（バリウム検査）","35歳未満限定料金。一般的な胃がんはピロリ菌の感染や喫煙などがリスクとされ50代以上の男性に多いのに対して、スキルス胃がんは20代や30代の若年層（特に女性）にも発生することがあります。",7700]
[null,null,"胃カメラ（胃内視鏡検査）","内視鏡を使用して、食道・胃・十二指腸を直接観察し、がん、潰瘍・ポリープ・炎症などの発見に有用です。カメラを口から挿入する方法と鼻から挿入する方法があります。",17600,16500]
[null,null,"胃カメラ鎮静剤","胃カメラ時（口から挿入する場合）に使用します。意識がぼんやりとした状態となり苦痛を軽減できますが、使用後は一定時間お休み頂きます。検査当日は車等の運転は出来ません。※鎮静効果には個人差があります。",3300]
[null,null,"ヘリコバクターピロリIgG","胃がんや胃潰瘍の原因と言われる「ピロリ菌」に感染していないかを調べます。",2750]
[null,null,"ABC検査\n（胃がんリスク健診）","ピロリ菌感染の有無と胃粘膜萎縮の程度を測定し、胃がんのリスクを総合的に判定します。明らかな消化器症状のある方や治療中の方、ピロリ菌の除菌後の方は正しい結果が得られませんので、ご注意ください。",6600]
[null,"大腸","大腸カメラ（大腸内視鏡検査）","肛門から内視鏡を入れて直腸から盲腸までの大腸全体を直接観察します。大腸がんは男女ともに死因の上位です。40歳以上の方は一度検査をすることをお勧めします。",27500,24200]
[null,null,"便潜血","便中の血液混入の有無を判断する検査です。大腸がんを発見する手がかりとなります。",1650]
[null,null,"Flora Scan","日本人特有の腸内フローラ（腸内細菌の種類や量）のタイプを5つに分類し、生活習慣病、および腸疾患等との関連性を調べる検査です。",16500]
[null,null,"CEA","大腸がん発見の手がかりとなる検査です。便潜血とセットでの受診をおすすめします。",2750]
[null,"肝臓・胆のう・膵臓","腹部エコー","超音波を発する器具（プローブ）を腹部にあてて、上腹部臓器（肝臓・胆のう・すい臓・腎臓・ひ臓・腹部大動脈）を観察し、腫瘍や結石の有無などを調べる検査です。",7150,6050]
[null,null,"腹部CT","放射線を用いて、肝臓・胆のう・膵臓・腎臓・ひ臓などの上腹部臓器のほか、大動脈や骨盤内についての異常の有無を調べる検査です。",14850]
[null,null,"AFP","肝臓がん発見の手がかりとなる検査です。肝がん（肝臓がん）を罹患した場合は血液中にAFPがみられるため、腫瘍マーカーとして用いられている検査です。",2750]
[null,null,"PIVKA-Ⅱ","肝臓がん発見の手がかりとなる検査です。肝細胞がんの有無の可能性を知るために行われる検査です。",2750]
[null,null,"肝臓腫瘍マーカーセット\n　　（『AFP』 + 『PIVKA‐Ⅱ』）","肝臓がん発見の手がかりとなる検査です。",4400]
[null,null,"膵臓腫瘍マーカーセット\n　　（『APOA2アイソフォーム』　+　『CA19-9』","異なる物質を測定する2種類の腫瘍マーカー（ 「APOA2アイソフォーム」 + 「CA19-9」 ）を組み合わせることで、相補的にすい臓がんの診断補助精度が向上します。 ",7700]
[null,null,"CA19-9 ","膵臓がん発見の手がかりとなる検査です。胃がんや大腸がんなど、消化器系のがんにも反応を示します。",2750]
[null,null,"HBｓ抗原（B型肝炎ウイルス検査）","B型肝炎ウイルス感染の有無を調べる検査です。",1320]
[null,null,"HBｓ抗体（B型肝炎ウイルス検査）","HBs抗原に対する抗体の有無を調べる検査です。陽性であれば過去に感染し、その後、治癒したことを示唆します。HBVワクチンを接種した場合にも陽性となります。",1320]
[null,null,"HCV抗体（C型肝炎ウイルス検査）","C型肝炎ウイルス感染の有無を調べる検査です。HCV抗体陽性の場合、C型肝炎ウイルスへの感染の既往を意味します。早期に検査をすること肝硬変や肝臓がんなどへの進展を防ぎます。",2200]
[null,"保健師おススメ","HbA1c(ヘモグロビンA1C）","食事や運動などの影響を受けにくく、過去1～2か月の平均的な血糖の状態を調べる検査です。血糖値のコントロール状態を知ることができます。",770]
[null,null,"眼底カメラ","カメラを用いて眼底にある血管や神経組織を観察します。緑内障、網膜色素変性症、黄斑変性症、網膜剥離、眼底出血などの眼の病気の他、高血圧や糖尿病などの全身性の病気の発見にも有効です。",2200,1650]
[null,null,"内臓脂肪CT","内臓脂肪が多いほどメタボリック・シンドロームの発症の可能性が高まります。CTを用いて腹部の内臓脂肪と皮下脂肪の量を測定することで、腹囲は正常でも内臓脂肪の多い「隠れ肥満」の発見に有用です。",4180]
[null,null,"Inbody測定（体組成測定）","体成分分析装置です。体脂肪率だけでなく、体を構成する基本成分である体水分・タンパク質・ミネラル・体脂肪を定量的に分析します。生活習慣を見直すきっかけになります。",1100]
[null,"甲状腺","甲状腺エコー","甲状腺に超音波をあてて甲状腺の大きさやしこりの有無など内部の状態を調べる検査です。血液検査とあわせて受けることをおすすめします。",4400]
[null,null,"TSH・FT3・FT4","甲状腺刺激ホルモンと2種類の甲状腺ホルモンの量を調べることで、女性に多い甲状腺機能異常（バセドウ病、橋本病など）の早期発見につながります。",4400]
[null,"前立腺","高感度PSA","前立腺がんに特異性の高い検査です。自覚症状のない段階での早期発見にも役立ちます。40歳以上の男性におすすめします。",2750]
[null,"リウマチ","抗CCP抗体","女性に多い病気と言われる関節リウマチの発症予測に有用な検査です。抗CCP抗体は今までのリウマチ因子検査よりはるかに鋭敏であり、正確にリウマチの発症を予測できる最も重要な血液検査です。",2200]
[null,"乳腺","マンモグラフィ（1方向）","乳房を挟んでX線撮影をする検査です。小さなしこりや石灰化を調べ、近年増加している乳がんの早期発見に有用です。乳腺が豊富な方（乳腺高濃度）は、乳腺超音波との併用をおすすめします。1方向と2方向では撮影枚数が異なります。乳腺密度の高い方（30～40代）は2方向をおすすめします。",4400,3300]
[null,null,"マンモグラフィ（2方向）",null,5500,4400]
[null,null,"乳腺エコー","乳房に超音波をあて、しこりや乳管の変化の有無を調べる検査です。乳腺が発達している若い方（乳腺高濃度）や妊娠中・授乳中の方にもおすすめです。",4400]
[null,"婦人科（子宮・卵巣）","子宮頸部細胞診","ブラシを用いて子宮頸部より細胞を採取し子宮頸がんに至る病変細胞の有無を顕微鏡で調べる検査です。子宮頸部がんは、子宮の入り口付近に発生することが多いので、直接細胞を採取することでがん及び前がん状態を見つけることができます。",5500,4400]
[null,null,"HPV検査","子宮頸がんの原因となるHPV（ヒトパピローマウイルス）への感染の有無を調べる検査です。子宮頸がん検査（細胞診）時に一緒に検査することが可能で、同時に検査することで子宮がん検診の精度を高めることができます。",5500]
[null,null,"経腟エコー","膣の中に細長いエコーの機械（プローブ）を挿入し、子宮や卵巣の状態を観察する検査です。子宮筋腫・子宮内膜症・卵巣腫瘍などの発見につながります。",4180]
[null,null,"エクオール検査","エクオールとは女性ホルモンと似た働きをする成分です。腸内で、大豆イソフラボンから「エクオール」が作られているかを尿検査で調べます。更年期の症状が気になるゆらぎ世代の方々におすすめです。",3850]
[null,null,"ホルモンチェック","女性ホルモンの乱れや自律神経の乱れは閉経前後の心身にさまざまな不調をもたらします。不調の原因が女性ホルモンの減少によるものかどうかの参考のために血中の女性ホルモンの値を調べる検査です。特にゆらぎ世代の方はご自身が閉経に向けたどのあたりの状態にいるのかの参考になります。",4400]
[null,null,"CA125 ","卵巣がん発見の手がかりとなる検査です。",2750]
[null,null,"AMH（抗ミュラー管ホルモン）検査","現在の「卵子」の数の目安、つまり卵巣予備能（卵巣年齢）を知ることができ、今後の妊活を含めライフプラン形成に役立てることができます。血液検査のため月経周期を気にせずに検査を受けられます。今後妊娠を希望される方におすすめします。",6600]
[null,null,"骨密度","放射線を用いて骨の密度を測定する検査です。女性ホルモンの減少と深くかかわるため、40歳以上の女性、特に閉経後の方におすすめします。",3300,2200]
[null,null,"婦人科ナースおススメ3点セット\n『子宮頸部細胞診』 + 『HPV』 + 『経腟エコー』","子宮・卵巣の健康状態がわかるベーシックでお得なセットです。１度内診台に上がり１０分程度で全ての検査が受けられます。",13200]
[null,null,"婦人科ナースおススメ2点セット　※2\n『HPV』 + 『経腟エコー』","子宮・卵巣の健康状態がわかるベーシックでお得なセットです。１度内診台に上がり１０分程度で全ての検査が受けられます。\n（申込コースや健保補助等で、「子宮頚部細胞診」をお申込みの方のみご利用いただけます。）",7700]
[null,"　","風疹抗体検査","風疹に対する免疫があるかどうかを調べる検査です。",4950]
[null,null,"麻疹抗体検査","麻疹に対する免疫があるかどうかを調べる検査です。",4950]
[null,null,"血液型（ABO・Rh）","緊急で輸血が必要となる場合に役立ちます。",1100]
[null,null,"View39（アレルギー検査）","アレルギー症状は、自覚症状がある方はもちろん、現在症状がなくても、ご自身がどのようなアレルゲン物質に対してアレルギーを引き起こす可能性があるか知っておくことが大切です。View39では少量の採血で一度に39種類（卵、牛乳、小麦、豆類、甲殻類、果物、魚、肉、動物、昆虫、樹木、草、カビ、塵など）のアレルギー検査が可能です。",14850]
[null,null,"アミノインデックス","血液中のアミノ酸濃度を測定し、採血のみで複数のがんに罹患しているリスク(AICS)や将来、脳卒中や心筋梗塞、糖尿病などの生活習慣病になるリスク(AILS)、認知症になるリスクを評価できるスクリーニング検査です。",25300]
[null,null,"SCC抗原","扁平上皮がん（食道がん、子宮頸がん、皮膚がん、肺がん、咽頭がん）などを調べます。",2750]
[null,null,"男性向け腫瘍マーカー4種セット\nAFP ＋ CA19-9 ＋ CEA ＋ PSA","男性向けのお得な腫瘍マーカー４種セットです。",7700]
[null,null,"女性向け腫瘍マーカー4種セット\nAFP ＋ CA19-9 ＋ CEA ＋ CA125","女性向けのお得な腫瘍マーカー４種セットです。",7700]
[null,null,"男女兼用腫瘍マーカー5種セット\nAFP + CA19-9 + CEA + シフラ + Pro-GRP","男性女性どちらでもご利用いただけるお得な腫瘍マーカー5種セットです。",8800]
[null,null,"男性向け腫瘍マーカー6種セット\nAFP + CA19-9 + CEA + \nシフラ + Pro-GRP +  PSA","男性向けのお得な腫瘍マーカー６種セットです。",9900]
[null,null,"女性向け腫瘍マーカー6種セット\nAFP + CA19-9 + CEA + \nシフラ + Pro‐GRP + CA125","女性向けのお得な腫瘍マーカー６種セットです。",9900]
[]
[null,"※1　　こちらの検査は脳ドックとコースにMRIが入っている方及びオプションで頭部MRI・MRAまたは脳検査セットを追加している方のみ受診可能です。"]
[null,"※2　　コース・健保補助等に『子宮頸部細胞診』が含まれる場合用"]

{"sheet":"取り込み用","index":9,"n_rows":1,"n_cols":33,"rows_kept":1,"cut":false,"hidden":true,"merged":[]}
["受診施設","受付フロア","予約日","予約時間帯コード","呼出時間","団体番号","個人番号","カナ氏名","漢字氏名","性別","生年月日","保険者番号","被保険者証等記号","被保険者証等番号","契約番号","主コース","胃カメラ","協会マンモ","協会子宮","オプション","オプション","本人・家族区分","従業員コード","部署コード１","部署コード２","部署コード３","郵便番号","住所１","住所２","予約コメント","E-MAIL","加入健保団体番号","予約区分"]

{"sheet":"契約コース内容","index":10,"n_rows":27,"n_cols":2,"rows_kept":27,"cut":false,"hidden":true,"merged":[]}
["F0001","◆天神◆定期健康診断Ｂ"]
["F0002","◇博多◇定期健康診断Ｂ"]
["F0003","◆天神◆定期健康診断Ａ"]
["F0101","◇博多◇定期健康診断Ａ"]
["FK001","協会けんぽ一般健診"]
["FK002","協会けんぽ付加健診"]
["FK003","◆天神◆協会けんぽ付加健診同項目"]
["FK004","◆天神◆協会けんぽ一般健診同項目"]
["FK005","◆天神◆協会けんぽ差額人間ドック"]
["FK008","◇博多◇協会けんぽ付加健診同項目"]
["FK009","◇博多◇協会けんぽ一般健診同項目"]
["FK010","◇博多◇協会けんぽ差額人間ドック"]
["FK099","協会けんぽ肝炎ウィルス検査"]
["FK100","協会けんぽ子宮頸がん検診"]
["FK101","協会けんぽ乳がん検診(2方向)"]
["FK102","協会けんぽ乳がん検診(1方向)"]
["FZ001","◆天神◆マンモグラフィ(1方向)"]
["FZ002","◆天神◆マンモグラフィ(2方向)"]
["FZ003","◆天神◆乳腺超音波"]
["FZ004","◆天神◆子宮頸部細胞診"]
["FZ032","◇博多◇マンモグラフィ(1方向)"]
["FZ033","◇博多◇マンモグラフィ(2方向)"]
["FZ034","◇博多◇乳腺超音波"]
["FZ036","◇博多◇子宮頸部細胞診"]
["FZ100","【R2/窓口払い】インフルエンザ予防接種"]
["FZC01","胃カメラ(差額5500円)"]
["FZC02","胃カメラ差額(上下セット)"]

{"sheet":"運用について","index":11,"n_rows":10,"n_cols":5,"rows_kept":10,"cut":false,"hidden":true,"merged":[[5,1,9,1],[5,2,9,2],[5,0,9,0]]}
[null,"業務内容","流れ","詳細","システム"]
["①","既存ID抽出","当院→企業","個人一覧より企業登録の既存の情報を抽出しエクセルデーターを作成","★企業やり取りエクセルデータ"]
[]
["②","今年度の受診対象者リスト作成","企業→当院","①のエクセルデータに今年度の対象者・検査コース・OPなど希望内容を担当者で整え提供してもらう","★企業やり取りエクセルデータ"]
[]
["③","予約枠・契約・日程を調整する","当院","新規ID作成（ワイズマン作成自動化あり）","★ID自動化CSV作成"]
[null,null,null,"団体契約運用を作成　（協会けんぽ親団体で運用）"]
[null,null,null,"日程を仮枠で提供　もしくは　日程を確定し提供","★一括オーダ取り込みCSV作成"]
[null,null,null,"仮枠を提供","★仮枠提供一覧作成"]
[null,null,null,"日程を確定","★日程表一覧作成"]